Workbook

Sheet START

Sheet Instructions
D2: 2020
X4: Yes
X5: No
W7: Type of Entities Range:
F8: =Contacts!B7 -> 0 | X8: Parent Municipality
X9: Consolidated Information
F14: START
F15: Instructions
F16: Template names
F17: Lookup and lists | W17: MTREF Range: | X17: 2013
F18: Org structure | X18: 2014
F19: Contacts | X19: 2015
F20: A1-Sum | X20: 2016
F21: A2-FinPerf SC | X21: 2017
F22: A2A | X22: 2018
F23: A3-FinPerf V | X23: 2019
F24: A3A | X24: 2020
F25: A4-FinPerf RE | X25: 2021
F26: A5-Capex | X26: 2022
F27: A5A | X27: 2023
F28: A6-FinPos | X28: 2024
F29: A7-CFlow | X29: 2025
F30: A8-ResRecon | X30: 2026
F31: A9-Asset | X31: 2027
F32: A10-SerDel | X32: 2028
F33: SA1 | W33: MTREF Linked: | X33: 14
F34: SA2 | W34: MTREF: | X34: =INDEX(X17:X31,X33,1) -> 2026
F35: SA3
F36: SA4 | W36: Fin Year: | X36: =MTREF&"/"&RIGHT(MTREF,2)+1 -> 2026/27
F37: SA5
F38: SA6
F39: SA7
F40: SA8
F41: SA9
F42: SA10
F43: SA11
F44: SA12a
F45: SA12b
F46: SA13a
F47: SA13b
F48: SA14
F49: SA15
F50: SA16
F51: SA17
F52: SA18
F53: SA19
F54: SA20
F55: SA21
F56: SA22
F57: SA23
F58: SA24
F59: SA25
F60: SA26
F61: SA27
F62: SA28
F63: SA29
F64: SA30
F65: SA31
F66: SA32
F67: SA33
F68: SA34a
F69: SA34b
F70: SA34c
F71: SA34d
F72: SA34e
F73: SA35
F74: SA36
F75: SA37
F76: SA38
F77: LGDB_EXPORT

Sheet Template names (hidden)
A1: Common sheet headings
A2: Head1 | B2: =HLOOKUP(MTREF,Headings,2) -> 2024/25 | C2: Prior year -1
A3: Head1A | B3: =HLOOKUP(MTREF,Headings,3) -> 2023/24 | C3: Prior year -2
A4: Head1B | B4: =HLOOKUP(MTREF,Headings,4) -> 2022/23 | C4: Prior year -3
A5: Head2 | B5: =HLOOKUP(MTREF,Headings,5) -> Current Year 2025/26 | C5: Year in which budget is being prepared
A6: Head2A | B6: =HLOOKUP(MTREF,Headings,6) -> 2025/26 | C6: Year in which budget is being prepared
A7: Head3 | B7: =HLOOKUP(MTREF,Headings,7) -> 2026/27 Medium Term Revenue & Expenditure Framework | C7: MTREF name
A8: Head4 | B8: LTFS | C8: Long term financial strategy
A9: Head5 | B9: Audited Outcome
A10: Head5A | B10: Outcome
A11: Head5B | B11: Pre-audit outcome
A12: Head6 | B12: Original Budget
A13: Head7 | B13: Adjusted Budget
A14: Head8 | B14: Full Year Forecast
A15: Head9 | B15: =HLOOKUP(MTREF,Headings,8) -> Budget Year 2026/27 | C15: 1st year of MTREF | D15: Year1
A16: Head10 | B16: =HLOOKUP(MTREF,Headings,9) -> Budget Year +1 2027/28 | C16: 2nd year of MTREF | D16: Year2
A17: Head11 | B17: =HLOOKUP(MTREF,Headings,10) -> Budget Year +2 2028/29 | C17: 3rd year of MTREF | D17: Year3
A18: Head12 | B18: =HLOOKUP(MTREF,Headings,11) -> Forecast 2029/30 | C18: 1st yr of long term forecast | D18: Year4
A19: Head13 | B19: =HLOOKUP(MTREF,Headings,12) -> Forecast 2030/31 | C19: Next yr of long term forecast | D19: Year5
A20: Head14 | B20: =HLOOKUP(MTREF,Headings,13) -> Forecast 2031/32 | C20: Next yr of long term forecast | D20: Year6
A21: Head15 | B21: =HLOOKUP(MTREF,Headings,14) -> Forecast 2032/33 | C21: Next yr of long term forecast | D21: Year7
A22: Head16 | B22: =HLOOKUP(MTREF,Headings,15) -> Forecast 2033/34 | C22: Next yr of long term forecast | D22: Year8
A23: Head17 | B23: =HLOOKUP(MTREF,Headings,16) -> Forecast 2034/35 | C23: Next yr of long term forecast | D23: Year9
A24: Head18 | B24: =HLOOKUP(MTREF,Headings,17) -> Forecast 2035/36 | C24: Next yr of long term forecast | D24: Year10
A25: Head19 | B25: =HLOOKUP(MTREF,Headings,18) -> Forecast 2036/37 | C25: Next yr of long term forecast | D25: Year11
A26: Head20 | B26: =HLOOKUP(MTREF,Headings,19) -> Forecast 2037/38 | C26: Next yr of long term forecast | D26: Year12
A27: Head21 | B27: =HLOOKUP(MTREF,Headings,20) -> Forecast 2038/39 | C27: Next yr of long term forecast | D27: Year13
A28: Head22 | B28: =HLOOKUP(MTREF,Headings,21) -> Forecast 2039/40 | C28: Next yr of long term forecast | D28: Year14
A29: Head23 | B29: =HLOOKUP(MTREF,Headings,22) -> Forecast 2040/41 | C29: Next yr of long term forecast | D29: Year15
A30: Head24 | B30: Description
A31: Head25
A32: Head26 | B32: Vote Description
A33: Head27 | B33: Ref
A34: Head27a | B34: References
A35: Head28 | B35: Surplus/(Deficit) for the year | D35: Result
A36: Head29 | B36: =HLOOKUP(MTREF,Headings,23) -> Annual target 2026/27
A37: Head30 | B37: =HLOOKUP(MTREF,Headings,24) -> Revised target 2026/27
A38: Head31 | B38: Quarter ended 30 September
A39: Head32 | B39: Quarter ended 31 December
A40: Head33 | B40: Quarter ended 31 March
A41: Head34 | B41: Quarter ended 30 June
A42: Head35 | B42: Variance explanation
A43: Head36 | B43: YTD Actual 31 Dec
A44: Head37 | B44: YTD Budget 31 Dec
A45: Head38 | B45: Monthly actual
A46: Head39 | B46: YTD actual
A47: Head40 | B47: YTD budget
A48: Head41 | B48: YTD variance
A49: Head42 | B49: Surplus/ (Deficit) for the yr/period
A50: Head43 | B50: =Head3&" Summary" -> 2026/27 Medium Term Revenue & Expenditure Framework Summary
A51: Head44 | B51: 2001 Census
A52: Head45 | B52: 2011 Census
A53: Head46 | B53: - Adjustments Budget - January 2007
A54: Head47 | B54: Previous target year to complete
A55: Head48 | B55: Present value
A56: Head49
A57: Head50 | B57: Other Adjusts.
A58: Head51 | B58: Accum. Funds
A59: Head52 | B59: Multi-year capital
A60: Head53 | B60: Unfore. Unavoid.
A61: Head54 | B61: Prior Adjusted
A62: Head55 | B62: Nat. or Prov. Govt
A63: Head56 | B63: Total Adjusts.
A64: SFPerf1 | B64: Budgeted Financial Performance
A65: SFPerf2 | B65: Forecast Financial Performance
A66: SFPos1 | B66: Budgeted Financial Position
A67: SFPos2 | B67: Forecast Financial Position
A68: Cash1 | B68: Budget Cash Flow
A69: Cash2 | B69: Forecast Cash Flow
A70: RandM | B70: Expenditure includes repairs & maintenance of R'000
A71: Depart1 | B71: Department 1 - | D71: DEP1
A72: Depart2 | B72: Department 2 - | D72: DEP2
A73: Depart3 | B73: Department 3 - | D73: DEP3
A74: Depart4 | B74: Department 4 - | D74: DEP4
A75: Depart5 | B75: Department 5 - | D75: DEP5
A76: Depart6 | B76: Department 6 - | D76: DEP6
A77: Depart7 | B77: Department 7 - | D77: DEP7
A78: Depart8 | B78: Department 8 - | D78: DEP8
A79: Depart9 | B79: Department 9 - | D79: DEP9
A80: Depart10 | B80: Department 10 - | D80: DEP10
A81: Depart11 | B81: Department 11 - | D81: DEP11
A82: Depart12 | B82: Department 12 - | D82: DEP12
A83: Depart13 | B83: Department 13 - | D83: DEP13
A84: Depart14 | B84: Department 14 - | D84: DEP14
A87: Base year of forecast column selection names
A88: Choose | B88: ACT
B89: APP
B90: ADJ
A92: Standard nomenclature
A93: Muni | B93: ='Lookup and lists'!B28 -> LIM355 Lepelle-Nkumpi
A94: Municipal Entities | B94: 2 | C94: Type of report: | D94: 1
A95: =IF((MuniEntities=1)*(MuniType=2),"YES","NO") -> NO | B95: Does this municipality have entities (consolidated budget and entity budgets required)? YES/NO
A96: Entity 1 | B96: (Pty) Ltd Example 1 - Municipal entity - | D96: Ent1
A97: Entity 2 | B97: (Pty) Ltd Example 2 - Municipal entity - | D97: Ent2
A98: Entity 3 | B98: Municipal Entity Example 3 | D98: Ent3
A99: Budget approval tables | C99: Chart x-ref | D99: Sch/Tab/Ch | E99: Alternative for municipalities without entities | F99: Alternative for municipalities without entities
B100: =IF(Consolques="YES",E100,F100) -> Table A1 Budget Summary | D100: Table A1 | E100: =D100&"Consolidated Budget Summary" -> Table A1 Consolidated Budget Summary | F100: =D100&"Budget Summary" -> Table A1 Budget Summary
B101: Table A2 Budgeted Financial Performance (revenue and expenditure by functional classification) | C101: Charts 5, 6 | D101: Table A2 | E101: =D101&"Consolidated Budgeted Financial Performance (revenue and expenditure by functional classification)" -> Table A2 Consolidated Budgeted Financial Performance (revenue and expenditure by functional classification) | F101: =D101&"Budgeted Financial Performance (revenue and expenditure by functional classification)" -> Table A2 Budgeted Financial Performance (revenue and expenditure by functional classification)
B102: Table A3 Budgeted Financial Performance (revenue and expenditure by municipal vote) | D102: Table A3 | E102: =D102&"Consolidated Budgeted Financial Performance (revenue and expenditure by municipal vote)" -> Table A3 Consolidated Budgeted Financial Performance (revenue and expenditure by municipal vote) | F102: =D102&"Budgeted Financial Performance (revenue and expenditure by municipal vote)" -> Table A3 Budgeted Financial Performance (revenue and expenditure by municipal vote)
B103: Table A4 Budgeted Financial Performance (revenue and expenditure) | C103: Charts 1, 2, 3, 4 | D103: Table A4 | E103: =D103&"Consolidated Budgeted Financial Performance (revenue and expenditure)" -> Table A4 Consolidated Budgeted Financial Performance (revenue and expenditure) | F103: =D103&"Budgeted Financial Performance (revenue and expenditure)" -> Table A4 Budgeted Financial Performance (revenue and expenditure)
B104: Table A5 Budgeted Capital Expenditure by vote, functional classification and funding | C104: Charts 7, 8, 9, 10, 20 | D104: Table A5 | E104: =D104&"Consolidated Budgeted Capital Expenditure by vote, functional classification and funding" -> Table A5 Consolidated Budgeted Capital Expenditure by vote, functional classification and funding | F104: =D104&"Budgeted Capital Expenditure by vote, functional classification and funding" -> Table A5 Budgeted Capital Expenditure by vote, functional classification and funding
B105: Table A6 Budgeted Financial Position | D105: Table A6 | E105: =D105&"Consolidated Budgeted Financial Position" -> Table A6 Consolidated Budgeted Financial Position | F105: =D105&"Budgeted Financial Position" -> Table A6 Budgeted Financial Position
B106: Table A7 Budgeted Cash Flows | D106: Table A7 | E106: =D106&"Consolidated Budgeted Cash Flows" -> Table A7 Consolidated Budgeted Cash Flows | F106: =D106&"Budgeted Cash Flows" -> Table A7 Budgeted Cash Flows
B107: Table A8 Cash backed reserves/accumulated surplus reconciliation | D107: Table A8 | E107: =D107&"Consolidated Cash backed reserves/accumulated surplus reconciliation" -> Table A8 Consolidated Cash backed reserves/accumulated surplus reconciliation | F107: =D107&"Cash backed reserves/accumulated surplus reconciliation" -> Table A8 Cash backed reserves/accumulated surplus reconciliation
B108: Table A9 Asset Management | D108: Table A9 | E108: =D108&"Consolidated Asset Management" -> Table A9 Consolidated Asset Management | F108: =D108&"Asset Management" -> Table A9 Asset Management
B109: Table A10 Basic service delivery measurement | D109: Table A10 | E109: =D109&"Consolidated basic service delivery measurement" -> Table A10 Consolidated basic service delivery measurement | F109: =D109&"Basic service delivery measurement" -> Table A10 Basic service delivery measurement
A110: Supportinging Tables to the Budget Approval Tables | C110: =$C$99 -> Chart x-ref | D110: =$D$99 -> Sch/Tab/Ch
A111: Supporting Table SA1 | B111: =A111&" Supportinging detail to 'Budgeted Financial Performance'" -> Supporting Table SA1 Supportinging detail to 'Budgeted Financial Performance'
A112: Supporting Table SA2 | B112: =IF(Consolques="YES",E112,F112) -> Supporting Table SA2 Matrix Financial Performance Budget (revenue source/expenditure type and dept.) | E112: =A112&"Consolidated Matrix Financial Performance Budget (revenue source/expenditure type & dept.)" -> Supporting Table SA2 Consolidated Matrix Financial Performance Budget (revenue source/expenditure type & dept.) | F112: =A112&"Matrix Financial Performance Budget (revenue source/expenditure type and dept.)" -> Supporting Table SA2 Matrix Financial Performance Budget (revenue source/expenditure type and dept.)
A113: Supporting Table SA3 | B113: =A113&"Supportinging detail to 'Budgeted Financial Position'" -> Supporting Table SA3 Supportinging detail to 'Budgeted Financial Position'
A114: Supporting Table SA4 | B114: =A114&"Reconciliation of IDP strategic objectives and budget (revenue)" -> Supporting Table SA4 Reconciliation of IDP strategic objectives and budget (revenue) | C114: Chart 11
A115: Supporting Table SA5 | B115: =A115&"Reconciliation of IDP strategic objectives and budget (operating expenditure)" -> Supporting Table SA5 Reconciliation of IDP strategic objectives and budget (operating expenditure) | C115: Chart 12
A116: Supporting Table SA6 | B116: =A116&"Reconciliation of IDP strategic objectives and budget (capital expenditure)" -> Supporting Table SA6 Reconciliation of IDP strategic objectives and budget (capital expenditure) | C116: Chart 13
A117: Supporting Table SA7 | B117: =A117&" Measureable performance objectives" -> Supporting Table SA7 Measureable performance objectives
A118: Supporting Table SA8 | B118: =A118&" Performance indicators and benchmarks" -> Supporting Table SA8 Performance indicators and benchmarks | C118: Chts 15-19
A119: Supporting Table SA9 | B119: =A119&" Social, economic and demographic statistics and assumptions" -> Supporting Table SA9 Social, economic and demographic statistics and assumptions
A120: Supporting Table SA10 | B120: =A120&" Funding measurement" -> Supporting Table SA10 Funding measurement | C120: Chart 14
A121: Supporting Table SA11 | B121: =A121&" Property rates summary" -> Supporting Table SA11 Property rates summary
A122: Supporting Table SA12a | B122: =A122&" Property rates by category (current year)" -> Supporting Table SA12a Property rates by category (current year)
A123: Supporting Table SA12b | B123: =A123&" Property rates by category (budget year)" -> Supporting Table SA12b Property rates by category (budget year)
A124: Supporting Table SA13a | B124: =A124&" Service Tariffs by category" -> Supporting Table SA13a Service Tariffs by category
A125: Supporting Table SA13b | B125: =A125&" Service Tariffs by category - explanatory" -> Supporting Table SA13b Service Tariffs by category - explanatory
A126: Supporting Table SA14 | B126: =A126&" Household bills" -> Supporting Table SA14 Household bills
A127: Supporting Table SA15 | B127: =A127&" Investment particulars by type" -> Supporting Table SA15 Investment particulars by type
A128: Supporting Table SA16 | B128: =A128&" Investment particulars by maturity" -> Supporting Table SA16 Investment particulars by maturity
A129: Supporting Table SA17 | B129: =A129&" Borrowing" -> Supporting Table SA17 Borrowing
A130: Supporting Table SA18 | B130: =A130&" Transfers and grant receipts" -> Supporting Table SA18 Transfers and grant receipts
A131: Supporting Table SA19 | B131: =A131&" Expenditure on transfers and grant programme" -> Supporting Table SA19 Expenditure on transfers and grant programme
A132: Supporting Table SA20 | B132: =A132&" Reconciliation of transfers, grant receipts and unspent funds" -> Supporting Table SA20 Reconciliation of transfers, grant receipts and unspent funds
A133: Supporting Table SA21 | B133: =A133&" Transfers and grants made by the municipality" -> Supporting Table SA21 Transfers and grants made by the municipality
A134: Supporting Table SA22 | B134: =A134&" Summary councillor and staff benefits" -> Supporting Table SA22 Summary councillor and staff benefits
A135: Supporting Table SA23 | B135: =A135&" Salaries, allowances & benefits (political office bearers/councillors/senior managers)" -> Supporting Table SA23 Salaries, allowances & benefits (political office bearers/councillors/senior managers)
A136: Supporting Table SA24 | B136: =A136&" Summary of personnel numbers" -> Supporting Table SA24 Summary of personnel numbers
A137: Supporting Table SA25 | B137: =IF(Consolques="YES",E137,F137) -> Supporting Table SA25 Budgeted monthly revenue and expenditure | E137: =A137&" Consolidated budgeted monthly revenue and expenditure" -> Supporting Table SA25 Consolidated budgeted monthly revenue and expenditure | F137: =A137&" Budgeted monthly revenue and expenditure" -> Supporting Table SA25 Budgeted monthly revenue and expenditure
A138: Supporting Table SA26 | B138: Supporting Table SA26 Budgeted monthly revenue and expenditure (municipal vote) | E138: =A138&" Consolidated budgeted monthly revenue and expenditure (municipal vote)" -> Supporting Table SA26 Consolidated budgeted monthly revenue and expenditure (municipal vote) | F138: =A138&" Budgeted monthly revenue and expenditure (municipal vote)" -> Supporting Table SA26 Budgeted monthly revenue and expenditure (municipal vote)
A139: Supporting Table SA27 | B139: Supporting Table SA27 Budgeted monthly revenue and expenditure (functional classification) | E139: =A139&" Consolidated budgeted monthly revenue and expenditure (functional classification)" -> Supporting Table SA27 Consolidated budgeted monthly revenue and expenditure (functional classification) | F139: =A139&" Budgeted monthly revenue and expenditure (functional classification)" -> Supporting Table SA27 Budgeted monthly revenue and expenditure (functional classification)
A140: Supporting Table SA28 | B140: Supporting Table SA28 Budgeted monthly capital expenditure (municipal vote) | E140: =A140&" Consolidated budgeted monthly capital expenditure (municipal vote)" -> Supporting Table SA28 Consolidated budgeted monthly capital expenditure (municipal vote) | F140: =A140&" Budgeted monthly capital expenditure (municipal vote)" -> Supporting Table SA28 Budgeted monthly capital expenditure (municipal vote)
A141: Supporting Table SA29 | B141: Supporting Table SA29 Budgeted monthly capital expenditure (functional classification) | E141: =A141&" Consolidated budgeted monthly capital expenditure (functional classification)" -> Supporting Table SA29 Consolidated budgeted monthly capital expenditure (functional classification) | F141: =A141&" Budgeted monthly capital expenditure (functional classification)" -> Supporting Table SA29 Budgeted monthly capital expenditure (functional classification)
A142: Supporting Table SA30 | B142: Supporting Table SA30 Budgeted monthly cash flow | E142: =A142&" Consolidated budgeted monthly cash flow" -> Supporting Table SA30 Consolidated budgeted monthly cash flow | F142: =A142&" Budgeted monthly cash flow" -> Supporting Table SA30 Budgeted monthly cash flow
A143: Supporting Table SA31 | B143: NOT REQUIRED - municipality does not have entities | E143: =A143&" Aggregated entity budget" -> Supporting Table SA31 Aggregated entity budget | F143: NOT REQUIRED - municipality does not have entities
A144: Supporting Table SA32 | B144: =A144&" List of external mechanisms" -> Supporting Table SA32 List of external mechanisms
A145: Supporting Table SA33 | B145: =A145&" Contracts having future budgetary implications" -> Supporting Table SA33 Contracts having future budgetary implications
A146: Supporting Table SA34a | B146: =IF(Consolques="YES",E146,F146) -> Supporting Table SA34a Capital expenditure on new assets by asset class | E146: =A146&" Consolidated capital expenditure on new assets by asset class" -> Supporting Table SA34a Consolidated capital expenditure on new assets by asset class | F146: =A146&" Capital expenditure on new assets by asset class" -> Supporting Table SA34a Capital expenditure on new assets by asset class
A147: Supporting Table SA34b | B147: Supporting Table SA34b Capital expenditure on the renewal of existing assets by asset class | E147: =A147&" Consolidated capital expenditure on the renewal of existing assets by asset class" -> Supporting Table SA34b Consolidated capital expenditure on the renewal of existing assets by asset class | F147: =A147&" Capital expenditure on the renewal of existing assets by asset class" -> Supporting Table SA34b Capital expenditure on the renewal of existing assets by asset class
A148: Supporting Table SA34c | B148: Supporting Table SA34c Repairs and maintenance expenditure by asset class | E148: =A148&" Consolidated repairs and maintenance by asset class" -> Supporting Table SA34c Consolidated repairs and maintenance by asset class | F148: =A148&" Repairs and maintenance expenditure by asset class" -> Supporting Table SA34c Repairs and maintenance expenditure by asset class
A149: Supporting Table SA34d | B149: =IF(Consolques="YES",E149,F149) -> Supporting Table SA34d Depreciation by asset class | E149: =A149&" Consolidated Depreciation by asset class" -> Supporting Table SA34d Consolidated Depreciation by asset class | F149: =A149&" Depreciation by asset class" -> Supporting Table SA34d Depreciation by asset class
A150: Supporting Table SA34e | B150: =IF(Consolques="YES",E150,F150) -> Supporting Table SA34e Capital expenditure on the upgrading of existing assets by asset class | E150: =A150&" Consolidated capital expenditure on the upgrading of existing assets by asset class" -> Supporting Table SA34e Consolidated capital expenditure on the upgrading of existing assets by asset class | F150: =A150&" Capital expenditure on the upgrading of existing assets by asset class" -> Supporting Table SA34e Capital expenditure on the upgrading of existing assets by asset class
A151: Supporting Table SA35 | B151: Supporting Table SA35 Future financial implications of the capital budget | E151: =A151&" Consolidated future financial implications of the capital budget" -> Supporting Table SA35 Consolidated future financial implications of the capital budget | F151: =A151& " Future financial implications of the capital budget" -> Supporting Table SA35 Future financial implications of the capital budget
A152: Supporting Table SA36 | B152: Supporting Table SA36 Detailed capital budget | E152: =A152&" Consolidated detailed capital budget" -> Supporting Table SA36 Consolidated detailed capital budget | F152: =A152& " Detailed capital budget" -> Supporting Table SA36 Detailed capital budget
A153: Supporting Table SA37 | B153: Supporting Table SA37 Projects delayed from previous financial year/s | E153: =A153&" Consolidated projects delayed from previous financial year/s" -> Supporting Table SA37 Consolidated projects delayed from previous financial year/s | F153: =A153& " Projects delayed from previous financial year/s" -> Supporting Table SA37 Projects delayed from previous financial year/s
A154: Supporting Table SA38 | B154: =IF(Consolques="YES",E154,F154) -> Supporting Table SA38 Detailed operational projects | E154: =A154&" Consolidated detailed operational projects" -> Supporting Table SA38 Consolidated detailed operational projects | F154: =A154& " Detailed operational projects" -> Supporting Table SA38 Detailed operational projects
A156: Budget Charts | B156: Charts | C156: Cross reference
A157: Chart A1 | B157: =A157&"Revenue by Municipal Vote" -> Chart A1 Revenue by Municipal Vote
A158: Chart A2 | B158: =A158&"Expenditure by Municipal Vote" -> Chart A2 Expenditure by Municipal Vote
A159: Chart A3 | B159: =A159&"Revenue by Standard Classification" -> Chart A3 Revenue by Standard Classification | C159: A2
A160: Chart A4 | B160: =A160&"Expenditure by Standard Classification" -> Chart A4 Expenditure by Standard Classification | C160: A2
A161: Chart A5 | B161: =A161&"Revenue by Major Source (refer 'Minor' source for 'Other Revenue' allocation" -> Chart A5 Revenue by Major Source (refer 'Minor' source for 'Other Revenue' allocation | C161: A3
A162: Chart A6 | B162: =A162&"Revenue by Minor Source (Other)" -> Chart A6 Revenue by Minor Source (Other) | C162: A3
A163: Chart A7 | B163: =A163&"Expenditure by Major Type" -> Chart A7 Expenditure by Major Type | C163: A3
A164: Chart A8 | B164: =A164&"Expenditure by Minor Type (Other)" -> Chart A8 Expenditure by Minor Type (Other) | C164: A3
A165: Chart A9 | B165: =A165&"Capital Expenditure by Municipal Vote/Appropriation (Major)" -> Chart A9 Capital Expenditure by Municipal Vote/Appropriation (Major) | C165: A5
A166: Chart A10 | B166: =A166&"Capital Expenditure by Municipal Vote/Appropriation (Minor)" -> Chart A10 Capital Expenditure by Municipal Vote/Appropriation (Minor) | C166: A5
A167: Chart A11 | B167: =A166&"Capital Expenditure by Standard Classification" -> Chart A10 Capital Expenditure by Standard Classification | C167: A5
A168: Chart A12 | B168: =A168&"Capital expenditure performance trend" -> Chart A12 Capital expenditure performance trend | C168: A5
A169: Chart A13 | B169: =A169&"Capital funding by Source" -> Chart A13 Capital funding by Source | C169: A5
A170: Chart A14 | B170: =A170&"Cash flow trend" -> Chart A14 Cash flow trend | C170: A7
A171: Chart A15 | B171: =A171&"IDP Strategic Objective - Revenue" -> Chart A15 IDP Strategic Objective - Revenue | C171: Table A4
A172: Chart A16 | B172: =A172&"IDP Strategic Objective - Expenditure" -> Chart A16 IDP Strategic Objective - Expenditure | C172: Table A5
A173: Chart A17 | B173: =A173&"IDP Strategic Objective - Capital Expenditure" -> Chart A17 IDP Strategic Objective - Capital Expenditure | C173: Table A6
A174: Chart A18 | B174: =A174&"Debt (borrowing to Total Revenue)" -> Chart A18 Debt (borrowing to Total Revenue) | C174: Table A8
A175: Chart A19 | B175: =A175&"Debtors' trend analysis" -> Chart A19 Debtors' trend analysis | C175: Table A8
A176: Chart A20 | B176: =A176&"Distribution losses" -> Chart A20 Distribution losses | C176: Table A8
A177: Chart A21 | B177: =A177&"Borrowed funding of capital expenditure" -> Chart A21 Borrowed funding of capital expenditure | C177: Table A8
A178: Chart A22 | B178: =A178&"Expenditure analysis (% of Revenue)" -> Chart A22 Expenditure analysis (% of Revenue) | C178: Table A8
A179: Chart A23 | B179: =A179&"Increases in service charges" -> Chart A23 Increases in service charges | C179: Table A10

Sheet Lookup and lists (hidden)
A1: Description | B1: 2013 | C1: 2014 | D1: 2015 | E1: 2016 | F1: 2017 | G1: 2018 | H1: 2019 | I1: 2020 | J1: 2021 | K1: 2022 | L1: 2023 | M1: 2024 | N1: 2025 | O1: 2026 | P1: 2027 | Q1: Lists | Y1: Grants: | Z1: National - opex | AA1: Provincial - opex | AB1: National - capex | AC1: Provincial - capex
A2: ='Template names'!C2 -> Prior year -1 | B2: =B1-2&"/"&RIGHT(B1,2)-1 -> 2011/12 | C2: 2012/13 | D2: 2013/14 | E2: 2014/15 | F2: 2015/16 | G2: 2016/17 | H2: 2017/18 | I2: 2018/19 | J2: =J1-2&"/"&RIGHT(J1,2)-1 -> 2019/20 | K2: 2020/21 | L2: 2021/22 | M2: 2022/23 | N2: 2023/24 | O2: 2024/25 | P2: =P1-2&"/"&RIGHT(P1,2)-1 -> 2025/26 | Q2: Yes | R2: <1 | S2: <4 | T2: Market | U2: Land & impr. | V2: Yes | W2: Uniform | X2: Yrs | Z2: Local Government Equitable Share | AA2: Health subsidy | AB2: Municipal Infrastructure Grant (MIG) | AC2: Agriculture
A3: ='Template names'!C3 -> Prior year -2 | B3: =B1-3&"/"&RIGHT(B1,2)-2 -> 2010/11 | C3: 2011/12 | D3: 2012/13 | E3: 2013/14 | F3: 2014/15 | G3: 2015/16 | H3: 2016/17 | I3: 2017/18 | J3: =J1-3&"/"&RIGHT(J1,2)-2 -> 2018/19 | K3: 2019/20 | L3: 2020/21 | M3: 2021/22 | N3: 2022/23 | O3: 2023/24 | P3: =P1-3&"/"&RIGHT(P1,2)-2 -> 2024/25 | Q3: No | R3: 1 | S3: 4 | T3: Dep.Replace | U3: Land only | V3: No | W3: Variable | X3: Mths | Z3: RSC Levy Replacement | AA3: Ambulance subsidy | AB3: Public Transport and Systems | AC3: Education
A4: ='Template names'!C4 -> Prior year -3 | B4: =B1-4&"/"&RIGHT(B1,2)-3 -> 2009/10 | C4: 2010/11 | D4: 2011/12 | E4: 2012/13 | F4: 2013/14 | G4: 2014/15 | H4: 2015/16 | I4: 2016/17 | J4: =J1-4&"/"&RIGHT(J1,2)-3 -> 2017/18 | K4: 2018/19 | L4: 2019/20 | M4: 2020/21 | N4: 2021/22 | O4: 2022/23 | P4: =P1-4&"/"&RIGHT(P1,2)-3 -> 2023/24 | R4: 2 | S4: 5 | T4: Other | U4: Other | Z4: Finance Management | AA4: Housing | AB4: Rural Transport Services and Infrastructure | AC4: Health
A5: ='Template names'!C5 -> Year in which budget is being prepared | B5: ="Current Year "& B1-1&"/"&RIGHT(B1,2) -> Current Year 2012/13 | C5: Current Year 2013/14 | D5: Current Year 2014/15 | E5: Current Year 2015/16 | F5: Current Year 2016/17 | G5: Current Year 2017/18 | H5: Current Year 2018/19 | I5: Current Year 2019/20 | J5: ="Current Year "& J1-1&"/"&RIGHT(J1,2) -> Current Year 2020/21 | K5: Current Year 2021/22 | L5: Current Year 2022/23 | M5: Current Year 2023/24 | N5: Current Year 2024/25 | O5: Current Year 2025/26 | P5: ="Current Year "& P1-1&"/"&RIGHT(P1,2) -> Current Year 2026/27 | R5: 3 | S5: 6 | Z5: Municipal Systems Improvement | AA5: Sport and Recreation | AB5: Regional Bulk Infrastructure | AC5: Housing and Local Government
A6: ='Template names'!C6 -> Year in which budget is being prepared | B6: =B1-1&"/"&RIGHT(B1,2) -> 2012/13 | C6: 2013/14 | D6: 2014/15 | E6: 2015/16 | F6: 2016/17 | G6: 2017/18 | H6: 2018/19 | I6: 2019/20 | J6: =J1-1&"/"&RIGHT(J1,2) -> 2020/21 | K6: 2021/22 | L6: 2022/23 | M6: 2023/24 | N6: 2024/25 | O6: 2025/26 | P6: =P1-1&"/"&RIGHT(P1,2) -> 2026/27 | R6: 4 | S6: 6-10 | Z6: Water Services Operating Subsidy | AB6: Rural Households Infrastructure | AC6: Other Departments
A7: ='Template names'!C7 -> MTREF name | B7: =B1&"/"&RIGHT(B1,2)+1&" Medium Term Revenue & Expenditure Framework" -> 2013/14 Medium Term Revenue & Expenditure Framework | C7: 2014/15 Medium Term Revenue & Expenditure Framework | D7: 2015/16 Medium Term Revenue & Expenditure Framework | E7: 2016/17 Medium Term Revenue & Expenditure Framework | F7: 2017/18 Medium Term Revenue & Expenditure Framework | G7: 2018/19 Medium Term Revenue & Expenditure Framework | H7: 2019/20 Medium Term Revenue & Expenditure Framework | I7: 2020/21 Medium Term Revenue & Expenditure Framework | J7: =J1&"/"&RIGHT(J1,2)+1&" Medium Term Revenue & Expenditure Framework" -> 2021/22 Medium Term Revenue & Expenditure Framework | K7: 2022/23 Medium Term Revenue & Expenditure Framework | L7: 2023/24 Medium Term Revenue & Expenditure Framework | M7: 2024/25 Medium Term Revenue & Expenditure Framework | N7: 2025/26 Medium Term Revenue & Expenditure Framework | O7: 2026/27 Medium Term Revenue & Expenditure Framework | P7: =P1&"/"&RIGHT(P1,2)+1&" Medium Term Revenue & Expenditure Framework" -> 2027/28 Medium Term Revenue & Expenditure Framework | R7: 5 | S7: >10 | Z7: Energy Efficiency and Demand Management | AB7: Neighbourhood Development Partnership | AC7: Public Works, Roads, Transport
A8: ='Template names'!C15 -> 1st year of MTREF | B8: ="Budget Year "&B1&"/"&RIGHT(B1,2)+1 -> Budget Year 2013/14 | C8: Budget Year 2014/15 | D8: Budget Year 2015/16 | E8: Budget Year 2016/17 | F8: Budget Year 2017/18 | G8: Budget Year 2018/19 | H8: Budget Year 2019/20 | I8: Budget Year 2020/21 | J8: ="Budget Year "&J1&"/"&RIGHT(J1,2)+1 -> Budget Year 2021/22 | K8: Budget Year 2022/23 | L8: Budget Year 2023/24 | M8: Budget Year 2024/25 | N8: Budget Year 2025/26 | O8: Budget Year 2026/27 | P8: ="Budget Year "&P1&"/"&RIGHT(P1,2)+1 -> Budget Year 2027/28 | R8: >5 | Z8: Integrated National Electrification Programme | AB8: 2010 FIFA World Cup Stadiums Development | AC8: Sport and Recreation
A9: ='Template names'!C16 -> 2nd year of MTREF | B9: ="Budget Year +1 "&B1+1&"/"&RIGHT(B1,2)+2 -> Budget Year +1 2014/15 | C9: Budget Year +1 2015/16 | D9: Budget Year +1 2016/17 | E9: Budget Year +1 2017/18 | F9: Budget Year +1 2018/19 | G9: Budget Year +1 2019/20 | H9: Budget Year +1 2020/21 | I9: Budget Year +1 2021/22 | J9: ="Budget Year +1 "&J1+1&"/"&RIGHT(J1,2)+2 -> Budget Year +1 2022/23 | K9: Budget Year +1 2023/24 | L9: Budget Year +1 2024/25 | M9: Budget Year +1 2025/26 | N9: Budget Year +1 2026/27 | O9: Budget Year +1 2027/28 | P9: ="Budget Year +1 "&P1+1&"/"&RIGHT(P1,2)+2 -> Budget Year +1 2028/29 | Z9: Municipal Drought Relief
A10: ='Template names'!C17 -> 3rd year of MTREF | B10: ="Budget Year +2 "&B1+2&"/"&RIGHT(B1,2)+3 -> Budget Year +2 2015/16 | C10: Budget Year +2 2016/17 | D10: Budget Year +2 2017/18 | E10: Budget Year +2 2018/19 | F10: Budget Year +2 2019/20 | G10: Budget Year +2 2020/21 | H10: Budget Year +2 2021/22 | I10: Budget Year +2 2022/23 | J10: ="Budget Year +2 "&J1+2&"/"&RIGHT(J1,2)+3 -> Budget Year +2 2023/24 | K10: Budget Year +2 2024/25 | L10: Budget Year +2 2025/26 | M10: Budget Year +2 2026/27 | N10: Budget Year +2 2027/28 | O10: Budget Year +2 2028/29 | P10: ="Budget Year +2 "&P1+2&"/"&RIGHT(P1,2)+3 -> Budget Year +2 2029/30 | Z10: 2010 FIFA World Cup Operating
A11: ='Template names'!C18 -> 1st yr of long term forecast | B11: ="Forecast "&B1+3&"/"&RIGHT(B1,2)+4 -> Forecast 2016/17 | C11: Forecast 2017/18 | D11: Forecast 2018/19 | E11: Forecast 2019/20 | F11: Forecast 2020/21 | G11: Forecast 2021/22 | H11: Forecast 2022/23 | I11: Forecast 2023/24 | J11: ="Forecast "&J1+3&"/"&RIGHT(J1,2)+4 -> Forecast 2024/25 | K11: Forecast 2025/26 | L11: Forecast 2026/27 | M11: Forecast 2027/28 | N11: Forecast 2028/29 | O11: Forecast 2029/30 | P11: ="Forecast "&P1+3&"/"&RIGHT(P1,2)+4 -> Forecast 2030/31 | Z11: Electricity Demand Side Management
A12: ='Template names'!C19 -> Next yr of long term forecast | B12: ="Forecast "&B1+4&"/"&RIGHT(B1,2)+5 -> Forecast 2017/18 | C12: Forecast 2018/19 | D12: Forecast 2019/20 | E12: Forecast 2020/21 | F12: Forecast 2021/22 | G12: Forecast 2022/23 | H12: Forecast 2023/24 | I12: Forecast 2024/25 | J12: ="Forecast "&J1+4&"/"&RIGHT(J1,2)+5 -> Forecast 2025/26 | K12: Forecast 2026/27 | L12: Forecast 2027/28 | M12: Forecast 2028/29 | N12: Forecast 2029/30 | O12: Forecast 2030/31 | P12: ="Forecast "&P1+4&"/"&RIGHT(P1,2)+5 -> Forecast 2031/32 | Z12: EPWP Incentive
A13: ='Template names'!C20 -> Next yr of long term forecast | B13: ="Forecast "&B1+5&"/"&RIGHT(B1,2)+6 -> Forecast 2018/19 | C13: Forecast 2019/20 | D13: Forecast 2020/21 | E13: Forecast 2021/22 | F13: Forecast 2022/23 | G13: Forecast 2023/24 | H13: Forecast 2024/25 | I13: Forecast 2025/26 | J13: ="Forecast "&J1+5&"/"&RIGHT(J1,2)+6 -> Forecast 2026/27 | K13: Forecast 2027/28 | L13: Forecast 2028/29 | M13: Forecast 2029/30 | N13: Forecast 2030/31 | O13: Forecast 2031/32 | P13: ="Forecast "&P1+5&"/"&RIGHT(P1,2)+6 -> Forecast 2032/33
A14: ='Template names'!C21 -> Next yr of long term forecast | B14: ="Forecast "&B1+6&"/"&RIGHT(B1,2)+7 -> Forecast 2019/20 | C14: Forecast 2020/21 | D14: Forecast 2021/22 | E14: Forecast 2022/23 | F14: Forecast 2023/24 | G14: Forecast 2024/25 | H14: Forecast 2025/26 | I14: Forecast 2026/27 | J14: ="Forecast "&J1+6&"/"&RIGHT(J1,2)+7 -> Forecast 2027/28 | K14: Forecast 2028/29 | L14: Forecast 2029/30 | M14: Forecast 2030/31 | N14: Forecast 2031/32 | O14: Forecast 2032/33 | P14: ="Forecast "&P1+6&"/"&RIGHT(P1,2)+7 -> Forecast 2033/34 | Z14: Asset Class | AA14: Asset sub-class old | AB14: Asset sub-class | AC14: IUDF | AD14: MTSF
A15: ='Template names'!C22 -> Next yr of long term forecast | B15: ="Forecast "&B1+7&"/"&RIGHT(B1,2)+8 -> Forecast 2020/21 | C15: Forecast 2021/22 | D15: Forecast 2022/23 | E15: Forecast 2023/24 | F15: Forecast 2024/25 | G15: Forecast 2025/26 | H15: Forecast 2026/27 | I15: Forecast 2027/28 | J15: ="Forecast "&J1+7&"/"&RIGHT(J1,2)+8 -> Forecast 2028/29 | K15: Forecast 2029/30 | L15: Forecast 2030/31 | M15: Forecast 2031/32 | N15: Forecast 2032/33 | O15: Forecast 2033/34 | P15: ="Forecast "&P1+7&"/"&RIGHT(P1,2)+8 -> Forecast 2034/35
A16: ='Template names'!C23 -> Next yr of long term forecast | B16: ="Forecast "&B1+8&"/"&RIGHT(B1,2)+9 -> Forecast 2021/22 | C16: Forecast 2022/23 | D16: Forecast 2023/24 | E16: Forecast 2024/25 | F16: Forecast 2025/26 | G16: Forecast 2026/27 | H16: Forecast 2027/28 | I16: Forecast 2028/29 | J16: ="Forecast "&J1+8&"/"&RIGHT(J1,2)+9 -> Forecast 2029/30 | K16: Forecast 2030/31 | L16: Forecast 2031/32 | M16: Forecast 2032/33 | N16: Forecast 2033/34 | O16: Forecast 2034/35 | P16: ="Forecast "&P1+8&"/"&RIGHT(P1,2)+9 -> Forecast 2035/36 | Z16: Roads Infrastructure | AA16: Roads, Pavements & Bridges | AB16: Roads | AC16: Spatial integration | AD16: Quality basic education
A17: ='Template names'!C24 -> Next yr of long term forecast | B17: ="Forecast "&B1+9&"/"&RIGHT(B1,2)+10 -> Forecast 2022/23 | C17: Forecast 2023/24 | D17: Forecast 2024/25 | E17: Forecast 2025/26 | F17: Forecast 2026/27 | G17: Forecast 2027/28 | H17: Forecast 2028/29 | I17: Forecast 2029/30 | J17: ="Forecast "&J1+9&"/"&RIGHT(J1,2)+10 -> Forecast 2030/31 | K17: Forecast 2031/32 | L17: Forecast 2032/33 | M17: Forecast 2033/34 | N17: Forecast 2034/35 | O17: Forecast 2035/36 | P17: ="Forecast "&P1+9&"/"&RIGHT(P1,2)+10 -> Forecast 2036/37 | Z17: Storm water Infrastructure | AA17: Storm water | AB17: Road Structures | AC17: Inclusion and access | AD17: A long and healthy life for all South Africans
A18: ='Template names'!C25 -> Next yr of long term forecast | B18: ="Forecast "&B1+10&"/"&RIGHT(B1,2)+11 -> Forecast 2023/24 | C18: Forecast 2024/25 | D18: Forecast 2025/26 | E18: Forecast 2026/27 | F18: Forecast 2027/28 | G18: Forecast 2028/29 | H18: Forecast 2029/30 | I18: Forecast 2030/31 | J18: ="Forecast "&J1+10&"/"&RIGHT(J1,2)+11 -> Forecast 2031/32 | K18: Forecast 2032/33 | L18: Forecast 2033/34 | M18: Forecast 2034/35 | N18: Forecast 2035/36 | O18: Forecast 2036/37 | P18: ="Forecast "&P1+10&"/"&RIGHT(P1,2)+11 -> Forecast 2037/38 | Z18: Electrical Infrastructure | AA18: Generation | AB18: Road Furniture | AC18: Growth | AD18: All people in South Africa are and feel safe
A19: ='Template names'!C26 -> Next yr of long term forecast | B19: ="Forecast "&B1+11&"/"&RIGHT(B1,2)+12 -> Forecast 2024/25 | C19: Forecast 2025/26 | D19: Forecast 2026/27 | E19: Forecast 2027/28 | F19: Forecast 2028/29 | G19: Forecast 2029/30 | H19: Forecast 2030/31 | I19: Forecast 2031/32 | J19: ="Forecast "&J1+11&"/"&RIGHT(J1,2)+12 -> Forecast 2032/33 | K19: Forecast 2033/34 | L19: Forecast 2034/35 | M19: Forecast 2035/36 | N19: Forecast 2036/37 | O19: Forecast 2037/38 | P19: ="Forecast "&P1+11&"/"&RIGHT(P1,2)+12 -> Forecast 2038/39 | Z19: Water Supply Infrastructure | AA19: Transmission & Reticulation | AB19: Capital Spares | AC19: Governance | AD19: Decent employment through inclusive growth
A20: ='Template names'!C27 -> Next yr of long term forecast | B20: ="Forecast "&B1+12&"/"&RIGHT(B1,2)+13 -> Forecast 2025/26 | C20: Forecast 2026/27 | D20: Forecast 2027/28 | E20: Forecast 2028/29 | F20: Forecast 2029/30 | G20: Forecast 2030/31 | H20: Forecast 2031/32 | I20: Forecast 2032/33 | J20: ="Forecast "&J1+12&"/"&RIGHT(J1,2)+13 -> Forecast 2033/34 | K20: Forecast 2034/35 | L20: Forecast 2035/36 | M20: Forecast 2036/37 | N20: Forecast 2037/38 | O20: Forecast 2038/39 | P20: ="Forecast "&P1+12&"/"&RIGHT(P1,2)+13 -> Forecast 2039/40 | Z20: Sanitation Infrastructure | AA20: Street Lighting | AB20: Drainage Collection | AD20: A skilled and capable workforce to support an inclusive growth path
A21: ='Template names'!C28 -> Next yr of long term forecast | B21: ="Forecast "&B1+13&"/"&RIGHT(B1,2)+14 -> Forecast 2026/27 | C21: Forecast 2027/28 | D21: Forecast 2028/29 | E21: Forecast 2029/30 | F21: Forecast 2030/31 | G21: Forecast 2031/32 | H21: Forecast 2032/33 | I21: Forecast 2033/34 | J21: ="Forecast "&J1+13&"/"&RIGHT(J1,2)+14 -> Forecast 2034/35 | K21: Forecast 2035/36 | L21: Forecast 2036/37 | M21: Forecast 2037/38 | N21: Forecast 2038/39 | O21: Forecast 2039/40 | P21: ="Forecast "&P1+13&"/"&RIGHT(P1,2)+14 -> Forecast 2040/41 | Z21: Solid Waste Infrastructure | AA21: Dams & Reservoirs | AB21: Storm water Conveyance | AD21: An efficient, competitive and responsive economic infrastructure network
A22: ='Template names'!C29 -> Next yr of long term forecast | B22: ="Forecast "&B1+14&"/"&RIGHT(B1,2)+15 -> Forecast 2027/28 | C22: Forecast 2028/29 | D22: Forecast 2029/30 | E22: Forecast 2030/31 | F22: Forecast 2031/32 | G22: Forecast 2032/33 | H22: Forecast 2033/34 | I22: Forecast 2034/35 | J22: ="Forecast "&J1+14&"/"&RIGHT(J1,2)+15 -> Forecast 2035/36 | K22: Forecast 2036/37 | L22: Forecast 2037/38 | M22: Forecast 2038/39 | N22: Forecast 2039/40 | O22: Forecast 2040/41 | P22: ="Forecast "&P1+14&"/"&RIGHT(P1,2)+15 -> Forecast 2041/42 | Z22: Rail Infrastructure | AA22: Water purification | AB22: Attenuation | AD22: Vibrant, equitable, sustainable rural communities contributing towards food security for all
A23: Adjustments Budget | B23: ="Annual target " & B1&"/"&RIGHT(B1,2)+1 -> Annual target 2013/14 | C23: Annual target 2014/15 | D23: Annual target 2015/16 | E23: Annual target 2016/17 | F23: Annual target 2017/18 | G23: Annual target 2018/19 | H23: Annual target 2019/20 | I23: Annual target 2020/21 | J23: ="Annual target " & J1&"/"&RIGHT(J1,2)+1 -> Annual target 2021/22 | K23: Annual target 2022/23 | L23: Annual target 2023/24 | M23: Annual target 2024/25 | N23: Annual target 2025/26 | O23: Annual target 2026/27 | P23: ="Annual target " & P1&"/"&RIGHT(P1,2)+1 -> Annual target 2027/28 | Z23: Coastal Infrastructure | AA23: Reticulation | AB23: Power Plants | AD23: Sustainable human settlements and improved quality of household life
A24: =A23 -> Adjustments Budget | B24: ="Revised target "& B1&"/"&RIGHT(B1,2)+1 -> Revised target 2013/14 | C24: Revised target 2014/15 | D24: Revised target 2015/16 | E24: Revised target 2016/17 | F24: Revised target 2017/18 | G24: Revised target 2018/19 | H24: Revised target 2019/20 | I24: Revised target 2020/21 | J24: ="Revised target "& J1&"/"&RIGHT(J1,2)+1 -> Revised target 2021/22 | K24: Revised target 2022/23 | L24: Revised target 2023/24 | M24: Revised target 2024/25 | N24: Revised target 2025/26 | O24: Revised target 2026/27 | P24: ="Revised target "& P1&"/"&RIGHT(P1,2)+1 -> Revised target 2027/28 | Z24: Information and Communication Infrastructure | AA24: Sewerage purification | AB24: HV Substations | AD24: Responsive, accountable, effective and efficient local government
A25: NOTE: This sheet should not be directly amended - select headings from sheet 'S' | Z25: Community Facilities | AA25: Waste Management | AB25: HV Switching Station | AD25: Protect and enhance our environmental assets and natural resources
Z26: Sport and Recreation Facilities | AA26: Transportation | AB26: HV Transmission Conductors | AD26: Create a better South Africa and contribute to a better Africa and a better world
A27: Name link | B27: 143 | Z27: Heritage assets | AA27: Gas | AB27: MV Substations | AD27: An efficient, effective and development-oriented public service
A28: Name of Muni | B28: =INDEX(B29:B307,B27,1) -> LIM355 Lepelle-Nkumpi | Z28: Revenue Generating | AA28: Parks & gardens | AB28: MV Switching Stations | AD28: A comprehensive, responsive and sustainable social protection system
B29: Choose name from list | C29: Set name on 'Instructions' sheet | Z29: Non-revenue Generating | AA29: Sportsfields & stadia | AB29: MV Networks | AD29: A diverse, socially cohesive society with a common national identity
B30: BUF Buffalo City | C30: EC EASTERN CAPE | Z30: Operational Buildings | AA30: Swimming pools | AB30: LV Networks
B31: NMA Nelson Mandela Bay | C31: EC EASTERN CAPE | Z31: Housing | AA31: Community halls | AB31: Capital Spares
B32: EC101 Dr Beyers Naude | C32: EC EASTERN CAPE | Z32: Biological or Cultivated Assets | AA32: Libraries | AB32: Dams and Weirs
B33: EC102 Blue Crane Route | C33: EC EASTERN CAPE | Z33: Servitudes | AA33: Recreational facilities | AB33: Boreholes
B34: EC104 Makana | C34: EC EASTERN CAPE | Z34: Licences and Rights | AA34: Fire, safety & emergency | AB34: Reservoirs
B35: EC105 Ndlambe | C35: EC EASTERN CAPE | Z35: Computer Equipment | AA35: Security and policing | AB35: Pump Stations
B36: EC106 Sundays River Valley | C36: EC EASTERN CAPE | Z36: Furniture and Office Equipment | AA36: Buses | AB36: Water Treatment Works
B37: EC108 Kouga | C37: EC EASTERN CAPE | Z37: Machinery and Equipment | AA37: Clinics | AB37: Bulk Mains
B38: EC109 Kou-Kamma | C38: EC EASTERN CAPE | Z38: Transport Assets | AA38: Museums & Art Galleries | AB38: Distribution
B39: DC10 Sarah Baartman | C39: EC EASTERN CAPE | Z39: Land | AA39: Cemeteries | AB39: Distribution Points
B40: EC121 Mbhashe | C40: EC EASTERN CAPE | Z40: Zoo's, Marine and Non-biological Animals | AA40: Social rental housing | AB40: PRV Stations
B41: EC122 Mnquma | C41: EC EASTERN CAPE | AA41: Buildings | AB41: Capital Spares
B42: EC123 Great Kei | C42: EC EASTERN CAPE | AA42: Housing development | AB42: Pump Station
B43: EC124 Amahlathi | C43: EC EASTERN CAPE | AA43: General vehicles | AB43: Reticulation
B44: EC126 Ngqushwa | C44: EC EASTERN CAPE | AA44: Specialised vehicles - Refuse | AB44: Waste Water Treatment Works
B45: EC129 Raymond Mhlaba | C45: EC EASTERN CAPE | AA45: Specialised vehicles - Fire | AB45: Outfall Sewers
B46: DC12 Amathole | C46: EC EASTERN CAPE | AA46: Specialised vehicles - Conservancy | AB46: Toilet Facilities
B47: EC131 Inxuba Yethemba | C47: EC EASTERN CAPE | AA47: Specialised vehicles - Ambulances | AB47: Capital Spares
B48: EC135 Intsika Yethu | C48: EC EASTERN CAPE | AA48: Plant & equipment | AB48: Landfill Sites
B49: EC136 Emalahleni (Ec) | C49: EC EASTERN CAPE | AA49: Computers - hardware/equipment | AB49: Waste Transfer Stations
B50: EC137 Dr. A.B Xuma | C50: EC EASTERN CAPE | AA50: Furniture and other office equipment | AB50: Waste Processing Facilities
B51: EC138 Sakhisizwe | C51: EC EASTERN CAPE | AA51: Abattoirs | AB51: Waste Drop-off Points
B52: EC139 Enoch Mgijima | C52: EC EASTERN CAPE | AA52: Markets | AB52: Waste Separation Facilities
B53: DC13 Chris Hani | C53: EC EASTERN CAPE | AA53: Civic Land and Buildings | AB53: Electricity Generation Facilities
B54: EC141 Elundini | C54: EC EASTERN CAPE | AA54: Other Buildings | AB54: Capital Spares
B55: EC142 Senqu | C55: EC EASTERN CAPE | AA55: Other Land | AB55: Rail Lines
B56: EC145 Walter Sisulu | C56: EC EASTERN CAPE | AA56: Surplus Assets - (Investment or Inventory) | AB56: Rail Structures
B57: DC14 Joe Gqabi | C57: EC EASTERN CAPE | AA57: Computers - software & programming | AB57: Rail Furniture
B58: EC153 Ngquza Hills | C58: EC EASTERN CAPE | AA58: Other | AB58: Drainage Collection
B59: EC154 Port St Johns | C59: EC EASTERN CAPE | AB59: Storm water Conveyance
B60: EC155 Nyandeni | C60: EC EASTERN CAPE | Z60: SA16 - Investments | AB60: Attenuation
B61: EC156 Mhlontlo | C61: EC EASTERN CAPE | Z61: Security | AA61: Interest rate | AB61: MV Substations
B62: EC157 King Sabata Dalindyebo | C62: EC EASTERN CAPE | Z62: Yes | AA62: Fixed | AB62: LV Networks
B63: DC15 O .R. Tambo | C63: EC EASTERN CAPE | Z63: No | AA63: Variable | AB63: Capital Spares
B64: EC441 Matatiele | C64: EC EASTERN CAPE | AB64: Sand Pumps
B65: EC442 Umzimvubu | C65: EC EASTERN CAPE | AB65: Piers
B66: EC443 Winnie Madikizela Mandela | C66: EC EASTERN CAPE | Z66: SA36, SA37 - Capital projects | AB66: Revetments
B67: EC444 Ntabankulu | C67: EC EASTERN CAPE | Z67: Yes | AB67: Promenades
B68: DC44 Alfred Nzo | C68: EC EASTERN CAPE | Z68: No | AB68: Capital Spares
B69: MAN Mangaung | C69: FS FREE STATE | AB69: Data Centres
B70: FS161 Letsemeng | C70: FS FREE STATE | AB70: Core Layers
B71: FS162 Kopanong | C71: FS FREE STATE | AB71: Distribution Layers
B72: FS163 Mohokare | C72: FS FREE STATE | AB72: Capital Spares
B73: DC16 Xhariep | C73: FS FREE STATE | AB73: Halls
B74: FS181 Masilonyana | C74: FS FREE STATE | AB74: Centres
B75: FS182 Tokologo | C75: FS FREE STATE | AB75: Crèches
B76: FS183 Tswelopele | C76: FS FREE STATE | AB76: Clinics/Care Centres
B77: FS184 Matjhabeng | C77: FS FREE STATE | AB77: Fire/Ambulance Stations
B78: FS185 Nala | C78: FS FREE STATE | AB78: Testing Stations
B79: DC18 Lejweleputswa | C79: FS FREE STATE | AB79: Museums
B80: FS191 Setsoto | C80: FS FREE STATE | AB80: Galleries
B81: FS192 Dihlabeng | C81: FS FREE STATE | AB81: Theatres
B82: FS193 Nketoana | C82: FS FREE STATE | AB82: Libraries
B83: FS194 Maluti-a-Phofung | C83: FS FREE STATE | AB83: Cemeteries/Crematoria
B84: FS195 Phumelela | C84: FS FREE STATE | AB84: Police
B85: FS196 Mantsopa | C85: FS FREE STATE | AB85: Purls
B86: DC19 Thabo Mofutsanyana | C86: FS FREE STATE | AB86: Public Open Space
B87: FS201 Moqhaka | C87: FS FREE STATE | AB87: Nature Reserves
B88: FS203 Ngwathe | C88: FS FREE STATE | AB88: Public Ablution Facilities
B89: FS204 Metsimaholo | C89: FS FREE STATE | AB89: Markets
B90: FS205 Mafube | C90: FS FREE STATE | AB90: Stalls
B91: DC20 Fezile Dabi | C91: FS FREE STATE | AB91: Abattoirs
B92: EKU City of Ekurhuleni | C92: GT GAUTENG | AB92: Airports
B93: JHB City Of Johannesburg | C93: GT GAUTENG | AB93: Taxi Ranks/Bus Terminals
B94: TSH City Of Tshwane | C94: GT GAUTENG | AB94: Capital Spares
B95: GT421 Emfuleni | C95: GT GAUTENG | AB95: Indoor Facilities
B96: GT422 Midvaal | C96: GT GAUTENG | AB96: Outdoor Facilities
B97: GT423 Lesedi | C97: GT GAUTENG | AB97: Capital Spares
B98: DC42 Sedibeng | C98: GT GAUTENG | AB98: Monuments
B99: GT481 Mogale City | C99: GT GAUTENG | AB99: Historic Buildings
B100: GT484 Merafong City | C100: GT GAUTENG | AB100: Works of Art
B101: GT485 Rand West City | C101: GT GAUTENG | AB101: Conservation Areas
B102: DC48 West Rand | C102: GT GAUTENG | AB102: Other Heritage
B103: ETH eThekwini | C103: KZN KWAZULU-NATAL | AB103: Improved Property
B104: KZN212 Umdoni | C104: KZN KWAZULU-NATAL | AB104: Unimproved Property
B105: KZN213 Umzumbe | C105: KZN KWAZULU-NATAL | AB105: Municipal Offices
B106: KZN214 uMuziwabantu | C106: KZN KWAZULU-NATAL | AB106: Pay/Enquiry Points
B107: KZN216 Ray Nkonyeni | C107: KZN KWAZULU-NATAL | AB107: Building Plan Offices
B108: DC21 Ugu | C108: KZN KWAZULU-NATAL | AB108: Workshops
B109: KZN221 uMshwathi | C109: KZN KWAZULU-NATAL | AB109: Yards
B110: KZN222 uMngeni | C110: KZN KWAZULU-NATAL | AB110: Stores
B111: KZN223 Mpofana | C111: KZN KWAZULU-NATAL | AB111: Laboratories
B112: KZN224 Impendle | C112: KZN KWAZULU-NATAL | AB112: Training Centres
B113: KZN225 Msunduzi | C113: KZN KWAZULU-NATAL | AB113: Manufacturing Plant
B114: KZN226 Mkhambathini | C114: KZN KWAZULU-NATAL | AB114: Depots
B115: KZN227 Richmond | C115: KZN KWAZULU-NATAL | AB115: Capital Spares
B116: DC22 uMgungundlovu | C116: KZN KWAZULU-NATAL | AB116: Staff Housing
B117: KZN235 Okhahlamba | C117: KZN KWAZULU-NATAL | AB117: Social Housing
B118: KZN237 Inkosi Langalibalele | C118: KZN KWAZULU-NATAL | AB118: Capital Spares
B119: KZN238 Alfred Duma | C119: KZN KWAZULU-NATAL | AB119: Water Rights
B120: DC23 Uthukela | C120: KZN KWAZULU-NATAL | AB120: Effluent Licenses
B121: KZN241 Endumeni | C121: KZN KWAZULU-NATAL | AB121: Solid Waste Licenses
B122: KZN242 Nquthu | C122: KZN KWAZULU-NATAL | AB122: Computer Software and Applications
B123: KZN244 Msinga | C123: KZN KWAZULU-NATAL | AB123: Load Settlement Software Applications
B124: KZN245 Umvoti | C124: KZN KWAZULU-NATAL | AB124: Unspecified
B125: DC24 Umzinyathi | C125: KZN KWAZULU-NATAL
B126: KZN252 Newcastle | C126: KZN KWAZULU-NATAL
B127: KZN253 Emadlangeni | C127: KZN KWAZULU-NATAL
B128: KZN254 Dannhauser | C128: KZN KWAZULU-NATAL
B129: DC25 Amajuba | C129: KZN KWAZULU-NATAL
B130: KZN261 eDumbe | C130: KZN KWAZULU-NATAL
B131: KZN262 uPhongolo | C131: KZN KWAZULU-NATAL
B132: KZN263 Abaqulusi | C132: KZN KWAZULU-NATAL
B133: KZN265 Nongoma | C133: KZN KWAZULU-NATAL
B134: KZN266 Ulundi | C134: KZN KWAZULU-NATAL
B135: DC26 Zululand | C135: KZN KWAZULU-NATAL
B136: KZN271 Umhlabuyalingana | C136: KZN KWAZULU-NATAL
B137: KZN272 Jozini | C137: KZN KWAZULU-NATAL
B138: KZN275 Mtubatuba | C138: KZN KWAZULU-NATAL
B139: KZN276 Hlabisa Big Five | C139: KZN KWAZULU-NATAL
B140: DC27 Umkhanyakude | C140: KZN KWAZULU-NATAL
B141: KZN281 Mfolozi | C141: KZN KWAZULU-NATAL
B142: KZN282 uMhlathuze | C142: KZN KWAZULU-NATAL
B143: KZN284 uMlalazi | C143: KZN KWAZULU-NATAL
B144: KZN285 Mthonjaneni | C144: KZN KWAZULU-NATAL
B145: KZN286 Nkandla | C145: KZN KWAZULU-NATAL
B146: DC28 King Cetshwayo | C146: KZN KWAZULU-NATAL
B147: KZN291 Mandeni | C147: KZN KWAZULU-NATAL
B148: KZN292 KwaDukuza | C148: KZN KWAZULU-NATAL
B149: KZN293 Ndwedwe | C149: KZN KWAZULU-NATAL
B150: KZN294 Maphumulo | C150: KZN KWAZULU-NATAL
B151: DC29 iLembe | C151: KZN KWAZULU-NATAL
B152: KZN433 Greater Kokstad | C152: KZN KWAZULU-NATAL
B153: KZN434 Johannes Phumani Phungula | C153: KZN KWAZULU-NATAL
B154: KZN435 Umzimkhulu | C154: KZN KWAZULU-NATAL
B155: KZN436 Dr Nkosazana Dlamini Zuma | C155: KZN KWAZULU-NATAL
B156: DC43 Harry Gwala | C156: KZN KWAZULU-NATAL
B157: LIM331 Greater Giyani | C157: LIM LIMPOPO
B158: LIM332 Greater Letaba | C158: LIM LIMPOPO
B159: LIM333 Greater Tzaneen | C159: LIM LIMPOPO
B160: LIM334 Ba-Phalaborwa | C160: LIM LIMPOPO
B161: LIM335 Maruleng | C161: LIM LIMPOPO
B162: DC33 Mopani | C162: LIM LIMPOPO
B163: LIM341 Musina | C163: LIM LIMPOPO
B164: LIM343 Thulamela | C164: LIM LIMPOPO
B165: LIM344 Makhado | C165: LIM LIMPOPO
B166: LIM345 Collins Chabane | C166: LIM LIMPOPO
B167: DC34 Vhembe | C167: LIM LIMPOPO
B168: LIM351 Blouberg | C168: LIM LIMPOPO
B169: LIM353 Molemole | C169: LIM LIMPOPO
B170: LIM354 Polokwane | C170: LIM LIMPOPO
B171: LIM355 Lepelle-Nkumpi | C171: LIM LIMPOPO
B172: DC35 Capricorn | C172: LIM LIMPOPO
B173: LIM361 Thabazimbi | C173: LIM LIMPOPO
B174: LIM362 Lephalale | C174: LIM LIMPOPO
B175: LIM366 Bela Bela | C175: LIM LIMPOPO
B176: LIM367 Mogalakwena | C176: LIM LIMPOPO
B177: LIM368 Modimolle-Mookgopong | C177: LIM LIMPOPO
B178: DC36 Waterberg | C178: LIM LIMPOPO
B179: LIM471 Ephraim Mogale | C179: LIM LIMPOPO
B180: LIM472 Elias Motsoaledi | C180: LIM LIMPOPO
B181: LIM473 Makhuduthamaga | C181: LIM LIMPOPO
B182: LIM476 Tubatse Fetakgomo | C182: LIM LIMPOPO
B183: DC47 Sekhukhune | C183: LIM LIMPOPO
B184: MP301 Albert Luthuli | C184: MP MPUMALANGA
B185: MP302 Msukaligwa | C185: MP MPUMALANGA
B186: MP303 Mkhondo | C186: MP MPUMALANGA
B187: MP304 Pixley Ka Seme (MP) | C187: MP MPUMALANGA
B188: MP305 Lekwa | C188: MP MPUMALANGA
B189: MP306 Dipaleseng | C189: MP MPUMALANGA
B190: MP307 Govan Mbeki | C190: MP MPUMALANGA
B191: DC30 Gert Sibande | C191: MP MPUMALANGA
B192: MP311 Victor Khanye | C192: MP MPUMALANGA
B193: MP312 Emalahleni (Mp) | C193: MP MPUMALANGA
B194: MP313 Steve Tshwete | C194: MP MPUMALANGA
B195: MP314 Emakhazeni | C195: MP MPUMALANGA
B196: MP315 Thembisile Hani | C196: MP MPUMALANGA
B197: MP316 Dr J.S. Moroka | C197: MP MPUMALANGA
B198: DC31 Nkangala | C198: MP MPUMALANGA
B199: MP321 Thaba Chweu | C199: MP MPUMALANGA
B200: MP324 Nkomazi | C200: MP MPUMALANGA
... 87 more rows

Sheet Org structure
A1: Organisational Structure Votes | C1: Organisational Structure Sub-Votes | E1: Display Sub-Votes
A2: =B2&" - "&C2 -> Vote 01 - Executive And Council | B2: Vote 01 | C2: Executive And Council
A3: =B7&" - "&C7 -> Vote 02 - Municipal Manager | B3: 01.1 | C3: Mayor & Councillors | D3: =CONCATENATE(B3, " - ", C3) -> 01.1 - Mayor & Councillors | E3: 01.1 - Mayor & Councillors
A4: =B13&" - "&C13 -> Vote 03 - Corporate Services | B4: 01.2 | C4: Mayor & Council Support | D4: =CONCATENATE(B4, " - ", C4) -> 01.2 - Mayor & Council Support | E4: 01.2 - Mayor & Council Support
A5: =B21&" - "&C21 -> Vote 04 - Budget And Treasury | B5: 01.3 | C5: Mayor & Councillors | D5: =CONCATENATE(B5, " - ", C5) -> 01.3 - Mayor & Councillors | E5: 01.3 - Mayor & Councillors
A6: =B28&" - "&C28 -> Vote 05 - Community Services | B6: 01.4 | C6: Mayor & Council Support | D6: =CONCATENATE(B6, " - ", C6) -> 01.4 - Mayor & Council Support | E6: 01.4 - Mayor & Council Support
A7: =B39&" - "&C39 -> Vote 06 - Planning And Development | B7: Vote 02 | C7: Municipal Manager
A8: =B46&" - "&C46 -> Vote 07 - Infrastructure Development | B8: 02.1 | C8: Municipal Manager | D8: =CONCATENATE(B8, " - ", C8) -> 02.1 - Municipal Manager | E8: 02.1 - Municipal Manager
A9: =B51&" - "&C51 -> Vote 08 - | B9: 02.2 | C9: Municipal Manager Support | D9: =CONCATENATE(B9, " - ", C9) -> 02.2 - Municipal Manager Support | E9: 02.2 - Municipal Manager Support
A10: Vote 09 - | B10: 02.3 | C10: Internal Audit | D10: =CONCATENATE(B10, " - ", C10) -> 02.3 - Internal Audit | E10: 02.3 - Internal Audit
A11: Vote 10 - | B11: 02.4 | C11: Communications | D11: =CONCATENATE(B11, " - ", C11) -> 02.4 - Communications | E11: 02.4 - Communications
A12: Vote 11 - | B12: 02.5 | C12: Risk Management | D12: =CONCATENATE(B12, " - ", C12) -> 02.5 - Risk Management | E12: 02.5 - Risk Management
A13: Vote 12 - | B13: Vote 03 | C13: Corporate Services
A14: Vote 13 - | B14: 03.1 | C14: Executive Manager: Corporate Services | D14: =CONCATENATE(B14, " - ", C14) -> 03.1 - Executive Manager: Corporate Services | E14: 03.1 - Executive Manager: Corporate Services
A15: Vote 14 - | B15: 03.2 | C15: Human Resource Management & Development | D15: 03.2 - Human Resource Management & Development | E15: 03.2 - Human Resource Management & Development
A16: Vote 15 - Other | B16: 03.3 | C16: Information Technology | D16: 03.3 - Information Technology | E16: 03.3 - Information Technology
B17: 03.4 | C17: Legal Services | D17: 03.4 - Legal Services | E17: 03.4 - Legal Services
B18: 03.5 | C18: Gen Adm_Sec_Fleet: General Administrat | D18: 03.5 - Gen Adm_Sec_Fleet: General Administrat | E18: 03.5 - Gen Adm_Sec_Fleet: General Administrat
B19: 03.6 | C19: Gen Adm_Sec_Fleet: Security Services | D19: 03.6 - Gen Adm_Sec_Fleet: Security Services | E19: 03.6 - Gen Adm_Sec_Fleet: Security Services
B20: 03.7 | C20: Gen Adm_Sec_Fleet: Fleet Management | D20: 03.7 - Gen Adm_Sec_Fleet: Fleet Management | E20: 03.7 - Gen Adm_Sec_Fleet: Fleet Management
B21: Vote 04 | C21: Budget And Treasury
B22: 04.1 | C22: Chief Financial Officer | D22: =CONCATENATE(B22, " - ", C22) -> 04.1 - Chief Financial Officer | E22: 04.1 - Chief Financial Officer
B23: 04.2 | C23: Budget Planning & Management | D23: 04.2 - Budget Planning & Management | E23: 04.2 - Budget Planning & Management
B24: 04.3 | C24: Expenditure Management | D24: 04.3 - Expenditure Management | E24: 04.3 - Expenditure Management
B25: 04.4 | C25: Revenue Management | D25: 04.4 - Revenue Management | E25: 04.4 - Revenue Management
B26: 04.5 | C26: Asset Management | D26: 04.5 - Asset Management | E26: 04.5 - Asset Management
B27: 04.6 | C27: Supply Chain Management | D27: 04.6 - Supply Chain Management | E27: 04.6 - Supply Chain Management
B28: Vote 05 | C28: Community Services
B29: 05.1 | C29: Executive Manager: Community Services | D29: =CONCATENATE(B29, " - ", C29) -> 05.1 - Executive Manager: Community Services | E29: 05.1 - Executive Manager: Community Services
B30: 05.2 | C30: Waste Management Services | D30: 05.2 - Waste Management Services | E30: 05.2 - Waste Management Services
B31: 05.3 | C31: Environmental Management Services | D31: 05.3 - Environmental Management Services | E31: 05.3 - Environmental Management Services
B32: 05.4 | C32: Road Traffic & Law Enforce: Traffic Serv | D32: 05.4 - Road Traffic & Law Enforce: Traffic Serv | E32: 05.4 - Road Traffic & Law Enforce: Traffic Serv
B33: 05.5 | C33: Road Traffic&Law Enforce: Licencing Serv | D33: 05.5 - Road Traffic&Law Enforce: Licencing Serv | E33: 05.5 - Road Traffic&Law Enforce: Licencing Serv
B34: 05.6 | C34: Road Traffic&Law Enforce: Pound | D34: 05.6 - Road Traffic&Law Enforce: Pound | E34: 05.6 - Road Traffic&Law Enforce: Pound
B35: 05.7 | C35: Institutional & Social Dev Management | D35: 05.7 - Institutional & Social Dev Management | E35: 05.7 - Institutional & Social Dev Management
B36: 05.8 | C36: Libraries And Archives | D36: 05.8 - Libraries And Archives | E36: 05.8 - Libraries And Archives
B37: 05.9 | C37: Community Halls And Facilities | D37: 05.9 - Community Halls And Facilities | E37: 05.9 - Community Halls And Facilities
B38: 05.10 | C38: Disaster Management | D38: 05.10 - Disaster Management | E38: 05.10 - Disaster Management
B39: Vote 06 | C39: Planning And Development
B40: 06.1 | C40: Executive Manager:Planning & Development | D40: =CONCATENATE(B40, " - ", C40) -> 06.1 - Executive Manager:Planning & Development | E40: 06.1 - Executive Manager:Planning & Development
B41: 06.2 | C41: Economic Development & Planning | D41: 06.2 - Economic Development & Planning | E41: 06.2 - Economic Development & Planning
B42: 06.3 | C42: Development & Town Planning | D42: 06.3 - Development & Town Planning | E42: 06.3 - Development & Town Planning
B43: 06.4 | C43: Property Management & Housing | D43: 06.4 - Property Management & Housing | E43: 06.4 - Property Management & Housing
B44: 06.5 | C44: Integrated Development Planning | D44: 06.5 - Integrated Development Planning | E44: 06.5 - Integrated Development Planning
B45: 06.6 | C45: Performance Management | D45: 06.6 - Performance Management | E45: 06.6 - Performance Management
B46: Vote 07 | C46: Infrastructure Development
B47: 07.1 | C47: Executive Manager: Infrastructure Dev | D47: =CONCATENATE(B47, " - ", C47) -> 07.1 - Executive Manager: Infrastructure Dev | E47: 07.1 - Executive Manager: Infrastructure Dev
B48: 07.2 | C48: Road Construction & Maintenance | D48: =CONCATENATE(B48, " - ", C48) -> 07.2 - Road Construction & Maintenance | E48: 07.2 - Road Construction & Maintenance
B49: 07.3 | C49: Electrical & Mechanical Works | D49: =CONCATENATE(B49, " - ", C49) -> 07.3 - Electrical & Mechanical Works | E49: 07.3 - Electrical & Mechanical Works
B50: 07.4 | C50: Project Management | D50: =CONCATENATE(B50, " - ", C50) -> 07.4 - Project Management | E50: 07.4 - Project Management
B51: Vote 08
B52: Vote 09
B53: Vote 10
B54: Vote 11
B55: Vote 12
B56: Vote 13
B57: Vote 14
B58: Vote 15 | C58: Other

Sheet Contacts
A1: =muni&" - "&" Contact Information" -> LIM355 Lepelle-Nkumpi - Contact Information
A3: A. GENERAL INFORMATION
A4: Municipality | B4: =muni -> LIM355 Lepelle-Nkumpi | C4: =IF(B4="Choose name from List","Set name on 'Instructions' sheet", "") -> 
A6: Grade | B6: 5 | C6: 1 Grade in terms of the Remuneration of Public Office Bearers Act.
A8: Province | B8: =IF(B4>" ",VLOOKUP(B4,'Lookup and lists'!B29:C307,2, FALSE)," ") -> LIM LIMPOPO
A10: Web Address | B10: www.lepelle-nkumpi.gov.za
A12: e-mail Address
A14: B. CONTACT INFORMATION
A15: Postal address:
A16: P.O. Box | B16: P/B X07
A17: City / Town | B17: Chuenespoort
A18: Postal Code | B18: 0745
A20: Street address
A21: Building | B21: 170 BA
A22: Street No. & Name | B22: civic center
A23: City / Town | B23: lebowakgomo
A24: Postal Code | B24: 0737
A26: General Contacts
A27: Telephone number | B27: 015 633 4500
A28: Fax number | B28: 015 633 6896
A30: C. POLITICAL LEADERSHIP
A31: Speaker: | C31: Secretary/PA to the Speaker:
A32: ID Number | B32: 7311190526081 | C32: ID Number | D32: 8809211020082
A33: Title | B33: Ms | C33: Title | D33: Ms
A34: Name | B34: Nkoabela N J | C34: Name | D34: Lebogang Kekana
A35: Telephone number | B35: 015 633 4525 | C35: Telephone number | D35: 015 633 4525
A36: Cell number | C36: Cell number | D36: 071 480 0336
A37: Fax number | B37: 015 633 6896 | C37: Fax number | D37: 015 633 6896
A38: E-mail address | B38: nkoabela.j@lepelle-nkumpi.onmicrosoft.com | C38: E-mail address | D38: lebogang.kekana@lepelle-nkumpi.gov.za
A40: Mayor/Executive Mayor: | C40: Secretary/PA to the Mayor/Executive Mayor:
A41: ID Number | B41: 6806060319088 | C41: ID Number | D41: 8510065530081
A42: Title | B42: Ms | C42: Title | D42: Ms
A43: Name | B43: MM Molala | C43: Name | D43: Thobejane T A
A44: Telephone number | B44: 015 633 4500 | C44: Telephone number | D44: 015 633 4525
A45: Cell number | B45: 0711042289 | C45: Cell number | D45: 082 660 0761
A46: Fax number | B46: 015 633 6896 | C46: Fax number | D46: 015 633 6896
A47: E-mail address | B47: merriam.molala@lepelle-nkumpi.gov.za | C47: E-mail address | D47: tswaledi.thobejane@lepelle-nkumpi.gov.za
A49: Deputy Mayor/Executive Mayor: | C49: Secretary/PA to the Deputy Mayor/Executive Mayor:
A50: ID Number | B50: 6806060319088 | C50: ID Number
A51: Title | B51: Ms | C51: Title
A52: Name | B52: MM Molala | C52: Name
A53: Telephone number | B53: 015 633 4520 | C53: Telephone number
A54: Cell number | B54: 0711042289 | C54: Cell number
A55: Fax number | B55: 015 633 6896 | C55: Fax number
A56: E-mail address | B56: merriam.molala@lepelle-nkumpi.gov.za | C56: E-mail address
A58: D. MANAGEMENT LEADERSHIP
A59: Municipal Manager: | C59: Secretary/PA to the Municipal Manager:
A60: ID Number | B60: 7109210357085 | C60: ID Number | D60: 8110230738089
A61: Title | B61: Dr | C61: Title | D61: Ms
A62: Name | B62: Chauke Minky Lilly | C62: Name | D62: Lekgau Theresho
A63: Telephone number | B63: 015 633 4539 | C63: Telephone number | D63: 015 633 4508
A64: Cell number | B64: 0645350863 | C64: Cell number | D64: 082 371 9768
A65: Fax number | B65: 015 633 6896 | C65: Fax number | D65: 015 633 6896
A66: E-mail address | B66: lilly.chauke@lepelle-nkumpi.gov.za | C66: E-mail address | D66: theresho.lekgau@lepelle-nkumpi.gov.za
A68: Chief Financial Officer | C68: Secretary/PA to the Chief Financial Officer
A69: ID Number | B69: 7704030318083 | C69: ID Number
A70: Title | B70: Ms | C70: Title
A71: Name | B71: Masemola Mathebo Nancy | C71: Name
A72: Telephone number | B72: 015 633 4512 | C72: Telephone number
A73: Cell number | B73: 0797785141 | C73: Cell number
A74: Fax number | B74: 015 633 6896 | C74: Fax number
A75: E-mail address | B75: nancy.masemola@lepelle-nkumpi.gov.za | C75: E-mail address
A77: Official responsible for submitting financial information | C77: Official responsible for submitting financial information
A78: ID Number | B78: 8108075523087 | C78: ID Number
A79: Title | B79: Mr | C79: Title
A80: Name | B80: RAMUHULU RUDZANI HAPPY | C80: Name
A81: Telephone number | B81: 0156334602 | C81: Telephone number
A82: Cell number | B82: 0826756468 | C82: Cell number
A83: Fax number | B83: 015 633 6896 | C83: Fax number
A84: E-mail address | B84: rudzani.ramuhulu@lepelle-nkumpi.gov.za | C84: E-mail address
A85: Official responsible for submitting financial information | C85: Official responsible for submitting financial information
A86: ID Number | C86: ID Number
A87: Title | C87: Title
A88: Name | C88: Name
A89: Telephone number | C89: Telephone number
A90: Cell number | C90: Cell number
A91: Fax number | C91: Fax number
A92: E-mail address | C92: E-mail address
A93: Official responsible for submitting financial information | C93: Official responsible for submitting financial information
A94: ID Number | C94: ID Number
A95: Title | C95: Title
A96: Name | C96: Name
A97: Telephone number | C97: Telephone number
A98: Cell number | C98: Cell number
A99: Fax number | C99: Fax number
A100: E-mail address | C100: E-mail address
A101: Official responsible for submitting financial information | C101: Official responsible for submitting financial information
A102: ID Number | C102: ID Number
A103: Title | C103: Title
A104: Name | C104: Name
A105: Telephone number | C105: Telephone number
A106: Cell number | C106: Cell number
A107: Fax number | C107: Fax number
A108: E-mail address | C108: E-mail address
A109: Official responsible for submitting financial information | C109: Official responsible for submitting financial information
A110: ID Number | C110: ID Number
A111: Title | C111: Title
A112: Name | C112: Name
A113: Telephone number | C113: Telephone number
A114: Cell number | C114: Cell number
A115: Fax number | C115: Fax number
A116: E-mail address | C116: E-mail address
A117: Official responsible for submitting financial information | C117: Official responsible for submitting financial information
A118: ID Number | C118: ID Number
A119: Title | C119: Title
A120: Name | C120: Name
A121: Telephone number | C121: Telephone number
A122: Cell number | C122: Cell number
A123: Fax number | C123: Fax number
A124: E-mail address | C124: E-mail address
A125: Official responsible for submitting financial information | C125: Official responsible for submitting financial information
A126: ID Number | C126: ID Number
A127: Title | C127: Title
A128: Name | C128: Name
A129: Telephone number | C129: Telephone number
A130: Cell number | C130: Cell number
A131: Fax number | C131: Fax number
A132: E-mail address | C132: E-mail address
A133: Official responsible for submitting financial information
A134: ID Number
A135: Title
A136: Name
A137: Telephone number
A138: Cell number
A139: Fax number
A140: E-mail address

Sheet A1-Sum
A1: =muni&" - "&Approve1 -> LIM355 Lepelle-Nkumpi - Table A1 Budget Summary
A2: =desc -> Description | B2: =head1b -> 2022/23 | C2: =head1A -> 2023/24 | D2: =Head1 -> 2024/25 | E2: =Head2 -> Current Year 2025/26 | I2: =Head3 -> 2026/27 Medium Term Revenue & Expenditure Framework
A3: R thousands | B3: =Head5 -> Audited Outcome | C3: =Head5 -> Audited Outcome | D3: =Head5 -> Audited Outcome | E3: =Head6 -> Original Budget | F3: =Head7 -> Adjusted Budget | G3: =Head8 -> Full Year Forecast | H3: =Head5b -> Pre-audit outcome | I3: =Head9 -> Budget Year 2026/27 | J3: =Head10 -> Budget Year +1 2027/28 | K3: =Head11 -> Budget Year +2 2028/29
A4: Financial Performance
A5: Property rates | B5: ='A4-FinPerf RE'!C24 -> 38965081.3 | C5: ='A4-FinPerf RE'!D24 -> 43106834.49 | D5: ='A4-FinPerf RE'!E24 -> 46771877.62 | E5: ='A4-FinPerf RE'!F24 -> 43173458 | F5: ='A4-FinPerf RE'!G24 -> 45647458 | G5: ='A4-FinPerf RE'!H24 -> 45647458 | H5: ='A4-FinPerf RE'!I24 -> 45141193.51 | I5: ='A4-FinPerf RE'!J24 -> 47336414 | J5: ='A4-FinPerf RE'!K24 -> 48898516 | K5: ='A4-FinPerf RE'!L24 -> 50463268
A6: Service charges | B6: =SUM('A4-FinPerf RE'!C6:C9) -> 6803042.19 | C6: =SUM('A4-FinPerf RE'!D6:D9) -> 7419207.97 | D6: =SUM('A4-FinPerf RE'!E6:E9) -> 7772340.26 | E6: =SUM('A4-FinPerf RE'!F6:F9) -> 8229124 | F6: =SUM('A4-FinPerf RE'!G6:G9) -> 8259124 | G6: =SUM('A4-FinPerf RE'!H6:H9) -> 8259124 | H6: =SUM('A4-FinPerf RE'!I6:I9) -> 7549039.13 | I6: =SUM('A4-FinPerf RE'!J6:J9) -> 9064711 | J6: =SUM('A4-FinPerf RE'!K6:K9) -> 9363847 | K6: =SUM('A4-FinPerf RE'!L6:L9) -> 9663490
A7: Investment revenue | B7: ='A4-FinPerf RE'!C14 -> 25809993.18 | C7: ='A4-FinPerf RE'!D14 -> 44842419.8 | D7: ='A4-FinPerf RE'!E14 -> 52104838.47 | E7: ='A4-FinPerf RE'!F14 -> 47346055 | F7: ='A4-FinPerf RE'!G14 -> 47346055 | G7: ='A4-FinPerf RE'!H14 -> 47346055 | H7: ='A4-FinPerf RE'!I14 -> 35952709.75 | I7: ='A4-FinPerf RE'!J14 -> 49097859 | J7: ='A4-FinPerf RE'!K14 -> 50718089 | K7: ='A4-FinPerf RE'!L14 -> 52341067
A8: Transfer and subsidies - Operational | B8: ='A4-FinPerf RE'!C28 -> 304329700.6 | C8: ='A4-FinPerf RE'!D28 -> 321887129.8 | D8: ='A4-FinPerf RE'!E28 -> 340650594.7 | E8: ='A4-FinPerf RE'!F28 -> 348623198 | F8: ='A4-FinPerf RE'!G28 -> 342291498 | G8: ='A4-FinPerf RE'!H28 -> 342291498 | H8: ='A4-FinPerf RE'!I28 -> 326536321.1 | I8: ='A4-FinPerf RE'!J28 -> 338403998 | J8: ='A4-FinPerf RE'!K28 -> 336254700 | K8: ='A4-FinPerf RE'!L28 -> 361144500
A9: Other own revenue | B9: ='A4-FinPerf RE'!C35-SUM(B5:B8) -> 70443674.09 | C9: ='A4-FinPerf RE'!D35-SUM(C5:C8) -> 70046531.11 | D9: ='A4-FinPerf RE'!E35-SUM(D5:D8) -> 88856860.25 | E9: ='A4-FinPerf RE'!F35-SUM(E5:E8) -> 381271819 | F9: ='A4-FinPerf RE'!G35-SUM(F5:F8) -> 385709519 | G9: ='A4-FinPerf RE'!H35-SUM(G5:G8) -> 385709519 | H9: ='A4-FinPerf RE'!I35-SUM(H5:H8) -> 34898746.62 | I9: ='A4-FinPerf RE'!J35-SUM(I5:I8) -> 52060496 | J9: ='A4-FinPerf RE'!K35-SUM(J5:J8) -> 51712490 | K9: ='A4-FinPerf RE'!L35-SUM(K5:K8) -> 53367292
A10: ='A4-FinPerf RE'!A35 -> Total Revenue (excluding capital transfers and contributions) | B10: =SUM(B5:B9) -> 446351491.4 | C10: =SUM(C5:C9) -> 487302123.2 | D10: 536156511.3 | E10: 828643654 | F10: 829253654 | G10: 829253654 | H10: 450078010.1 | I10: 495963478 | J10: 496947642 | K10: 526979617
A11: Employee costs | B11: ='A4-FinPerf RE'!C37 -> 99656346.07 | C11: ='A4-FinPerf RE'!D37 -> 98495817.93 | D11: ='A4-FinPerf RE'!E37 -> 103316275.9 | E11: ='A4-FinPerf RE'!F37 -> 161096891 | F11: ='A4-FinPerf RE'!G37 -> 156326258 | G11: ='A4-FinPerf RE'!H37 -> 156326258 | H11: ='A4-FinPerf RE'!I37 -> 99301139.02 | I11: ='A4-FinPerf RE'!J37 -> 161551002 | J11: ='A4-FinPerf RE'!K37 -> 166916628 | K11: ='A4-FinPerf RE'!L37 -> 172127539
A12: Remuneration of councillors | B12: ='A4-FinPerf RE'!C38 -> 23103442.24 | C12: ='A4-FinPerf RE'!D38 -> 24024770.19 | D12: ='A4-FinPerf RE'!E38 -> 25177230.31 | E12: ='A4-FinPerf RE'!F38 -> 27052599 | F12: ='A4-FinPerf RE'!G38 -> 31052599 | G12: ='A4-FinPerf RE'!H38 -> 31052599 | H12: ='A4-FinPerf RE'!I38 -> 23899375.34 | I12: ='A4-FinPerf RE'!J38 -> 32201545 | J12: ='A4-FinPerf RE'!K38 -> 33264193 | K12: ='A4-FinPerf RE'!L38 -> 34328648
A13: Depreciation, amortisation and impairment | B13: ='A4-FinPerf RE'!C42 -> 30575537.34 | C13: ='A4-FinPerf RE'!D42 -> 31306488.3 | D13: ='A4-FinPerf RE'!E42 -> 31038763.38 | E13: ='A4-FinPerf RE'!F42 -> 51269463 | F13: ='A4-FinPerf RE'!G42 -> 51269463 | G13: ='A4-FinPerf RE'!H42 -> 51269463 | H13: ='A4-FinPerf RE'!I42 -> 88463382.33 | I13: ='A4-FinPerf RE'!J42 -> 64641434 | J13: ='A4-FinPerf RE'!K42 -> 67474725 | K13: ='A4-FinPerf RE'!L42 -> 63185915
A14: Interest, Dividends and Rent on Land | B14: ='A4-FinPerf RE'!C43 -> 0 | C14: ='A4-FinPerf RE'!D43 -> 0 | D14: ='A4-FinPerf RE'!E43 -> 0 | E14: ='A4-FinPerf RE'!F43 -> 932890 | F14: ='A4-FinPerf RE'!G43 -> 932890 | G14: ='A4-FinPerf RE'!H43 -> 932890 | H14: ='A4-FinPerf RE'!I43 -> 0 | I14: ='A4-FinPerf RE'!J43 -> 967407 | J14: ='A4-FinPerf RE'!K43 -> 999331 | K14: ='A4-FinPerf RE'!L43 -> 1031310
A15: Inventory consumed and bulk purchases | B15: ='A4-FinPerf RE'!C39+'A4-FinPerf RE'!C40 -> 1892655.88 | C15: ='A4-FinPerf RE'!D39+'A4-FinPerf RE'!D40 -> 1699476.87 | D15: ='A4-FinPerf RE'!E39+'A4-FinPerf RE'!E40 -> 2250910.13 | E15: ='A4-FinPerf RE'!F39+'A4-FinPerf RE'!F40 -> 13396603 | F15: ='A4-FinPerf RE'!G39+'A4-FinPerf RE'!G40 -> 7064903 | G15: ='A4-FinPerf RE'!H39+'A4-FinPerf RE'!H40 -> 7064903 | H15: ='A4-FinPerf RE'!I39+'A4-FinPerf RE'!I40 -> 2190807.29 | I15: ='A4-FinPerf RE'!J39+'A4-FinPerf RE'!J40 -> 6769038 | J15: ='A4-FinPerf RE'!K39+'A4-FinPerf RE'!K40 -> 6992419 | K15: ='A4-FinPerf RE'!L39+'A4-FinPerf RE'!L40 -> 7216175
A16: Transfers and subsidies | B16: ='A4-FinPerf RE'!C45 -> 0 | C16: ='A4-FinPerf RE'!D45 -> 0 | D16: ='A4-FinPerf RE'!E45 -> 0 | E16: ='A4-FinPerf RE'!F45 -> 0 | F16: ='A4-FinPerf RE'!G45 -> 0 | G16: ='A4-FinPerf RE'!H45 -> 0 | H16: ='A4-FinPerf RE'!I45 -> 0 | I16: ='A4-FinPerf RE'!J45 -> 0 | J16: ='A4-FinPerf RE'!K45 -> 0 | K16: ='A4-FinPerf RE'!L45 -> 0
A17: Other expenditure | B17: ='A4-FinPerf RE'!C50-SUM(B11:B16) -> 215680465.9 | C17: ='A4-FinPerf RE'!D50-SUM(C11:C16) -> 204050076.1 | D17: ='A4-FinPerf RE'!E50-SUM(D11:D16) -> 230937554.3 | E17: ='A4-FinPerf RE'!F50-SUM(E11:E16) -> 384966486 | F17: ='A4-FinPerf RE'!G50-SUM(F11:F16) -> 370173757 | G17: ='A4-FinPerf RE'!H50-SUM(G11:G16) -> 370173757 | H17: ='A4-FinPerf RE'!I50-SUM(H11:H16) -> 131928897.5 | I17: ='A4-FinPerf RE'!J50-SUM(I11:I16) -> 369691056 | J17: ='A4-FinPerf RE'!K50-SUM(J11:J16) -> 379279735 | K17: ='A4-FinPerf RE'!L50-SUM(K11:K16) -> 385073278
A18: ='A4-FinPerf RE'!A50 -> Total Expenditure | B18: =SUM(B11:B17) -> 370908447.4 | C18: =SUM(C11:C17) -> 359576629.4 | D18: =SUM(D11:D17) -> 392720734 | E18: 638714932 | F18: 616819870 | G18: 616819870 | H18: 345783601.5 | I18: 635821482 | J18: 654927031 | K18: 662962865
A19: ='A4-FinPerf RE'!A51 -> Surplus/(Deficit) | B19: =B10-B18 -> 75443043.94 | C19: =C10-C18 -> 127725493.7 | D19: =D10-D18 -> 143435777.3 | E19: 189928722 | F19: 212433784 | G19: 212433784 | H19: 104294408.6 | I19: -139858004 | J19: -157979389 | K19: -135983248
A20: ='A4-FinPerf RE'!A52 -> Transfers and subsidies - capital (monetary allocations) | B20: ='A4-FinPerf RE'!C52 -> 39683923.74 | C20: ='A4-FinPerf RE'!D52 -> 27175996.59 | D20: ='A4-FinPerf RE'!E52 -> 72942646.97 | E20: ='A4-FinPerf RE'!F52 -> 57082700 | F20: ='A4-FinPerf RE'!G52 -> 81414401 | G20: ='A4-FinPerf RE'!H52 -> 81414401 | H20: ='A4-FinPerf RE'!I52 -> 51522531.25 | I20: ='A4-FinPerf RE'!J52 -> 64202900 | J20: ='A4-FinPerf RE'!K52 -> 71244300 | K20: ='A4-FinPerf RE'!L52 -> 73577500
A21: ='A4-FinPerf RE'!A53 -> Transfers and subsidies - capital (in-kind) | B21: ='A4-FinPerf RE'!C53 -> 0 | C21: ='A4-FinPerf RE'!D53 -> 0 | D21: ='A4-FinPerf RE'!E53 -> 0 | E21: ='A4-FinPerf RE'!F53 -> 0 | F21: ='A4-FinPerf RE'!G53 -> 0 | G21: ='A4-FinPerf RE'!H53 -> 0 | H21: ='A4-FinPerf RE'!I53 -> 0 | I21: ='A4-FinPerf RE'!J53 -> 0 | J21: ='A4-FinPerf RE'!K53 -> 0 | K21: ='A4-FinPerf RE'!L53 -> 0
A22: ='A4-FinPerf RE'!A54 -> Surplus/(Deficit) after capital transfers & contributions | B22: =B19+SUM(B20:B21) -> 115126967.7 | C22: =C19+SUM(C20:C21) -> 154901490.3 | D22: 216378424.3 | E22: 247011422 | F22: 293848185 | G22: 293848185 | H22: 155816939.8 | I22: -75655104 | J22: -86735089 | K22: -62405748
A23: ='A4-FinPerf RE'!A60 -> Share of Surplus/Deficit attributable to Associate | B23: ='A4-FinPerf RE'!C60 -> 0 | C23: ='A4-FinPerf RE'!D60 -> 0 | D23: ='A4-FinPerf RE'!E60 -> 0 | E23: ='A4-FinPerf RE'!F60 -> 0 | F23: ='A4-FinPerf RE'!G60 -> 0 | G23: ='A4-FinPerf RE'!H60 -> 0 | H23: ='A4-FinPerf RE'!I60 -> 0 | I23: ='A4-FinPerf RE'!J60 -> 0 | J23: ='A4-FinPerf RE'!K60 -> 0 | K23: ='A4-FinPerf RE'!L60 -> 0
A24: ='A4-FinPerf RE'!A62 -> Surplus/(Deficit) for the year | B24: =B22+B23 -> 115126967.7 | C24: =C22+C23 -> 154901490.3 | D24: 216378424.3 | E24: 247011422 | F24: 293848185 | G24: 293848185 | H24: 155816939.8 | I24: -75655104 | J24: -86735089 | K24: -62405748
A25: Capital expenditure & funds sources
A26: Capital expenditure | B26: ='A5-Capex'!C63 -> 276.9 | C26: ='A5-Capex'!D63 -> 1195556.09 | D26: ='A5-Capex'!E63 -> 400308 | E26: ='A5-Capex'!F63 -> 246865699 | F26: ='A5-Capex'!G63 -> 292608160 | G26: ='A5-Capex'!H63 -> 292608160 | H26: ='A5-Capex'!I63 -> 178690554.2 | I26: ='A5-Capex'!J63 -> 235994900 | J26: ='A5-Capex'!K63 -> 190661640 | K26: ='A5-Capex'!L63 -> 202818104
A27: Transfers recognised - capital | B27: ='A5-Capex'!C70 -> 0 | C27: ='A5-Capex'!D70 -> -0.01 | D27: ='A5-Capex'!E70 -> 0 | E27: ='A5-Capex'!F70 -> 57082699 | F27: ='A5-Capex'!G70 -> 81945660 | G27: ='A5-Capex'!H70 -> 81945660 | H27: ='A5-Capex'!I70 -> 43343251.88 | I27: ='A5-Capex'!J70 -> 64452900 | J27: ='A5-Capex'!K70 -> 71461640 | K27: ='A5-Capex'!L70 -> 73722104
A29: ='A5-Capex'!A72 -> Borrowing | B29: ='A5-Capex'!C72 -> 0 | C29: ='A5-Capex'!D72 -> 0 | D29: ='A5-Capex'!E72 -> 0 | E29: ='A5-Capex'!F72 -> 0 | F29: ='A5-Capex'!G72 -> 0 | G29: ='A5-Capex'!H72 -> 0 | H29: ='A5-Capex'!I72 -> 0 | I29: ='A5-Capex'!J72 -> 0 | J29: ='A5-Capex'!K72 -> 0 | K29: ='A5-Capex'!L72 -> 0
A30: ='A5-Capex'!A73 -> Internally generated funds | B30: ='A5-Capex'!C73 -> 276.9 | C30: ='A5-Capex'!D73 -> 1195556.1 | D30: ='A5-Capex'!E73 -> 400308 | E30: ='A5-Capex'!F73 -> 189783000 | F30: ='A5-Capex'!G73 -> 210662500 | G30: ='A5-Capex'!H73 -> 210662500 | H30: ='A5-Capex'!I73 -> 135347302.3 | I30: ='A5-Capex'!J73 -> 171542000 | J30: ='A5-Capex'!K73 -> 119200000 | K30: ='A5-Capex'!L73 -> 129096000
A31: Total sources of capital funds | B31: =+B27+B29+B30 -> 276.9 | C31: =+C27+C29+C30 -> 1195556.09 | D31: 400308 | E31: 246865699 | F31: 292608160 | G31: 292608160 | H31: 178690554.2 | I31: 235994900 | J31: 190661640 | K31: 202818104
A32: Financial position
A33: ='A6-FinPos'!A14 -> Total current assets | B33: ='A6-FinPos'!C14 -> 706668385.1 | C33: ='A6-FinPos'!D14 -> 890129525.2 | D33: ='A6-FinPos'!E14 -> 984608683.4 | E33: ='A6-FinPos'!F14 -> 1166300220 | F33: ='A6-FinPos'!G14 -> 1098834999 | G33: ='A6-FinPos'!H14 -> 1098834999 | H33: ='A6-FinPos'!I14 -> 64156497.38 | I33: ='A6-FinPos'!J14 -> 678308211 | J33: ='A6-FinPos'!K14 -> 692220835 | K33: ='A6-FinPos'!L14 -> 713492107
A34: ='A6-FinPos'!A26 -> Total non current assets | B34: ='A6-FinPos'!C26 -> 1005315343 | C34: ='A6-FinPos'!D26 -> 989061275.4 | D34: ='A6-FinPos'!E26 -> 1094949233 | E34: ='A6-FinPos'!F26 -> 963361461 | F34: ='A6-FinPos'!G26 -> 1009103922 | G34: ='A6-FinPos'!H26 -> 1009103922 | H34: ='A6-FinPos'!I26 -> 90227171.84 | I34: ='A6-FinPos'!J26 -> 1079813209 | J34: ='A6-FinPos'!K26 -> 1061687320 | K34: ='A6-FinPos'!L26 -> 1101097324
A35: ='A6-FinPos'!A38 -> Total current liabilities | B35: ='A6-FinPos'!C38 -> 298827313.1 | C35: ='A6-FinPos'!D38 -> 311362831.4 | D35: ='A6-FinPos'!E38 -> 268423010.3 | E35: ='A6-FinPos'!F38 -> 319218901 | F35: ='A6-FinPos'!G38 -> 314452626 | G35: ='A6-FinPos'!H38 -> 314452626 | H35: ='A6-FinPos'!I38 -> -1433270.6 | I35: ='A6-FinPos'!J38 -> 623102860 | J35: ='A6-FinPos'!K38 -> 585166073 | K35: ='A6-FinPos'!L38 -> 613262434
A36: ='A6-FinPos'!A44 -> Total non current liabilities | B36: ='A6-FinPos'!C44 -> 238138.31 | C36: ='A6-FinPos'!D44 -> 238138.31 | D36: ='A6-FinPos'!E44 -> 238138.31 | E36: ='A6-FinPos'!F44 -> 0 | F36: ='A6-FinPos'!G44 -> 0 | G36: ='A6-FinPos'!H44 -> 0 | H36: ='A6-FinPos'!I44 -> 0 | I36: ='A6-FinPos'!J44 -> 0 | J36: ='A6-FinPos'!K44 -> 0 | K36: ='A6-FinPos'!L44 -> 0
A37: Community wealth/Equity | B37: ='A6-FinPos'!C51 -> 1412918277 | C37: ='A6-FinPos'!D51 -> 1567589831 | D37: ='A6-FinPos'!E51 -> 1867329924 | E37: ='A6-FinPos'!F51 -> 1563431358 | F37: ='A6-FinPos'!G51 -> 1499638110 | G37: ='A6-FinPos'!H51 -> 1499638110 | H37: ='A6-FinPos'!I51 -> 155816939.8 | I37: ='A6-FinPos'!J51 -> 1210673664 | J37: ='A6-FinPos'!K51 -> 1255477171 | K37: ='A6-FinPos'!L51 -> 1263732745
A38: Cash flows
A39: Net cash from (used) operating | B39: ='A7-CFlow'!C17 -> 350791608.6 | C39: ='A7-CFlow'!D17 -> 469512571.8 | D39: ='A7-CFlow'!E17 -> 148842048 | E39: ='A7-CFlow'!F17 -> 131387400 | F39: ='A7-CFlow'!G17 -> 131387400 | G39: ='A7-CFlow'!H17 -> 131387400 | H39: ='A7-CFlow'!I17 -> 475526394.4 | I39: ='A7-CFlow'!J17 -> 148395606 | J39: ='A7-CFlow'!K17 -> 147475427 | K39: ='A7-CFlow'!L17 -> 172851500
A40: Net cash from (used) investing | B40: ='A7-CFlow'!C30 -> -276.9 | C40: ='A7-CFlow'!D30 -> 3412402.27 | D40: ='A7-CFlow'!E30 -> 31106136.69 | E40: ='A7-CFlow'!F30 -> -259895552 | F40: ='A7-CFlow'!G30 -> -259895552 | G40: ='A7-CFlow'!H30 -> -259895552 | H40: ='A7-CFlow'!I30 -> -178454940.2 | I40: ='A7-CFlow'!J30 -> -269041181 | J40: ='A7-CFlow'!K30 -> -218896285 | K40: ='A7-CFlow'!L30 -> -232864552
A41: Net cash from (used) financing | B41: ='A7-CFlow'!C39 -> 0 | C41: ='A7-CFlow'!D39 -> -44400 | D41: ='A7-CFlow'!E39 -> -22000 | E41: ='A7-CFlow'!F39 -> 64826 | F41: ='A7-CFlow'!G39 -> 64826 | G41: ='A7-CFlow'!H39 -> 64826 | H41: ='A7-CFlow'!I39 -> 28850 | I41: ='A7-CFlow'!J39 -> 50175 | J41: ='A7-CFlow'!K39 -> 51831 | K41: ='A7-CFlow'!L39 -> 53489
A42: =LEFT('A7-CFlow'!A43,37) -> Cash/cash equivalents at the year end | B42: ='A7-CFlow'!C43 -> 755213973.4 | C42: ='A7-CFlow'!D43 -> 1019622851 | D42: ='A7-CFlow'!E43 -> 906887777.8 | E42: ='A7-CFlow'!F43 -> 440240559 | F42: ='A7-CFlow'!G43 -> 440240559 | G42: ='A7-CFlow'!H43 -> 440240559 | H42: ='A7-CFlow'!I43 -> 291534411.8 | I42: ='A7-CFlow'!J43 -> 698581428 | J42: ='A7-CFlow'!K43 -> 627212401 | K42: ='A7-CFlow'!L43 -> 567252838
A44: Cash backing/surplus reconciliation
A45: ='A8-ResRecon'!A4 -> Cash and investments available | B45: ='A8-ResRecon'!C8 -> 894713973.4 | C45: ='A8-ResRecon'!D8 -> 1159122851 | D45: ='A8-ResRecon'!E8 -> 1018487778 | E45: ='A8-ResRecon'!F8 -> 440240559 | F45: ='A8-ResRecon'!G8 -> 440240559 | G45: ='A8-ResRecon'!H8 -> 440240559 | H45: ='A8-ResRecon'!I8 -> 291534411.8 | I45: ='A8-ResRecon'!J8 -> 710181428 | J45: ='A8-ResRecon'!K8 -> 639195201 | K45: ='A8-ResRecon'!L8 -> 579619088
A46: ='A8-ResRecon'!A10 -> Application of cash and investments | B46: ='A8-ResRecon'!C18 -> 277335157.9 | C46: ='A8-ResRecon'!D18 -> 272666002.8 | D46: ='A8-ResRecon'!E18 -> 238802861.7 | E46: ='A8-ResRecon'!F18 -> 75529049 | F46: ='A8-ResRecon'!G18 -> 76022774 | G46: ='A8-ResRecon'!H18 -> 76022774 | H46: ='A8-ResRecon'!I18 -> -26864637.83 | I46: ='A8-ResRecon'!J18 -> 39803552 | J46: ='A8-ResRecon'!K18 -> -32067535 | K46: ='A8-ResRecon'!L18 -> -23723489
A47: Balance - surplus (shortfall) | B47: =B45-B46 -> 617378815.5 | C47: =C45-C46 -> 886456848.1 | D47: 779684916 | E47: 364711510 | F47: 364217785 | G47: 364217785 | H47: 318399049.6 | I47: 670377876 | J47: 671262736 | K47: 603342577
A48: Asset management
A49: Asset register summary (WDV) | B49: ='A9-Asset'!C180 -> 765703319.6 | C49: ='A9-Asset'!D180 -> 792053047.5 | D49: ='A9-Asset'!E180 -> 783284889.9 | E49: ='A9-Asset'!F180 -> 858343948 | F49: ='A9-Asset'!G180 -> 904086409 | G49: ='A9-Asset'!H180 -> 904086409 | I49: ='A9-Asset'!I180 -> 966213209 | J49: ='A9-Asset'!J180 -> 944338520 | K49: ='A9-Asset'!K180 -> 979993362
A50: ='A9-Asset'!A183 -> Depreciation | B50: ='A9-Asset'!C183 -> 30575537.34 | C50: ='A9-Asset'!D183 -> 31306488.3 | D50: ='A9-Asset'!E183 -> 31038763.38 | E50: ='A9-Asset'!F183 -> 51269463 | F50: ='A9-Asset'!G183 -> 51269463 | G50: ='A9-Asset'!H183 -> 51269463 | I50: ='A9-Asset'!I183 -> 64641434 | J50: ='A9-Asset'!J183 -> 67474725 | K50: ='A9-Asset'!K183 -> 63185915
A51: Renewal and Upgrading of Existing Assets | B51: ='A9-Asset'!C40+'A9-Asset'!C75 -> 0 | C51: ='A9-Asset'!D40+'A9-Asset'!D75 -> 0 | D51: ='A9-Asset'!E40+'A9-Asset'!E75 -> 0 | E51: ='A9-Asset'!F40+'A9-Asset'!F75 -> 74245983 | F51: ='A9-Asset'!G40+'A9-Asset'!G75 -> 83967683 | G51: ='A9-Asset'!H40+'A9-Asset'!H75 -> 83967683 | I51: ='A9-Asset'!I40+'A9-Asset'!I75 -> 76914924 | J51: ='A9-Asset'!J40+'A9-Asset'!J75 -> 119344300 | K51: ='A9-Asset'!K40+'A9-Asset'!K75 -> 143500000
A52: Repairs and Maintenance | B52: ='A9-Asset'!C184 -> 8533529.81 | C52: ='A9-Asset'!D184 -> 4673234.23 | D52: ='A9-Asset'!E184 -> 24629493.59 | E52: ='A9-Asset'!F184 -> 86856242 | F52: ='A9-Asset'!G184 -> 77274542 | G52: ='A9-Asset'!H184 -> 77274542 | I52: ='A9-Asset'!I184 -> 68708949 | J52: ='A9-Asset'!J184 -> 70976346 | K52: ='A9-Asset'!K184 -> 73247588
A54: Free services
A55: Cost of Free Basic Services provided | B55: ='A10-SerDel'!C60 -> 0 | C55: ='A10-SerDel'!D60 -> 0 | D55: ='A10-SerDel'!E60 -> 1720.17 | E55: ='A10-SerDel'!F60 -> 0 | F55: ='A10-SerDel'!G60 -> 0 | G55: ='A10-SerDel'!H60 -> 0 | I55: ='A10-SerDel'!I60 -> 0 | J55: ='A10-SerDel'!J60 -> 0 | K55: ='A10-SerDel'!K60 -> 0
A56: Revenue cost of free services provided | B56: ='A10-SerDel'!C79 -> 1350179.91 | C56: ='A10-SerDel'!D79 -> 1415576.71 | D56: ='A10-SerDel'!E79 -> 1593773.2 | E56: ='A10-SerDel'!F79 -> 10906225 | F56: ='A10-SerDel'!G79 -> 10932225 | G56: ='A10-SerDel'!H79 -> 10932225 | I56: ='A10-SerDel'!I79 -> 11336717 | J56: ='A10-SerDel'!J79 -> 11710829 | K56: ='A10-SerDel'!K79 -> 12085575
A57: Households below minimum service level
A58: ='A10-SerDel'!A5 -> Water: | B58: ='A10-SerDel'!C14 -> 0 | C58: ='A10-SerDel'!D14 -> 0 | D58: ='A10-SerDel'!E14 -> 0 | E58: ='A10-SerDel'!F14 -> 0 | F58: ='A10-SerDel'!G14 -> 0 | G58: ='A10-SerDel'!H14 -> 0 | I58: ='A10-SerDel'!I14 -> 0 | J58: ='A10-SerDel'!J14 -> 0 | K58: ='A10-SerDel'!K14 -> 0
A59: ='A10-SerDel'!A16 -> Sanitation/sewerage: | B59: ='A10-SerDel'!C26 -> 0 | C59: ='A10-SerDel'!D26 -> 0 | D59: ='A10-SerDel'!E26 -> 0 | E59: ='A10-SerDel'!F26 -> 0 | F59: ='A10-SerDel'!G26 -> 0 | G59: ='A10-SerDel'!H26 -> 0 | I59: ='A10-SerDel'!I26 -> 0 | J59: ='A10-SerDel'!J26 -> 0 | K59: ='A10-SerDel'!K26 -> 0
A60: ='A10-SerDel'!A28 -> Energy: | B60: ='A10-SerDel'!C35 -> 0 | C60: ='A10-SerDel'!D35 -> 0 | D60: ='A10-SerDel'!E35 -> 0 | E60: ='A10-SerDel'!F35 -> 0 | F60: ='A10-SerDel'!G35 -> 0 | G60: ='A10-SerDel'!H35 -> 0 | I60: ='A10-SerDel'!I35 -> 0 | J60: ='A10-SerDel'!J35 -> 0 | K60: ='A10-SerDel'!K35 -> 0
A61: ='A10-SerDel'!A37 -> Refuse: | B61: ='A10-SerDel'!C45 -> 0 | C61: ='A10-SerDel'!D45 -> 0 | D61: ='A10-SerDel'!E45 -> 0 | E61: ='A10-SerDel'!F45 -> 0 | F61: ='A10-SerDel'!G45 -> 0 | G61: ='A10-SerDel'!H45 -> 0 | I61: ='A10-SerDel'!I45 -> 0 | J61: ='A10-SerDel'!J45 -> 0 | K61: ='A10-SerDel'!K45 -> 0

Sheet A2-FinPerf SC
A1: =muni&" - "&Approve3 -> LIM355 Lepelle-Nkumpi - Table A2 Budgeted Financial Performance (revenue and expenditure by functional classification)
A2: ="Functional Classification "&desc -> Functional Classification Description | B2: =head27 -> Ref | C2: =head1b -> 2022/23 | D2: =head1A -> 2023/24 | E2: =Head1 -> 2024/25 | F2: =Head2 -> Current Year 2025/26 | I2: =Head3 -> 2026/27 Medium Term Revenue & Expenditure Framework
A3: R thousand | B3: 1 | C3: =Head5 -> Audited Outcome | D3: =Head5 -> Audited Outcome | E3: =Head5 -> Audited Outcome | F3: =Head6 -> Original Budget | G3: =Head7 -> Adjusted Budget | H3: =Head8 -> Full Year Forecast | I3: =Head9 -> Budget Year 2026/27 | J3: =Head10 -> Budget Year +1 2027/28 | K3: =Head11 -> Budget Year +2 2028/29
A4: Revenue - Functional
A5: Governance and administration | C5: =SUM(C6:C8) -> 425564071.5 | D5: =SUM(D6:D8) -> 466942095.2 | E5: 516056530.9 | F5: 773511494 | G5: 780435494 | H5: 780435494 | I5: 463731201 | J5: 464894192 | K5: 493805759
A6: Executive and council | C6: =A2A!C6 -> 0 | D6: =A2A!D6 -> 0 | E6: =A2A!E6 -> 0 | F6: =A2A!F6 -> 0 | G6: =A2A!G6 -> 0 | H6: =A2A!H6 -> 0 | I6: =A2A!I6 -> 0 | J6: =A2A!J6 -> 0 | K6: =A2A!K6 -> 0
A7: Finance and administration | C7: =A2A!C9 -> 425564071.5 | D7: =A2A!D9 -> 466942095.2 | E7: =A2A!E9 -> 516056530.9 | F7: =A2A!F9 -> 773511494 | G7: =A2A!G9 -> 780435494 | H7: =A2A!H9 -> 780435494 | I7: =A2A!I9 -> 463731201 | J7: =A2A!J9 -> 464894192 | K7: =A2A!K9 -> 493805759
A8: Internal audit | C8: =A2A!C23 -> 0 | D8: =A2A!D23 -> 0 | E8: =A2A!E23 -> 0 | F8: =A2A!F23 -> 0 | G8: =A2A!G23 -> 0 | H8: =A2A!H23 -> 0 | I8: =A2A!I23 -> 0 | J8: =A2A!J23 -> 0 | K8: =A2A!K23 -> 0
A9: Community and public safety | C9: =SUM(C10:C14) -> 756932.51 | D9: =SUM(D10:D14) -> 7953946.55 | E9: 13054564.4 | F9: 856180 | G9: 18736181 | H9: 18736181 | I9: 980792 | J9: 696920 | K9: 719222
A10: Community and social services | C10: =A2A!C26 -> 70173.83 | D10: =A2A!D26 -> 7245028.64 | E10: =A2A!E26 -> 12107064.4 | F10: =A2A!F26 -> 423700 | G10: =A2A!G26 -> 18473701 | H10: =A2A!H26 -> 18473701 | I10: =A2A!I26 -> 479900 | J10: =A2A!J26 -> 179499 | K10: =A2A!K26 -> 185243
A11: Sport and recreation | C11: =A2A!C48 -> 0 | D11: =A2A!D48 -> 0 | E11: =A2A!E48 -> 0 | F11: =A2A!F48 -> 0 | G11: =A2A!G48 -> 0 | H11: =A2A!H48 -> 0 | I11: =A2A!I48 -> 0 | J11: =A2A!J48 -> 0 | K11: =A2A!K48 -> 0
A12: Public safety | C12: =A2A!C54 -> 686758.68 | D12: =A2A!D54 -> 708917.91 | E12: =A2A!E54 -> 947500 | F12: =A2A!F54 -> 432480 | G12: =A2A!G54 -> 262480 | H12: =A2A!H54 -> 262480 | I12: =A2A!I54 -> 500892 | J12: =A2A!J54 -> 517421 | K12: =A2A!K54 -> 533979
A13: Housing | C13: =A2A!C63 -> 0 | D13: =A2A!D63 -> 0 | E13: =A2A!E63 -> 0 | F13: =A2A!F63 -> 0 | G13: =A2A!G63 -> 0 | H13: =A2A!H63 -> 0 | I13: =A2A!I63 -> 0 | J13: =A2A!J63 -> 0 | K13: =A2A!K63 -> 0
A14: Health | C14: =A2A!C66 -> 0 | D14: =A2A!D66 -> 0 | E14: =A2A!E66 -> 0 | F14: =A2A!F66 -> 0 | G14: =A2A!G66 -> 0 | H14: =A2A!H66 -> 0 | I14: =A2A!I66 -> 0 | J14: =A2A!J66 -> 0 | K14: =A2A!K66 -> 0
A15: Economic and environmental services | C15: =SUM(C16:C18) -> 51540848.5 | D15: =SUM(D16:D18) -> 30922717.67 | E15: 67782993.69 | F15: 101238556 | G15: 101346256 | H15: 101346256 | I15: 80553674 | J15: 85920983 | K15: 88721646
A16: Planning and development | C16: =A2A!C75 -> 45975490.57 | D16: =A2A!D75 -> 25532008.34 | E16: =A2A!E75 -> 63258446.21 | F16: =A2A!F75 -> 91873526 | G16: =A2A!G75 -> 91981226 | H16: =A2A!H75 -> 91981226 | I16: =A2A!I75 -> 70842747 | J16: =A2A!J75 -> 75906593 | K16: =A2A!K75 -> 78386796
A17: Road transport | C17: =A2A!C86 -> 5565357.93 | D17: =A2A!D86 -> 5390709.33 | E17: =A2A!E86 -> 4524547.48 | F17: =A2A!F86 -> 9348575 | G17: =A2A!G86 -> 9348575 | H17: =A2A!H86 -> 9348575 | I17: =A2A!I86 -> 9694472 | J17: =A2A!J86 -> 10014390 | K17: =A2A!K86 -> 10334850
A18: Environmental protection | C18: =A2A!C91 -> 0 | D18: =A2A!D91 -> 0 | E18: =A2A!E91 -> 0 | F18: =A2A!F91 -> 16455 | G18: =A2A!G91 -> 16455 | H18: =A2A!H91 -> 16455 | I18: =A2A!I91 -> 16455 | J18: =A2A!J91 -> 0 | K18: =A2A!K91 -> 0
A19: Trading services | C19: =SUM(C20:C23) -> 8173562.62 | D19: =SUM(D20:D23) -> 8659360.31 | E19: 12205069.23 | F19: 10120124 | G19: 10150124 | H19: 10150124 | I19: 14900711 | J19: =SUM(J20:J23) -> 16679847 | K19: 17310490
A20: Energy sources | C20: =A2A!C99 -> 0 | D20: =A2A!D99 -> 0 | E20: =A2A!E99 -> 2676728.97 | F20: =A2A!F99 -> 0 | G20: =A2A!G99 -> 0 | H20: =A2A!H99 -> 0 | I20: =A2A!I99 -> 3729000 | J20: =A2A!J99 -> 7316000 | K20: =A2A!K99 -> 7647000
A21: Water management | C21: =A2A!C103 -> 0 | D21: =A2A!D103 -> 0 | E21: =A2A!E103 -> 0 | F21: =A2A!F103 -> 0 | G21: =A2A!G103 -> 0 | H21: =A2A!H103 -> 0 | I21: =A2A!I103 -> 0 | J21: =A2A!J103 -> 0 | K21: =A2A!K103 -> 0
A22: Waste water management | C22: =A2A!C107 -> 0 | D22: =A2A!D107 -> 0 | E22: =A2A!E107 -> 0 | F22: =A2A!F107 -> 0 | G22: =A2A!G107 -> 0 | H22: =A2A!H107 -> 0 | I22: =A2A!I107 -> 0 | J22: =A2A!J107 -> 0 | K22: =A2A!K107 -> 0
A23: Waste management | C23: =A2A!C112 -> 8173562.62 | D23: =A2A!D112 -> 8659360.31 | E23: =A2A!E112 -> 9528340.26 | F23: =A2A!F112 -> 10120124 | G23: =A2A!G112 -> 10150124 | H23: =A2A!H112 -> 10150124 | I23: =A2A!I112 -> 11171711 | J23: =A2A!J112 -> 9363847 | K23: =A2A!K112 -> 9663490
A24: Other | B24: 4 | C24: =A2A!C117 -> 0 | D24: =A2A!D117 -> 0 | E24: =A2A!E117 -> 0 | F24: =A2A!F117 -> 0 | G24: =A2A!G117 -> 0 | H24: =A2A!H117 -> 0 | I24: =A2A!I117 -> 0 | J24: =A2A!J117 -> 0 | K24: =A2A!K117 -> 0
A25: ="Total "&A4 -> Total Revenue - Functional | B25: 2 | C25: =C5+C9+C15+C19+C24 -> 486035415.1 | D25: =D5+D9+D15+D19+D24 -> 514478119.8 | E25: =E5+E9+E15+E19+E24 -> 609099158.3 | F25: 885726354 | G25: 910668055 | H25: 910668055 | I25: =I5+I9+I15+I19+I24 -> 560166378 | J25: 568191942 | K25: 600557117
A27: Expenditure - Functional
A28: Governance and administration | C28: =SUM(C29:C31) -> 262662984.6 | D28: =SUM(D29:D31) -> 255459708.8 | E28: 259426462.9 | F28: 376414812 | G28: 377232612 | H28: 377232612 | I28: 393307332 | J28: 399031324 | K28: 411704535
A29: Executive and council | C29: =A2A!C128 -> 32828999.87 | D29: =A2A!D128 -> 32584270.81 | E29: =A2A!E128 -> 33773262.23 | F29: =A2A!F128 -> 48443265 | G29: =A2A!G128 -> 51965265 | H29: =A2A!H128 -> 51965265 | I29: =A2A!I128 -> 54381482 | J29: =A2A!J128 -> 56174421 | K29: =A2A!K128 -> 57970402
A30: Finance and administration | C30: =A2A!C131 -> 220874988.7 | D30: =A2A!D131 -> 212804531.8 | E30: =A2A!E131 -> 216295488 | F30: =A2A!F131 -> 314871730 | G30: =A2A!G131 -> 313639530 | H30: =A2A!H131 -> 313639530 | I30: =A2A!I131 -> 326439875 | J30: =A2A!J131 -> 329964377 | K30: =A2A!K131 -> 340434371
A31: Internal audit | C31: =A2A!C145 -> 8958996.04 | D31: =A2A!D145 -> 10070906.12 | E31: =A2A!E145 -> 9357712.72 | F31: =A2A!F145 -> 13099817 | G31: =A2A!G145 -> 11627817 | H31: =A2A!H145 -> 11627817 | I31: =A2A!I145 -> 12485975 | J31: =A2A!J145 -> 12892526 | K31: =A2A!K145 -> 13299762
A32: Community and public safety | C32: =SUM(C33:C37) -> 23155111.4 | D32: =SUM(D33:D37) -> 20960358.04 | E32: 36904610.39 | F32: 67436993 | G32: 45661464 | H32: 45661464 | I32: 41887447 | J32: 43263635 | K32: 44642161
A33: Community and social services | C33: =A2A!C148 -> 10175774.81 | D33: =A2A!D148 -> 11274877.07 | E33: =A2A!E148 -> 26569660.52 | F33: =A2A!F148 -> 48297293 | G33: =A2A!G148 -> 26489764 | H33: =A2A!H148 -> 26489764 | I33: =A2A!I148 -> 22515814 | J33: =A2A!J148 -> 23255760 | K33: =A2A!K148 -> 23996959
A34: Sport and recreation | C34: =A2A!C170 -> 0 | D34: =A2A!D170 -> 0 | E34: =A2A!E170 -> 0 | F34: =A2A!F170 -> 0 | G34: =A2A!G170 -> 0 | H34: =A2A!H170 -> 0 | I34: =A2A!I170 -> 0 | J34: =A2A!J170 -> 0 | K34: =A2A!K170 -> 0
A35: Public safety | C35: =A2A!C176 -> 12979336.59 | D35: =A2A!D176 -> 9685480.97 | E35: =A2A!E176 -> 10334949.87 | F35: =A2A!F176 -> 19139700 | G35: =A2A!G176 -> 19171700 | H35: =A2A!H176 -> 19171700 | I35: =A2A!I176 -> 19371633 | J35: =A2A!J176 -> 20007875 | K35: =A2A!K176 -> 20645202
A36: Housing | C36: =A2A!C185 -> 0 | D36: =A2A!D185 -> 0 | E36: =A2A!E185 -> 0 | F36: =A2A!F185 -> 0 | G36: =A2A!G185 -> 0 | H36: =A2A!H185 -> 0 | I36: =A2A!I185 -> 0 | J36: =A2A!J185 -> 0 | K36: =A2A!K185 -> 0
A37: Health | C37: =A2A!C188 -> 0 | D37: =A2A!D188 -> 0 | E37: =A2A!E188 -> 0 | F37: =A2A!F188 -> 0 | G37: =A2A!G188 -> 0 | H37: =A2A!H188 -> 0 | I37: =A2A!I188 -> 0 | J37: =A2A!J188 -> 0 | K37: =A2A!K188 -> 0
A38: Economic and environmental services | C38: =SUM(C39:C41) -> 50322425.66 | D38: =SUM(D39:D41) -> 50653570.39 | E38: 55250051.17 | F38: 100056346 | G38: 109475205 | H38: 109475205 | I38: 130727941 | J38: 137437990 | K38: 130794893
A39: Planning and development | C39: =A2A!C197 -> 15478813.13 | D39: =A2A!D197 -> 11914936.96 | E39: =A2A!E197 -> 17572358.79 | F39: =A2A!F197 -> 29273003 | G39: =A2A!G197 -> 18058141 | H39: =A2A!H197 -> 18058141 | I39: =A2A!I197 -> 35905614 | J39: =A2A!J197 -> 39510844 | K39: =A2A!K197 -> 29757659
A40: Road transport | C40: =A2A!C208 -> 33433558.01 | D40: =A2A!D208 -> 37885471.31 | E40: =A2A!E208 -> 36721548.52 | F40: =A2A!F208 -> 69344271 | G40: =A2A!G208 -> 90014992 | H40: =A2A!H208 -> 90014992 | I40: =A2A!I208 -> 93444494 | J40: =A2A!J208 -> 96524672 | K40: =A2A!K208 -> 99610076
A41: Environmental protection | C41: =A2A!C213 -> 1410054.52 | D41: =A2A!D213 -> 853162.12 | E41: =A2A!E213 -> 956143.86 | F41: =A2A!F213 -> 1439072 | G41: =A2A!G213 -> 1402072 | H41: =A2A!H213 -> 1402072 | I41: =A2A!I213 -> 1377833 | J41: =A2A!J213 -> 1402474 | K41: =A2A!K213 -> 1427158
A42: Trading services | C42: =SUM(C43:C46) -> 34767925.77 | D42: =SUM(D43:D46) -> 32502992.23 | E42: 41139609.49 | F42: =SUM(F43:F46) -> 94806781 | G42: 84450589 | H42: 84450589 | I42: 69898762 | J42: 75194082 | K42: =SUM(K43:K46) -> 75821276
A43: Energy sources | C43: =A2A!C221 -> 12640736.45 | D43: =A2A!D221 -> 16201830.69 | E43: =A2A!E221 -> 17816860.3 | F43: =A2A!F221 -> 69476179 | G43: =A2A!G221 -> 56859987 | H43: =A2A!H221 -> 56859987 | I43: =A2A!I221 -> 41761669 | J43: =A2A!J221 -> 46133123 | K43: =A2A!K221 -> 45834882
A44: Water management | C44: =A2A!C225 -> 0 | D44: =A2A!D225 -> 0 | E44: =A2A!E225 -> 0 | F44: =A2A!F225 -> 0 | G44: =A2A!G225 -> 0 | H44: =A2A!H225 -> 0 | I44: =A2A!I225 -> 0 | J44: =A2A!J225 -> 0 | K44: =A2A!K225 -> 0
A45: Waste water management | C45: =A2A!C229 -> 0 | D45: =A2A!D229 -> 0 | E45: =A2A!E229 -> 0 | F45: =A2A!F229 -> 0 | G45: =A2A!G229 -> 0 | H45: =A2A!H229 -> 0 | I45: =A2A!I229 -> 0 | J45: =A2A!J229 -> 0 | K45: =A2A!K229 -> 0
A46: Waste management | C46: =A2A!C234 -> 22127189.32 | D46: =A2A!D234 -> 16301161.54 | E46: =A2A!E234 -> 23322749.19 | F46: =A2A!F234 -> 25330602 | G46: =A2A!G234 -> 27590602 | H46: =A2A!H234 -> 27590602 | I46: =A2A!I234 -> 28137093 | J46: =A2A!J234 -> 29060959 | K46: =A2A!K234 -> 29986394
A47: Other | B47: 4 | C47: =A2A!C239 -> 0 | D47: =A2A!D239 -> 0 | E47: =A2A!E239 -> 0 | F47: =A2A!F239 -> 0 | G47: =A2A!G239 -> 0 | H47: =A2A!H239 -> 0 | I47: =A2A!I239 -> 0 | J47: =A2A!J239 -> 0 | K47: =A2A!K239 -> 0
A48: ="Total "&A27 -> Total Expenditure - Functional | B48: 3 | C48: =C28+C32+C38+C42+C47 -> 370908447.4 | D48: =D28+D32+D38+D42+D47 -> 359576629.4 | E48: =E28+E32+E38+E42+E47 -> 392720734 | F48: =F28+F32+F38+F42+F47 -> 638714932 | G48: 616819870 | H48: 616819870 | I48: 635821482 | J48: 654927031 | K48: 662962865
A49: =result -> Surplus/(Deficit) for the year | C49: =C25-C48 -> 115126967.7 | D49: =D25-D48 -> 154901490.3 | E49: 216378424.3 | F49: 247011422 | G49: 293848185 | H49: 293848185 | I49: -75655104 | J49: -86735089 | K49: -62405748
A50: =head27a -> References
A51: 1. Government Finance Statistics Functions and Sub-functions are standardised to assist the compilation of national and international accounts for comparison purposes
A52: 2. Total Revenue by functional classification must reconcile to Total Operating Revenue shown in Budgeted Financial Performance (revenue and expenditure)
A53: 3. Total Expenditure by Functional Classification must reconcile to Total Operating Expenditure shown in Budgeted Financial Performance (revenue and expenditure)
A54: 4. All amounts must be classified under a functional classification . The GFS function 'Other' is only for Abbatoirs, Air Transport, Forestry, Licensing and Regulation, Markets and Tourism - and if used must be supported by footnotes. Nothing else may be placed under 'Other'. Assign associate share to relevant classification.

Sheet A2A
A1: =muni&" - "&Approve3 -> LIM355 Lepelle-Nkumpi - Table A2 Budgeted Financial Performance (revenue and expenditure by functional classification)
A2: ="Functional Classification "&desc -> Functional Classification Description | B2: =head27 -> Ref | C2: =head1b -> 2022/23 | D2: =head1A -> 2023/24 | E2: =Head1 -> 2024/25 | F2: =Head2 -> Current Year 2025/26 | I2: =Head3 -> 2026/27 Medium Term Revenue & Expenditure Framework
A3: R thousand | B3: 1 | C3: =Head5 -> Audited Outcome | D3: =Head5 -> Audited Outcome | E3: =Head5 -> Audited Outcome | F3: =Head6 -> Original Budget | G3: =Head7 -> Adjusted Budget | H3: =Head8 -> Full Year Forecast | I3: =Head9 -> Budget Year 2026/27 | J3: =Head10 -> Budget Year +1 2027/28 | K3: =Head11 -> Budget Year +2 2028/29
A4: Revenue - Functional
A5: Municipal governance and administration | C5: =C6+C9+C23 -> 425564071.5 | D5: =D6+D9+D23 -> 466942095.2 | E5: 516056530.9 | F5: 773511494 | G5: 780435494 | H5: 780435494 | I5: 463731201 | J5: 464894192 | K5: 493805759
A6: Executive and council | C6: =SUM(C7:C8) -> 0 | D6: =SUM(D7:D8) -> 0 | E6: 0 | F6: 0 | G6: 0 | H6: 0 | I6: 0 | J6: 0 | K6: 0
A7: Mayor and Council
A8: Municipal Manager, Town Secretary and Chief Executive
A9: Finance and administration | C9: =SUM(C10:C22) -> 425564071.5 | D9: =SUM(D10:D22) -> 466942095.2 | E9: 516056530.9 | F9: 773511494 | G9: 780435494 | H9: 780435494 | I9: 463731201 | J9: 464894192 | K9: 493805759
A10: Administrative and Corporate Support | C10: 93426.65 | D10: 90660.83 | E10: 109139.57 | F10: 124689 | G10: 124689 | H10: 124689 | I10: 179302 | J10: 185219 | K10: 191147
A11: Asset Management | C11: 85698.97 | D11: 19230.43 | E11: 35126.19 | F11: 340359 | G11: 340359 | H11: 340359 | I11: 352952 | J11: 364600 | K11: 376267
A12: Finance | C12: 385644771.4 | D12: 422969612.7 | E12: 468329464.6 | F12: 729045423 | G12: 733235423 | H12: 733235423 | I12: 414734727 | J12: 414280836 | K12: 441572774
A13: Fleet Management | C13: 0 | D13: 0 | E13: 0 | F13: 0 | G13: 0 | H13: 0 | I13: 0 | J13: 0 | K13: 0
A14: Human Resources | C14: 189823.96 | D14: 190652.78 | E14: 182885.54 | F14: 125160 | G14: 125160 | H14: 125160 | I14: 129791 | J14: 134074 | K14: 138364
A15: Information Technology | C15: 327097.66 | D15: 283523.82 | E15: 254931.65 | F15: 262187 | G15: 262187 | H15: 262187 | I15: 271888 | J15: 280860 | K15: 289848
A16: Legal Services | C16: 0 | D16: 0 | E16: 0 | F16: 0 | G16: 0 | H16: 0 | I16: 0 | J16: 0 | K16: 0
A17: Marketing, Customer Relations, Publicity and Media Co-ordination | C17: 0 | D17: 0 | E17: 0 | F17: 0 | G17: 0 | H17: 0 | I17: 0 | J17: 0 | K17: 0
A18: Property Services | C18: 39223252.83 | D18: 43388414.66 | E18: 47047631.89 | F18: 43613676 | G18: 46347676 | H18: 46347676 | I18: 48062541 | J18: 49648603 | K18: 51237359
A19: Risk Management
A20: Security Services | C20: 0 | D20: 0 | E20: 97351.49 | F20: 0 | G20: 0 | H20: 0 | I20: 0 | J20: 0 | K20: 0
A21: Supply Chain Management | C21: 0 | D21: 0 | E21: 0 | F21: 0 | G21: 0 | H21: 0 | I21: 0 | J21: 0 | K21: 0
A22: Valuation Service
A23: Internal audit | C23: =SUM(C24:C24) -> 0 | D23: =SUM(D24:D24) -> 0 | E23: 0 | F23: 0 | G23: 0 | H23: 0 | I23: 0 | J23: 0 | K23: 0
A24: Governance Function
A25: Community and public safety | C25: =C26+C48+C54+C63+C66 -> 756932.51 | D25: =D26+D48+D54+D63+D66 -> 7953946.55 | E25: 13054564.4 | F25: 856180 | G25: 18736181 | H25: 18736181 | I25: 980792 | J25: 696920 | K25: 719222
A26: Community and social services | C26: =SUM(C27:C47) -> 70173.83 | D26: =SUM(D27:D47) -> 7245028.64 | E26: 12107064.4 | F26: 423700 | G26: 18473701 | H26: 18473701 | I26: 479900 | J26: 179499 | K26: 185243
A27: Aged Care
A28: Agricultural
A29: Animal Care and Diseases
A30: Cemeteries, Funeral Parlours and Crematoriums
A31: Child Care Facilities
A32: Community Halls and Facilities | C32: 70173.83 | D32: 83043.42 | E32: 103999.97 | F32: 420359 | G32: 470359 | H32: 470359 | I32: 476435 | J32: 175920 | K32: 181550
A33: Consumer Protection
A34: Cultural Matters
A35: Disaster Management | C35: 0 | D35: 7161332.22 | E35: 12000000.43 | F35: 0 | G35: 18000001 | H35: 18000001 | I35: 0 | J35: 0 | K35: 0
A36: Education
A37: Indigenous and Customary Law
A38: Industrial Promotion
A39: Language Policy
A40: Libraries and Archives | C40: 0 | D40: 653 | E40: 3064 | F40: 3341 | G40: 3341 | H40: 3341 | I40: 3465 | J40: 3579 | K40: 3693
A41: Literacy Programmes
A42: Media Services
A43: Museums and Art Galleries
A44: Population Development
A45: Provincial Cultural Matters
A46: Theatres
A47: Zoo's
A48: Sport and recreation | C48: =SUM(C49:C53) -> 0 | D48: =SUM(D49:D53) -> 0 | E48: 0 | F48: 0 | G48: 0 | H48: 0 | I48: 0 | J48: 0 | K48: 0
A49: Beaches and Jetties
A50: Casinos, Racing, Gambling, Wagering
A51: Community Parks (including Nurseries)
A52: Recreational Facilities
A53: Sports Grounds and Stadiums
A54: Public safety | C54: =SUM(C55:C62) -> 686758.68 | D54: =SUM(D55:D62) -> 708917.91 | E54: 947500 | F54: 432480 | G54: 262480 | H54: 262480 | I54: 500892 | J54: 517421 | K54: 533979
A55: Civil Defence
A56: Cleansing
A57: Control of Public Nuisances
A58: Fencing and Fences
A59: Fire Fighting and Protection
A60: Licensing and Control of Animals
A61: Police Forces, Traffic and Street Parking Control | C61: 649950 | D61: 708144 | E61: 947500 | F61: 411620 | G61: 261620 | H61: 261620 | I61: 500000 | J61: 516500 | K61: 533028
A62: Pounds | C62: 36808.68 | D62: 773.91 | E62: 0 | F62: 20860 | G62: 860 | H62: 860 | I62: 892 | J62: 921 | K62: 951
A63: Housing | C63: =SUM(C64:C65) -> 0 | D63: =SUM(D64:D65) -> 0 | E63: 0 | F63: 0 | G63: 0 | H63: 0 | I63: 0 | J63: 0 | K63: 0
A64: Housing
A65: Informal Settlements
A66: Health | C66: =SUM(C67:C73) -> 0 | D66: =SUM(D67:D73) -> 0 | E66: 0 | F66: 0 | G66: 0 | H66: 0 | I66: 0 | J66: 0 | K66: 0
A67: Ambulance
A68: Health Services
A69: Laboratory Services
A70: Food Control
A71: Health Surveillance and Prevention of Communicable Diseases including immunizations
A72: Vector Control
A73: Chemical Safety
A74: Economic and environmental services | C74: =C75+C86+C91 -> 51540848.5 | D74: =D75+D86+D91 -> 30922717.67 | E74: 67782993.69 | F74: 101238556 | G74: 101346256 | H74: 101346256 | I74: 80553674 | J74: 85920983 | K74: 88721646
A75: Planning and development | C75: =SUM(C76:C85) -> 45975490.57 | D75: =SUM(D76:D85) -> 25532008.34 | E75: 63258446.21 | F75: 91873526 | G75: 91981226 | H75: 91981226 | I75: 70842747 | J75: 75906593 | K75: 78386796
A76: Billboards
A77: Corporate Wide Strategic Planning (IDPs, LEDs) | C77: 0 | D77: 0 | E77: 0 | F77: 377308 | G77: 377308 | H77: 377308 | I77: 377308 | J77: 0 | K77: 0
A78: Central City Improvement District
A79: Development Facilitation
A80: Economic Development/Planning | C80: 919900.1 | D80: 13549.78 | E80: 201133.7 | F80: 164318 | G80: 109318 | H80: 109318 | I80: 113362 | J80: 117104 | K80: 120851
A81: Regional Planning and Development
A82: Town Planning, Building Regulations and Enforcement, and City Engineer | C82: 1462520.91 | D82: 895835.83 | E82: 1282301.74 | F82: 24579900 | G82: 24742600 | H82: 24742600 | I82: 2770077 | J82: 795489 | K82: 820945
A83: Project Management Unit | C83: 43593069.56 | D83: 24622622.73 | E83: 61775010.77 | F83: 66752000 | G83: 66752000 | H83: 66752000 | I83: 67582000 | J83: 74994000 | K83: 77445000
A84: Provincial Planning
A85: Support to Local Municipalities
A86: Road transport | C86: =SUM(C87:C90) -> 5565357.93 | D86: =SUM(D87:D90) -> 5390709.33 | E86: 4524547.48 | F86: 9348575 | G86: 9348575 | H86: 9348575 | I86: 9694472 | J86: 10014390 | K86: 10334850
A87: Public Transport
A88: Road and Traffic Regulation | C88: 5565014.36 | D88: 5390709.33 | E88: 4524547.48 | F88: 9348575 | G88: 9348575 | H88: 9348575 | I88: 9694472 | J88: 10014390 | K88: 10334850
A89: Roads | C89: 343.57 | D89: 0 | E89: 0 | F89: 0 | G89: 0 | H89: 0 | I89: 0 | J89: 0 | K89: 0
A90: Taxi Ranks
A91: Environmental protection | C91: =SUM(C92:C97) -> 0 | D91: =SUM(D92:D97) -> 0 | E91: 0 | F91: 16455 | G91: 16455 | H91: 16455 | I91: 16455 | J91: 0 | K91: 0
A92: Biodiversity and Landscape
A93: Coastal Protection
A94: Indigenous Forests
A95: Nature Conservation
A96: Pollution Control | C96: 0 | D96: 0 | E96: 0 | F96: 16455 | G96: 16455 | H96: 16455 | I96: 16455 | J96: 0 | K96: 0
A97: Soil Conservation
A98: Trading services | C98: =C99+C103+C107+C112 -> 8173562.62 | D98: =D99+D103+D107+D112 -> 8659360.31 | E98: 12205069.23 | F98: 10120124 | G98: 10150124 | H98: 10150124 | I98: 14900711 | J98: 16679847 | K98: =K99+K103+K107+K112 -> 17310490
A99: Energy sources | C99: =SUM(C100:C102) -> 0 | D99: =SUM(D100:D102) -> 0 | E99: 2676728.97 | F99: 0 | G99: 0 | H99: 0 | I99: 3729000 | J99: 7316000 | K99: 7647000
A100: Electricity | C100: 0 | D100: 0 | E100: 2676728.97 | F100: 0 | G100: 0 | H100: 0 | I100: 3729000 | J100: 7316000 | K100: 7647000
A101: Street Lighting and Signal Systems
A102: Nonelectric Energy
A103: Water management | C103: =SUM(C104:C106) -> 0 | D103: =SUM(D104:D106) -> 0 | E103: 0 | F103: 0 | G103: 0 | H103: 0 | I103: 0 | J103: 0 | K103: 0
A104: Water Treatment
A105: Water Distribution
A106: Water Storage
A107: Waste water management | C107: =SUM(C108:C111) -> 0 | D107: =SUM(D108:D111) -> 0 | E107: 0 | F107: 0 | G107: 0 | H107: 0 | I107: 0 | J107: 0 | K107: 0
A108: Public Toilets
A109: Sewerage
A110: Storm Water Management
A111: Waste Water Treatment
A112: Waste management | C112: =SUM(C113:C116) -> 8173562.62 | D112: =SUM(D113:D116) -> 8659360.31 | E112: 9528340.26 | F112: 10120124 | G112: 10150124 | H112: 10150124 | I112: 11171711 | J112: 9363847 | K112: 9663490
A113: Recycling
A114: Solid Waste Disposal (Landfill Sites)
A115: Solid Waste Removal | C115: 8173562.62 | D115: 8659360.31 | E115: 9528340.26 | F115: 10120124 | G115: 10150124 | H115: 10150124 | I115: 11171711 | J115: 9363847 | K115: 9663490
A116: Street Cleaning
A117: Other | C117: =SUM(C118:C123) -> 0 | D117: =SUM(D118:D123) -> 0 | E117: 0 | F117: 0 | G117: 0 | H117: 0 | I117: 0 | J117: 0 | K117: 0
A118: Abattoirs
A119: Air Transport
A120: Forestry
A121: Licensing and Regulation
A122: Markets
A123: Tourism
A124: ="Total "&A4 -> Total Revenue - Functional | B124: 2 | C124: =C5+C25+C74+C98+C117 -> 486035415.1 | D124: =D5+D25+D74+D98+D117 -> 514478119.8 | E124: 609099158.3 | F124: 885726354 | G124: 910668055 | H124: 910668055 | I124: 560166378 | J124: 568191942 | K124: 600557117
A126: Expenditure - Functional
A127: =A5 -> Municipal governance and administration | C127: =C128+C131+C145 -> 262662984.6 | D127: =D128+D131+D145 -> 255459708.8 | E127: 259426462.9 | F127: 376414812 | G127: 377232612 | H127: 377232612 | I127: 393307332 | J127: 399031324 | K127: 411704535
A128: Executive and council | C128: =SUM(C129:C130) -> 32828999.87 | D128: =SUM(D129:D130) -> 32584270.81 | E128: 33773262.23 | F128: 48443265 | G128: 51965265 | H128: 51965265 | I128: 54381482 | J128: 56174421 | K128: 57970402
A129: Mayor and Council | C129: 31805293.25 | D129: 31060367.25 | E129: 32982078.26 | F129: 47001604 | G129: 51001604 | H129: 51001604 | I129: 52888662 | J129: 54633988 | K129: 56382275
A130: Municipal Manager, Town Secretary and Chief Executive | C130: 1023706.62 | D130: 1523903.56 | E130: 791183.97 | F130: 1441661 | G130: 963661 | H130: 963661 | I130: 1492820 | J130: 1540433 | K130: 1588127
A131: Finance and administration | C131: =SUM(C132:C144) -> 220874988.7 | D131: =SUM(D132:D144) -> 212804531.8 | E131: 216295488 | F131: 314871730 | G131: 313639530 | H131: 313639530 | I131: 326439875 | J131: 329964377 | K131: 340434371
A132: Administrative and Corporate Support | C132: 29894647.42 | D132: 28557437.82 | E132: 52340735.06 | F132: 49526371 | G132: 48290371 | H132: 48290371 | I132: 48594528 | J132: 50140088 | K132: 51721317
A133: Asset Management | C133: 6724052.86 | D133: 6838719.65 | E133: 7129919.57 | F133: 12529707 | G133: 12575707 | H133: 12575707 | I133: 12947473 | J133: 13367820 | K133: 13793730
A134: Finance | C134: 114023099.3 | D134: 115477268.9 | E134: 90506222.94 | F134: 126472728 | G134: 122609728 | H134: 122609728 | I134: 125196082 | J134: 129305701 | K134: 133422293
A135: Fleet Management | C135: 17281513.68 | D135: 16036968.35 | E135: 21668513.02 | F135: 27983238 | G135: 27988238 | H135: 27988238 | I135: 27312929 | J135: 26354857 | K135: 27198211
A136: Human Resources | C136: 7744545.53 | D136: 6649309.49 | E136: 9233079.67 | F136: 19043019 | G136: 18507019 | H136: 18507019 | I136: 19836080 | J136: 20480720 | K136: 21126449
A137: Information Technology | C137: 6742658.59 | D137: 6989178.85 | E137: 6926563.83 | F137: 11025706 | G137: 10254706 | H137: 10254706 | I137: 11765077 | J137: 12151137 | K137: 12537848
A138: Legal Services | C138: 10545305.64 | D138: 7526853.24 | E138: 13950286.19 | F138: 11484715 | G138: 22450715 | H138: 22450715 | I138: 20946233 | J138: 21636661 | K138: 22328261
A139: Marketing, Customer Relations, Publicity and Media Co-ordination | C139: 2132270.67 | D139: 1736542.51 | E139: 2337369.73 | F139: 3580854 | G139: 3615854 | H139: 3615854 | I139: 3788516 | J139: 3848094 | K139: 3969877
A140: Property Services | C140: 6840856.49 | D140: 4433412.2 | E140: 7588443.26 | F140: 15125744 | G140: 9920744 | H140: 9920744 | I140: 16180622 | J140: 12543173 | K140: 12938333
A141: Risk Management | C141: 1200099.62 | D141: 1301677.46 | E141: 2068912.92 | F141: 7133190 | G141: 6334190 | H141: 6334190 | I141: 7318500 | J141: 6509896 | K141: 6701616
A142: Security Services | C142: 16366810.43 | D142: 16154583.39 | E142: 43941.44 | F142: 26093350 | G142: 25754150 | H142: 25754150 | I142: 27078510 | J142: 27972099 | K142: 28867207
A143: Supply Chain Management | C143: 1379128.48 | D143: 1102580 | E143: 2501500.37 | F143: 4873108 | G143: 5338108 | H143: 5338108 | I143: 5475325 | J143: 5654131 | K143: 5829229
A144: Valuation Service
A145: Internal audit | C145: =SUM(C146:C146) -> 8958996.04 | D145: =SUM(D146:D146) -> 10070906.12 | E145: 9357712.72 | F145: 13099817 | G145: 11627817 | H145: 11627817 | I145: 12485975 | J145: 12892526 | K145: 13299762
A146: Governance Function | C146: 8958996.04 | D146: 10070906.12 | E146: 9357712.72 | F146: 13099817 | G146: 11627817 | H146: 11627817 | I146: 12485975 | J146: 12892526 | K146: 13299762
A147: Community and public safety | C147: =C148+C170+C176+C185+C188 -> 23155111.4 | D147: =D148+D170+D176+D185+D188 -> 20960358.04 | E147: 36904610.39 | F147: 67436993 | G147: 45661464 | H147: 45661464 | I147: 41887447 | J147: 43263635 | K147: 44642161
A148: Community and social services | C148: =SUM(C149:C169) -> 10175774.81 | D148: =SUM(D149:D169) -> 11274877.07 | E148: 26569660.52 | F148: 48297293 | G148: 26489764 | H148: 26489764 | I148: 22515814 | J148: 23255760 | K148: 23996959
A149: Aged Care
A150: Agricultural
A151: Animal Care and Diseases
A152: Cemeteries, Funeral Parlours and Crematoriums
A153: Child Care Facilities
A154: Community Halls and Facilities | C154: 8512187.53 | D154: 9348870.87 | E154: 24822500.1 | F154: 44783290 | G154: 22975761 | H154: 22975761 | I154: 20528637 | J154: 21203007 | K154: 21878519
A155: Consumer Protection
A156: Cultural Matters
A157: Disaster Management | C157: 833352.85 | D157: 1095771.77 | E157: 916925.99 | F157: 2057384 | G157: 2057384 | H157: 2057384 | I157: 474415 | J157: 490069 | K157: 505750
A158: Education
A159: =A37 -> Indigenous and Customary Law
A160: Industrial Promotion
A161: Language Policy
A162: Libraries and Archives | C162: 830234.43 | D162: 830234.43 | E162: 830234.43 | F162: 1456619 | G162: 1456619 | H162: 1456619 | I162: 1512762 | J162: 1562684 | K162: 1612690
A163: Literacy Programmes
A164: Media Services
A165: Museums and Art Galleries
A166: Population Development
A167: Provincial Cultural Matters
A168: Theatres
A169: Zoo's
A170: Sport and recreation | C170: =SUM(C171:C175) -> 0 | D170: =SUM(D171:D175) -> 0 | E170: 0 | F170: 0 | G170: 0 | H170: 0 | I170: 0 | J170: 0 | K170: 0
A171: Beaches and Jetties
A172: Casinos, Racing, Gambling, Wagering
A173: Community Parks (including Nurseries)
A174: Recreational Facilities
A175: Sports Grounds and Stadiums
A176: Public safety | C176: =SUM(C177:C184) -> 12979336.59 | D176: =SUM(D177:D184) -> 9685480.97 | E176: 10334949.87 | F176: 19139700 | G176: 19171700 | H176: 19171700 | I176: 19371633 | J176: 20007875 | K176: 20645202
A177: Civil Defence
A178: Cleansing
A179: =A57 -> Control of Public Nuisances
A180: Fencing and Fences
A181: Fire Fighting and Protection
A182: Licensing and Control of Animals
A183: Police Forces, Traffic and Street Parking Control | C183: 12388136.84 | D183: 9266893.61 | E183: 9930493.21 | F183: 17913953 | G183: 17890953 | H183: 17890953 | I183: 18173790 | J183: 18771202 | K183: 19369633
A184: Pounds | C184: 591199.75 | D184: 418587.36 | E184: 404456.66 | F184: 1225747 | G184: 1280747 | H184: 1280747 | I184: 1197843 | J184: 1236673 | K184: 1275569
A185: =A63 -> Housing | C185: =SUM(C186:C187) -> 0 | D185: =SUM(D186:D187) -> 0 | E185: 0 | F185: 0 | G185: 0 | H185: 0 | I185: 0 | J185: 0 | K185: 0
A186: Housing
A187: Informal Settlements
A188: Health | C188: =SUM(C189:C195) -> 0 | D188: =SUM(D189:D195) -> 0 | E188: 0 | F188: 0 | G188: 0 | H188: 0 | I188: 0 | J188: 0 | K188: 0
A189: Ambulance
A190: Health Services
A191: Laboratory Services
A192: Food Control
A193: Health Surveillance and Prevention of Communicable Diseases including immunizations
A194: Vector Control
A195: Chemical Safety
A196: Economic and environmental services | C196: =C197+C208+C213 -> 50322425.66 | D196: =D197+D208+D213 -> 50653570.39 | E196: 55250051.17 | F196: 100056346 | G196: 109475205 | H196: 109475205 | I196: 130727941 | J196: 137437990 | K196: 130794893
A197: Planning and development | C197: =SUM(C198:C207) -> 15478813.13 | D197: =SUM(D198:D207) -> 11914936.96 | E197: 17572358.79 | F197: 29273003 | G197: 18058141 | H197: 18058141 | I197: 35905614 | J197: 39510844 | K197: 29757659
A198: Billboards
A199: Corporate Wide Strategic Planning (IDPs, LEDs) | C199: 4042362.91 | D199: 3341222.71 | E199: 2956816.94 | F199: 5679665 | G199: 3669074 | H199: 3669074 | I199: 5456876 | J199: 5634670 | K199: 5812765
A200: Central City Improvement District
A201: Development Facilitation
... 51 more rows

Sheet A3-FinPerf V
A1: =muni&" - "&Approve2 -> LIM355 Lepelle-Nkumpi - Table A3 Budgeted Financial Performance (revenue and expenditure by municipal vote)
A2: =Vdesc -> Vote Description | B2: =head27 -> Ref | C2: =head1b -> 2022/23 | D2: =head1A -> 2023/24 | E2: =Head1 -> 2024/25 | F2: =Head2 -> Current Year 2025/26 | I2: =Head3 -> 2026/27 Medium Term Revenue & Expenditure Framework | L2: =Head4 -> LTFS
A3: R thousand | C3: =Head5 -> Audited Outcome | D3: =Head5 -> Audited Outcome | E3: =Head5 -> Audited Outcome | F3: =Head6 -> Original Budget | G3: =Head7 -> Adjusted Budget | H3: =Head8 -> Full Year Forecast | I3: =Head9 -> Budget Year 2026/27 | J3: =Head10 -> Budget Year +1 2027/28 | K3: =Head11 -> Budget Year +2 2028/29 | L3: =Head12 -> Forecast 2029/30 | M3: =Head13 -> Forecast 2030/31 | N3: =Head14 -> Forecast 2031/32 | O3: =Head15 -> Forecast 2032/33 | P3: =Head16 -> Forecast 2033/34 | Q3: =Head17 -> Forecast 2034/35 | R3: =Head18 -> Forecast 2035/36 | S3: =Head19 -> Forecast 2036/37 | T3: =Head20 -> Forecast 2037/38 | U3: =Head21 -> Forecast 2038/39 | V3: =Head22 -> Forecast 2039/40 | W3: =Head23 -> Forecast 2040/41
A4: Revenue by Vote | B4: 1
A5: =A3A!A5 -> Vote 01 - Executive And Council | C5: =A3A!C5 -> 0 | D5: =A3A!D5 -> 0 | E5: =A3A!E5 -> 0 | F5: =A3A!F5 -> 0 | G5: =A3A!G5 -> 0 | H5: =A3A!H5 -> 0 | I5: =A3A!I5 -> 0 | J5: =A3A!J5 -> 0 | K5: =A3A!K5 -> 0
A6: =A3A!A16 -> Vote 02 - Municipal Manager | C6: =A3A!C16 -> 0 | D6: =A3A!D16 -> 0 | E6: =A3A!E16 -> 0 | F6: =A3A!F16 -> 0 | G6: =A3A!G16 -> 0 | H6: =A3A!H16 -> 0 | I6: =A3A!I16 -> 0 | J6: =A3A!J16 -> 0 | K6: =A3A!K16 -> 0
A7: =A3A!A27 -> Vote 03 - Corporate Services | C7: =A3A!C27 -> 519808.85 | D7: =A3A!D27 -> 474176.6 | E7: =A3A!E27 -> 535168.68 | F7: =A3A!F27 -> 387347 | G7: =A3A!G27 -> 387347 | H7: =A3A!H27 -> 387347 | I7: =A3A!I27 -> 401679 | J7: =A3A!J27 -> 414934 | K7: =A3A!K27 -> 428212
A8: =A3A!A38 -> Vote 04 - Budget And Treasury | C8: =A3A!C38 -> 385730470.4 | D8: =A3A!D38 -> 422988843.1 | E8: =A3A!E38 -> 468364590.8 | F8: =A3A!F38 -> 729385782 | G8: =A3A!G38 -> 733575782 | H8: =A3A!H38 -> 733575782 | I8: =A3A!I38 -> 415087679 | J8: =A3A!J38 -> 414645436 | K8: =A3A!K38 -> 441949041
A9: =A3A!A49 -> Vote 05 - Community Services | C9: =A3A!C49 -> 14586048.91 | D9: =A3A!D49 -> 22094677.02 | E9: =A3A!E49 -> 27216591.71 | F9: =A3A!F49 -> 20466023 | G9: =A3A!G49 -> 38376024 | H9: =A3A!H49 -> 38376024 | I9: =A3A!I49 -> 22042732 | J9: =A3A!J49 -> 20260376 | K9: =A3A!K49 -> 20908709
A10: =A3A!A61 -> Vote 06 - Planning And Development | C10: =A3A!C61 -> 41605673.84 | D10: =A3A!D61 -> 44297800.27 | E10: =A3A!E61 -> 48531067.33 | F10: =A3A!F61 -> 68735202 | G10: =A3A!G61 -> 71576902 | H10: =A3A!H61 -> 71576902 | I10: =A3A!I61 -> 51323288 | J10: =A3A!J61 -> 50561196 | K10: =A3A!K61 -> 52179155
A11: =A3A!A72 -> Vote 07 - Infrastructure Development | C11: =A3A!C72 -> 43593413.13 | D11: =A3A!D72 -> 24622622.73 | E11: =A3A!E72 -> 64451739.74 | F11: =A3A!F72 -> 66752000 | G11: =A3A!G72 -> 66752000 | H11: =A3A!H72 -> 66752000 | I11: =A3A!I72 -> 71311000 | J11: =A3A!J72 -> 82310000 | K11: =A3A!K72 -> 85092000
A12: ='Org structure'!A9 -> Vote 08 - | C12: =A3A!C83 -> 0 | D12: =A3A!D83 -> 0 | E12: =A3A!E83 -> 0 | F12: =A3A!F83 -> 0 | G12: =A3A!G83 -> 0 | H12: =A3A!H83 -> 0 | I12: =A3A!I83 -> 0 | J12: =A3A!J83 -> 0 | K12: =A3A!K83 -> 0
A13: ='Org structure'!A10 -> Vote 09 - | C13: =A3A!C94 -> 0 | D13: =A3A!D94 -> 0 | E13: =A3A!E94 -> 0 | F13: =A3A!F94 -> 0 | G13: =A3A!G94 -> 0 | H13: =A3A!H94 -> 0 | I13: =A3A!I94 -> 0 | J13: =A3A!J94 -> 0 | K13: =A3A!K94 -> 0
A14: ='Org structure'!A11 -> Vote 10 - | C14: =A3A!C105 -> 0 | D14: =A3A!D105 -> 0 | E14: =A3A!E105 -> 0 | F14: =A3A!F105 -> 0 | G14: =A3A!G105 -> 0 | H14: =A3A!H105 -> 0 | I14: =A3A!I105 -> 0 | J14: =A3A!J105 -> 0 | K14: =A3A!K105 -> 0
A15: ='Org structure'!A12 -> Vote 11 - | C15: =A3A!C116 -> 0 | D15: =A3A!D116 -> 0 | E15: =A3A!E116 -> 0 | F15: =A3A!F116 -> 0 | G15: =A3A!G116 -> 0 | H15: =A3A!H116 -> 0 | I15: =A3A!I116 -> 0 | J15: =A3A!J116 -> 0 | K15: =A3A!K116 -> 0 | L15: =A5A!#REF! -> 
A16: ='Org structure'!A13 -> Vote 12 - | C16: =A3A!C127 -> 0 | D16: =A3A!D127 -> 0 | E16: =A3A!E127 -> 0 | F16: =A3A!F127 -> 0 | G16: =A3A!G127 -> 0 | H16: =A3A!H127 -> 0 | I16: =A3A!I127 -> 0 | J16: =A3A!J127 -> 0 | K16: =A3A!K127 -> 0 | L16: =A5A!#REF! -> 
A17: ='Org structure'!A14 -> Vote 13 - | C17: =A3A!C138 -> 0 | D17: =A3A!D138 -> 0 | E17: =A3A!E138 -> 0 | F17: =A3A!F138 -> 0 | G17: =A3A!G138 -> 0 | H17: =A3A!H138 -> 0 | I17: =A3A!I138 -> 0 | J17: =A3A!J138 -> 0 | K17: =A3A!K138 -> 0 | L17: =A5A!#REF! -> 
A18: ='Org structure'!A15 -> Vote 14 - | C18: =A3A!C149 -> 0 | D18: =A3A!D149 -> 0 | E18: =A3A!E149 -> 0 | F18: =A3A!F149 -> 0 | G18: =A3A!G149 -> 0 | H18: =A3A!H149 -> 0 | I18: =A3A!I149 -> 0 | J18: =A3A!J149 -> 0 | K18: =A3A!K149 -> 0 | L18: =A5A!#REF! -> 
A19: ='Org structure'!A16 -> Vote 15 - Other | C19: =A3A!C160 -> 0 | D19: =A3A!D160 -> 0 | E19: =A3A!E160 -> 0 | F19: =A3A!F160 -> 0 | G19: =A3A!G160 -> 0 | H19: =A3A!H160 -> 0 | I19: =A3A!I160 -> 0 | J19: =A3A!J160 -> 0 | K19: =A3A!K160 -> 0 | L19: =A5A!#REF! -> 
A20: Total Revenue by Vote | B20: 2 | C20: =SUM(C5:C19) -> 486035415.1 | D20: =SUM(D5:D19) -> 514478119.8 | E20: 609099158.3 | F20: 885726354 | G20: 910668055 | H20: 910668055 | I20: 560166378 | J20: 568191942 | K20: 600557117
A22: Expenditure by Vote to be appropriated | B22: 1
A23: =A3A!A174 -> Vote 01 - Executive And Council | C23: =A3A!C174 -> 39705424.97 | D23: =A3A!D174 -> 41938924.78 | E23: =A3A!E174 -> 43048509.76 | F23: =A3A!F174 -> 63163884 | G23: =A3A!G174 -> 67403884 | H23: =A3A!H174 -> 67403884 | I23: =A3A!I174 -> 69820505 | J23: =A3A!J174 -> 72124585 | K23: =A3A!K174 -> 74432571
A24: =A3A!A185 -> Vote 02 - Municipal Manager | C24: =A3A!C185 -> 13718420.19 | D24: =A3A!D185 -> 15071745.73 | E24: =A3A!E185 -> 14997674.72 | F24: =A3A!F185 -> 27105146 | G24: =A3A!G185 -> 23545146 | H24: =A3A!H185 -> 23545146 | I24: =A3A!I185 -> 26966989 | J24: =A3A!J185 -> 26698627 | K24: =A3A!K185 -> 27526660
A25: =A3A!A196 -> Vote 03 - Corporate Services | C25: =A3A!C196 -> 75136198.54 | D25: =A3A!D196 -> 64940509.53 | E25: =A3A!E196 -> 86558955.78 | F25: =A3A!F196 -> 116138855 | G25: =A3A!G196 -> 125378655 | H25: =A3A!H196 -> 125378655 | I25: =A3A!I196 -> 125602265 | J25: =A3A!J196 -> 127867481 | K25: =A3A!K196 -> 131939581
A26: =A3A!A207 -> Vote 04 - Budget And Treasury | C26: =A3A!C207 -> 122126280.6 | D26: =A3A!D207 -> 123418568.5 | E26: =A3A!E207 -> 100137642.9 | F26: =A3A!F207 -> 143875543 | G26: =A3A!G207 -> 140523543 | H26: =A3A!H207 -> 140523543 | I26: =A3A!I207 -> 143618880 | J26: =A3A!J207 -> 148327652 | K26: =A3A!K207 -> 153045252
A27: =A3A!A218 -> Vote 05 - Community Services | C27: =A3A!C218 -> 58106662.64 | D27: =A3A!D218 -> 49621597.13 | E27: =A3A!E218 -> 73436155.44 | F27: =A3A!F218 -> 111309590 | G27: =A3A!G218 -> 91946061 | H27: =A3A!H218 -> 91946061 | I27: =A3A!I218 -> 87945090 | J27: =A3A!J218 -> 90803417 | K27: =A3A!K218 -> 93666597
A28: =A3A!A230 -> Vote 06 - Planning And Development | C28: =A3A!C230 -> 18068031.44 | D28: =A3A!D230 -> 17378187.51 | E28: =A3A!E230 -> 22331613.86 | F28: =A3A!F230 -> 37922227 | G28: =A3A!G230 -> 27307695 | H28: =A3A!H230 -> 27307695 | I28: =A3A!I230 -> 36526031 | J28: =A3A!J230 -> 33509618 | K28: =A3A!K230 -> 34559926
A29: =A3A!A241 -> Vote 07 - Infrastructure Development | C29: =A3A!C241 -> 44047429.03 | D29: =A3A!D241 -> 47207096.22 | E29: =A3A!E241 -> 52210181.56 | F29: =A3A!F241 -> 139199687 | G29: =A3A!G241 -> 140714886 | H29: =A3A!H241 -> 140714886 | I29: =A3A!I241 -> 145341722 | J29: =A3A!J241 -> 155595651 | K29: =A3A!K241 -> 147792278
A30: ='Org structure'!A9 -> Vote 08 - | C30: =A3A!C252 -> 0 | D30: =A3A!D252 -> 0 | E30: =A3A!E252 -> 0 | F30: =A3A!F252 -> 0 | G30: =A3A!G252 -> 0 | H30: =A3A!H252 -> 0 | I30: =A3A!I252 -> 0 | J30: =A3A!J252 -> 0 | K30: =A3A!K252 -> 0
A31: ='Org structure'!A10 -> Vote 09 - | C31: =A3A!C263 -> 0 | D31: =A3A!D263 -> 0 | E31: =A3A!E263 -> 0 | F31: =A3A!F263 -> 0 | G31: =A3A!G263 -> 0 | H31: =A3A!H263 -> 0 | I31: =A3A!I263 -> 0 | J31: =A3A!J263 -> 0 | K31: =A3A!K263 -> 0
A32: ='Org structure'!A11 -> Vote 10 - | C32: =A3A!C274 -> 0 | D32: =A3A!D274 -> 0 | E32: =A3A!E274 -> 0 | F32: =A3A!F274 -> 0 | G32: =A3A!G274 -> 0 | H32: =A3A!H274 -> 0 | I32: =A3A!I274 -> 0 | J32: =A3A!J274 -> 0 | K32: =A3A!K274 -> 0
A33: ='Org structure'!A12 -> Vote 11 - | C33: =A3A!C285 -> 0 | D33: =A3A!D285 -> 0 | E33: =A3A!E285 -> 0 | F33: =A3A!F285 -> 0 | G33: =A3A!G285 -> 0 | H33: =A3A!H285 -> 0 | I33: =A3A!I285 -> 0 | J33: =A3A!J285 -> 0 | K33: =A3A!K285 -> 0 | L33: =A3A!L286 -> 0
A34: ='Org structure'!A13 -> Vote 12 - | C34: =A3A!C296 -> 0 | D34: =A3A!D296 -> 0 | E34: =A3A!E296 -> 0 | F34: =A3A!F296 -> 0 | G34: =A3A!G296 -> 0 | H34: =A3A!H296 -> 0 | I34: =A3A!I296 -> 0 | J34: =A3A!J296 -> 0 | K34: =A3A!K296 -> 0 | L34: =A3A!L297 -> 0
A35: ='Org structure'!A14 -> Vote 13 - | C35: =A3A!C307 -> 0 | D35: =A3A!D307 -> 0 | E35: =A3A!E307 -> 0 | F35: =A3A!F307 -> 0 | G35: =A3A!G307 -> 0 | H35: =A3A!H307 -> 0 | I35: =A3A!I307 -> 0 | J35: =A3A!J307 -> 0 | K35: =A3A!K307 -> 0 | L35: =A3A!L308 -> 0
A36: ='Org structure'!A15 -> Vote 14 - | C36: =A3A!C318 -> 0 | D36: =A3A!D318 -> 0 | E36: =A3A!E318 -> 0 | F36: =A3A!F318 -> 0 | G36: =A3A!G318 -> 0 | H36: =A3A!H318 -> 0 | I36: =A3A!I318 -> 0 | J36: =A3A!J318 -> 0 | K36: =A3A!K318 -> 0 | L36: =A3A!L319 -> 0
A37: ='Org structure'!A16 -> Vote 15 - Other | C37: =A3A!C329 -> 0 | D37: =A3A!D329 -> 0 | E37: =A3A!E329 -> 0 | F37: =A3A!F329 -> 0 | G37: =A3A!G329 -> 0 | H37: =A3A!H329 -> 0 | I37: =A3A!I329 -> 0 | J37: =A3A!J329 -> 0 | K37: =A3A!K329 -> 0 | L37: =A3A!L330 -> 0
A38: Total Expenditure by Vote | B38: 2 | C38: =SUM(C23:C37) -> 370908447.4 | D38: =SUM(D23:D37) -> 359576629.4 | E38: =SUM(E23:E37) -> 392720734 | F38: 638714932 | G38: 616819870 | H38: 616819870 | I38: 635821482 | J38: 654927031 | K38: 662962865 | L38: =SUM(L23:L29) -> 0 | M38: 0 | N38: 0 | O38: 0 | P38: 0 | Q38: 0 | R38: 0 | S38: 0 | T38: 0 | U38: 0 | V38: 0 | W38: 0
A39: =result -> Surplus/(Deficit) for the year | B39: 2 | C39: =C20-C38 -> 115126967.7 | D39: =D20-D38 -> 154901490.3 | E39: 216378424.3 | F39: 247011422 | G39: 293848185 | H39: 293848185 | I39: -75655104 | J39: -86735089 | K39: -62405748 | L39: 0 | M39: 0 | N39: 0 | O39: 0 | P39: 0 | Q39: 0 | R39: 0 | S39: 0 | T39: 0 | U39: 0 | V39: 0 | W39: 0
A40: =head27a -> References
A41: 1. Insert 'Vote'; e.g. department, if different to functional classification structure
A42: 2. Must reconcile to Budgeted Financial Performance (revenue and expenditure)
A43: 3. Assign share in 'associate' to relevant Vote

Sheet A3A
A1: =muni&" - "&Approve2&"A" -> LIM355 Lepelle-Nkumpi - Table A3 Budgeted Financial Performance (revenue and expenditure by municipal vote)A
A2: =Vdesc -> Vote Description | B2: =head27 -> Ref | C2: =head1b -> 2022/23 | D2: =head1A -> 2023/24 | E2: =Head1 -> 2024/25 | F2: =Head2 -> Current Year 2025/26 | I2: =Head3 -> 2026/27 Medium Term Revenue & Expenditure Framework | L2: =Head4 -> LTFS
A3: R thousand | C3: =Head5 -> Audited Outcome | D3: =Head5 -> Audited Outcome | E3: =Head5 -> Audited Outcome | F3: =Head6 -> Original Budget | G3: =Head7 -> Adjusted Budget | H3: =Head8 -> Full Year Forecast | I3: =Head9 -> Budget Year 2026/27 | J3: =Head10 -> Budget Year +1 2027/28 | K3: =Head11 -> Budget Year +2 2028/29 | L3: =Head12 -> Forecast 2029/30 | M3: =Head13 -> Forecast 2030/31 | N3: =Head14 -> Forecast 2031/32 | O3: =Head15 -> Forecast 2032/33 | P3: =Head16 -> Forecast 2033/34 | Q3: =Head17 -> Forecast 2034/35 | R3: =Head18 -> Forecast 2035/36 | S3: =Head19 -> Forecast 2036/37 | T3: =Head20 -> Forecast 2037/38 | U3: =Head21 -> Forecast 2038/39 | V3: =Head22 -> Forecast 2039/40 | W3: =Head23 -> Forecast 2040/41
A4: Revenue by Vote | B4: 1
A5: ='Org structure'!A2 -> Vote 01 - Executive And Council | C5: =SUM(C6:C15) -> 0 | D5: =SUM(D6:D15) -> 0 | E5: 0 | F5: 0 | G5: 0 | H5: 0 | I5: 0 | J5: 0 | K5: 0
A6: ='Org structure'!E3 -> 01.1 - Mayor & Councillors | C6: 0 | D6: 0 | E6: 0 | F6: 0 | G6: 0 | H6: 0 | I6: 0 | J6: 0 | K6: 0
A7: ='Org structure'!E4 -> 01.2 - Mayor & Council Support | C7: 0 | D7: 0 | E7: 0 | F7: 0 | G7: 0 | H7: 0 | I7: 0 | J7: 0 | K7: 0
A8: ='Org structure'!E5 -> 01.3 - Mayor & Councillors | C8: 0 | D8: 0 | E8: 0 | F8: 0 | G8: 0 | H8: 0 | I8: 0 | J8: 0 | K8: 0
A9: ='Org structure'!E6 -> 01.4 - Mayor & Council Support | C9: 0 | D9: 0 | E9: 0 | F9: 0 | G9: 0 | H9: 0 | I9: 0 | J9: 0 | K9: 0
A16: ='Org structure'!A3 -> Vote 02 - Municipal Manager | C16: =SUM(C17:C26) -> 0 | D16: =SUM(D17:D26) -> 0 | E16: 0 | F16: 0 | G16: 0 | H16: 0 | I16: 0 | J16: 0 | K16: 0
A17: ='Org structure'!E8 -> 02.1 - Municipal Manager | C17: 0 | D17: 0 | E17: 0 | F17: 0 | G17: 0 | H17: 0 | I17: 0 | J17: 0 | K17: 0
A18: ='Org structure'!E9 -> 02.2 - Municipal Manager Support | C18: 0 | D18: 0 | E18: 0 | F18: 0 | G18: 0 | H18: 0 | I18: 0 | J18: 0 | K18: 0
A19: ='Org structure'!E10 -> 02.3 - Internal Audit | C19: 0 | D19: 0 | E19: 0 | F19: 0 | G19: 0 | H19: 0 | I19: 0 | J19: 0 | K19: 0
A20: ='Org structure'!E11 -> 02.4 - Communications | C20: 0 | D20: 0 | E20: 0 | F20: 0 | G20: 0 | H20: 0 | I20: 0 | J20: 0 | K20: 0
A21: ='Org structure'!E12 -> 02.5 - Risk Management | C21: 0 | D21: 0 | E21: 0 | F21: 0 | G21: 0 | H21: 0 | I21: 0 | J21: 0 | K21: 0
A27: ='Org structure'!A4 -> Vote 03 - Corporate Services | C27: =SUM(C28:C37) -> 519808.85 | D27: =SUM(D28:D37) -> 474176.6 | E27: 535168.68 | F27: 387347 | G27: 387347 | H27: 387347 | I27: 401679 | J27: 414934 | K27: 428212
A28: ='Org structure'!E14 -> 03.1 - Executive Manager: Corporate Services | C28: 0 | D28: 0 | E28: 0 | F28: 0 | G28: 0 | H28: 0 | I28: 0 | J28: 0 | K28: 0
A29: ='Org structure'!E15 -> 03.2 - Human Resource Management & Development | C29: 189823.96 | D29: 190652.78 | E29: 182885.54 | F29: 125160 | G29: 125160 | H29: 125160 | I29: 129791 | J29: 134074 | K29: 138364
A30: ='Org structure'!E16 -> 03.3 - Information Technology | C30: 327097.66 | D30: 283523.82 | E30: 254931.65 | F30: 262187 | G30: 262187 | H30: 262187 | I30: 271888 | J30: 280860 | K30: 289848
A31: ='Org structure'!E17 -> 03.4 - Legal Services | C31: 0 | D31: 0 | E31: 0 | F31: 0 | G31: 0 | H31: 0 | I31: 0 | J31: 0 | K31: 0
A32: ='Org structure'!E18 -> 03.5 - Gen Adm_Sec_Fleet: General Administrat | C32: 2887.23 | D32: 0 | E32: 0 | F32: 0 | G32: 0 | H32: 0 | I32: 0 | J32: 0 | K32: 0
A33: ='Org structure'!E19 -> 03.6 - Gen Adm_Sec_Fleet: Security Services | C33: 0 | D33: 0 | E33: 97351.49 | F33: 0 | G33: 0 | H33: 0 | I33: 0 | J33: 0 | K33: 0
A34: ='Org structure'!E20 -> 03.7 - Gen Adm_Sec_Fleet: Fleet Management | C34: 0 | D34: 0 | E34: 0 | F34: 0 | G34: 0 | H34: 0 | I34: 0 | J34: 0 | K34: 0
A38: ='Org structure'!A5 -> Vote 04 - Budget And Treasury | C38: =SUM(C39:C48) -> 385730470.4 | D38: 422988843.1 | E38: 468364590.8 | F38: 729385782 | G38: 733575782 | H38: 733575782 | I38: 415087679 | J38: 414645436 | K38: 441949041
A39: ='Org structure'!E22 -> 04.1 - Chief Financial Officer | C39: 0 | D39: 0 | E39: 0 | F39: 0 | G39: 0 | H39: 0 | I39: 0 | J39: 0 | K39: 0
A40: ='Org structure'!E23 -> 04.2 - Budget Planning & Management | C40: 302958836.6 | D40: 320643129.8 | E40: 338894594.7 | F40: 336363000 | G40: 336363000 | H40: 336363000 | I40: 328489000 | J40: 325189000 | K40: 349630000
A41: ='Org structure'!E24 -> 04.3 - Expenditure Management | C41: 3595.34 | D41: 191321.64 | E41: 12204.38 | F41: 0 | G41: 0 | H41: 0 | I41: 0 | J41: 0 | K41: 0
A42: ='Org structure'!E25 -> 04.4 - Revenue Management | C42: 82682339.46 | D42: 102135161.3 | E42: 129422665.5 | F42: 392682423 | G42: 396872423 | H42: 396872423 | I42: 86245727 | J42: 89091836 | K42: 91942774
A43: ='Org structure'!E26 -> 04.5 - Asset Management | C43: 85698.97 | D43: 19230.43 | E43: 35126.19 | F43: 340359 | G43: 340359 | H43: 340359 | I43: 352952 | J43: 364600 | K43: 376267
A44: ='Org structure'!E27 -> 04.6 - Supply Chain Management | C44: 0 | D44: 0 | E44: 0 | F44: 0 | G44: 0 | H44: 0 | I44: 0 | J44: 0 | K44: 0
A49: ='Org structure'!A6 -> Vote 05 - Community Services | C49: =SUM(C50:C60) -> 14586048.91 | D49: =SUM(D50:D60) -> 22094677.02 | E49: 27216591.71 | F49: 20466023 | G49: 38376024 | H49: 38376024 | I49: 22042732 | J49: 20260376 | K49: 20908709
A50: ='Org structure'!E29 -> 05.1 - Executive Manager: Community Services | C50: 0 | D50: 0 | E50: 0 | F50: 0 | G50: 0 | H50: 0 | I50: 50000 | J50: 51650 | K50: 53303
A51: ='Org structure'!E30 -> 05.2 - Waste Management Services | C51: 8173562.62 | D51: 8659360.31 | E51: 9528340.26 | F51: 10120124 | G51: 10150124 | H51: 10150124 | I51: 11171711 | J51: 9363847 | K51: 9663490
A52: ='Org structure'!E31 -> 05.3 - Environmental Management Services | C52: 0 | D52: 0 | E52: 0 | F52: 16455 | G52: 16455 | H52: 16455 | I52: 16455 | J52: 0 | K52: 0
A53: ='Org structure'!E32 -> 05.4 - Road Traffic & Law Enforce: Traffic Serv | C53: 649950 | D53: 708144 | E53: 947500 | F53: 411620 | G53: 261620 | H53: 261620 | I53: 500000 | J53: 516500 | K53: 533028
A54: ='Org structure'!E33 -> 05.5 - Road Traffic&Law Enforce: Licencing Serv | C54: 5565014.36 | D54: 5390709.33 | E54: 4524547.48 | F54: 9348575 | G54: 9348575 | H54: 9348575 | I54: 9694472 | J54: 10014390 | K54: 10334850
A55: ='Org structure'!E34 -> 05.6 - Road Traffic&Law Enforce: Pound | C55: 36808.68 | D55: 773.91 | E55: 0 | F55: 20860 | G55: 860 | H55: 860 | I55: 892 | J55: 921 | K55: 951
A56: ='Org structure'!E35 -> 05.7 - Institutional & Social Dev Management | C56: 90539.42 | D56: 90660.83 | E56: 109139.57 | F56: 124689 | G56: 124689 | H56: 124689 | I56: 129302 | J56: 133569 | K56: 137844
A57: ='Org structure'!E36 -> 05.8 - Libraries And Archives | C57: 0 | D57: 653 | E57: 3064 | F57: 3341 | G57: 3341 | H57: 3341 | I57: 3465 | J57: 3579 | K57: 3693
A58: ='Org structure'!E37 -> 05.9 - Community Halls And Facilities | C58: 70173.83 | D58: 83043.42 | E58: 103999.97 | F58: 420359 | G58: 470359 | H58: 470359 | I58: 476435 | J58: 175920 | K58: 181550
A59: ='Org structure'!E38 -> 05.10 - Disaster Management | C59: 0 | D59: 7161332.22 | E59: 12000000.43 | F59: 0 | G59: 18000001 | H59: 18000001 | I59: 0 | J59: 0 | K59: 0
A61: ='Org structure'!A7 -> Vote 06 - Planning And Development | C61: =SUM(C62:C71) -> 41605673.84 | D61: =SUM(D62:D71) -> 44297800.27 | E61: 48531067.33 | F61: 68735202 | G61: 71576902 | H61: 71576902 | I61: 51323288 | J61: 50561196 | K61: 52179155
A62: ='Org structure'!E40 -> 06.1 - Executive Manager:Planning & Development | C62: 0 | D62: 0 | E62: 0 | F62: 0 | G62: 0 | H62: 0 | I62: 0 | J62: 0 | K62: 0
A63: ='Org structure'!E41 -> 06.2 - Economic Development & Planning | C63: 919900.1 | D63: 13549.78 | E63: 201133.7 | F63: 164318 | G63: 109318 | H63: 109318 | I63: 113362 | J63: 117104 | K63: 120851
A64: ='Org structure'!E42 -> 06.3 - Development & Town Planning | C64: 1462520.91 | D64: 895835.83 | E64: 1282301.74 | F64: 24579900 | G64: 24742600 | H64: 24742600 | I64: 2770077 | J64: 795489 | K64: 820945
A65: ='Org structure'!E43 -> 06.4 - Property Management & Housing | C65: 39223252.83 | D65: 43388414.66 | E65: 47047631.89 | F65: 43613676 | G65: 46347676 | H65: 46347676 | I65: 48062541 | J65: 49648603 | K65: 51237359
A66: ='Org structure'!E44 -> 06.5 - Integrated Development Planning | C66: 0 | D66: 0 | E66: 0 | F66: 377308 | G66: 377308 | H66: 377308 | I66: 377308 | J66: 0 | K66: 0
A67: ='Org structure'!E45 -> 06.6 - Performance Management | C67: 0 | D67: 0 | E67: 0 | F67: 0 | G67: 0 | H67: 0 | I67: 0 | J67: 0 | K67: 0
A72: ='Org structure'!A8 -> Vote 07 - Infrastructure Development | C72: =SUM(C73:C82) -> 43593413.13 | D72: 24622622.73 | E72: 64451739.74 | F72: 66752000 | G72: 66752000 | H72: 66752000 | I72: 71311000 | J72: 82310000 | K72: 85092000
A73: ='Org structure'!E47 -> 07.1 - Executive Manager: Infrastructure Dev | C73: 0 | D73: 0 | E73: 0 | F73: 0 | G73: 0 | H73: 0 | I73: 0 | J73: 0 | K73: 0
A74: ='Org structure'!E48 -> 07.2 - Road Construction & Maintenance | C74: 343.57 | D74: 0 | E74: 0 | F74: 0 | G74: 0 | H74: 0 | I74: 0 | J74: 0 | K74: 0
A75: ='Org structure'!E49 -> 07.3 - Electrical & Mechanical Works | C75: 0 | D75: 0 | E75: 2676728.97 | F75: 0 | G75: 0 | H75: 0 | I75: 3729000 | J75: 7316000 | K75: 7647000
A76: ='Org structure'!E50 -> 07.4 - Project Management | C76: 43593069.56 | D76: 24622622.73 | E76: 61775010.77 | F76: 66752000 | G76: 66752000 | H76: 66752000 | I76: 67582000 | J76: 74994000 | K76: 77445000
A83: ='Org structure'!A9 -> Vote 08 - | C83: 0 | D83: 0 | E83: 0 | F83: 0 | G83: 0 | H83: 0 | I83: 0 | J83: 0 | K83: 0
A94: ='Org structure'!A10 -> Vote 09 - | C94: 0 | D94: 0 | E94: 0 | F94: 0 | G94: 0 | H94: 0 | I94: 0 | J94: 0 | K94: 0
A105: ='Org structure'!A11 -> Vote 10 - | C105: 0 | D105: 0 | E105: 0 | F105: 0 | G105: 0 | H105: 0 | I105: 0 | J105: 0 | K105: 0
A116: ='Org structure'!A12 -> Vote 11 - | C116: 0 | D116: 0 | E116: 0 | F116: 0 | G116: 0 | H116: 0 | I116: 0 | J116: 0 | K116: 0
A127: ='Org structure'!A13 -> Vote 12 - | C127: 0 | D127: 0 | E127: 0 | F127: 0 | G127: 0 | H127: 0 | I127: 0 | J127: 0 | K127: 0
A138: ='Org structure'!A14 -> Vote 13 - | C138: 0 | D138: 0 | E138: 0 | F138: 0 | G138: 0 | H138: 0 | I138: 0 | J138: 0 | K138: 0
A149: ='Org structure'!A15 -> Vote 14 - | C149: 0 | D149: 0 | E149: 0 | F149: 0 | G149: 0 | H149: 0 | I149: 0 | J149: 0 | K149: 0
A160: ='Org structure'!A16 -> Vote 15 - Other | C160: 0 | D160: 0 | E160: 0 | F160: 0 | G160: 0 | H160: 0 | I160: 0 | J160: 0 | K160: 0
A171: Total Revenue by Vote | B171: 2 | C171: =C5+C16+C27+C38+C49+C61+C72+C83+C94+C105+C116+C127+C138+C149+C160 -> 486035415.1 | D171: 514478119.8 | E171: 609099158.3 | F171: 885726354 | G171: 910668055 | H171: 910668055 | I171: 560166378 | J171: 568191942 | K171: 600557117 | L171: =SUM(L79:L82) -> 0 | M171: 0 | N171: 0 | O171: 0 | P171: 0 | Q171: 0 | R171: 0 | S171: 0 | T171: 0 | U171: 0 | V171: 0 | W171: 0
A173: Expenditure by Vote | B173: 1
A174: ='Org structure'!A2 -> Vote 01 - Executive And Council | C174: =SUM(C175:C184) -> 39705424.97 | D174: 41938924.78 | E174: 43048509.76 | F174: 63163884 | G174: 67403884 | H174: 67403884 | I174: 69820505 | J174: 72124585 | K174: 74432571
A175: ='Org structure'!E3 -> 01.1 - Mayor & Councillors | C175: 31805293.25 | D175: 31060367.25 | E175: 32982078.26 | F175: 0 | G175: 0 | H175: 0 | I175: 0 | J175: 0 | K175: 0
A176: ='Org structure'!E4 -> 01.2 - Mayor & Council Support | C176: 7900131.72 | D176: 10878557.53 | E176: 10066431.5 | F176: 0 | G176: 0 | H176: 0 | I176: 0 | J176: 0 | K176: 0
A177: ='Org structure'!E5 -> 01.3 - Mayor & Councillors | C177: 0 | D177: 0 | E177: 0 | F177: 47001604 | G177: 51001604 | H177: 51001604 | I177: 52888662 | J177: 54633988 | K177: 56382275
A178: ='Org structure'!E6 -> 01.4 - Mayor & Council Support | C178: 0 | D178: 0 | E178: 0 | F178: 16162280 | G178: 16402280 | H178: 16402280 | I178: 16931843 | J178: 17490597 | K178: 18050296
A185: ='Org structure'!A3 -> Vote 02 - Municipal Manager | C185: =SUM(C186:C195) -> 13718420.19 | D185: =SUM(D186:D195) -> 15071745.73 | E185: =SUM(E186:E195) -> 14997674.72 | F185: 27105146 | G185: 23545146 | H185: 23545146 | I185: 26966989 | J185: 26698627 | K185: 27526660
A186: ='Org structure'!E8 -> 02.1 - Municipal Manager | C186: 1023706.62 | D186: 1523903.56 | E186: 791183.97 | F186: 1441661 | G186: 963661 | H186: 963661 | I186: 1492820 | J186: 1540433 | K186: 1588127
A187: ='Org structure'!E9 -> 02.2 - Municipal Manager Support | C187: 403347.24 | D187: 438716.08 | E187: 442495.38 | F187: 1849624 | G187: 1003624 | H187: 1003624 | I187: 1881178 | J187: 1907678 | K187: 1967278
A188: ='Org structure'!E10 -> 02.3 - Internal Audit | C188: 8958996.04 | D188: 10070906.12 | E188: 9357712.72 | F188: 13099817 | G188: 11627817 | H188: 11627817 | I188: 12485975 | J188: 12892526 | K188: 13299762
A189: ='Org structure'!E11 -> 02.4 - Communications | C189: 2132270.67 | D189: 1736542.51 | E189: 2337369.73 | F189: 3580854 | G189: 3615854 | H189: 3615854 | I189: 3788516 | J189: 3848094 | K189: 3969877
A190: ='Org structure'!E12 -> 02.5 - Risk Management | C190: 1200099.62 | D190: 1301677.46 | E190: 2068912.92 | F190: 7133190 | G190: 6334190 | H190: 6334190 | I190: 7318500 | J190: 6509896 | K190: 6701616
A196: ='Org structure'!A4 -> Vote 03 - Corporate Services | C196: =SUM(C197:C206) -> 75136198.54 | D196: 64940509.53 | E196: 86558955.78 | F196: 116138855 | G196: 125378655 | H196: 125378655 | I196: 125602265 | J196: 127867481 | K196: 131939581
A197: ='Org structure'!E14 -> 03.1 - Executive Manager: Corporate Services | C197: 769420.64 | D197: 2929.32 | E197: 422164.44 | F197: 1140550 | G197: 1140550 | H197: 1140550 | I197: 1202735 | J197: 1240841 | K197: 1279012
A198: ='Org structure'!E15 -> 03.2 - Human Resource Management & Development | C198: 7744545.53 | D198: 6649309.49 | E198: 9233079.67 | F198: 19043019 | G198: 18507019 | H198: 18507019 | I198: 19836080 | J198: 20480720 | K198: 21126449
A199: ='Org structure'!E16 -> 03.3 - Information Technology | C199: 6742658.59 | D199: 6989178.85 | E199: 6926563.83 | F199: 11025706 | G199: 10254706 | H199: 10254706 | I199: 11765077 | J199: 12151137 | K199: 12537848
A200: ='Org structure'!E17 -> 03.4 - Legal Services | C200: 10545305.64 | D200: 7526853.24 | E200: 13950286.19 | F200: 11484715 | G200: 22450715 | H200: 22450715 | I200: 20946233 | J200: 21636661 | K200: 22328261
A201: ='Org structure'!E18 -> 03.5 - Gen Adm_Sec_Fleet: General Administrat | C201: 15685944.03 | D201: 11580686.89 | E201: 34314407.19 | F201: 19368277 | G201: 19283277 | H201: 19283277 | I201: 17460701 | J201: 18031166 | K201: 18602593
A202: ='Org structure'!E19 -> 03.6 - Gen Adm_Sec_Fleet: Security Services | C202: 16366810.43 | D202: 16154583.39 | E202: 43941.44 | F202: 26093350 | G202: 25754150 | H202: 25754150 | I202: 27078510 | J202: 27972099 | K202: 28867207
A203: ='Org structure'!E20 -> 03.7 - Gen Adm_Sec_Fleet: Fleet Management | C203: 17281513.68 | D203: 16036968.35 | E203: 21668513.02 | F203: 27983238 | G203: 27988238 | H203: 27988238 | I203: 27312929 | J203: 26354857 | K203: 27198211
A207: ='Org structure'!A5 -> Vote 04 - Budget And Treasury | C207: =SUM(C208:C217) -> 122126280.6 | D207: 123418568.5 | E207: 100137642.9 | F207: 143875543 | G207: 140523543 | H207: 140523543 | I207: 143618880 | J207: 148327652 | K207: 153045252
A208: ='Org structure'!E22 -> 04.1 - Chief Financial Officer | C208: 743902.5 | D208: 813986 | E208: 1153141.44 | F208: 1133984 | G208: 1133984 | H208: 1133984 | I208: 1126618 | J208: 1162213 | K208: 1197867
A209: ='Org structure'!E23 -> 04.2 - Budget Planning & Management | C209: 14473990.85 | D209: 9992989.97 | E209: 6487331.69 | F209: 20159148 | G209: 15751148 | H209: 15751148 | I209: 14423649 | J209: 14882337 | K209: 15341804
A210: ='Org structure'!E24 -> 04.3 - Expenditure Management | C210: 4785553.81 | D210: 4341529.35 | E210: 3851099.46 | F210: 4945294 | G210: 5490294 | H210: 5490294 | I210: 5807659 | J210: 5997591 | K210: 6187847
A211: ='Org structure'!E25 -> 04.4 - Revenue Management | C211: 94019652.13 | D211: 100328763.6 | E211: 79014650.35 | F211: 100234302 | G211: 100234302 | H211: 100234302 | I211: 103838156 | J211: 107263560 | K211: 110694775
A212: ='Org structure'!E26 -> 04.5 - Asset Management | C212: 6724052.86 | D212: 6838719.65 | E212: 7129919.57 | F212: 12529707 | G212: 12575707 | H212: 12575707 | I212: 12947473 | J212: 13367820 | K212: 13793730
A213: ='Org structure'!E27 -> 04.6 - Supply Chain Management | C213: 1379128.48 | D213: 1102580 | E213: 2501500.37 | F213: 4873108 | G213: 5338108 | H213: 5338108 | I213: 5475325 | J213: 5654131 | K213: 5829229
A218: ='Org structure'!A6 -> Vote 05 - Community Services | C218: =SUM(C219:C229) -> 58106662.64 | D218: =SUM(D219:D229) -> 49621597.13 | E218: 73436155.44 | F218: 111309590 | G218: 91946061 | H218: 91946061 | I218: 87945090 | J218: 90803417 | K218: 93666597
A219: ='Org structure'!E29 -> 05.1 - Executive Manager: Community Services | C219: 0 | D219: 39723.64 | E219: 15566.42 | F219: 1140550 | G219: 1140550 | H219: 1140550 | I219: 1058392 | J219: 1091735 | K219: 1125134
A220: ='Org structure'!E30 -> 05.2 - Waste Management Services | C220: 22127189.32 | D220: 16301161.54 | E220: 23322749.19 | F220: 25330602 | G220: 27590602 | H220: 27590602 | I220: 28137093 | J220: 29060959 | K220: 29986394
A221: ='Org structure'!E31 -> 05.3 - Environmental Management Services | C221: 1410054.52 | D221: 853162.12 | E221: 956143.86 | F221: 1439072 | G221: 1402072 | H221: 1402072 | I221: 1377833 | J221: 1402474 | K221: 1427158
A222: ='Org structure'!E32 -> 05.4 - Road Traffic & Law Enforce: Traffic Serv | C222: 12388136.84 | D222: 9266893.61 | E222: 9930493.21 | F222: 17913953 | G222: 17890953 | H222: 17890953 | I222: 18173790 | J222: 18771202 | K222: 19369633
A223: ='Org structure'!E33 -> 05.5 - Road Traffic&Law Enforce: Licencing Serv | C223: 7802708.58 | D223: 7902148.77 | E223: 7721364.82 | F223: 11049675 | G223: 11064675 | H223: 11064675 | I223: 10486046 | J223: 10828595 | K223: 11171724
A224: ='Org structure'!E34 -> 05.6 - Road Traffic&Law Enforce: Pound | C224: 591199.75 | D224: 418587.36 | E224: 404456.66 | F224: 1225747 | G224: 1280747 | H224: 1280747 | I224: 1197843 | J224: 1236673 | K224: 1275569
A225: ='Org structure'!E35 -> 05.7 - Institutional & Social Dev Management | C225: 3611598.82 | D225: 3565043.02 | E225: 4515720.76 | F225: 4912698 | G225: 5086698 | H225: 5086698 | I225: 4998279 | J225: 5156019 | K225: 5314026
A226: ='Org structure'!E36 -> 05.8 - Libraries And Archives | C226: 830234.43 | D226: 830234.43 | E226: 830234.43 | F226: 1456619 | G226: 1456619 | H226: 1456619 | I226: 1512762 | J226: 1562684 | K226: 1612690
A227: ='Org structure'!E37 -> 05.9 - Community Halls And Facilities | C227: 8512187.53 | D227: 9348870.87 | E227: 24822500.1 | F227: 44783290 | G227: 22975761 | H227: 22975761 | I227: 20528637 | J227: 21203007 | K227: 21878519
A228: ='Org structure'!E38 -> 05.10 - Disaster Management | C228: 833352.85 | D228: 1095771.77 | E228: 916925.99 | F228: 2057384 | G228: 2057384 | H228: 2057384 | I228: 474415 | J228: 490069 | K228: 505750
A230: ='Org structure'!A7 -> Vote 06 - Planning And Development | C230: =SUM(C231:C240) -> 18068031.44 | D230: 17378187.51 | E230: 22331613.86 | F230: 37922227 | G230: 27307695 | H230: 27307695 | I230: 36526031 | J230: 33509618 | K230: 34559926
A231: ='Org structure'!E40 -> 06.1 - Executive Manager:Planning & Development | C231: 125890.27 | D231: 8384.08 | E231: 7921.1 | F231: 1200735 | G231: 456735 | H231: 456735 | I231: 1231878 | J231: 1272530 | K231: 1313252
A232: ='Org structure'!E41 -> 06.2 - Economic Development & Planning | C232: 2634516.74 | D232: 3292214.72 | E232: 3143766.66 | F232: 5295109 | G232: 5338109 | H232: 5338109 | I232: 5375458 | J232: 5515076 | K232: 5687987
A233: ='Org structure'!E42 -> 06.3 - Development & Town Planning | C233: 3026090.33 | D233: 4267942.38 | E233: 6498952.58 | F233: 8009867 | G233: 5359926 | H233: 5359926 | I233: 5603628 | J233: 5783030 | K233: 5962739
A234: ='Org structure'!E43 -> 06.4 - Property Management & Housing | C234: 6840856.49 | D234: 4433412.2 | E234: 7588443.26 | F234: 15125744 | G234: 9920744 | H234: 9920744 | I234: 16180622 | J234: 12543173 | K234: 12938333
A235: ='Org structure'!E44 -> 06.5 - Integrated Development Planning | C235: 4042362.91 | D235: 3341222.71 | E235: 2956816.94 | F235: 5679665 | G235: 3669074 | H235: 3669074 | I235: 5456876 | J235: 5634670 | K235: 5812765
A236: ='Org structure'!E45 -> 06.6 - Performance Management | C236: 1398314.7 | D236: 2035011.42 | E236: 2135713.32 | F236: 2611107 | G236: 2563107 | H236: 2563107 | I236: 2677569 | J236: 2761139 | K236: 2844850
A241: ='Org structure'!A8 -> Vote 07 - Infrastructure Development | C241: =SUM(C242:C251) -> 44047429.03 | D241: 47207096.22 | E241: 52210181.56 | F241: 139199687 | G241: 140714886 | H241: 140714886 | I241: 145341722 | J241: 155595651 | K241: 147792278
A242: ='Org structure'!E47 -> 07.1 - Executive Manager: Infrastructure Dev | C242: 0 | D242: 8385.84 | E242: 420314.95 | F242: 1140550 | G242: 1213550 | H242: 1213550 | I242: 1151953 | J242: 1188383 | K242: 1224876
A243: ='Org structure'!E48 -> 07.2 - Road Construction & Maintenance | C243: 25630849.43 | D243: 29983322.54 | E243: 29000183.7 | F243: 58294596 | G243: 78950317 | H243: 78950317 | I243: 82958448 | J243: 85696077 | K243: 88438352
A244: ='Org structure'!E49 -> 07.3 - Electrical & Mechanical Works | C244: 12640736.45 | D244: 16201830.69 | E244: 17816860.3 | F244: 69476179 | G244: 56859987 | H244: 56859987 | I244: 41761669 | J244: 46133123 | K244: 45834882
A245: ='Org structure'!E50 -> 07.4 - Project Management | C245: 5775843.15 | D245: 1013557.15 | E245: 4972822.61 | F245: 10288362 | G245: 3691032 | H245: 3691032 | I245: 19469652 | J245: 22578068 | K245: 12294168
A252: ='Org structure'!A9 -> Vote 08 - | C252: 0 | D252: 0 | E252: 0 | F252: 0 | G252: 0 | H252: 0 | I252: 0 | J252: 0 | K252: 0
A263: ='Org structure'!A10 -> Vote 09 - | C263: 0 | D263: 0 | E263: 0 | F263: 0 | G263: 0 | H263: 0 | I263: 0 | J263: 0 | K263: 0
A274: ='Org structure'!A11 -> Vote 10 - | C274: 0 | D274: 0 | E274: 0 | F274: 0 | G274: 0 | H274: 0 | I274: 0 | J274: 0 | K274: 0
A285: ='Org structure'!A12 -> Vote 11 - | C285: 0 | D285: 0 | E285: 0 | F285: 0 | G285: 0 | H285: 0 | I285: 0 | J285: 0 | K285: 0
A296: ='Org structure'!A13 -> Vote 12 - | C296: 0 | D296: 0 | E296: 0 | F296: 0 | G296: 0 | H296: 0 | I296: 0 | J296: 0 | K296: 0
A307: ='Org structure'!A14 -> Vote 13 - | C307: 0 | D307: 0 | E307: 0 | F307: 0 | G307: 0 | H307: 0 | I307: 0 | J307: 0 | K307: 0
A318: ='Org structure'!A15 -> Vote 14 - | C318: 0 | D318: 0 | E318: 0 | F318: 0 | G318: 0 | H318: 0 | I318: 0 | J318: 0 | K318: 0
A329: ='Org structure'!A16 -> Vote 15 - Other | C329: 0 | D329: 0 | E329: 0 | F329: 0 | G329: 0 | H329: 0 | I329: 0 | J329: 0 | K329: 0
A340: Total Expenditure by Vote | B340: 2 | C340: =C174+C185+C196+C207+C218+C230+C241+C252+C263+C274+C285+C296+C307+C318+C329 -> 370908447.4 | D340: 359576629.4 | E340: 392720734 | F340: 638714932 | G340: 616819870 | H340: 616819870 | I340: 635821482 | J340: 654927031 | K340: 662962865 | L340: =SUM(L174:L251) -> 0 | M340: 0 | N340: 0 | O340: 0 | P340: 0 | Q340: 0 | R340: 0 | S340: 0 | T340: 0 | U340: 0 | V340: 0 | W340: 0
A342: =result -> Surplus/(Deficit) for the year | B342: 2 | C342: =C171-C340 -> 115126967.7 | D342: =D171-D340 -> 154901490.3 | E342: 216378424.3 | F342: 247011422 | G342: 293848185 | H342: 293848185 | I342: -75655104 | J342: -86735089 | K342: -62405748 | L342: 0 | M342: 0 | N342: 0 | O342: 0 | P342: 0 | Q342: 0 | R342: 0 | S342: 0 | T342: 0 | U342: 0 | V342: 0 | W342: 0
A343: =head27a -> References
A344: 1. Insert 'Vote'; e.g. Department, if different to Functional structure
A345: 2. Must reconcile to Financial Performance ('Revenue and Expenditure by Functional Classification' and 'Revenue and Expenditure')
A346: 3. Assign share in 'associate' to relevant Vote

Sheet A4-FinPerf RE
A1: =muni&" - "&Approve4 -> LIM355 Lepelle-Nkumpi - Table A4 Budgeted Financial Performance (revenue and expenditure)
A2: =desc -> Description | B2: =head27 -> Ref | C2: =head1b -> 2022/23 | D2: =head1A -> 2023/24 | E2: =Head1 -> 2024/25 | F2: =Head2 -> Current Year 2025/26 | J2: =Head3 -> 2026/27 Medium Term Revenue & Expenditure Framework | M2: =Head4 -> LTFS
A3: R thousand | B3: 1 | C3: =Head5 -> Audited Outcome | D3: =Head5 -> Audited Outcome | E3: =Head5 -> Audited Outcome | F3: =Head6 -> Original Budget | G3: =Head7 -> Adjusted Budget | H3: =Head8 -> Full Year Forecast | I3: =Head5b -> Pre-audit outcome | J3: =Head9 -> Budget Year 2026/27 | K3: =Head10 -> Budget Year +1 2027/28 | L3: =Head11 -> Budget Year +2 2028/29 | M3: =Head12 -> Forecast 2029/30 | N3: =Head13 -> Forecast 2030/31 | O3: =Head14 -> Forecast 2031/32 | P3: =Head15 -> Forecast 2032/33 | Q3: =Head16 -> Forecast 2033/34 | R3: =Head17 -> Forecast 2034/35 | S3: =Head18 -> Forecast 2035/36 | T3: =Head19 -> Forecast 2036/37 | U3: =Head20 -> Forecast 2037/38 | V3: =Head21 -> Forecast 2038/39 | W3: =Head22 -> Forecast 2039/40 | X3: =Head23 -> Forecast 2040/41
A4: Revenue
A5: Exchange Revenue
A6: Service charges - Electricity | B6: 2 | C6: ='SA1'!C21 -> 0 | D6: ='SA1'!D21 -> 0 | E6: ='SA1'!E21 -> 0 | F6: ='SA1'!F21 -> 0 | G6: ='SA1'!G21 -> 0 | H6: ='SA1'!H21 -> 0 | I6: ='SA1'!I21 -> 0 | J6: ='SA1'!J21 -> 0 | K6: ='SA1'!K21 -> 0 | L6: ='SA1'!L21 -> 0
A7: Service charges - Water | B7: 2 | C7: ='SA1'!C33 -> 343.57 | D7: ='SA1'!D33 -> 0 | E7: ='SA1'!E33 -> 0 | F7: ='SA1'!F33 -> 0 | G7: ='SA1'!G33 -> 0 | H7: ='SA1'!H33 -> 0 | I7: ='SA1'!I33 -> 0 | J7: ='SA1'!J33 -> 0 | K7: ='SA1'!K33 -> 0 | L7: ='SA1'!L33 -> 0
A8: Service charges - Waste Water Management | B8: 2 | C8: ='SA1'!C47 -> 0 | D8: ='SA1'!D47 -> 3847.66 | E8: ='SA1'!E47 -> 0 | F8: ='SA1'!F47 -> 0 | G8: ='SA1'!G47 -> 0 | H8: ='SA1'!H47 -> 0 | I8: ='SA1'!I47 -> 11943 | J8: ='SA1'!J47 -> 0 | K8: ='SA1'!K47 -> 0 | L8: ='SA1'!L47 -> 0
A9: Service charges - Waste Management | B9: 2 | C9: ='SA1'!C59 -> 6802698.62 | D9: ='SA1'!D59 -> 7415360.31 | E9: ='SA1'!E59 -> 7772340.26 | F9: ='SA1'!F59 -> 8229124 | G9: ='SA1'!G59 -> 8259124 | H9: ='SA1'!H59 -> 8259124 | I9: ='SA1'!I59 -> 7537096.13 | J9: ='SA1'!J59 -> 9064711 | K9: ='SA1'!K59 -> 9363847 | L9: ='SA1'!L59 -> 9663490
A10: Sale of Goods and Rendering of Services | B10: 2 | C10: ='SA1'!C110 -> 407315.12 | D10: ='SA1'!D110 -> 747044.8 | E10: ='SA1'!E110 -> 1224019.9 | F10: ='SA1'!F110 -> 314479402 | G10: ='SA1'!G110 -> 314642102 | H10: ='SA1'!H110 -> 314642102 | I10: ='SA1'!I110 -> 847002.46 | J10: ='SA1'!J110 -> 975550 | K10: ='SA1'!K110 -> 1007742 | L10: ='SA1'!L110 -> 1039991
A11: Agency services | B11: 2 | C11: ='SA1'!C138 -> 40804913.63 | D11: ='SA1'!D138 -> 40314350.57 | E11: ='SA1'!E138 -> 28984815.98 | F11: ='SA1'!F138 -> 15348575 | G11: ='SA1'!G138 -> 19348575 | H11: ='SA1'!H138 -> 19348575 | I11: ='SA1'!I138 -> 7246385.74 | J11: ='SA1'!J138 -> 20064472 | K11: ='SA1'!K138 -> 20726600 | L11: ='SA1'!L138 -> 21389851
A12: Interest | C12: ='SA1'!C139 -> 0 | D12: ='SA1'!D139 -> 0 | E12: ='SA1'!E139 -> 0 | F12: ='SA1'!F139 -> 0 | G12: ='SA1'!G139 -> 0 | H12: ='SA1'!H139 -> 0 | I12: ='SA1'!I139 -> 0 | J12: ='SA1'!J139 -> 0 | K12: ='SA1'!K139 -> 0 | L12: ='SA1'!L139 -> 0
A13: Interest earned from Receivables | B13: 2 | C13: ='SA1'!C156 -> 4410929.22 | D13: ='SA1'!D156 -> 4896964.73 | E13: ='SA1'!E156 -> 5328970.46 | F13: ='SA1'!F156 -> 6641941 | G13: ='SA1'!G156 -> 6641941 | H13: ='SA1'!H156 -> 6641941 | I13: ='SA1'!I156 -> 5174054.83 | J13: ='SA1'!J156 -> 6887693 | K13: ='SA1'!K156 -> 7114987 | L13: ='SA1'!L156 -> 7342666 | M13: ='SA1'!M156 -> 0 | N13: ='SA1'!N156 -> 0 | O13: ='SA1'!O156 -> 0 | P13: ='SA1'!P156 -> 0 | Q13: ='SA1'!Q156 -> 0 | R13: ='SA1'!R156 -> 0 | S13: ='SA1'!S156 -> 0 | T13: ='SA1'!T156 -> 0 | U13: ='SA1'!U156 -> 0 | V13: ='SA1'!V156 -> 0 | W13: ='SA1'!W156 -> 0 | X13: ='SA1'!X156 -> 0
A14: Interest earned from Current and Non Current Assets | B14: 2 | C14: ='SA1'!C161 -> 25809993.18 | D14: ='SA1'!D161 -> 44842419.8 | E14: ='SA1'!E161 -> 52104838.47 | F14: ='SA1'!F161 -> 47346055 | G14: ='SA1'!G161 -> 47346055 | H14: ='SA1'!H161 -> 47346055 | I14: ='SA1'!I161 -> 35952709.75 | J14: ='SA1'!J161 -> 49097859 | K14: ='SA1'!K161 -> 50718089 | L14: ='SA1'!L161 -> 52341067 | M14: ='SA1'!M161 -> 0 | N14: ='SA1'!N161 -> 0 | O14: ='SA1'!O161 -> 0 | P14: ='SA1'!P161 -> 0 | Q14: ='SA1'!Q161 -> 0 | R14: ='SA1'!R161 -> 0 | S14: ='SA1'!S161 -> 0 | T14: ='SA1'!T161 -> 0 | U14: ='SA1'!U161 -> 0 | V14: ='SA1'!V161 -> 0 | W14: ='SA1'!W161 -> 0 | X14: ='SA1'!X161 -> 0
A15: Dividends | B15: 2 | C15: ='SA1'!C165 -> 0 | D15: ='SA1'!D165 -> 0 | E15: ='SA1'!E165 -> 0 | F15: ='SA1'!F165 -> 0 | G15: ='SA1'!G165 -> 0 | H15: ='SA1'!H165 -> 0 | I15: ='SA1'!I165 -> 0 | J15: ='SA1'!J165 -> 0 | K15: ='SA1'!K165 -> 0 | L15: ='SA1'!L165 -> 0
A16: Rent on Land | B16: 2 | C16: ='SA1'!C170 -> 0 | D16: ='SA1'!D170 -> 0 | E16: ='SA1'!E170 -> 0 | F16: ='SA1'!F170 -> 0 | G16: ='SA1'!G170 -> 0 | H16: ='SA1'!H170 -> 0 | I16: ='SA1'!I170 -> 0 | J16: ='SA1'!J170 -> 0 | K16: ='SA1'!K170 -> 0 | L16: ='SA1'!L170 -> 0
A17: Rental from Fixed Assets | B17: 2 | C17: ='SA1'!C184 -> 397271.49 | D17: ='SA1'!D184 -> 366567.24 | E17: ='SA1'!E184 -> 358931.62 | F17: ='SA1'!F184 -> 419136 | G17: ='SA1'!G184 -> 799136 | H17: ='SA1'!H184 -> 799136 | I17: ='SA1'!I184 -> 330436.98 | J17: ='SA1'!J184 -> 828704 | K17: ='SA1'!K184 -> 856051 | L17: ='SA1'!L184 -> 883446
A18: Licence and permits | B18: 2 | C18: ='SA1'!C200 -> 0 | D18: ='SA1'!D200 -> 3115 | E18: ='SA1'!E200 -> 201133.7 | F18: ='SA1'!F200 -> 161903 | G18: ='SA1'!G200 -> 106903 | H18: ='SA1'!H200 -> 106903 | I18: ='SA1'!I200 -> 90760 | J18: ='SA1'!J200 -> 110858 | K18: ='SA1'!K200 -> 114517 | L18: ='SA1'!L200 -> 118181
A19: Special rating levies | B19: 2 | C19: ='SA1'!C213 -> 0 | D19: ='SA1'!D213 -> 0 | E19: ='SA1'!E213 -> 0 | F19: ='SA1'!F213 -> 0 | G19: ='SA1'!G213 -> 0 | H19: ='SA1'!H213 -> 0 | I19: ='SA1'!I213 -> 0 | J19: ='SA1'!J213 -> 0 | K19: ='SA1'!K213 -> 0 | L19: ='SA1'!L213 -> 0
A20: Construction Contract Revenue | B20: 2 | C20: ='SA1'!C214 -> 0 | D20: ='SA1'!D214 -> 0 | E20: ='SA1'!E214 -> 0 | F20: ='SA1'!F214 -> 0 | G20: ='SA1'!G214 -> 0 | H20: ='SA1'!H214 -> 0 | I20: ='SA1'!I214 -> 0 | J20: ='SA1'!J214 -> 0 | K20: ='SA1'!K214 -> 0 | L20: ='SA1'!L214 -> 0
A21: Development Charges | B21: 2 | C21: ='SA1'!C215 -> 0 | D21: ='SA1'!D215 -> 0 | E21: ='SA1'!E215 -> 0 | F21: ='SA1'!F215 -> 0 | G21: ='SA1'!G215 -> 0 | H21: ='SA1'!H215 -> 0 | I21: ='SA1'!I215 -> 0 | J21: ='SA1'!J215 -> 0 | K21: ='SA1'!K215 -> 0 | L21: ='SA1'!L215 -> 0
A22: Operational Revenue | B22: 2 | C22: ='SA1'!C236 -> 2874133.3 | D22: ='SA1'!D236 -> 1070654.16 | E22: ='SA1'!E236 -> 28952661.49 | F22: ='SA1'!F236 -> 25236251 | G22: ='SA1'!G236 -> 25356251 | H22: ='SA1'!H236 -> 25356251 | I22: ='SA1'!I236 -> 1364691.45 | J22: ='SA1'!J236 -> 3403767 | K22: ='SA1'!K236 -> 1450090 | L22: ='SA1'!L236 -> 1496493
A23: Non-Exchange Revenue
A24: Property rates | B24: 2 | C24: ='SA1'!C252 -> 38965081.3 | D24: ='SA1'!D252 -> 43106834.49 | E24: ='SA1'!E252 -> 46771877.62 | F24: ='SA1'!F252 -> 43173458 | G24: ='SA1'!G252 -> 45647458 | H24: ='SA1'!H252 -> 45647458 | I24: ='SA1'!I252 -> 45141193.51 | J24: ='SA1'!J252 -> 47336414 | K24: ='SA1'!K252 -> 48898516 | L24: ='SA1'!L252 -> 50463268
A25: Surcharges and Taxes | B25: 2 | C25: ='SA1'!C256 -> 0 | D25: ='SA1'!D256 -> 0 | E25: ='SA1'!E256 -> 0 | F25: ='SA1'!F256 -> 0 | G25: ='SA1'!G256 -> 0 | H25: ='SA1'!H256 -> 0 | I25: ='SA1'!I256 -> 0 | J25: ='SA1'!J256 -> 0 | K25: ='SA1'!K256 -> 0 | L25: ='SA1'!L256 -> 0
A26: Fines, penalties and forfeits | B26: 2 | C26: ='SA1'!C261 -> 686758.68 | D26: ='SA1'!D261 -> 708917.91 | E26: ='SA1'!E261 -> 947500 | F26: ='SA1'!F261 -> 432480 | G26: ='SA1'!G261 -> 262480 | H26: ='SA1'!H261 -> 262480 | I26: ='SA1'!I261 -> 143426.54 | J26: ='SA1'!J261 -> 550892 | K26: ='SA1'!K261 -> 569071 | L26: ='SA1'!L261 -> 587282
A27: Licences or permits | B27: 2 | C27: ='SA1'!C277 -> 592 | D27: ='SA1'!D277 -> 498 | E27: ='SA1'!E277 -> 94 | F27: ='SA1'!F277 -> 0 | G27: ='SA1'!G277 -> 0 | H27: ='SA1'!H277 -> 0 | I27: ='SA1'!I277 -> 498 | J27: ='SA1'!J277 -> 0 | K27: ='SA1'!K277 -> 0 | L27: ='SA1'!L277 -> 0
A28: Transfer and subsidies - Operational | B28: 2 | C28: ='SA1'!C306 -> 304329700.6 | D28: ='SA1'!D306 -> 321887129.8 | E28: ='SA1'!E306 -> 340650594.7 | F28: ='SA1'!F306 -> 348623198 | G28: ='SA1'!G306 -> 342291498 | H28: ='SA1'!H306 -> 342291498 | I28: ='SA1'!I306 -> 326536321.1 | J28: ='SA1'!J306 -> 338403998 | K28: ='SA1'!K306 -> 336254700 | L28: ='SA1'!L306 -> 361144500
A29: Interest | B29: 2 | C29: ='SA1'!C315 -> 16946132.26 | D29: ='SA1'!D315 -> 17139138.7 | E29: ='SA1'!E315 -> 19240084.03 | F29: ='SA1'!F315 -> 18552131 | G29: ='SA1'!G315 -> 18552131 | H29: ='SA1'!H315 -> 18552131 | I29: ='SA1'!I315 -> 19701490.62 | J29: ='SA1'!J315 -> 19238560 | K29: ='SA1'!K315 -> 19873432 | L29: ='SA1'!L315 -> 20509382
A30: Fuel Levy | B30: 2 | C30: ='SA1'!C316 -> 0 | D30: ='SA1'!D316 -> 0 | E30: ='SA1'!E316 -> 0 | F30: ='SA1'!F316 -> 0 | G30: ='SA1'!G316 -> 0 | H30: ='SA1'!H316 -> 0 | I30: ='SA1'!I316 -> 0 | J30: ='SA1'!J316 -> 0 | K30: ='SA1'!K316 -> 0 | L30: ='SA1'!L316 -> 0
A31: Operational Revenue | B31: 2 | C31: ='SA1'!C322 -> 0 | D31: ='SA1'!D322 -> 0 | E31: ='SA1'!E322 -> 0 | F31: ='SA1'!F322 -> 0 | G31: ='SA1'!G322 -> 0 | H31: ='SA1'!H322 -> 0 | I31: ='SA1'!I322 -> 0 | J31: ='SA1'!J322 -> 0 | K31: ='SA1'!K322 -> 0 | L31: ='SA1'!L322 -> 0
A32: Gains on disposal of Fixed and Intangible Assets | B32: 2 | C32: ='SA1'!C330 -> 3912033.05 | D32: ='SA1'!D330 -> 4607958.36 | E32: ='SA1'!E330 -> 3606444.69 | F32: ='SA1'!F330 -> 0 | G32: ='SA1'!G330 -> 0 | H32: ='SA1'!H330 -> 0 | I32: ='SA1'!I330 -> 0 | J32: ='SA1'!J330 -> 0 | K32: ='SA1'!K330 -> 0 | L32: ='SA1'!L330 -> 0
A33: Other Gains | B33: 2 | C33: ='SA1'!C354 -> 3595.34 | D33: ='SA1'!D354 -> 191321.64 | E33: ='SA1'!E354 -> 12204.38 | F33: ='SA1'!F354 -> 0 | G33: ='SA1'!G354 -> 0 | H33: ='SA1'!H354 -> 0 | I33: ='SA1'!I354 -> 0 | J33: ='SA1'!J354 -> 0 | K33: ='SA1'!K354 -> 0 | L33: ='SA1'!L354 -> 0
A34: Discontinued Operations | C34: ='SA1'!C355 -> 0 | D34: ='SA1'!D355 -> 0 | E34: ='SA1'!E355 -> 0 | F34: ='SA1'!F355 -> 0 | G34: ='SA1'!G355 -> 0 | H34: ='SA1'!H355 -> 0 | I34: ='SA1'!I355 -> 0 | J34: ='SA1'!J355 -> 0 | K34: ='SA1'!K355 -> 0 | L34: ='SA1'!L355 -> 0
A35: Total Revenue (excluding capital transfers and contributions) | C35: =SUM(C6:C22)+SUM(C24:C34) -> 446351491.4 | D35: 487302123.2 | E35: 536156511.3 | F35: 828643654 | G35: 829253654 | H35: 829253654 | I35: 450078010.1 | J35: 495963478 | K35: 496947642 | L35: 526979617
A36: Expenditure
A37: Employee related costs | B37: 2 | C37: ='SA1'!C403 -> 99656346.07 | D37: ='SA1'!D403 -> 98495817.93 | E37: ='SA1'!E403 -> 103316275.9 | F37: ='SA1'!F403 -> 161096891 | G37: ='SA1'!G403 -> 156326258 | H37: ='SA1'!H403 -> 156326258 | I37: ='SA1'!I403 -> 99301139.02 | J37: ='SA1'!J403 -> 161551002 | K37: ='SA1'!K403 -> 166916628 | L37: ='SA1'!L403 -> 172127539 | M37: ='SA1'!M71 -> 0 | N37: ='SA1'!N71 -> 0 | O37: ='SA1'!O71 -> 0 | P37: ='SA1'!P71 -> 0 | Q37: ='SA1'!Q71 -> 0 | R37: ='SA1'!R71 -> 0 | S37: ='SA1'!S71 -> 0 | T37: ='SA1'!T71 -> 0
A38: Remuneration of councillors | B38: 2 | C38: ='SA1'!C421 -> 23103442.24 | D38: ='SA1'!D421 -> 24024770.19 | E38: ='SA1'!E421 -> 25177230.31 | F38: ='SA1'!F421 -> 27052599 | G38: ='SA1'!G421 -> 31052599 | H38: ='SA1'!H421 -> 31052599 | I38: ='SA1'!I421 -> 23899375.34 | J38: ='SA1'!J421 -> 32201545 | K38: ='SA1'!K421 -> 33264193 | L38: ='SA1'!L421 -> 34328648
A39: Bulk purchases - electricity | B39: 2 | C39: ='SA1'!C433 -> 0 | D39: ='SA1'!D433 -> 0 | E39: ='SA1'!E433 -> 0 | F39: ='SA1'!F433 -> 0 | G39: ='SA1'!G433 -> 0 | H39: ='SA1'!H433 -> 0 | I39: ='SA1'!I433 -> 0 | J39: ='SA1'!J433 -> 0 | K39: ='SA1'!K433 -> 0 | L39: ='SA1'!L433 -> 0
A40: Inventory consumed | B40: 2,8 | C40: ='SA1'!C444 -> 1892655.88 | D40: ='SA1'!D444 -> 1699476.87 | E40: ='SA1'!E444 -> 2250910.13 | F40: ='SA1'!F444 -> 13396603 | G40: ='SA1'!G444 -> 7064903 | H40: ='SA1'!H444 -> 7064903 | I40: ='SA1'!I444 -> 2190807.29 | J40: ='SA1'!J444 -> 6769038 | K40: ='SA1'!K444 -> 6992419 | L40: ='SA1'!L444 -> 7216175
A41: Debt impairment | B41: 2,3 | C41: ='SA1'!C478 -> 0 | D41: ='SA1'!D478 -> 0 | E41: ='SA1'!E478 -> 0 | F41: ='SA1'!F478 -> 0 | G41: ='SA1'!G478 -> 0 | H41: ='SA1'!H478 -> 0 | I41: ='SA1'!I478 -> 0 | J41: ='SA1'!J478 -> 0 | K41: ='SA1'!K478 -> 0 | L41: ='SA1'!L478 -> 0
A42: Depreciation, amortisation and impairment | B42: 2 | C42: ='SA1'!C537 -> 30575537.34 | D42: ='SA1'!D537 -> 31306488.3 | E42: ='SA1'!E537 -> 31038763.38 | F42: ='SA1'!F537 -> 51269463 | G42: ='SA1'!G537 -> 51269463 | H42: ='SA1'!H537 -> 51269463 | I42: ='SA1'!I537 -> 88463382.33 | J42: ='SA1'!J537 -> 64641434 | K42: ='SA1'!K537 -> 67474725 | L42: ='SA1'!L537 -> 63185915
A43: Interest, Dividends and Rent on Land | B43: 2 | C43: ='SA1'!C542 -> 0 | D43: ='SA1'!D542 -> 0 | E43: ='SA1'!E542 -> 0 | F43: ='SA1'!F542 -> 932890 | G43: ='SA1'!G542 -> 932890 | H43: ='SA1'!H542 -> 932890 | I43: ='SA1'!I542 -> 0 | J43: ='SA1'!J542 -> 967407 | K43: ='SA1'!K542 -> 999331 | L43: ='SA1'!L542 -> 1031310
A44: Contracted services | B44: 2 | C44: ='SA1'!C547 -> 56854981.94 | D44: ='SA1'!D547 -> 48668981.58 | E44: ='SA1'!E547 -> 83442597.69 | F44: ='SA1'!F547 -> 203542436 | G44: ='SA1'!G547 -> 186777917 | H44: ='SA1'!H547 -> 186777917 | I44: ='SA1'!I547 -> 77556256.57 | J44: ='SA1'!J547 -> 179798443 | K44: ='SA1'!K547 -> 184985125 | L44: ='SA1'!L547 -> 184561311
A45: Transfers and subsidies | B45: 2 | C45: ='SA1'!C557 -> 0 | D45: ='SA1'!D557 -> 0 | E45: ='SA1'!E557 -> 0 | F45: ='SA1'!F557 -> 0 | G45: ='SA1'!G557 -> 0 | H45: ='SA1'!H557 -> 0 | I45: ='SA1'!I557 -> 0 | J45: ='SA1'!J557 -> 0 | K45: ='SA1'!K557 -> 0 | L45: ='SA1'!L557 -> 0
A46: Irrecoverable debts written off | B46: 2 | C46: ='SA1'!C572 -> 94390343.89 | D46: ='SA1'!D572 -> 96229601.93 | E46: ='SA1'!E572 -> 77600981.57 | F46: ='SA1'!F572 -> 95235233 | G46: ='SA1'!G572 -> 95235233 | H46: ='SA1'!H572 -> 95235233 | I46: ='SA1'!I572 -> 3362006.13 | J46: ='SA1'!J572 -> 98758936 | K46: ='SA1'!K572 -> 102017982 | L46: ='SA1'!L572 -> 105282557
A47: Operational costs | B47: 2 | C47: ='SA1'!C671 -> 58039895.39 | D47: ='SA1'!D671 -> 54004339.83 | E47: ='SA1'!E671 -> 59201957.93 | F47: ='SA1'!F671 -> 86188817 | G47: ='SA1'!G671 -> 88160607 | H47: ='SA1'!H671 -> 88160607 | I47: ='SA1'!I671 -> 51010634.83 | J47: ='SA1'!J671 -> 91133677 | K47: ='SA1'!K671 -> 92276628 | L47: ='SA1'!L671 -> 95229410
A48: Disposal of Fixed and Intangible Assets | B48: 2 | C48: ='SA1'!C679 -> 5544864.69 | D48: ='SA1'!D679 -> 4270001.82 | E48: ='SA1'!E679 -> 9351041.14 | F48: ='SA1'!F679 -> 0 | G48: ='SA1'!G679 -> 0 | H48: ='SA1'!H679 -> 0 | I48: ='SA1'!I679 -> 0 | J48: ='SA1'!J679 -> 0 | K48: ='SA1'!K679 -> 0 | L48: ='SA1'!L679 -> 0
A49: Other Losses | B49: 2 | C49: ='SA1'!C714 -> 850380 | D49: ='SA1'!D714 -> 877150.98 | E49: ='SA1'!E714 -> 1340976 | F49: ='SA1'!F714 -> 0 | G49: ='SA1'!G714 -> 0 | H49: ='SA1'!H714 -> 0 | I49: ='SA1'!I714 -> 0 | J49: ='SA1'!J714 -> 0 | K49: ='SA1'!K714 -> 0 | L49: ='SA1'!L714 -> 0
A50: Total Expenditure | C50: =SUM(C37:C49) -> 370908447.4 | D50: =SUM(D37:D49) -> 359576629.4 | E50: 392720734 | F50: 638714932 | G50: 616819870 | H50: 616819870 | I50: 345783601.5 | J50: 635821482 | K50: 654927031 | L50: 662962865 | M50: =SUM(M37:M49) -> 0 | N50: 0 | O50: 0 | P50: 0 | Q50: 0 | R50: 0 | S50: 0 | T50: 0 | U50: 0 | V50: 0 | W50: 0 | X50: 0
A51: Surplus/(Deficit) | C51: =C35-C50 -> 75443043.94 | D51: =D35-D50 -> 127725493.7 | E51: 143435777.3 | F51: 189928722 | G51: 212433784 | H51: 212433784 | I51: 104294408.6 | J51: -139858004 | K51: -157979389 | L51: -135983248 | M51: =M35+M50 -> 0 | N51: 0 | O51: 0 | P51: 0 | Q51: 0 | R51: 0 | S51: 0 | T51: 0 | U51: 0 | V51: 0 | W51: 0 | X51: 0
A52: Transfers and subsidies - capital (monetary allocations) | B52: 6 | C52: ='SA1'!C729 -> 39683923.74 | D52: ='SA1'!D729 -> 27175996.59 | E52: ='SA1'!E729 -> 72942646.97 | F52: ='SA1'!F729 -> 57082700 | G52: ='SA1'!G729 -> 81414401 | H52: ='SA1'!H729 -> 81414401 | I52: ='SA1'!I729 -> 51522531.25 | J52: ='SA1'!J729 -> 64202900 | K52: ='SA1'!K729 -> 71244300 | L52: ='SA1'!L729 -> 73577500
A53: Transfers and subsidies - capital (in-kind) | B53: 6 | C53: ='SA1'!C743 -> 0 | D53: ='SA1'!D743 -> 0 | E53: ='SA1'!E743 -> 0 | F53: ='SA1'!F743 -> 0 | G53: ='SA1'!G743 -> 0 | H53: ='SA1'!H743 -> 0 | I53: ='SA1'!I743 -> 0 | J53: ='SA1'!J743 -> 0 | K53: ='SA1'!K743 -> 0 | L53: ='SA1'!L743 -> 0
A54: Surplus/(Deficit) after capital transfers & contributions | C54: =SUM(C51:C53) -> 115126967.7 | D54: =SUM(D51:D53) -> 154901490.3 | E54: 216378424.3 | F54: 247011422 | G54: 293848185 | H54: 293848185 | I54: 155816939.8 | J54: -75655104 | K54: -86735089 | L54: -62405748
A55: Income Tax | C55: ='SA1'!C748 -> 0 | D55: ='SA1'!D748 -> 0 | E55: ='SA1'!E748 -> 0 | F55: ='SA1'!F748 -> 0 | G55: ='SA1'!G748 -> 0 | H55: ='SA1'!H748 -> 0 | I55: ='SA1'!I748 -> 0 | J55: ='SA1'!J748 -> 0 | K55: ='SA1'!K748 -> 0 | L55: ='SA1'!L748 -> 0
A56: Surplus/(Deficit) after income tax | C56: =+C54-C55 -> 115126967.7 | D56: =+D54-D55 -> 154901490.3 | E56: 216378424.3 | F56: 247011422 | G56: 293848185 | H56: 293848185 | I56: 155816939.8 | J56: -75655104 | K56: -86735089 | L56: -62405748 | M56: 0 | N56: 0 | O56: 0 | P56: 0 | Q56: 0
A57: Share of Surplus/Deficit attributable to Joint Venture | C57: ='SA1'!C750 -> 0 | D57: ='SA1'!D750 -> 0 | E57: ='SA1'!E750 -> 0 | F57: ='SA1'!F750 -> 0 | G57: ='SA1'!G750 -> 0 | H57: ='SA1'!H750 -> 0 | I57: ='SA1'!I750 -> 0 | J57: ='SA1'!J750 -> 0 | K57: ='SA1'!K750 -> 0 | L57: ='SA1'!L750 -> 0
A58: Share of Surplus/Deficit attributable to Minorities | C58: ='SA1'!C751 -> 0 | D58: ='SA1'!D751 -> 0 | E58: ='SA1'!E751 -> 0 | F58: ='SA1'!F751 -> 0 | G58: ='SA1'!G751 -> 0 | H58: ='SA1'!H751 -> 0 | I58: ='SA1'!I751 -> 0 | J58: ='SA1'!J751 -> 0 | K58: ='SA1'!K751 -> 0 | L58: ='SA1'!L751 -> 0
A59: Surplus/(Deficit) attributable to municipality | C59: =SUM(C56:C58) -> 115126967.7 | D59: =SUM(D56:D58) -> 154901490.3 | E59: 216378424.3 | F59: 247011422 | G59: 293848185 | H59: 293848185 | I59: 155816939.8 | J59: -75655104 | K59: -86735089 | L59: -62405748 | M59: 0 | N59: 0 | O59: 0 | P59: 0 | Q59: 0
A60: Share of Surplus/Deficit attributable to Associate | B60: 7 | C60: ='SA1'!C753 -> 0 | D60: ='SA1'!D753 -> 0 | E60: ='SA1'!E753 -> 0 | F60: ='SA1'!F753 -> 0 | G60: ='SA1'!G753 -> 0 | H60: ='SA1'!H753 -> 0 | I60: ='SA1'!I753 -> 0 | J60: ='SA1'!J753 -> 0 | K60: ='SA1'!K753 -> 0 | L60: ='SA1'!L753 -> 0
A61: Intercompany/Parent subsidiary transactions | C61: ='SA1'!C754 -> 0 | D61: ='SA1'!D754 -> 0 | E61: ='SA1'!E754 -> 0 | F61: ='SA1'!F754 -> 0 | G61: ='SA1'!G754 -> 0 | H61: ='SA1'!H754 -> 0 | I61: ='SA1'!I754 -> 0 | J61: ='SA1'!J754 -> 0 | K61: ='SA1'!K754 -> 0 | L61: ='SA1'!L754 -> 0
A62: =result -> Surplus/(Deficit) for the year | B62: 1 | C62: =SUM(C59:C61) -> 115126967.7 | D62: =SUM(D59:D61) -> 154901490.3 | E62: 216378424.3 | F62: 247011422 | G62: 293848185 | H62: 293848185 | I62: 155816939.8 | J62: -75655104 | K62: -86735089 | L62: -62405748 | M62: 0 | N62: 0 | O62: 0 | P62: 0 | Q62: 0 | R62: =R38+R61 -> 0 | S62: 0 | T62: 0 | U62: 0 | V62: 0 | W62: 0 | X62: 0
A63: References
A64: 1. Classifications are revenue sources and expenditure type
A65: 2. Detail to be provided in Table SA1 | O65: =O62-'A4-FinPerf RE'!J62 -> 75655104 | P65: =P62-'A4-FinPerf RE'!K62 -> 86735089 | Q65: =Q62-'A4-FinPerf RE'!L62 -> 62405748
A66: 3. Debt impairment includes Impairment and Reversal of Impairment Losses
A67: 4. Expenditure type components previously shown under repairs and maintenance should be allocated back to the originating expenditure group/item; e.g. employee costs
A68: 5. Repairs & maintenance detailed in Table A9 and Table SA34c
A69: 6. Contributions are funds provided by external organisations to assist with infrastructure development; e.g. developer contributions (detail to be provided in Table SA1)
A70: 7. Equity method ( Includes Joint Ventures)
A71: 8. All materials consumed including water consumed and materials used in operations.

Sheet A4 Funding
A1: Table A4 Funding Tool Summary for 4th Quarter ended 30 June 2024
A2: A4 Code | B2: A4 Description | C2: Type | D2: Classification | E2: =head1b -> 2022/23 | F2: =head1A -> 2023/24 | G2: =Head1 -> 2024/25 | H2: =Head2 -> Current Year 2025/26 | L2: =Head3 -> 2026/27 Medium Term Revenue & Expenditure Framework
A3: R thousands | E3: =Head5 -> Audited Outcome | F3: =Head5 -> Audited Outcome | G3: =Head5 -> Audited Outcome | H3: =Head6 -> Original Budget | I3: =Head7 -> Adjusted Budget | J3: =Head8 -> Full Year Forecast | K3: =Head5b -> Pre-audit outcome | L3: =Head9 -> Budget Year 2026/27 | M3: =Head10 -> Budget Year +1 2027/28 | N3: =Head11 -> Budget Year +2 2028/29
A4: 0300 | B4: Exchange Revenue / Service charges - Electricity | C4: Non-Cash | D4: Debtor accrual - service charges electricity accrued through exchange receivables | E4: ='SA3'!C15 -> 0 | F4: ='SA3'!D15 -> 0 | G4: ='SA3'!E15 -> 0 | H4: ='SA3'!F15 -> 0 | I4: ='SA3'!G15 -> 0 | J4: ='SA3'!H15 -> 0 | K4: ='SA3'!I15 -> 0 | L4: ='SA3'!J15 -> 0 | M4: ='SA3'!K15 -> 0 | N4: ='SA3'!L15 -> 0
D5: Non-Cash Total | E5: =SUM(E4) -> 0 | F5: =SUM(F4) -> 0 | G5: 0 | H5: 0 | I5: 0 | J5: 0 | K5: 0 | L5: 0 | M5: 0 | N5: 0
B6: Exchange Revenue / Service charges - Electricity Total
A7: 0400 | B7: Exchange Revenue / Service charges - Water | C7: Non-Cash | D7: Debtor accrual - service charges water accrued through exchange receivables | E7: ='SA3'!C18 -> -40507443.32 | F7: ='SA3'!D18 -> -56493810.97 | G7: ='SA3'!E18 -> -60191222.37 | H7: ='SA3'!F18 -> 258668853 | I7: ='SA3'!G18 -> 258668853 | J7: ='SA3'!H18 -> 258668853 | K7: ='SA3'!I18 -> -30334079.96 | L7: ='SA3'!J18 -> 81044809 | M7: ='SA3'!K18 -> 83719286 | N7: ='SA3'!L18 -> 86398306
D8: Non-Cash Total
B9: Exchange Revenue / Service charges - Water Total
A10: 0500 | B10: Exchange Revenue / Service charges - Waste Water Management | C10: Non-Cash | D10: Debtor accrual - service charges waste water management accrued through exchange receivables | E10: ='SA3'!C17 -> 40507443 | F10: ='SA3'!D17 -> 56493811.31 | G10: ='SA3'!E17 -> 60191222.37 | H10: ='SA3'!F17 -> 58763207 | I10: ='SA3'!G17 -> 58763207 | J10: ='SA3'!H17 -> 58763207 | K10: ='SA3'!I17 -> 2805143.32 | L10: ='SA3'!J17 -> 66521165 | M10: ='SA3'!K17 -> 68716363 | N10: ='SA3'!L17 -> 70915287
D11: Non-Cash Total
B12: Exchange Revenue / Service charges - Waste Water Management Total
A13: 0600 | B13: Exchange Revenue / Service charges - Waste Management | C13: Non-Cash | D13: Debtor accrual - service charges waste management accrued through exchange receivables | E13: ='SA3'!C16 -> 78430990.08 | F13: ='SA3'!D16 -> 88074641.15 | G13: ='SA3'!E16 -> 96660702.33 | H13: ='SA3'!F16 -> 92343259 | I13: ='SA3'!G16 -> 92343259 | J13: ='SA3'!H16 -> 92343259 | K13: ='SA3'!I16 -> 9330678.06 | L13: ='SA3'!J16 -> 117556559 | M13: ='SA3'!K16 -> 121435924 | N13: ='SA3'!L16 -> 125321874
D14: Non-Cash Total
B15: Exchange Revenue / Service charges - Waste Management Total
A16: 0700 | B16: Exchange Revenue / Sale of Goods and Rendering of Services | C16: Cash | D16: Cash sales of goods and rendering of services | E16: ='SA3'!C119 -> 653146766.3 | F16: 0 | G16: 0 | H16: 0 | I16: 0 | J16: 0 | K16: 0 | L16: 0 | M16: 0 | N16: 0
D17: Proceeds sale of PPE | E17: 0 | F17: 0 | G17: 0 | H17: 0 | I17: 0 | J17: 0 | K17: 0 | L17: 0 | M17: 0 | N17: 0
D18: Cash Total | E18: 0 | F18: 0 | G18: 0 | H18: 0 | I18: 0 | J18: 0 | K18: 0 | L18: 0 | M18: 0 | N18: 0
B19: Exchange Revenue / Sale of Goods and Rendering of Services Total | E19: 0 | F19: 0 | G19: 0 | H19: 0 | I19: 0 | J19: 0 | K19: 0 | L19: 0 | M19: 0 | N19: 0
A20: 0800 | B20: Exchange Revenue / Agency services | C20: Cash | D20: Cash - agency services | E20: 0 | F20: 0 | G20: 0 | H20: 0 | I20: 0 | J20: 0 | K20: 0 | L20: 0 | M20: 0 | N20: 0
D21: Cash Total | E21: 0 | F21: 0 | G21: 0 | H21: 0 | I21: 0 | J21: 0 | K21: 0 | L21: 0 | M21: 0 | N21: 0
B22: Exchange Revenue / Agency services Total | E22: 0 | F22: 0 | G22: 0 | H22: 0 | I22: 0 | J22: 0 | K22: 0 | L22: 0 | M22: 0 | N22: 0
A23: 0900 | B23: Exchange Revenue / Interest | C23: Non-Cash | D23: Deemed interest | E23: 0 | F23: 0 | G23: 0 | H23: 0 | I23: 0 | J23: 0 | K23: 0 | L23: 0 | M23: 0 | N23: 0
D24: Non-Cash Total
B25: Exchange Revenue / Interest Total
A26: 1000 | B26: Exchange Revenue / Interest earned from Receivables | C26: Non-Cash | D26: Affiliates/related parties/associated companies | E26: 0 | F26: 0 | G26: 0 | H26: 0 | I26: 0 | J26: 0 | K26: 0 | L26: 0 | M26: 0 | N26: 0
D27: Debtor accrual - interest outstanding debtors accrued through exchange receivables | E27: 0 | F27: 0 | G27: 0 | H27: 0 | I27: 0 | J27: 0 | K27: 0 | L27: 0 | M27: 0 | N27: 0
D28: SARS | E28: 0 | F28: 0 | G28: 0 | H28: 0 | I28: 0 | J28: 0 | K28: 0 | L28: 0 | M28: 0 | N28: 0
D29: Non-Cash Total | E29: 0 | F29: 0 | G29: 0 | H29: 0 | I29: 0 | J29: 0 | K29: 0 | L29: 0 | M29: 0 | N29: 0
B30: Exchange Revenue / Interest earned from Receivables Total | E30: 0 | F30: 0 | G30: 0 | H30: 0 | I30: 0 | J30: 0 | K30: 0 | L30: 0 | M30: 0 | N30: 0
A31: 1100 | B31: Exchange Revenue / Interest earned from Current and Non Current Assets | C31: Cash | D31: Cash - interest external investments | E31: 0 | F31: 0 | G31: 0 | H31: 0 | I31: 0 | J31: 0 | K31: 0 | L31: 0 | M31: 0 | N31: 0
D32: Cash Total | E32: 0 | F32: 0 | G32: 0 | H32: 0 | I32: 0 | J32: 0 | K32: 0 | L32: 0 | M32: 0 | N32: 0
B33: Exchange Revenue / Interest earned from Current and Non Current Assets Total | E33: 0 | F33: 0 | G33: 0 | H33: 0 | I33: 0 | J33: 0 | K33: 0 | L33: 0 | M33: 0 | N33: 0
A34: 1200 | B34: Exchange Revenue / Dividends | C34: Cash | D34: Cash - dividends received | E34: 0 | F34: 0 | G34: 0 | H34: 0 | I34: 0 | J34: 0 | K34: 0 | L34: 0 | M34: 0 | N34: 0
D35: Cash Total | E35: 0 | F35: 0 | G35: 0 | H35: 0 | I35: 0 | J35: 0 | K35: 0 | L35: 0 | M35: 0 | N35: 0
B36: Exchange Revenue / Dividends Total | E36: 0 | F36: 0 | G36: 0 | H36: 0 | I36: 0 | J36: 0 | K36: 0 | L36: 0 | M36: 0 | N36: 0
A37: 1300 | B37: Exchange Revenue / Rent on Land | C37: Cash | D37: Cash - rent on land | E37: 0 | F37: 0 | G37: 0 | H37: 0 | I37: 0 | J37: 0 | K37: 0 | L37: 0 | M37: 0 | N37: 0
D38: Cash Total | E38: 0 | F38: 0 | G38: 0 | H38: 0 | I38: 0 | J38: 0 | K38: 0 | L38: 0 | M38: 0 | N38: 0
B39: Exchange Revenue / Rent on Land Total | E39: 0 | F39: 0 | G39: 0 | H39: 0 | I39: 0 | J39: 0 | K39: 0 | L39: 0 | M39: 0 | N39: 0
A40: 1400 | B40: Exchange Revenue / Rental from Fixed Assets | C40: Cash | D40: Cash - rental from fixed assets | E40: 0 | F40: 0 | G40: 0 | H40: 0 | I40: 0 | J40: 0 | K40: 0 | L40: 0 | M40: 0 | N40: 0
D41: Cash Total | E41: 0 | F41: 0 | G41: 0 | H41: 0 | I41: 0 | J41: 0 | K41: 0 | L41: 0 | M41: 0 | N41: 0
B42: Exchange Revenue / Rental from Fixed Assets Total | E42: 0 | F42: 0 | G42: 0 | H42: 0 | I42: 0 | J42: 0 | K42: 0 | L42: 0 | M42: 0 | N42: 0
A43: 1500 | B43: Exchange Revenue / Licence and permits | C43: Cash | D43: Cash - licence and permits | E43: 0 | F43: 0 | G43: 0 | H43: 0 | I43: 0 | J43: 0 | K43: 0 | L43: 0 | M43: 0 | N43: 0
D44: Cash Total | E44: 0 | F44: 0 | G44: 0 | H44: 0 | I44: 0 | J44: 0 | K44: 0 | L44: 0 | M44: 0 | N44: 0
B45: Exchange Revenue / Licence and permits Total | E45: 0 | F45: 0 | G45: 0 | H45: 0 | I45: 0 | J45: 0 | K45: 0 | L45: 0 | M45: 0 | N45: 0
A46: 1550 | B46: Exchange Revenue / Special rating levies | C46: Cash | D46: Cash - Special rating levies | E46: 0 | F46: 0 | G46: 0 | H46: 0 | I46: 0 | J46: 0 | K46: 0 | L46: 0 | M46: 0 | N46: 0
D47: Cash Total | E47: 0 | F47: 0 | G47: 0 | H47: 0 | I47: 0 | J47: 0 | K47: 0 | L47: 0 | M47: 0 | N47: 0
B48: Exchange Revenue / Special rating levies Total | E48: 0 | F48: 0 | G48: 0 | H48: 0 | I48: 0 | J48: 0 | K48: 0 | L48: 0 | M48: 0 | N48: 0
A49: 1600 | B49: Exchange Revenue / Operational Revenue | C49: Cash | D49: Cash - Operating revenue | E49: 0 | F49: 0 | G49: 0 | H49: 0 | I49: 0 | J49: 0 | K49: 0 | L49: 0 | M49: 0 | N49: 0
D50: Cash Total | E50: 0 | F50: 0 | G50: 0 | H50: 0 | I50: 0 | J50: 0 | K50: 0 | L50: 0 | M50: 0 | N50: 0
B51: Exchange Revenue / Operational Revenue Total | E51: 0 | F51: 0 | G51: 0 | H51: 0 | I51: 0 | J51: 0 | K51: 0 | L51: 0 | M51: 0 | N51: 0
A52: 1800 | B52: Non-Exchange Revenue / Property rates | C52: Non-Cash | D52: Debtor accrual - property rates accrued through non-exchange receivables | E52: 0 | F52: 0 | G52: 0 | H52: 0 | I52: 0 | J52: 0 | K52: 0 | L52: 0 | M52: 0 | N52: 0
D53: Non-Cash Total | E53: 0 | F53: 0 | G53: 0 | H53: 0 | I53: 0 | J53: 0 | K53: 0 | L53: 0 | M53: 0 | N53: 0
B54: Non-Exchange Revenue / Property rates Total | E54: 0 | F54: 0 | G54: 0 | H54: 0 | I54: 0 | J54: 0 | K54: 0 | L54: 0 | M54: 0 | N54: 0
A55: 1900 | B55: Non-Exchange Revenue / Surcharges and Taxes | C55: Non-Cash | D55: Debtor accrual - surcharges & taxes accrued through non-exchange receivables | E55: 0 | F55: 0 | G55: 0 | H55: 0 | I55: 0 | J55: 0 | K55: 0 | L55: 0 | M55: 0 | N55: 0
D56: Non-Cash Total | E56: 0 | F56: 0 | G56: 0 | H56: 0 | I56: 0 | J56: 0 | K56: 0 | L56: 0 | M56: 0 | N56: 0
B57: Non-Exchange Revenue / Surcharges and Taxes Total | E57: 0 | F57: 0 | G57: 0 | H57: 0 | I57: 0 | J57: 0 | K57: 0 | L57: 0 | M57: 0 | N57: 0
A58: 2000 | B58: Non-Exchange Revenue / Fines, penalties and forfeits | C58: Non-Cash | D58: Debtor accrual - Fines, penalties and forfeits revenue accrued through non-exchanges receivables | E58: 0 | F58: 0 | G58: 0 | H58: 0 | I58: 0 | J58: 0 | K58: 0 | L58: 0 | M58: 0 | N58: 0
D59: Non-Cash Total | E59: 0 | F59: 0 | G59: 0 | H59: 0 | I59: 0 | J59: 0 | K59: 0 | L59: 0 | M59: 0 | N59: 0
B60: Non-Exchange Revenue / Fines, penalties and forfeits Total | E60: 0 | F60: 0 | G60: 0 | H60: 0 | I60: 0 | J60: 0 | K60: 0 | L60: 0 | M60: 0 | N60: 0
A61: 2100 | B61: Non-Exchange Revenue / Licences or permits | C61: Cash | D61: Cash - licences or permits | E61: 0 | F61: 0 | G61: 0 | H61: 0 | I61: 0 | J61: 0 | K61: 0 | L61: 0 | M61: 0 | N61: 0
D62: Cash Total | E62: 0 | F62: 0 | G62: 0 | H62: 0 | I62: 0 | J62: 0 | K62: 0 | L62: 0 | M62: 0 | N62: 0
B63: Non-Exchange Revenue / Licences or permits Total | E63: 0 | F63: 0 | G63: 0 | H63: 0 | I63: 0 | J63: 0 | K63: 0 | L63: 0 | M63: 0 | N63: 0
A64: 2200 | B64: Non-Exchange Revenue / Transfer and subsidies - Operational | C64: Cash | D64: Cash - Operational transfers and subsidies | E64: 0 | F64: 0 | G64: 0 | H64: 0 | I64: 0 | J64: 0 | K64: 0 | L64: 0 | M64: 0 | N64: 0
D65: Cash Total | E65: 0 | F65: 0 | G65: 0 | H65: 0 | I65: 0 | J65: 0 | K65: 0 | L65: 0 | M65: 0 | N65: 0
C66: Non-Cash | D66: Operational allocation in-kind | E66: 0 | F66: 0 | G66: 0 | H66: 0 | I66: 0 | J66: 0 | K66: 0 | L66: 0 | M66: 0 | N66: 0
D67: Non-Cash Total | E67: 0 | F67: 0 | G67: 0 | H67: 0 | I67: 0 | J67: 0 | K67: 0 | L67: 0 | M67: 0 | N67: 0
B68: Non-Exchange Revenue / Transfer and subsidies - Operational Total | E68: 0 | F68: 0 | G68: 0 | H68: 0 | I68: 0 | J68: 0 | K68: 0 | L68: 0 | M68: 0 | N68: 0
A69: 2300 | B69: Non-Exchange Revenue / Interest | C69: Non-Cash | D69: Debtor accrual - interest outstanding property rates accrued through non-exchange receivables | E69: 0 | F69: 0 | G69: 0 | H69: 0 | I69: 0 | J69: 0 | K69: 0 | L69: 0 | M69: 0 | N69: 0
D70: Debtor accrual - interest outstanding service charges electricity accrued through exchange receivables | E70: 0 | F70: 0 | G70: 0 | H70: 0 | I70: 0 | J70: 0 | K70: 0 | L70: 0 | M70: 0 | N70: 0
D71: Debtor accrual - interest outstanding service charges waste management accrued through exchange receivables | E71: 0 | F71: 0 | G71: 0 | H71: 0 | I71: 0 | J71: 0 | K71: 0 | L71: 0 | M71: 0 | N71: 0
D72: Debtor accrual - interest outstanding service charges waste water management accrued through exchange receivables | E72: 0 | F72: 0 | G72: 0 | H72: 0 | I72: 0 | J72: 0 | K72: 0 | L72: 0 | M72: 0 | N72: 0
D73: Debtor accrual - interest outstanding service charges water accrued through exchange receivables | E73: 0 | F73: 0 | G73: 0 | H73: 0 | I73: 0 | J73: 0 | K73: 0 | L73: 0 | M73: 0 | N73: 0
D74: Non-Cash Total | E74: 0 | F74: 0 | G74: 0 | H74: 0 | I74: 0 | J74: 0 | K74: 0 | L74: 0 | M74: 0 | N74: 0
B75: Non-Exchange Revenue / Interest Total | E75: 0 | F75: 0 | G75: 0 | H75: 0 | I75: 0 | J75: 0 | K75: 0 | L75: 0 | M75: 0 | N75: 0
A76: 2400 | B76: Non-Exchange Revenue / Fuel Levy | C76: Cash | D76: Cash collection fuel levy | E76: 0 | F76: 0 | G76: 0 | H76: 0 | I76: 0 | J76: 0 | K76: 0 | L76: 0 | M76: 0 | N76: 0
D77: Cash Total | E77: 0 | F77: 0 | G77: 0 | H77: 0 | I77: 0 | J77: 0 | K77: 0 | L77: 0 | M77: 0 | N77: 0
B78: Non-Exchange Revenue / Fuel Levy Total | E78: 0 | F78: 0 | G78: 0 | H78: 0 | I78: 0 | J78: 0 | K78: 0 | L78: 0 | M78: 0 | N78: 0
A79: 2500 | B79: Non-Exchange Revenue / Operational Revenue | C79: Non-Cash | D79: Debtor accrual - availability charges electricity accrued through non-exchange receivables | E79: 0 | F79: 0 | G79: 0 | H79: 0 | I79: 0 | J79: 0 | K79: 0 | L79: 0 | M79: 0 | N79: 0
D80: Debtor accrual - availability charges waste management accrued through non-exchange receivables | E80: 0 | F80: 0 | G80: 0 | H80: 0 | I80: 0 | J80: 0 | K80: 0 | L80: 0 | M80: 0 | N80: 0
D81: Debtor accrual - availability charges waste water management accrued through non-exchange receivables | E81: 0 | F81: 0 | G81: 0 | H81: 0 | I81: 0 | J81: 0 | K81: 0 | L81: 0 | M81: 0 | N81: 0
D82: Debtor accrual - availability charges water accrued through non-exchange receivables | E82: 0 | F82: 0 | G82: 0 | H82: 0 | I82: 0 | J82: 0 | K82: 0 | L82: 0 | M82: 0 | N82: 0
D83: Non-Cash Total | E83: 0 | F83: 0 | G83: 0 | H83: 0 | I83: 0 | J83: 0 | K83: 0 | L83: 0 | M83: 0 | N83: 0
B84: Non-Exchange Revenue / Operational Revenue Total | E84: 0 | F84: 0 | G84: 0 | H84: 0 | I84: 0 | J84: 0 | K84: 0 | L84: 0 | M84: 0 | N84: 0
A85: 2600 | B85: Non-Exchange Revenue / Gains on disposal of Assets | C85: Non-Cash | D85: Biological assets | E85: 0 | F85: 0 | G85: 0 | H85: 0 | I85: 0 | J85: 0 | K85: 0 | L85: 0 | M85: 0 | N85: 0
D86: Discontinued operations | E86: 0 | F86: 0 | G86: 0 | H86: 0 | I86: 0 | J86: 0 | K86: 0 | L86: 0 | M86: 0 | N86: 0
D87: Heritage assets | E87: 0 | F87: 0 | G87: 0 | H87: 0 | I87: 0 | J87: 0 | K87: 0 | L87: 0 | M87: 0 | N87: 0
D88: Intangible assets | E88: 0 | F88: 0 | G88: 0 | H88: 0 | I88: 0 | J88: 0 | K88: 0 | L88: 0 | M88: 0 | N88: 0
D89: Investment property | E89: 0 | F89: 0 | G89: 0 | H89: 0 | I89: 0 | J89: 0 | K89: 0 | L89: 0 | M89: 0 | N89: 0
D90: Land | E90: 0 | F90: 0 | G90: 0 | H90: 0 | I90: 0 | J90: 0 | K90: 0 | L90: 0 | M90: 0 | N90: 0
D91: Living resources | E91: 0 | F91: 0 | G91: 0 | H91: 0 | I91: 0 | J91: 0 | K91: 0 | L91: 0 | M91: 0 | N91: 0
D92: Other assets | E92: 0 | F92: 0 | G92: 0 | H92: 0 | I92: 0 | J92: 0 | K92: 0 | L92: 0 | M92: 0 | N92: 0
D93: PPE | E93: 0 | F93: 0 | G93: 0 | H93: 0 | I93: 0 | J93: 0 | K93: 0 | L93: 0 | M93: 0 | N93: 0
D94: Non-Cash Total | E94: 0 | F94: 0 | G94: 0 | H94: 0 | I94: 0 | J94: 0 | K94: 0 | L94: 0 | M94: 0 | N94: 0
B95: Non-Exchange Revenue / Gains on disposal of Assets Total | E95: 0 | F95: 0 | G95: 0 | H95: 0 | I95: 0 | J95: 0 | K95: 0 | L95: 0 | M95: 0 | N95: 0
A96: 2700 | B96: Non-Exchange Revenue / Other Gains | C96: Non-Cash | D96: Fair value adjustment actuarial assesments - leave gratuity | E96: 0 | F96: 0 | G96: 0 | H96: 0 | I96: 0 | J96: 0 | K96: 0 | L96: 0 | M96: 0 | N96: 0
D97: Fair value adjustment actuarial assesments - long service awards | E97: 0 | F97: 0 | G97: 0 | H97: 0 | I97: 0 | J97: 0 | K97: 0 | L97: 0 | M97: 0 | N97: 0
D98: Fair value adjustment actuarial assesments - medical aid | E98: 0 | F98: 0 | G98: 0 | H98: 0 | I98: 0 | J98: 0 | K98: 0 | L98: 0 | M98: 0 | N98: 0
D99: Fair value adjustment actuarial assesments - pension funds | E99: 0 | F99: 0 | G99: 0 | H99: 0 | I99: 0 | J99: 0 | K99: 0 | L99: 0 | M99: 0 | N99: 0
D100: Fair value adjustment biological assets | E100: 0 | F100: 0 | G100: 0 | H100: 0 | I100: 0 | J100: 0 | K100: 0 | L100: 0 | M100: 0 | N100: 0
D101: Fair value adjustment heritage assets | E101: 0 | F101: 0 | G101: 0 | H101: 0 | I101: 0 | J101: 0 | K101: 0 | L101: 0 | M101: 0 | N101: 0
D102: Fair value adjustment interest rate swap | E102: 0 | F102: 0 | G102: 0 | H102: 0 | I102: 0 | J102: 0 | K102: 0 | L102: 0 | M102: 0 | N102: 0
D103: Fair value adjustment investment property | E103: 0 | F103: 0 | G103: 0 | H103: 0 | I103: 0 | J103: 0 | K103: 0 | L103: 0 | M103: 0 | N103: 0
D104: Fair value adjustment investments | E104: 0 | F104: 0 | G104: 0 | H104: 0 | I104: 0 | J104: 0 | K104: 0 | L104: 0 | M104: 0 | N104: 0
D105: Fair value adjustment living resources | E105: 0 | F105: 0 | G105: 0 | H105: 0 | I105: 0 | J105: 0 | K105: 0 | L105: 0 | M105: 0 | N105: 0
D106: Foreign exchange | E106: 0 | F106: 0 | G106: 0 | H106: 0 | I106: 0 | J106: 0 | K106: 0 | L106: 0 | M106: 0 | N106: 0
D107: Inventory - fair value assessment | E107: 0 | F107: 0 | G107: 0 | H107: 0 | I107: 0 | J107: 0 | K107: 0 | L107: 0 | M107: 0 | N107: 0
D108: Inventory - increase in net realisable value | E108: 0 | F108: 0 | G108: 0 | H108: 0 | I108: 0 | J108: 0 | K108: 0 | L108: 0 | M108: 0 | N108: 0
D109: Debt Waived | E109: 0 | F109: 0 | G109: 0 | H109: 0 | I109: 0 | J109: 0 | K109: 0 | L109: 0 | M109: 0 | N109: 0
D110: Non-Cash Total | E110: 0 | F110: 0 | G110: 0 | H110: 0 | I110: 0 | J110: 0 | K110: 0 | L110: 0 | M110: 0 | N110: 0
B111: Non-Exchange Revenue / Other Gains Total | E111: 0 | F111: 0 | G111: 0 | H111: 0 | I111: 0 | J111: 0 | K111: 0 | L111: 0 | M111: 0 | N111: 0
A112: 2800 | B112: Revenue / Discontinued Operations | C112: Non-Cash | D112: Discontinued operations | E112: 0 | F112: 0 | G112: 0 | H112: 0 | I112: 0 | J112: 0 | K112: 0 | L112: 0 | M112: 0 | N112: 0
D113: Non-Cash Total | E113: 0 | F113: 0 | G113: 0 | H113: 0 | I113: 0 | J113: 0 | K113: 0 | L113: 0 | M113: 0 | N113: 0
B114: Revenue / Discontinued Operations Total | E114: 0 | F114: 0 | G114: 0 | H114: 0 | I114: 0 | J114: 0 | K114: 0 | L114: 0 | M114: 0 | N114: 0
A115: 3100 | B115: Expenditure / Employee related costs | C115: Non-Cash | D115: Cost capitalised to PPE (credit account) | E115: 0 | F115: 0 | G115: 0 | H115: 0 | I115: 0 | J115: 0 | K115: 0 | L115: 0 | M115: 0 | N115: 0
D116: Creditor accrual - Employee related expenditure accrued through payables from non-exchange transactions | E116: 0 | F116: 0 | G116: 0 | H116: 0 | I116: 0 | J116: 0 | K116: 0 | L116: 0 | M116: 0 | N116: 0
D117: In-kind benefits | E117: 0 | F117: 0 | G117: 0 | H117: 0 | I117: 0 | J117: 0 | K117: 0 | L117: 0 | M117: 0 | N117: 0
D118: In-kind benefits - cost capitalised to PPE (credit account) | E118: 0 | F118: 0 | G118: 0 | H118: 0 | I118: 0 | J118: 0 | K118: 0 | L118: 0 | M118: 0 | N118: 0
D119: Post-retirement benefit: medical | E119: 0 | F119: 0 | G119: 0 | H119: 0 | I119: 0 | J119: 0 | K119: 0 | L119: 0 | M119: 0 | N119: 0
D120: Post-retirement benefit: pension | E120: 0 | F120: 0 | G120: 0 | H120: 0 | I120: 0 | J120: 0 | K120: 0 | L120: 0 | M120: 0 | N120: 0
D121: Non-Cash Total | E121: 0 | F121: 0 | G121: 0 | H121: 0 | I121: 0 | J121: 0 | K121: 0 | L121: 0 | M121: 0 | N121: 0
B122: Expenditure / Employee related costs Total | E122: 0 | F122: 0 | G122: 0 | H122: 0 | I122: 0 | J122: 0 | K122: 0 | L122: 0 | M122: 0 | N122: 0
A123: 3200 | B123: Expenditure / Remuneration of councillors | C123: Non-Cash | D123: Creditor Accrual - councillor remuneration accrued through payables from non-exchange transactions | E123: 0 | F123: 0 | G123: 0 | H123: 0 | I123: 0 | J123: 0 | K123: 0 | L123: 0 | M123: 0 | N123: 0
D124: In-kind benefits to councillors | E124: 0 | F124: 0 | G124: 0 | H124: 0 | I124: 0 | J124: 0 | K124: 0 | L124: 0 | M124: 0 | N124: 0
D125: Use of personal facilities | E125: 0 | F125: 0 | G125: 0 | H125: 0 | I125: 0 | J125: 0 | K125: 0 | L125: 0 | M125: 0 | N125: 0
D126: Non-Cash Total | E126: 0 | F126: 0 | G126: 0 | H126: 0 | I126: 0 | J126: 0 | K126: 0 | L126: 0 | M126: 0 | N126: 0
B127: Expenditure / Remuneration of councillors Total | E127: 0 | F127: 0 | G127: 0 | H127: 0 | I127: 0 | J127: 0 | K127: 0 | L127: 0 | M127: 0 | N127: 0
A128: 3300 | B128: Expenditure / Bulk purchases - electricity | C128: Non-Cash | D128: Creditor accrual - bulk purchases electricity accrued through payables from exchange transactions | E128: 0 | F128: 0 | G128: 0 | H128: 0 | I128: 0 | J128: 0 | K128: 0 | L128: 0 | M128: 0 | N128: 0
D129: Non-Cash Total | E129: 0 | F129: 0 | G129: 0 | H129: 0 | I129: 0 | J129: 0 | K129: 0 | L129: 0 | M129: 0 | N129: 0
B130: Expenditure / Bulk purchases - electricity Total | E130: 0 | F130: 0 | G130: 0 | H130: 0 | I130: 0 | J130: 0 | K130: 0 | L130: 0 | M130: 0 | N130: 0
A131: 3400 | B131: Expenditure / Inventory consumed | C131: Non-Cash | D131: Creditor accrual - bulk purchases water accrued through payables from exchange transactions | E131: 0 | F131: 0 | G131: 0 | H131: 0 | I131: 0 | J131: 0 | K131: 0 | L131: 0 | M131: 0 | N131: 0
D132: Inventory consumed - agricultural | E132: 0 | F132: 0 | G132: 0 | H132: 0 | I132: 0 | J132: 0 | K132: 0 | L132: 0 | M132: 0 | N132: 0
D133: Inventory consumed - capitalisation of inventory consumed | E133: 0 | F133: 0 | G133: 0 | H133: 0 | I133: 0 | J133: 0 | K133: 0 | L133: 0 | M133: 0 | N133: 0
D134: Inventory consumed - finished Goods | E134: 0 | F134: 0 | G134: 0 | H134: 0 | I134: 0 | J134: 0 | K134: 0 | L134: 0 | M134: 0 | N134: 0
D135: Inventory consumed - housing stock | E135: 0 | F135: 0 | G135: 0 | H135: 0 | I135: 0 | J135: 0 | K135: 0 | L135: 0 | M135: 0 | N135: 0
D136: Inventory consumed - land | E136: 0 | F136: 0 | G136: 0 | H136: 0 | I136: 0 | J136: 0 | K136: 0 | L136: 0 | M136: 0 | N136: 0
D137: Inventory consumed - materials and supplies | E137: 0 | F137: 0 | G137: 0 | H137: 0 | I137: 0 | J137: 0 | K137: 0 | L137: 0 | M137: 0 | N137: 0
D138: Inventory consumed - standard rated | E138: 0 | F138: 0 | G138: 0 | H138: 0 | I138: 0 | J138: 0 | K138: 0 | L138: 0 | M138: 0 | N138: 0
D139: Inventory consumed - water | E139: 0 | F139: 0 | G139: 0 | H139: 0 | I139: 0 | J139: 0 | K139: 0 | L139: 0 | M139: 0 | N139: 0
D140: Inventory consumed - zero rated | E140: 0 | F140: 0 | G140: 0 | H140: 0 | I140: 0 | J140: 0 | K140: 0 | L140: 0 | M140: 0 | N140: 0
D141: Non-Cash Total | E141: 0 | F141: 0 | G141: 0 | H141: 0 | I141: 0 | J141: 0 | K141: 0 | L141: 0 | M141: 0 | N141: 0
B142: Expenditure / Inventory consumed Total | E142: 0 | F142: 0 | G142: 0 | H142: 0 | I142: 0 | J142: 0 | K142: 0 | L142: 0 | M142: 0 | N142: 0
A143: 3500 | B143: Expenditure / Debt impairment | C143: Non-Cash | D143: Impairment loss - exchange revenue - electricity | E143: 0 | F143: 0 | G143: 0 | H143: 0 | I143: 0 | J143: 0 | K143: 0 | L143: 0 | M143: 0 | N143: 0
D144: Impairment loss - exchange revenue - other | E144: 0 | F144: 0 | G144: 0 | H144: 0 | I144: 0 | J144: 0 | K144: 0 | L144: 0 | M144: 0 | N144: 0
D145: Impairment loss - exchange revenue - waste management | E145: 0 | F145: 0 | G145: 0 | H145: 0 | I145: 0 | J145: 0 | K145: 0 | L145: 0 | M145: 0 | N145: 0
D146: Impairment loss - exchange revenue - waste water management | E146: 0 | F146: 0 | G146: 0 | H146: 0 | I146: 0 | J146: 0 | K146: 0 | L146: 0 | M146: 0 | N146: 0
D147: Impairment loss - exchange revenue - water | E147: 0 | F147: 0 | G147: 0 | H147: 0 | I147: 0 | J147: 0 | K147: 0 | L147: 0 | M147: 0 | N147: 0
D148: Impairment loss - non-exchange revenue - other | E148: 0 | F148: 0 | G148: 0 | H148: 0 | I148: 0 | J148: 0 | K148: 0 | L148: 0 | M148: 0 | N148: 0
D149: Impairment loss - non-exchange revenue - prop rates | E149: 0 | F149: 0 | G149: 0 | H149: 0 | I149: 0 | J149: 0 | K149: 0 | L149: 0 | M149: 0 | N149: 0
D150: Impairment loss - non-exchange revenue - serv charges | E150: 0 | F150: 0 | G150: 0 | H150: 0 | I150: 0 | J150: 0 | K150: 0 | L150: 0 | M150: 0 | N150: 0
D151: Impairment loss - non-exchange revenue - serv charges - electricity | E151: 0 | F151: 0 | G151: 0 | H151: 0 | I151: 0 | J151: 0 | K151: 0 | L151: 0 | M151: 0 | N151: 0
D152: Impairment loss - non-exchange revenue - serv charges - waste management | E152: 0 | F152: 0 | G152: 0 | H152: 0 | I152: 0 | J152: 0 | K152: 0 | L152: 0 | M152: 0 | N152: 0
D153: Impairment loss - non-exchange revenue - serv charges - waste water management | E153: 0 | F153: 0 | G153: 0 | H153: 0 | I153: 0 | J153: 0 | K153: 0 | L153: 0 | M153: 0 | N153: 0
D154: Impairment loss - non-exchange revenue - serv charges - water | E154: 0 | F154: 0 | G154: 0 | H154: 0 | I154: 0 | J154: 0 | K154: 0 | L154: 0 | M154: 0 | N154: 0
D155: Reversal of Impairment loss - exchange revenue - electricity | E155: 0 | F155: 0 | G155: 0 | H155: 0 | I155: 0 | J155: 0 | K155: 0 | L155: 0 | M155: 0 | N155: 0
D156: Reversal of Impairment loss - non-exchange revenue - other | E156: 0 | F156: 0 | G156: 0 | H156: 0 | I156: 0 | J156: 0 | K156: 0 | L156: 0 | M156: 0 | N156: 0
D157: Reversal of Impairment loss - non-exchange revenue - prop rates | E157: 0 | F157: 0 | G157: 0 | H157: 0 | I157: 0 | J157: 0 | K157: 0 | L157: 0 | M157: 0 | N157: 0
D158: Reversal of Impairment loss - non-exchange revenue - serv charges | E158: 0 | F158: 0 | G158: 0 | H158: 0 | I158: 0 | J158: 0 | K158: 0 | L158: 0 | M158: 0 | N158: 0
D159: Reversal of Impairment loss - non-exchange revenue - serv charges - electricity | E159: 0 | F159: 0 | G159: 0 | H159: 0 | I159: 0 | J159: 0 | K159: 0 | L159: 0 | M159: 0 | N159: 0
D160: Reversal of Impairment loss - non-exchange revenue - serv charges - waste management | E160: 0 | F160: 0 | G160: 0 | H160: 0 | I160: 0 | J160: 0 | K160: 0 | L160: 0 | M160: 0 | N160: 0
D161: Reversal of Impairment loss - non-exchange revenue - serv charges - waste water mangement | E161: 0 | F161: 0 | G161: 0 | H161: 0 | I161: 0 | J161: 0 | K161: 0 | L161: 0 | M161: 0 | N161: 0
D162: Reversal of Impairment loss - non-exchange revenue - serv charges - water | E162: 0 | F162: 0 | G162: 0 | H162: 0 | I162: 0 | J162: 0 | K162: 0 | L162: 0 | M162: 0 | N162: 0
D163: Reversal of Impairment loss - exchange revenue - waste management | E163: 0 | F163: 0 | G163: 0 | H163: 0 | I163: 0 | J163: 0 | K163: 0 | L163: 0 | M163: 0 | N163: 0
D164: Reversal of Impairment loss - exchange revenue - waste water management | E164: 0 | F164: 0 | G164: 0 | H164: 0 | I164: 0 | J164: 0 | K164: 0 | L164: 0 | M164: 0 | N164: 0
D165: Reversal of Impairment loss - exchange revenue - water | E165: 0 | F165: 0 | G165: 0 | H165: 0 | I165: 0 | J165: 0 | K165: 0 | L165: 0 | M165: 0 | N165: 0
D166: Reversal of Impairment loss - exchange revenue - other | E166: 0 | F166: 0 | G166: 0 | H166: 0 | I166: 0 | J166: 0 | K166: 0 | L166: 0 | M166: 0 | N166: 0
D167: Non-Cash Total | E167: 0 | F167: 0 | G167: 0 | H167: 0 | I167: 0 | J167: 0 | K167: 0 | L167: 0 | M167: 0 | N167: 0
B168: Expenditure / Debt impairment Total | E168: 0 | F168: 0 | G168: 0 | H168: 0 | I168: 0 | J168: 0 | K168: 0 | L168: 0 | M168: 0 | N168: 0
A169: 3600 | B169: Expenditure / Depreciation and amortisation | C169: Non-Cash | D169: Amortisation - intangible assets | E169: 0 | F169: 0 | G169: 0 | H169: 0 | I169: 0 | J169: 0 | K169: 0 | L169: 0 | M169: 0 | N169: 0
D170: Depreciation - biological or cultivated assets | E170: 0 | F170: 0 | G170: 0 | H170: 0 | I170: 0 | J170: 0 | K170: 0 | L170: 0 | M170: 0 | N170: 0
D171: Depreciation - heritage assets | E171: 0 | F171: 0 | G171: 0 | H171: 0 | I171: 0 | J171: 0 | K171: 0 | L171: 0 | M171: 0 | N171: 0
D172: Depreciation - intangible assets | E172: 0 | F172: 0 | G172: 0 | H172: 0 | I172: 0 | J172: 0 | K172: 0 | L172: 0 | M172: 0 | N172: 0
D173: Depreciation - investment property | E173: 0 | F173: 0 | G173: 0 | H173: 0 | I173: 0 | J173: 0 | K173: 0 | L173: 0 | M173: 0 | N173: 0
D174: Depreciation - living resources | E174: 0 | F174: 0 | G174: 0 | H174: 0 | I174: 0 | J174: 0 | K174: 0 | L174: 0 | M174: 0 | N174: 0
D175: Depreciation - PPE | E175: 0 | F175: 0 | G175: 0 | H175: 0 | I175: 0 | J175: 0 | K175: 0 | L175: 0 | M175: 0 | N175: 0
D176: Depreciation - Land | E176: 0 | F176: 0 | G176: 0 | H176: 0 | I176: 0 | J176: 0 | K176: 0 | L176: 0 | M176: 0 | N176: 0
D177: Impairment loss - biological or cultivated assets | E177: 0 | F177: 0 | G177: 0 | H177: 0 | I177: 0 | J177: 0 | K177: 0 | L177: 0 | M177: 0 | N177: 0
D178: Impairment loss - heritage assets | E178: 0 | F178: 0 | G178: 0 | H178: 0 | I178: 0 | J178: 0 | K178: 0 | L178: 0 | M178: 0 | N178: 0
D179: Impairment loss - intangible assets | E179: 0 | F179: 0 | G179: 0 | H179: 0 | I179: 0 | J179: 0 | K179: 0 | L179: 0 | M179: 0 | N179: 0
D180: Impairment loss - investment property | E180: 0 | F180: 0 | G180: 0 | H180: 0 | I180: 0 | J180: 0 | K180: 0 | L180: 0 | M180: 0 | N180: 0
D181: Impairment loss - living resources | E181: 0 | F181: 0 | G181: 0 | H181: 0 | I181: 0 | J181: 0 | K181: 0 | L181: 0 | M181: 0 | N181: 0
D182: Impairment loss - PPE | E182: 0 | F182: 0 | G182: 0 | H182: 0 | I182: 0 | J182: 0 | K182: 0 | L182: 0 | M182: 0 | N182: 0
D183: Impairment loss - PPE - construction WIP | E183: 0 | F183: 0 | G183: 0 | H183: 0 | I183: 0 | J183: 0 | K183: 0 | L183: 0 | M183: 0 | N183: 0
D184: Reversal impairment loss - biological or cultivated assets | E184: 0 | F184: 0 | G184: 0 | H184: 0 | I184: 0 | J184: 0 | K184: 0 | L184: 0 | M184: 0 | N184: 0
D185: Reversal impairment loss - investment property | E185: 0 | F185: 0 | G185: 0 | H185: 0 | I185: 0 | J185: 0 | K185: 0 | L185: 0 | M185: 0 | N185: 0
D186: Reversal impairment loss - living resources | E186: 0 | F186: 0 | G186: 0 | H186: 0 | I186: 0 | J186: 0 | K186: 0 | L186: 0 | M186: 0 | N186: 0
D187: Reversal impairment loss - PPE | E187: 0 | F187: 0 | G187: 0 | H187: 0 | I187: 0 | J187: 0 | K187: 0 | L187: 0 | M187: 0 | N187: 0
D188: Reversal impairment loss - PPE - construction WIP | E188: 0 | F188: 0 | G188: 0 | H188: 0 | I188: 0 | J188: 0 | K188: 0 | L188: 0 | M188: 0 | N188: 0
D189: Reversal of impairment loss - heritage assets | E189: 0 | F189: 0 | G189: 0 | H189: 0 | I189: 0 | J189: 0 | K189: 0 | L189: 0 | M189: 0 | N189: 0
D190: Reversal of impairment loss - intangible assets | E190: 0 | F190: 0 | G190: 0 | H190: 0 | I190: 0 | J190: 0 | K190: 0 | L190: 0 | M190: 0 | N190: 0
D191: Non-Cash Total | E191: 0 | F191: 0 | G191: 0 | H191: 0 | I191: 0 | J191: 0 | K191: 0 | L191: 0 | M191: 0 | N191: 0
B192: Expenditure / Depreciation and amortisation Total | E192: 0 | F192: 0 | G192: 0 | H192: 0 | I192: 0 | J192: 0 | K192: 0 | L192: 0 | M192: 0 | N192: 0
A193: 3700 | B193: Expenditure / Interest | C193: Cash | D193: Direct cash payment | E193: 0 | F193: 0 | G193: 0 | H193: 0 | I193: 0 | J193: 0 | K193: 0 | L193: 0 | M193: 0 | N193: 0
D194: Cash Total | E194: 0 | F194: 0 | G194: 0 | H194: 0 | I194: 0 | J194: 0 | K194: 0 | L194: 0 | M194: 0 | N194: 0
C195: Non-Cash | D195: Accrual of finance charges - discounting of financial instruments | E195: 0 | F195: 0 | G195: 0 | H195: 0 | I195: 0 | J195: 0 | K195: 0 | L195: 0 | M195: 0 | N195: 0
D196: Accrual of finance charges - interest costs intercompany/parentsubsidiary transactions | E196: 0 | F196: 0 | G196: 0 | H196: 0 | I196: 0 | J196: 0 | K196: 0 | L196: 0 | M196: 0 | N196: 0
D197: Accrual of finance charges - interest costs long service awards | E197: 0 | F197: 0 | G197: 0 | H197: 0 | I197: 0 | J197: 0 | K197: 0 | L197: 0 | M197: 0 | N197: 0
D198: Accrual of finance charges - interest costs non-current provisions | E198: 0 | F198: 0 | G198: 0 | H198: 0 | I198: 0 | J198: 0 | K198: 0 | L198: 0 | M198: 0 | N198: 0
D199: Non-Cash Total | E199: 0 | F199: 0 | G199: 0 | H199: 0 | I199: 0 | J199: 0 | K199: 0 | L199: 0 | M199: 0 | N199: 0
B200: Expenditure / Interest Total | E200: 0 | F200: 0 | G200: 0 | H200: 0 | I200: 0 | J200: 0 | K200: 0 | L200: 0 | M200: 0 | N200: 0
... 111 more rows

Sheet A5-Capex
A2: =Vdesc -> Vote Description | B2: =head27 -> Ref | C2: =head1b -> 2022/23 | D2: =head1A -> 2023/24 | E2: =Head1 -> 2024/25 | F2: =Head2 -> Current Year 2025/26 | J2: =Head3 -> 2026/27 Medium Term Revenue & Expenditure Framework
A3: R thousand | B3: 1 | C3: =Head5 -> Audited Outcome | D3: =Head5 -> Audited Outcome | E3: =Head5 -> Audited Outcome | F3: =Head6 -> Original Budget | G3: =Head7 -> Adjusted Budget | H3: =Head8 -> Full Year Forecast | I3: =Head5b -> Pre-audit outcome | J3: =Head9 -> Budget Year 2026/27 | K3: =Head10 -> Budget Year +1 2027/28 | L3: =Head11 -> Budget Year +2 2028/29
A4: Capital expenditure - Vote
A5: Multi-year expenditure to be appropriated | B5: 2
A6: =A5A!A6 -> Vote 01 - Executive And Council | C6: =A5A!C6 -> 0 | D6: =A5A!D6 -> 0 | E6: =A5A!E6 -> 0 | F6: =A5A!F6 -> 0 | G6: =A5A!G6 -> 0 | H6: =A5A!H6 -> 0 | I6: =A5A!I6 -> 0 | J6: =A5A!J6 -> 0 | K6: =A5A!K6 -> 0 | L6: =A5A!L6 -> 0
A7: =A5A!A7 -> Vote 02 - Municipal Manager | C7: =A5A!C7 -> 0 | D7: =A5A!D7 -> 0 | E7: =A5A!E7 -> 0 | F7: =A5A!F7 -> 0 | G7: =A5A!G7 -> 0 | H7: =A5A!H7 -> 0 | I7: =A5A!I7 -> 0 | J7: =A5A!J7 -> 0 | K7: =A5A!K7 -> 0 | L7: =A5A!L7 -> 0
A8: =A5A!A8 -> Vote 03 - Corporate Services | C8: =A5A!C8 -> 0 | D8: =A5A!D8 -> 0 | E8: =A5A!E8 -> 0 | F8: =A5A!F8 -> 0 | G8: =A5A!G8 -> 0 | H8: =A5A!H8 -> 0 | I8: =A5A!I8 -> 0 | J8: =A5A!J8 -> 0 | K8: =A5A!K8 -> 2500000 | L8: =A5A!L8 -> 1500000
A9: =A5A!A10 -> Vote 04 - Budget And Treasury | C9: =A5A!C10 -> 0 | D9: =A5A!D10 -> 0 | E9: =A5A!E10 -> 0 | F9: =A5A!F10 -> 0 | G9: =A5A!G10 -> 0 | H9: =A5A!H10 -> 0 | I9: =A5A!I10 -> 0 | J9: =A5A!J10 -> 0 | K9: =A5A!K10 -> 0 | L9: =A5A!L10 -> 0
A10: =A5A!A11 -> Vote 05 - Community Services | C10: =A5A!C11 -> 0 | D10: =A5A!D11 -> 0 | E10: =A5A!E11 -> 0 | F10: =A5A!F11 -> 3050595 | G10: =A5A!G11 -> 21050595 | H10: =A5A!H11 -> 21050595 | I10: =A5A!I11 -> 966741.32 | J10: =A5A!J11 -> 11405595 | K10: =A5A!K11 -> 10000000 | L10: =A5A!L11 -> 18000000
A11: =A5A!A16 -> Vote 06 - Planning And Development | C11: =A5A!C16 -> 0 | D11: =A5A!D16 -> 0 | E11: =A5A!E16 -> 0 | F11: =A5A!F16 -> 0 | G11: =A5A!G16 -> 0 | H11: =A5A!H16 -> 0 | I11: =A5A!I16 -> 0 | J11: =A5A!J16 -> 0 | K11: =A5A!K16 -> 0 | L11: =A5A!L16 -> 0
A12: =A5A!A17 -> Vote 07 - Infrastructure Development | C12: =A5A!C17 -> 0 | D12: =A5A!D17 -> 0 | E12: =A5A!E17 -> 0 | F12: =A5A!F17 -> 18622983 | G12: =A5A!G17 -> 25220314 | H12: =A5A!H17 -> 25220314 | I12: =A5A!I17 -> 16646008.48 | J12: =A5A!J17 -> 50039924 | K12: =A5A!K17 -> 86761640 | L12: =A5A!L17 -> 116072104
A13: ='Org structure'!A9 -> Vote 08 - | C13: =A5A!C20 -> 0 | D13: =A5A!D20 -> 0 | E13: =A5A!E20 -> 0 | F13: =A5A!F20 -> 0 | G13: =A5A!G20 -> 0 | H13: =A5A!H20 -> 0 | I13: =A5A!I20 -> 0 | J13: =A5A!J20 -> 0 | K13: =A5A!K20 -> 0 | L13: =A5A!L20 -> 0
A14: ='Org structure'!A10 -> Vote 09 - | C14: =A5A!C21 -> 0 | D14: =A5A!D21 -> 0 | E14: =A5A!E21 -> 0 | F14: =A5A!F21 -> 0 | G14: =A5A!G21 -> 0 | H14: =A5A!H21 -> 0 | I14: =A5A!I21 -> 0 | J14: =A5A!J21 -> 0 | K14: =A5A!K21 -> 0 | L14: =A5A!L21 -> 0
A15: ='Org structure'!A11 -> Vote 10 - | C15: =A5A!C22 -> 0 | D15: =A5A!D22 -> 0 | E15: =A5A!E22 -> 0 | F15: =A5A!F22 -> 0 | G15: =A5A!G22 -> 0 | H15: =A5A!H22 -> 0 | I15: =A5A!I22 -> 0 | J15: =A5A!J22 -> 0 | K15: =A5A!K22 -> 0 | L15: =A5A!L22 -> 0
A16: ='Org structure'!A12 -> Vote 11 - | C16: =A5A!C23 -> 0 | D16: =A5A!D23 -> 0 | E16: =A5A!E23 -> 0 | F16: =A5A!F23 -> 0 | G16: =A5A!G23 -> 0 | H16: =A5A!H23 -> 0 | I16: =A5A!I23 -> 0 | J16: =A5A!J23 -> 0 | K16: =A5A!K23 -> 0 | L16: =A5A!L23 -> 0
A17: ='Org structure'!A13 -> Vote 12 - | C17: =A5A!C24 -> 0 | D17: =A5A!D24 -> 0 | E17: =A5A!E24 -> 0 | F17: =A5A!F24 -> 0 | G17: =A5A!G24 -> 0 | H17: =A5A!H24 -> 0 | I17: =A5A!I24 -> 0 | J17: =A5A!J24 -> 0 | K17: =A5A!K24 -> 0 | L17: =A5A!L24 -> 0
A18: ='Org structure'!A14 -> Vote 13 - | C18: =A5A!C25 -> 0 | D18: =A5A!D25 -> 0 | E18: =A5A!E25 -> 0 | F18: =A5A!F25 -> 0 | G18: =A5A!G25 -> 0 | H18: =A5A!H25 -> 0 | I18: =A5A!I25 -> 0 | J18: =A5A!J25 -> 0 | K18: =A5A!K25 -> 0 | L18: =A5A!L25 -> 0
A19: ='Org structure'!A15 -> Vote 14 - | C19: =A5A!C26 -> 0 | D19: =A5A!D26 -> 0 | E19: =A5A!E26 -> 0 | F19: =A5A!F26 -> 0 | G19: =A5A!G26 -> 0 | H19: =A5A!H26 -> 0 | I19: =A5A!I26 -> 0 | J19: =A5A!J26 -> 0 | K19: =A5A!K26 -> 0 | L19: =A5A!L26 -> 0
A20: ='Org structure'!A16 -> Vote 15 - Other | C20: =A5A!C27 -> 0 | D20: =A5A!D27 -> 0 | E20: =A5A!E27 -> 0 | F20: =A5A!F27 -> 0 | G20: =A5A!G27 -> 0 | H20: =A5A!H27 -> 0 | I20: =A5A!I27 -> 0 | J20: =A5A!J27 -> 0 | K20: =A5A!K27 -> 0 | L20: =A5A!L27 -> 0
A21: Capital multi-year expenditure sub-total | B21: 7 | C21: =SUM(C6:C20) -> 0 | D21: =SUM(D6:D20) -> 0 | E21: 0 | F21: 21673578 | G21: 46270909 | H21: =SUM(H6:H20) -> 46270909 | I21: 17612749.8 | J21: 61445519 | K21: 99261640 | L21: 135572104
A23: Single-year expenditure to be appropriated | B23: 2
A24: =A5A!A32 -> Vote 01 - Executive And Council | C24: =A5A!C32 -> 0 | D24: =A5A!D32 -> 0 | E24: =A5A!E32 -> 0 | F24: =A5A!F32 -> 0 | G24: =A5A!G32 -> 0 | H24: =A5A!H32 -> 0 | I24: =A5A!I32 -> 0 | J24: =A5A!J32 -> 0 | K24: =A5A!K32 -> 0 | L24: =A5A!L32 -> 0
A25: =A5A!A33 -> Vote 02 - Municipal Manager | C25: =A5A!C33 -> 0 | D25: =A5A!D33 -> 0 | E25: =A5A!E33 -> 0 | F25: =A5A!F33 -> 0 | G25: =A5A!G33 -> 0 | H25: =A5A!H33 -> 0 | I25: =A5A!I33 -> 0 | J25: =A5A!J33 -> 150000 | K25: =A5A!K33 -> 0 | L25: =A5A!L33 -> 0
A26: =A5A!A35 -> Vote 03 - Corporate Services | C26: =A5A!C35 -> 276.9 | D26: =A5A!D35 -> 1195556.1 | E26: =A5A!E35 -> 400308 | F26: =A5A!F35 -> 15300000 | G26: =A5A!G35 -> 16100000 | H26: =A5A!H35 -> 16100000 | I26: =A5A!I35 -> 6850352.2 | J26: =A5A!J35 -> 22250000 | K26: =A5A!K35 -> 3900000 | L26: =A5A!L35 -> 1700000
A27: =A5A!A39 -> Vote 04 - Budget And Treasury | C27: =A5A!C39 -> 0 | D27: =A5A!D39 -> 0 | E27: =A5A!E39 -> 0 | F27: =A5A!F39 -> 0 | G27: =A5A!G39 -> 0 | H27: =A5A!H39 -> 0 | I27: =A5A!I39 -> 0 | J27: =A5A!J39 -> 0 | K27: =A5A!K39 -> 0 | L27: =A5A!L39 -> 0
A28: =A5A!A40 -> Vote 05 - Community Services | C28: =A5A!C40 -> 0 | D28: =A5A!D40 -> 0 | E28: =A5A!E40 -> 0 | F28: =A5A!F40 -> 43750000 | G28: =A5A!G40 -> 46850000 | H28: =A5A!H40 -> 46850000 | I28: =A5A!I40 -> 24312383.95 | J28: =A5A!J40 -> 40350000 | K28: =A5A!K40 -> 21000000 | L28: =A5A!L40 -> 9000000
A29: =A5A!A46 -> Vote 06 - Planning And Development | C29: =A5A!C46 -> 0 | D29: =A5A!D46 -> 0 | E29: =A5A!E46 -> 0 | F29: =A5A!F46 -> 32000000 | G29: =A5A!G46 -> 29000000 | H29: =A5A!H46 -> 29000000 | I29: =A5A!I46 -> 27788966.31 | J29: =A5A!J46 -> 38817000 | K29: =A5A!K46 -> 10000000 | L29: =A5A!L46 -> 10000000
A30: =A5A!A48 -> Vote 07 - Infrastructure Development | C30: =A5A!C48 -> 0 | D30: =A5A!D48 -> -0.01 | E30: =A5A!E48 -> 0 | F30: =A5A!F48 -> 134142121 | G30: =A5A!G48 -> 154387251 | H30: =A5A!H48 -> 154387251 | I30: =A5A!I48 -> 102126101.9 | J30: =A5A!J48 -> 72982381 | K30: =A5A!K48 -> 56500000 | L30: =A5A!L48 -> 46546000
A31: ='Org structure'!A9 -> Vote 08 - | C31: =A5A!C52 -> 0 | D31: =A5A!D52 -> 0 | E31: =A5A!E52 -> 0 | F31: =A5A!F52 -> 0 | G31: =A5A!G52 -> 0 | H31: =A5A!H52 -> 0 | I31: =A5A!I52 -> 0 | J31: =A5A!J52 -> 0 | K31: =A5A!K52 -> 0 | L31: =A5A!L52 -> 0
A32: ='Org structure'!A10 -> Vote 09 - | C32: =A5A!C53 -> 0 | D32: =A5A!D53 -> 0 | E32: =A5A!E53 -> 0 | F32: =A5A!F53 -> 0 | G32: =A5A!G53 -> 0 | H32: =A5A!H53 -> 0 | I32: =A5A!I53 -> 0 | J32: =A5A!J53 -> 0 | K32: =A5A!K53 -> 0 | L32: =A5A!L53 -> 0
A33: ='Org structure'!A11 -> Vote 10 - | C33: =A5A!C54 -> 0 | D33: =A5A!D54 -> 0 | E33: =A5A!E54 -> 0 | F33: =A5A!F54 -> 0 | G33: =A5A!G54 -> 0 | H33: =A5A!H54 -> 0 | I33: =A5A!I54 -> 0 | J33: =A5A!J54 -> 0 | K33: =A5A!K54 -> 0 | L33: =A5A!L54 -> 0
A34: ='Org structure'!A12 -> Vote 11 - | C34: =A5A!C55 -> 0 | D34: =A5A!D55 -> 0 | E34: =A5A!E55 -> 0 | F34: =A5A!F55 -> 0 | G34: =A5A!G55 -> 0 | H34: =A5A!H55 -> 0 | I34: =A5A!I55 -> 0 | J34: =A5A!J55 -> 0 | K34: =A5A!K55 -> 0 | L34: =A5A!L55 -> 0
A35: ='Org structure'!A13 -> Vote 12 - | C35: =A5A!C56 -> 0 | D35: =A5A!D56 -> 0 | E35: =A5A!E56 -> 0 | F35: =A5A!F56 -> 0 | G35: =A5A!G56 -> 0 | H35: =A5A!H56 -> 0 | I35: =A5A!I56 -> 0 | J35: =A5A!J56 -> 0 | K35: =A5A!K56 -> 0 | L35: =A5A!L56 -> 0
A36: ='Org structure'!A14 -> Vote 13 - | C36: =A5A!C57 -> 0 | D36: =A5A!D57 -> 0 | E36: =A5A!E57 -> 0 | F36: =A5A!F57 -> 0 | G36: =A5A!G57 -> 0 | H36: =A5A!H57 -> 0 | I36: =A5A!I57 -> 0 | J36: =A5A!J57 -> 0 | K36: =A5A!K57 -> 0 | L36: =A5A!L57 -> 0
A37: ='Org structure'!A15 -> Vote 14 - | C37: =A5A!C58 -> 0 | D37: =A5A!D58 -> 0 | E37: =A5A!E58 -> 0 | F37: =A5A!F58 -> 0 | G37: =A5A!G58 -> 0 | H37: =A5A!H58 -> 0 | I37: =A5A!I58 -> 0 | J37: =A5A!J58 -> 0 | K37: =A5A!K58 -> 0 | L37: =A5A!L58 -> 0
A38: ='Org structure'!A16 -> Vote 15 - Other | C38: =A5A!C59 -> 0 | D38: =A5A!D59 -> 0 | E38: =A5A!E59 -> 0 | F38: =A5A!F59 -> 0 | G38: =A5A!G59 -> 0 | H38: =A5A!H59 -> 0 | I38: =A5A!I59 -> 0 | J38: =A5A!J59 -> 0 | K38: =A5A!K59 -> 0 | L38: =A5A!L59 -> 0
A39: Capital single-year expenditure sub-total | C39: =SUM(C24:C38) -> 276.9 | D39: =SUM(D24:D38) -> 1195556.09 | E39: 400308 | F39: 225192121 | G39: 246337251 | H39: 246337251 | I39: 161077804.4 | J39: 174549381 | K39: 91400000 | L39: 67246000
A40: Total Capital Expenditure - Vote | C40: =C39+C21 -> 276.9 | D40: =D39+D21 -> 1195556.09 | E40: 400308 | F40: 246865699 | G40: 292608160 | H40: 292608160 | I40: 178690554.2 | J40: 235994900 | K40: 190661640 | L40: 202818104
A42: Capital Expenditure - Functional
A43: Governance and administration | C43: =SUM(C44:C46) -> 276.9 | D43: =SUM(D44:D46) -> 1195556.1 | E43: 400308 | F43: 15300000 | G43: 16100000 | H43: 16100000 | I43: 6850352.2 | J43: 26800000 | K43: 8400000 | L43: 8200000
A44: Executive and council
A45: Finance and administration | C45: 276.9 | D45: 1195556.1 | E45: 400308 | F45: 15300000 | G45: 16100000 | H45: 16100000 | I45: 6850352.2 | J45: 26800000 | K45: 8400000 | L45: 8200000
A46: Internal audit
A47: Community and public safety | C47: =SUM(C48:C52) -> 0 | D47: =SUM(D48:D52) -> 0 | E47: 0 | F47: 14400000 | G47: 33400000 | H47: 33400000 | I47: 9241307.98 | J47: 18675000 | K47: 8500000 | L47: 8000000
A48: Community and social services | C48: 0 | D48: 0 | E48: 0 | F48: 14400000 | G48: 33400000 | H48: 33400000 | I48: 9241307.98 | J48: 18675000 | K48: 8500000 | L48: 8000000
A49: Sport and recreation
A50: Public safety | C50: 0 | D50: 0 | E50: 0 | F50: 0 | G50: 0 | H50: 0 | I50: 0 | J50: 0 | K50: 0 | L50: 0
A51: Housing
A52: Health
A53: Economic and environmental services | C53: =SUM(C54:C56) -> 0 | D53: =SUM(D54:D56) -> -0.01 | E53: 0 | F53: 174535104 | G53: 203077565 | H53: 203077565 | I53: 157817670.4 | J53: 156289305 | K53: 149261640 | L53: 168118104
A54: Planning and development | C54: 0 | D54: -0.01 | E54: 0 | F54: 70129121 | G54: 77320382 | H54: 77320382 | I54: 60875140.75 | J54: 94349381 | K54: 74561640 | L54: 126672104
A55: Road transport | C55: 0 | D55: 0 | E55: 0 | F55: 103435983 | G55: 124787183 | H55: 124787183 | I55: 96942529.67 | J55: 61539924 | K55: 74700000 | L55: 41446000
A56: Environmental protection | C56: 0 | D56: 0 | E56: 0 | F56: 970000 | G56: 970000 | H56: 970000 | I56: 0 | J56: 400000 | K56: 0 | L56: 0
A57: Trading services | C57: =SUM(C58:C61) -> 0 | D57: =SUM(D58:D61) -> 0 | E57: 0 | F57: 42630595 | G57: 40030595 | H57: 40030595 | I57: 4781223.57 | J57: 34230595 | K57: 24500000 | L57: 18500000
A58: Energy sources | C58: 0 | D58: 0 | E58: 0 | F58: 21200000 | G58: 21600000 | H58: 21600000 | I58: 3009193.03 | J58: 6000000 | K58: 4000000 | L58: 4500000
A59: Water management
A60: Waste water management
A61: Waste management | C61: 0 | D61: 0 | E61: 0 | F61: 21430595 | G61: 18430595 | H61: 18430595 | I61: 1772030.54 | J61: 28230595 | K61: 20500000 | L61: 14000000
A62: Other
A63: Total Capital Expenditure - Functional | B63: 3 | C63: =C43+C47+C53+C57+C62 -> 276.9 | D63: =D43+D47+D53+D57+D62 -> 1195556.09 | E63: 400308 | F63: 246865699 | G63: 292608160 | H63: 292608160 | I63: 178690554.2 | J63: 235994900 | K63: 190661640 | L63: =L43+L47+L53+L57+L62 -> 202818104
A65: Funded by:
A66: National Government | C66: 0 | D66: -0.01 | E66: 0 | F66: 57082699 | G66: 81945660 | H66: 81945660 | I66: 43343251.88 | J66: 64452900 | K66: 71461640 | L66: 73722104
A67: Provincial Government | C67: 0 | D67: 0 | E67: 0 | F67: 0 | G67: 0 | H67: 0 | I67: 0 | J67: 0 | K67: 0 | L67: 0
A68: District Municipality
A69: Transfers and subsidies - capital (monetary allocations) (Nat / Prov Departm Agencies, Households, Non-profit Institutions, Private Enterprises, Public Corporatons, Higher Educ Institutions)
A70: Transfers recognised - capital | B70: 4 | C70: =SUM(C66:C69) -> 0 | D70: -0.01 | E70: 0 | F70: 57082699 | G70: 81945660 | H70: 81945660 | I70: 43343251.88 | J70: 64452900 | K70: 71461640 | L70: 73722104
A72: Borrowing | B72: 6
A73: Internally generated funds | C73: 276.9 | D73: 1195556.1 | E73: 400308 | F73: 189783000 | G73: 210662500 | H73: 210662500 | I73: 135347302.3 | J73: 171542000 | K73: 119200000 | L73: 129096000
A74: Total Capital Funding | B74: 7 | C74: =+C70+C72+C73 -> 276.9 | D74: =+D70+D72+D73 -> 1195556.09 | E74: 400308 | F74: 246865699 | G74: 292608160 | H74: 292608160 | I74: 178690554.2 | J74: 235994900 | K74: 190661640 | L74: 202818104
A75: =head27a -> References
A76: 1. Municipalities may choose to appropriate for capital expenditure for three years or for one year (if one year appropriation projected expenditure required for yr2 and yr3).
A77: 2. Include capital component of PPP unitary payment. Note that capital transfers are only appropriated to municipalities for the budget year
A78: 3. Capital expenditure by functional classification must reconcile to the appropriations by vote
A79: 4. Must reconcile to supporting table SA20 and to Budgeted Financial Performance (revenue and expenditure)
A81: 6. Include finance leases and PPP capital funding component of unitary payment - total borrowing/repayments to reconcile to changes in Table SA17
A82: 7. Total Capital Funding must balance with Total Capital Expenditure
A83: 8. Include any capitalised interest (MFMA section 46) as part of relevant capital budget

Sheet A5A
A1: =muni&" - "&Approve5 -> LIM355 Lepelle-Nkumpi - Table A5 Budgeted Capital Expenditure by vote, functional classification and funding
A2: =Vdesc -> Vote Description | B2: =head27 -> Ref | C2: =head1b -> 2022/23 | D2: =head1A -> 2023/24 | E2: =Head1 -> 2024/25 | F2: =Head2 -> Current Year 2025/26 | J2: =Head3 -> 2026/27 Medium Term Revenue & Expenditure Framework | N2: ="Multi-year appropriation for "&Head9& " in the "&Head2A&" Annual Budget" -> Multi-year appropriation for Budget Year 2026/27 in the 2025/26 Annual Budget | R2: ="Multi-year appropriation for "&RIGHT(Head10,7)& " in the "&Head2A&" Annual Budget" -> Multi-year appropriation for 2027/28 in the 2025/26 Annual Budget | V2: New multi-year appropriations (funds for new and existing projects)
A3: R thousand | B3: 1 | C3: =Head5 -> Audited Outcome | D3: =Head5 -> Audited Outcome | E3: =Head5 -> Audited Outcome | F3: =Head6 -> Original Budget | G3: =Head7 -> Adjusted Budget | H3: =Head8 -> Full Year Forecast | I3: =Head5b -> Pre-audit outcome | J3: =Head9 -> Budget Year 2026/27 | K3: =Head10 -> Budget Year +1 2027/28 | L3: =Head11 -> Budget Year +2 2028/29 | N3: ="Appropriation for "&RIGHT(Head9,7) -> Appropriation for 2026/27 | O3: ="Adjustments in "&Head2A -> Adjustments in 2025/26 | P3: ="Downward adjustments for "&RIGHT(Head9,7) -> Downward adjustments for 2026/27 | Q3: Appropriation carried forward | R3: ="Appropriation for "&RIGHT(Head9,7) -> Appropriation for 2026/27 | S3: ="Adjustments in "&Head2A -> Adjustments in 2025/26 | T3: ="Downward adjustments for "&RIGHT(Head9,7) -> Downward adjustments for 2026/27 | U3: Appropriation carried forward | V3: =Head9 -> Budget Year 2026/27 | W3: =Head10 -> Budget Year +1 2027/28 | X3: =Head11 -> Budget Year +2 2028/29
A4: Capital expenditure - Municipal Vote
A5: Multi-year expenditure appropriation | B5: 2
A6: ='Org structure'!A2 -> Vote 01 - Executive And Council | C6: 0 | D6: 0 | E6: 0 | F6: 0 | G6: 0 | H6: 0 | I6: 0 | J6: 0 | K6: 0 | L6: 0 | N6: 0 | O6: 0 | P6: 0 | Q6: 0 | R6: 0 | S6: 0 | T6: 0 | U6: 0 | V6: 0 | W6: 0
A7: ='Org structure'!A3 -> Vote 02 - Municipal Manager | C7: 0 | D7: 0 | E7: 0 | F7: 0 | G7: 0 | H7: 0 | I7: 0 | J7: 0 | K7: 0 | L7: 0 | N7: 0 | O7: 0 | P7: 0 | Q7: 0 | R7: 0 | S7: 0 | T7: 0 | U7: 0 | V7: 0 | W7: 0
A8: ='Org structure'!A4 -> Vote 03 - Corporate Services | C8: =SUM(C9:C9) -> 0 | D8: 0 | E8: 0 | F8: 0 | G8: 0 | H8: 0 | I8: 0 | J8: 0 | K8: 2500000 | L8: 1500000 | N8: =SUM(N9:N9) -> 0 | O8: 0 | P8: 0 | Q8: 0 | R8: 2500000 | S8: 0 | T8: 0 | U8: 2500000 | V8: 0 | W8: 0 | X8: 1500000
A9: ='Org structure'!E20 -> 03.7 - Gen Adm_Sec_Fleet: Fleet Management | C9: 0 | D9: 0 | E9: 0 | F9: 0 | G9: 0 | H9: 0 | I9: 0 | J9: =Q9+V9 -> 0 | K9: =U9+W9 -> 2500000 | L9: =X9 -> 1500000 | N9: 0 | O9: 0 | P9: 0 | Q9: =SUM(N9:P9) -> 0 | R9: 2500000 | S9: 0 | T9: 0 | U9: =SUM(R9:T9) -> 2500000 | V9: 0 | W9: 0 | X9: 1500000
A10: ='Org structure'!A5 -> Vote 04 - Budget And Treasury | C10: 0 | D10: 0 | E10: 0 | F10: 0 | G10: 0 | H10: 0 | I10: 0 | J10: 0 | K10: 0 | L10: 0 | N10: 0 | O10: 0 | P10: 0 | Q10: 0 | R10: 0 | S10: 0 | T10: 0 | U10: 0 | V10: 0 | W10: 0
A11: ='Org structure'!A6 -> Vote 05 - Community Services | C11: =SUM(C12:C15) -> 0 | D11: 0 | E11: 0 | F11: 3050595 | G11: 21050595 | H11: 21050595 | I11: 966741.32 | J11: 11405595 | K11: 10000000 | L11: 18000000 | N11: =SUM(N12:N15) -> 11405595 | O11: 0 | P11: 0 | Q11: 11405595 | R11: 10000000 | S11: 0 | T11: 0 | U11: 10000000 | V11: 0 | W11: 0 | X11: 18000000
A12: ='Org structure'!E30 -> 05.2 - Waste Management Services | C12: 0 | D12: 0 | E12: 0 | F12: 2930595 | G12: 2930595 | H12: 2930595 | I12: 0 | J12: =Q12+V12 -> 2930595 | K12: =U12+W12 -> 1500000 | L12: =X12 -> 10000000 | N12: 2930595 | O12: 0 | P12: 0 | Q12: =SUM(N12:P12) -> 2930595 | R12: 1500000 | S12: 0 | T12: 0 | U12: =SUM(R12:T12) -> 1500000 | V12: 0 | W12: 0 | X12: 10000000
A13: ='Org structure'!E31 -> 05.3 - Environmental Management Services | C13: 0 | D13: 0 | E13: 0 | F13: 120000 | G13: 120000 | H13: 120000 | I13: 0 | J13: =Q13+V13 -> 0 | K13: =U13+W13 -> 0 | L13: =X13 -> 0 | N13: 0 | O13: 0 | P13: 0 | Q13: =SUM(N13:P13) -> 0 | R13: 0 | S13: 0 | T13: 0 | U13: =SUM(R13:T13) -> 0 | V13: 0 | W13: 0 | X13: 0
A14: ='Org structure'!E37 -> 05.9 - Community Halls And Facilities | C14: 0 | D14: 0 | E14: 0 | F14: 0 | G14: 0 | H14: 0 | I14: 0 | J14: =Q14+V14 -> 8475000 | K14: =U14+W14 -> 8500000 | L14: =X14 -> 8000000 | N14: 8475000 | O14: 0 | P14: 0 | Q14: =SUM(N14:P14) -> 8475000 | R14: 8500000 | S14: 0 | T14: 0 | U14: =SUM(R14:T14) -> 8500000 | V14: 0 | W14: 0 | X14: 8000000
A15: ='Org structure'!E38 -> 05.10 - Disaster Management | C15: 0 | D15: 0 | E15: 0 | F15: 0 | G15: 18000000 | H15: 18000000 | I15: 966741.32 | J15: =Q15+V15 -> 0 | K15: =U15+W15 -> 0 | L15: =X15 -> 0 | N15: 0 | O15: 0 | P15: 0 | Q15: =SUM(N15:P15) -> 0 | R15: 0 | S15: 0 | T15: 0 | U15: =SUM(R15:T15) -> 0 | V15: 0 | W15: 0 | X15: 0
A16: ='Org structure'!A7 -> Vote 06 - Planning And Development | C16: 0 | D16: 0 | E16: 0 | F16: 0 | G16: 0 | H16: 0 | I16: 0 | J16: 0 | K16: 0 | L16: 0 | N16: 0 | O16: 0 | P16: 0 | Q16: 0 | R16: 0 | S16: 0 | T16: 0 | U16: 0 | V16: 0 | W16: 0
A17: ='Org structure'!A8 -> Vote 07 - Infrastructure Development | C17: =SUM(C18:C19) -> 0 | D17: 0 | E17: 0 | F17: 18622983 | G17: 25220314 | H17: 25220314 | I17: 16646008.48 | J17: 50039924 | K17: 86761640 | L17: 116072104 | N17: =SUM(N18:N19) -> 50039924 | O17: 0 | P17: 0 | Q17: 50039924 | R17: 86761640 | S17: 0 | T17: 0 | U17: 86761640 | V17: 0 | W17: 0 | X17: 116072104
A18: ='Org structure'!E48 -> 07.2 - Road Construction & Maintenance | C18: 0 | D18: 0 | E18: 0 | F18: 12622983 | G18: 9294683 | H18: 9294683 | I18: 9290336.12 | J18: =Q18+V18 -> 21239924 | K18: =U18+W18 -> 31000000 | L18: =X18 -> 5500000 | N18: 21239924 | O18: 0 | P18: 0 | Q18: =SUM(N18:P18) -> 21239924 | R18: 31000000 | S18: 0 | T18: 0 | U18: =SUM(R18:T18) -> 31000000 | V18: 0 | W18: 0 | X18: 5500000
A19: ='Org structure'!E50 -> 07.4 - Project Management | C19: 0 | D19: 0 | E19: 0 | F19: 6000000 | G19: 15925631 | H19: 15925631 | I19: 7355672.36 | J19: =Q19+V19 -> 28800000 | K19: =U19+W19 -> 55761640 | L19: =X19 -> 110572104 | N19: 28800000 | O19: 0 | P19: 0 | Q19: =SUM(N19:P19) -> 28800000 | R19: 55761640 | S19: 0 | T19: 0 | U19: =SUM(R19:T19) -> 55761640 | V19: 0 | W19: 0 | X19: 110572104
A20: ='Org structure'!A9 -> Vote 08 - | C20: 0 | D20: 0 | E20: 0 | F20: 0 | G20: 0 | H20: 0 | I20: 0 | J20: 0 | K20: 0 | L20: 0 | N20: 0 | O20: 0 | P20: 0 | Q20: 0 | R20: 0 | S20: 0 | T20: 0 | U20: 0 | V20: 0 | W20: 0 | X20: 0
A21: ='Org structure'!A10 -> Vote 09 - | C21: 0 | D21: 0 | E21: 0 | F21: 0 | G21: 0 | H21: 0 | I21: 0 | J21: 0 | K21: 0 | L21: 0 | N21: 0 | O21: 0 | P21: 0 | Q21: 0 | R21: 0 | S21: 0 | T21: 0 | U21: 0 | V21: 0 | W21: 0 | X21: 0
A22: ='Org structure'!A11 -> Vote 10 - | C22: 0 | D22: 0 | E22: 0 | F22: 0 | G22: 0 | H22: 0 | I22: 0 | J22: 0 | K22: 0 | L22: 0 | N22: 0 | O22: 0 | P22: 0 | Q22: 0 | R22: 0 | S22: 0 | T22: 0 | U22: 0 | V22: 0 | W22: 0 | X22: 0
A23: ='Org structure'!A12 -> Vote 11 - | C23: 0 | D23: 0 | E23: 0 | F23: 0 | G23: 0 | H23: 0 | I23: 0 | J23: 0 | K23: 0 | L23: 0 | N23: 0 | O23: 0 | P23: 0 | Q23: 0 | R23: 0 | S23: 0 | T23: 0 | U23: 0 | V23: 0 | W23: 0 | X23: 0
A24: ='Org structure'!A13 -> Vote 12 - | C24: 0 | D24: 0 | E24: 0 | F24: 0 | G24: 0 | H24: 0 | I24: 0 | J24: 0 | K24: 0 | L24: 0 | N24: 0 | O24: 0 | P24: 0 | Q24: 0 | R24: 0 | S24: 0 | T24: 0 | U24: 0 | V24: 0 | W24: 0 | X24: 0
A25: ='Org structure'!A14 -> Vote 13 - | C25: 0 | D25: 0 | E25: 0 | F25: 0 | G25: 0 | H25: 0 | I25: 0 | J25: 0 | K25: 0 | L25: 0 | N25: 0 | O25: 0 | P25: 0 | Q25: 0 | R25: 0 | S25: 0 | T25: 0 | U25: 0 | V25: 0 | W25: 0 | X25: 0
A26: ='Org structure'!A15 -> Vote 14 - | C26: 0 | D26: 0 | E26: 0 | F26: 0 | G26: 0 | H26: 0 | I26: 0 | J26: 0 | K26: 0 | L26: 0 | N26: 0 | O26: 0 | P26: 0 | Q26: 0 | R26: 0 | S26: 0 | T26: 0 | U26: 0 | V26: 0 | W26: 0 | X26: 0
A27: ='Org structure'!A16 -> Vote 15 - Other | C27: 0 | D27: 0 | E27: 0 | F27: 0 | G27: 0 | H27: 0 | I27: 0 | J27: 0 | K27: 0 | L27: 0 | N27: 0 | O27: 0 | P27: 0 | Q27: 0 | R27: 0 | S27: 0 | T27: 0 | U27: 0 | V27: 0 | W27: 0 | X27: 0
A28: Capital multi-year expenditure sub-total | C28: =C6+C7+C8+C10+C11+C16+C17+C20+C21+C22+C23+C24+C25+C26+C27 -> 0 | D28: 0 | E28: 0 | F28: 21673578 | G28: 46270909 | H28: 46270909 | I28: 17612749.8 | J28: 61445519 | K28: 99261640 | L28: 135572104 | N28: =N6+N7+N8+N10+N11+N16+N17+N20+N21+N22+N23+N24+N25+N26+N27 -> 61445519 | O28: 0 | P28: 0 | Q28: 61445519 | R28: 99261640 | S28: 0 | T28: 0 | U28: 99261640 | V28: 0 | W28: 0
A30: Capital expenditure - Municipal Vote
A31: Single-year expenditure appropriation | B31: 2
A32: ='Org structure'!A2 -> Vote 01 - Executive And Council | C32: 0 | D32: 0 | E32: 0 | F32: 0 | G32: 0 | H32: 0 | I32: 0 | J32: 0 | K32: 0 | L32: 0
A33: ='Org structure'!A3 -> Vote 02 - Municipal Manager | C33: =SUM(C34:C34) -> 0 | D33: 0 | E33: 0 | F33: 0 | G33: 0 | H33: 0 | I33: 0 | J33: 150000 | K33: 0 | L33: 0
A34: ='Org structure'!E11 -> 02.4 - Communications | C34: 0 | D34: 0 | E34: 0 | F34: 0 | G34: 0 | H34: 0 | I34: 0 | J34: 150000 | K34: 0 | L34: 0
A35: ='Org structure'!A4 -> Vote 03 - Corporate Services | C35: =SUM(C36:C38) -> 276.9 | D35: 1195556.1 | E35: 400308 | F35: 15300000 | G35: 16100000 | H35: 16100000 | I35: 6850352.2 | J35: 22250000 | K35: 3900000 | L35: 1700000
A36: ='Org structure'!E16 -> 03.3 - Information Technology | C36: 0 | D36: 0 | E36: 0 | F36: 1650000 | G36: 2450000 | H36: 2450000 | I36: 2053660.06 | J36: 7200000 | K36: 1700000 | L36: 1500000
A37: ='Org structure'!E18 -> 03.5 - Gen Adm_Sec_Fleet: General Administrat | C37: 276.9 | D37: 1195556.1 | E37: 400308 | F37: 13650000 | G37: 13650000 | H37: 13650000 | I37: 4796692.14 | J37: 13550000 | K37: 2200000 | L37: 200000
A38: ='Org structure'!E19 -> 03.6 - Gen Adm_Sec_Fleet: Security Services | C38: 0 | D38: 0 | E38: 0 | F38: 0 | G38: 0 | H38: 0 | I38: 0 | J38: 1500000 | K38: 0 | L38: 0
A39: ='Org structure'!A5 -> Vote 04 - Budget And Treasury | C39: 0 | D39: 0 | E39: 0 | F39: 0 | G39: 0 | H39: 0 | I39: 0 | J39: 0 | K39: 0 | L39: 0
A40: ='Org structure'!A6 -> Vote 05 - Community Services | C40: =SUM(C41:C45) -> 0 | D40: 0 | E40: 0 | F40: 43750000 | G40: 46850000 | H40: 46850000 | I40: 24312383.95 | J40: 40350000 | K40: 21000000 | L40: 9000000
A41: ='Org structure'!E30 -> 05.2 - Waste Management Services | C41: 0 | D41: 0 | E41: 0 | F41: 18500000 | G41: 15500000 | H41: 15500000 | I41: 1772030.54 | J41: 25300000 | K41: 19000000 | L41: 4000000
A42: ='Org structure'!E31 -> 05.3 - Environmental Management Services | C42: 0 | D42: 0 | E42: 0 | F42: 850000 | G42: 850000 | H42: 850000 | I42: 0 | J42: 400000 | K42: 0 | L42: 0
A43: ='Org structure'!E33 -> 05.5 - Road Traffic&Law Enforce: Licencing Serv | C43: 0 | D43: 0 | E43: 0 | F43: 10000000 | G43: 15100000 | H43: 15100000 | I43: 14265786.75 | J43: 50000 | K43: 0 | L43: 0
A44: ='Org structure'!E35 -> 05.7 - Institutional & Social Dev Management | C44: 0 | D44: 0 | E44: 0 | F44: 0 | G44: 0 | H44: 0 | I44: 0 | J44: 4400000 | K44: 2000000 | L44: 5000000
A45: ='Org structure'!E37 -> 05.9 - Community Halls And Facilities | C45: 0 | D45: 0 | E45: 0 | F45: 14400000 | G45: 15400000 | H45: 15400000 | I45: 8274566.66 | J45: 10200000 | K45: 0 | L45: 0
A46: ='Org structure'!A7 -> Vote 06 - Planning And Development | C46: =SUM(C47:C47) -> 0 | D46: 0 | E46: 0 | F46: 32000000 | G46: 29000000 | H46: 29000000 | I46: 27788966.31 | J46: 38817000 | K46: 10000000 | L46: 10000000
A47: ='Org structure'!E42 -> 06.3 - Development & Town Planning | C47: 0 | D47: 0 | E47: 0 | F47: 32000000 | G47: 29000000 | H47: 29000000 | I47: 27788966.31 | J47: 38817000 | K47: 10000000 | L47: 10000000
A48: ='Org structure'!A8 -> Vote 07 - Infrastructure Development | C48: =SUM(C49:C51) -> 0 | D48: -0.01 | E48: 0 | F48: 134142121 | G48: 154387251 | H48: 154387251 | I48: 102126101.9 | J48: 72982381 | K48: 56500000 | L48: 46546000
A49: ='Org structure'!E48 -> 07.2 - Road Construction & Maintenance | C49: 0 | D49: 0 | E49: 0 | F49: 80813000 | G49: 100392500 | H49: 100392500 | I49: 73386406.8 | J49: 40250000 | K49: 43700000 | L49: 35946000
A50: ='Org structure'!E49 -> 07.3 - Electrical & Mechanical Works | C50: 0 | D50: 0 | E50: 0 | F50: 21200000 | G50: 21600000 | H50: 21600000 | I50: 3009193.03 | J50: 6000000 | K50: 4000000 | L50: 4500000
A51: ='Org structure'!E50 -> 07.4 - Project Management | C51: 0 | D51: -0.01 | E51: 0 | F51: 32129121 | G51: 32394751 | H51: 32394751 | I51: 25730502.08 | J51: 26732381 | K51: 8800000 | L51: 6100000
A52: ='Org structure'!A9 -> Vote 08 - | C52: 0 | D52: 0 | E52: 0 | F52: 0 | G52: 0 | H52: 0 | I52: 0 | J52: 0 | K52: 0 | L52: 0
A53: ='Org structure'!A10 -> Vote 09 - | C53: 0 | D53: 0 | E53: 0 | F53: 0 | G53: 0 | H53: 0 | I53: 0 | J53: 0 | K53: 0 | L53: 0
A54: ='Org structure'!A11 -> Vote 10 - | C54: 0 | D54: 0 | E54: 0 | F54: 0 | G54: 0 | H54: 0 | I54: 0 | J54: 0 | K54: 0 | L54: 0
A55: ='Org structure'!A12 -> Vote 11 - | C55: 0 | D55: 0 | E55: 0 | F55: 0 | G55: 0 | H55: 0 | I55: 0 | J55: 0 | K55: 0 | L55: 0
A56: ='Org structure'!A13 -> Vote 12 - | C56: 0 | D56: 0 | E56: 0 | F56: 0 | G56: 0 | H56: 0 | I56: 0 | J56: 0 | K56: 0 | L56: 0
A57: ='Org structure'!A14 -> Vote 13 - | C57: 0 | D57: 0 | E57: 0 | F57: 0 | G57: 0 | H57: 0 | I57: 0 | J57: 0 | K57: 0 | L57: 0
A58: ='Org structure'!A15 -> Vote 14 - | C58: 0 | D58: 0 | E58: 0 | F58: 0 | G58: 0 | H58: 0 | I58: 0 | J58: 0 | K58: 0 | L58: 0
A59: ='Org structure'!A16 -> Vote 15 - Other | C59: 0 | D59: 0 | E59: 0 | F59: 0 | G59: 0 | H59: 0 | I59: 0 | J59: 0 | K59: 0 | L59: 0
A60: Capital single-year expenditure sub-total | C60: =C32+C33+C35+C39+C40+C46+C48+C52+C53+C54+C55+C56+C57+C58+C59 -> 276.9 | D60: 1195556.09 | E60: 400308 | F60: 225192121 | G60: 246337251 | H60: 246337251 | I60: 161077804.4 | J60: 174549381 | K60: 91400000 | L60: 67246000
A61: Total Capital Expenditure | C61: =C28+C60 -> 276.9 | D61: 1195556.09 | E61: 400308 | F61: 246865699 | G61: 292608160 | H61: 292608160 | I61: 178690554.2 | J61: 235994900 | K61: 190661640 | L61: 202818104

Sheet A6-FinPos
A1: =muni&" - "&Approve6 -> LIM355 Lepelle-Nkumpi - Table A6 Budgeted Financial Position
A2: =desc -> Description | B2: =head27 -> Ref | C2: =head1b -> 2022/23 | D2: =head1A -> 2023/24 | E2: =Head1 -> 2024/25 | F2: =Head2 -> Current Year 2025/26 | J2: =Head3 -> 2026/27 Medium Term Revenue & Expenditure Framework
A3: R thousand | C3: =Head5 -> Audited Outcome | D3: =Head5 -> Audited Outcome | E3: =Head5 -> Audited Outcome | F3: =Head6 -> Original Budget | G3: =Head7 -> Adjusted Budget | H3: =Head8 -> Full Year Forecast | I3: =Head5b -> Pre-audit outcome | J3: =Head9 -> Budget Year 2026/27 | K3: =Head10 -> Budget Year +1 2027/28 | L3: =Head11 -> Budget Year +2 2028/29
A4: ASSETS
A5: Current assets
A6: Cash and cash equivalents | B6: 1 | C6: ='SA3'!C11 -> 546936696.5 | D6: ='SA3'!D11 -> 741508701.1 | E6: ='SA3'!E11 -> 811137992.2 | F6: ='SA3'!F11 -> 656352786 | G6: ='SA3'!G11 -> 600235918 | H6: ='SA3'!H11 -> 600235918 | I6: ='SA3'!I11 -> 52027539.99 | J6: ='SA3'!J11 -> 291188077 | K6: ='SA3'!K11 -> 300797285 | L6: ='SA3'!L11 -> 310422798
A7: Short term Investments | B7: 2 | C7: ='SA3'!C13 -> 0 | D7: ='SA3'!D13 -> 0 | E7: ='SA3'!E13 -> 0 | F7: ='SA3'!F13 -> 0 | G7: ='SA3'!G13 -> 0 | H7: ='SA3'!H13 -> 0 | I7: ='SA3'!I13 -> 0 | J7: ='SA3'!J13 -> 0 | K7: ='SA3'!K13 -> 0 | L7: ='SA3'!L13 -> 0
A8: Trade and other receivables from exchange transactions | B8: 3 | C8: ='SA3'!C29 -> 16616479.79 | D8: ='SA3'!D29 -> 9300925.1 | E8: ='SA3'!E29 -> 35392629.83 | F8: ='SA3'!F29 -> 342148949 | G8: ='SA3'!G29 -> 342148949 | H8: ='SA3'!H29 -> 342148949 | I8: ='SA3'!I29 -> -22497259.77 | J8: ='SA3'!J29 -> 229541824 | K8: ='SA3'!K29 -> 237116700 | L8: ='SA3'!L29 -> 244704438
A9: Receivables from non-exchange transactions | B9: 3 | C9: ='SA3'!C50 -> 10427590.36 | D9: ='SA3'!D50 -> 8974239.17 | E9: ='SA3'!E50 -> 12036830.81 | F9: ='SA3'!F50 -> 17485199 | G9: ='SA3'!G50 -> 17485199 | H9: ='SA3'!H50 -> 17485199 | I9: ='SA3'!I50 -> 46209632.79 | J9: ='SA3'!J50 -> 77098813 | K9: ='SA3'!K50 -> 79643075 | L9: ='SA3'!L50 -> 82191651
A10: Current portion of non-current receivables | B10: 4 | C10: ='SA3'!C68 -> 0 | D10: ='SA3'!D68 -> 0 | E10: ='SA3'!E68 -> 0 | F10: ='SA3'!F68 -> 0 | G10: ='SA3'!G68 -> 0 | H10: ='SA3'!H68 -> 0 | I10: ='SA3'!I68 -> 0 | J10: ='SA3'!J68 -> 0 | K10: ='SA3'!K68 -> 0 | L10: ='SA3'!L68 -> 0
A11: Inventory | B11: 5 | C11: ='SA3'!C78 -> 106259835 | D11: ='SA3'!D78 -> 105951975.3 | E11: ='SA3'!E78 -> 104346940 | F11: ='SA3'!F78 -> 113484295 | G11: ='SA3'!G78 -> 102135942 | H11: ='SA3'!H78 -> 102135942 | I11: ='SA3'!I78 -> 206530.77 | J11: ='SA3'!J78 -> 0 | K11: ='SA3'!K78 -> 0 | L11: ='SA3'!L78 -> 0
A12: VAT Receivable | B12: 6 | C12: ='SA3'!C83 -> 22917618.79 | D12: ='SA3'!D83 -> 19923491.88 | E12: ='SA3'!E83 -> 28825692.21 | F12: ='SA3'!F83 -> 34232060 | G12: ='SA3'!G83 -> 34232060 | H12: ='SA3'!H83 -> 34232060 | I12: ='SA3'!I83 -> -647304.82 | J12: ='SA3'!J83 -> 78579497 | K12: ='SA3'!K83 -> 72701075 | L12: ='SA3'!L83 -> 74147713
A13: Other current assets | B13: 7 | C13: ='SA3'!C92 -> 3510164.63 | D13: ='SA3'!D92 -> 4470192.61 | E13: ='SA3'!E92 -> -7131401.6 | F13: ='SA3'!F92 -> 2596931 | G13: ='SA3'!G92 -> 2596931 | H13: ='SA3'!H92 -> 2596931 | I13: ='SA3'!I92 -> -11142641.58 | J13: ='SA3'!J92 -> 1900000 | K13: ='SA3'!K92 -> 1962700 | L13: ='SA3'!L92 -> 2025507
A14: Total current assets | C14: =SUM(C6:C13) -> 706668385.1 | D14: =SUM(D6:D13) -> 890129525.2 | E14: 984608683.4 | F14: 1166300220 | G14: =SUM(G6:G13) -> 1098834999 | H14: 1098834999 | I14: 64156497.38 | J14: 678308211 | K14: 692220835 | L14: 713492107
A15: Non current assets
A16: Investments | B16: 8 | C16: ='SA3'!C108 -> 139500000 | D16: ='SA3'!D108 -> 139500000 | E16: ='SA3'!E108 -> 111600000 | F16: ='SA3'!F108 -> 0 | G16: ='SA3'!G108 -> 0 | H16: ='SA3'!H108 -> 0 | I16: ='SA3'!I108 -> 0 | J16: ='SA3'!J108 -> 11600000 | K16: ='SA3'!K108 -> 11982800 | L16: ='SA3'!L108 -> 12366250
A17: Investment property | B17: 9 | C17: ='SA3'!C113 -> 112361815 | D17: ='SA3'!D113 -> 116969773.4 | E17: ='SA3'!E113 -> 120478866.6 | F17: ='SA3'!F113 -> 169757815 | G17: ='SA3'!G113 -> 166757815 | H17: ='SA3'!H113 -> 166757815 | I17: ='SA3'!I113 -> 27788966.31 | J17: ='SA3'!J113 -> 38817000 | K17: ='SA3'!K113 -> 10000000 | L17: ='SA3'!L113 -> 10000000
A18: Property, plant and equipment | B18: 10 | C18: ='SA3'!C119+'SA3'!C129 -> 753258790.1 | D18: ='SA3'!D119+'SA3'!D129 -> 732396763.8 | E18: ='SA3'!E119+'SA3'!E129 -> 862675628.7 | F18: ='SA3'!F119+'SA3'!F129 -> 793408908 | G18: ='SA3'!G119+'SA3'!G129 -> 842151369 | H18: ='SA3'!H119+'SA3'!H129 -> 842151369 | I18: ='SA3'!I119+'SA3'!I129 -> 62438205.79 | J18: ='SA3'!J119+'SA3'!J129 -> 1029201471 | K18: ='SA3'!K119+'SA3'!K129 -> 1039509782 | L18: ='SA3'!L119+'SA3'!L129 -> 1078536336
A19: Biological assets | B19: 11 | C19: ='SA3'!C134 -> 0 | D19: ='SA3'!D134 -> 0 | E19: ='SA3'!E134 -> 0 | F19: ='SA3'!F134 -> 0 | G19: ='SA3'!G134 -> 0 | H19: ='SA3'!H134 -> 0 | I19: ='SA3'!I134 -> 0 | J19: ='SA3'!J134 -> 0 | K19: ='SA3'!K134 -> 0 | L19: ='SA3'!L134 -> 0
A20: Living resources | B20: 12 | C20: ='SA3'!C139 -> 0 | D20: ='SA3'!D139 -> 0 | E20: ='SA3'!E139 -> 0 | F20: ='SA3'!F139 -> 0 | G20: ='SA3'!G139 -> 0 | H20: ='SA3'!H139 -> 0 | I20: ='SA3'!I139 -> 0 | J20: ='SA3'!J139 -> 0 | K20: ='SA3'!K139 -> 0 | L20: ='SA3'!L139 -> 0
A21: Heritage assets | B21: 13 | C21: ='SA3'!C143 -> 183684.33 | D21: ='SA3'!D143 -> 183684.33 | E21: ='SA3'!E143 -> 183684.33 | F21: ='SA3'!F143 -> 183684 | G21: ='SA3'!G143 -> 183684 | H21: ='SA3'!H143 -> 183684 | I21: ='SA3'!I143 -> 0 | J21: ='SA3'!J143 -> 183684 | K21: ='SA3'!K143 -> 183684 | L21: ='SA3'!L143 -> 183684
A22: Intangible assets | B22: 14 | C22: ='SA3'!C148 -> 11053.87 | D22: ='SA3'!D148 -> 11053.87 | E22: ='SA3'!E148 -> 11053.87 | F22: ='SA3'!F148 -> 11054 | G22: ='SA3'!G148 -> 11054 | H22: ='SA3'!H148 -> 11054 | I22: ='SA3'!I148 -> -0.26 | J22: ='SA3'!J148 -> 11054 | K22: ='SA3'!K148 -> 11054 | L22: ='SA3'!L148 -> 11054
A23: Trade and other receivables from exchange transactions | B23: 15 | C23: ='SA3'!C156 -> 0 | D23: ='SA3'!D156 -> 0 | E23: ='SA3'!E156 -> 0 | F23: ='SA3'!F156 -> 0 | G23: ='SA3'!G156 -> 0 | H23: ='SA3'!H156 -> 0 | I23: ='SA3'!I156 -> 0 | J23: ='SA3'!J156 -> 0 | K23: ='SA3'!K156 -> 0 | L23: ='SA3'!L156 -> 0
A24: Non-current receivables from non-exchange transactions | B24: 15 | C24: ='SA3'!C175 -> 0 | D24: ='SA3'!D175 -> 0 | E24: ='SA3'!E175 -> 0 | F24: ='SA3'!F175 -> 0 | G24: ='SA3'!G175 -> 0 | H24: ='SA3'!H175 -> 0 | I24: ='SA3'!I175 -> 0 | J24: ='SA3'!J175 -> 0 | K24: ='SA3'!K175 -> 0 | L24: ='SA3'!L175 -> 0
A25: Other non-current assets | B25: 16 | C25: ='SA3'!C185 -> 0 | D25: ='SA3'!D185 -> 0 | E25: ='SA3'!E185 -> 0 | F25: ='SA3'!F185 -> 0 | G25: ='SA3'!G185 -> 0 | H25: ='SA3'!H185 -> 0 | I25: ='SA3'!I185 -> 0 | J25: ='SA3'!J185 -> 0 | K25: ='SA3'!K185 -> 0 | L25: ='SA3'!L185 -> 0
A26: Total non current assets | C26: =SUM(C16:C25) -> 1005315343 | D26: =SUM(D16:D25) -> 989061275.4 | E26: 1094949233 | F26: 963361461 | G26: 1009103922 | H26: 1009103922 | I26: 90227171.84 | J26: 1079813209 | K26: 1061687320 | L26: 1101097324
A27: TOTAL ASSETS | C27: =C14+C26 -> 1711983728 | D27: =D14+D26 -> 1879190801 | E27: =E14+E26 -> 2079557917 | F27: =F14+F26 -> 2129661681 | G27: 2107938921 | H27: 2107938921 | I27: 154383669.2 | J27: 1758121420 | K27: 1753908155 | L27: 1814589431
A28: LIABILITIES
A29: Current liabilities
A30: Bank overdraft | B30: 17 | C30: ='SA3'!C197 -> 0 | D30: ='SA3'!D197 -> 0 | E30: ='SA3'!E197 -> 0 | F30: ='SA3'!F197 -> 0 | G30: ='SA3'!G197 -> 0 | H30: ='SA3'!H197 -> 0 | I30: ='SA3'!I197 -> 0 | J30: ='SA3'!J197 -> 0 | K30: ='SA3'!K197 -> 0 | L30: ='SA3'!L197 -> 0
A31: Financial liabilities | B31: 18 | C31: ='SA3'!C205 -> -238137.84 | D31: ='SA3'!D205 -> -238137.84 | E31: ='SA3'!E205 -> -238137.84 | F31: ='SA3'!F205 -> 0 | G31: ='SA3'!G205 -> 0 | H31: ='SA3'!H205 -> 0 | I31: ='SA3'!I205 -> 0 | J31: ='SA3'!J205 -> 0 | K31: ='SA3'!K205 -> 0 | L31: ='SA3'!L205 -> 0
A32: Consumer deposits | B32: 19 | C32: ='SA3'!C220 -> 2251090.18 | D32: ='SA3'!D220 -> 2309790.18 | E32: ='SA3'!E220 -> 2331017.18 | F32: ='SA3'!F220 -> 2426220 | G32: ='SA3'!G220 -> 2426220 | H32: ='SA3'!H220 -> 2426220 | I32: ='SA3'!I220 -> 12900 | J32: ='SA3'!J220 -> 50175 | K32: ='SA3'!K220 -> 51831 | L32: ='SA3'!L220 -> 53489
A33: Trade and other payables from exchange transactions | B33: 20 | C33: ='SA3'!C249 -> 237574080.6 | D33: ='SA3'!D249 -> 211726256.8 | E33: ='SA3'!E249 -> 222399739.8 | F33: ='SA3'!F249 -> 280742023 | G33: ='SA3'!G249 -> 275975748 | H33: ='SA3'!H249 -> 275975748 | I33: ='SA3'!I249 -> -38741259.29 | J33: ='SA3'!J249 -> 593572552 | K33: ='SA3'!K249 -> 553562421 | L33: ='SA3'!L249 -> 580923937
A34: Trade and other payables from non-exchange transactions | B34: 21 | C34: ='SA3'!C261 -> 32191494.42 | D34: ='SA3'!D261 -> 68623368.02 | E34: ='SA3'!E261 -> 13332648.09 | F34: ='SA3'!F261 -> 0 | G34: ='SA3'!G261 -> 0 | H34: ='SA3'!H261 -> 0 | I34: ='SA3'!I261 -> 33116147.68 | J34: ='SA3'!J261 -> 0 | K34: ='SA3'!K261 -> 0 | L34: ='SA3'!L261 -> 0
A35: Provision | B35: 22 | C35: ='SA3'!C273 -> 17784545.56 | D35: ='SA3'!D273 -> 19742845.63 | E35: ='SA3'!E273 -> 17730816.14 | F35: ='SA3'!F273 -> 21806868 | G35: ='SA3'!G273 -> 21806868 | H35: ='SA3'!H273 -> 21806868 | I35: ='SA3'!I273 -> 0 | J35: ='SA3'!J273 -> 11400000 | K35: ='SA3'!K273 -> 12875044 | L35: ='SA3'!L273 -> 13010574
A36: VAT Payable | B36: 23 | C36: ='SA3'!C277 -> 9264240.26 | D36: ='SA3'!D277 -> 9198708.6 | E36: ='SA3'!E277 -> 12866926.93 | F36: ='SA3'!F277 -> 14243790 | G36: ='SA3'!G277 -> 14243790 | H36: ='SA3'!H277 -> 14243790 | I36: ='SA3'!I277 -> 4178941.01 | J36: ='SA3'!J277 -> 18080133 | K36: ='SA3'!K277 -> 18676777 | L36: ='SA3'!L277 -> 19274434
A37: Other current liabilities | B37: 24 | C37: ='SA3'!C287 -> 0 | D37: ='SA3'!D287 -> 0 | E37: ='SA3'!E287 -> 0 | F37: ='SA3'!F287 -> 0 | G37: ='SA3'!G287 -> 0 | H37: ='SA3'!H287 -> 0 | I37: ='SA3'!I287 -> 0 | J37: ='SA3'!J287 -> 0 | K37: ='SA3'!K287 -> 0 | L37: ='SA3'!L287 -> 0
A38: Total current liabilities | C38: =SUM(C30:C37) -> 298827313.1 | D38: =SUM(D30:D37) -> 311362831.4 | E38: 268423010.3 | F38: 319218901 | G38: 314452626 | H38: 314452626 | I38: -1433270.6 | J38: 623102860 | K38: 585166073 | L38: 613262434
A39: Non current liabilities
A40: Financial liabilities | B40: 25 | C40: ='SA3'!C308 -> 238138.31 | D40: ='SA3'!D308 -> 238138.31 | E40: ='SA3'!E308 -> 238138.31 | F40: ='SA3'!F308 -> 0 | G40: ='SA3'!G308 -> 0 | H40: ='SA3'!H308 -> 0 | I40: ='SA3'!I308 -> 0 | J40: ='SA3'!J308 -> 0 | K40: ='SA3'!K308 -> 0 | L40: ='SA3'!L308 -> 0
A41: Provision | B41: 26 | C41: ='SA3'!C320 -> 0 | D41: ='SA3'!D320 -> 0 | E41: ='SA3'!E320 -> 0 | F41: ='SA3'!F320 -> 0 | G41: ='SA3'!G320 -> 0 | H41: ='SA3'!H320 -> 0 | I41: ='SA3'!I320 -> 0 | J41: ='SA3'!J320 -> 0 | K41: ='SA3'!K320 -> 0 | L41: ='SA3'!L320 -> 0
A42: Long term portion of trade payables | B42: 27 | C42: ='SA3'!C326 -> 0 | D42: ='SA3'!D326 -> 0 | E42: ='SA3'!E326 -> 0 | F42: ='SA3'!F326 -> 0 | G42: ='SA3'!G326 -> 0 | H42: ='SA3'!H326 -> 0 | I42: ='SA3'!I326 -> 0 | J42: ='SA3'!J326 -> 0 | K42: ='SA3'!K326 -> 0 | L42: ='SA3'!L326 -> 0
A43: Other non-current liabilities | B43: 28 | C43: ='SA3'!C335 -> 0 | D43: ='SA3'!D335 -> 0 | E43: ='SA3'!E335 -> 0 | F43: ='SA3'!F335 -> 0 | G43: ='SA3'!G335 -> 0 | H43: ='SA3'!H335 -> 0 | I43: ='SA3'!I335 -> 0 | J43: ='SA3'!J335 -> 0 | K43: ='SA3'!K335 -> 0 | L43: ='SA3'!L335 -> 0
A44: Total non current liabilities | C44: =SUM(C40:C43) -> 238138.31 | D44: =SUM(D40:D43) -> 238138.31 | E44: 238138.31 | F44: 0 | G44: 0 | H44: 0 | I44: 0 | J44: 0 | K44: 0 | L44: 0
A45: TOTAL LIABILITIES | C45: =C38+C44 -> 299065451.4 | D45: =D38+D44 -> 311600969.7 | E45: =E38+E44 -> 268661148.7 | F45: =F38+F44 -> 319218901 | G45: 314452626 | H45: 314452626 | I45: -1433270.6 | J45: 623102860 | K45: =K38+K44 -> 585166073 | L45: 613262434
A46: NET ASSETS | C46: =C27-C45 -> 1412918277 | D46: 1567589831 | E46: 1810896768 | F46: 1810442780 | G46: 1793486295 | H46: 1793486295 | I46: 155816939.8 | J46: 1135018560 | K46: 1168742082 | L46: 1201326997
A47: COMMUNITY WEALTH/EQUITY
A48: Accumulated surplus/(deficit) | B48: 29 | C48: ='SA3'!C347 -> 1412918277 | D48: ='SA3'!D347 -> 1567589831 | E48: ='SA3'!E347 -> 1867329924 | F48: ='SA3'!F347 -> 1563431358 | G48: ='SA3'!G347 -> 1499638110 | H48: ='SA3'!H347 -> 1499638110 | I48: ='SA3'!I347 -> 155816939.8 | J48: ='SA3'!J347 -> 860673664 | K48: ='SA3'!K347 -> 893927171 | L48: ='SA3'!L347 -> 890613145
A49: Reserves and funds | B49: 30 | C49: ='SA3'!C359 -> 0 | D49: ='SA3'!D359 -> 0 | E49: ='SA3'!E359 -> 0 | F49: ='SA3'!F359 -> 0 | G49: ='SA3'!G359 -> 0 | H49: ='SA3'!H359 -> 0 | I49: ='SA3'!I359 -> 0 | J49: ='SA3'!J359 -> 350000000 | K49: ='SA3'!K359 -> 361550000 | L49: ='SA3'!L359 -> 373119600
A50: Other | B50: 31 | C50: ='SA3'!C372 -> 0 | D50: ='SA3'!D372 -> 0 | E50: ='SA3'!E372 -> 0 | F50: ='SA3'!F372 -> 0 | G50: ='SA3'!G372 -> 0 | H50: ='SA3'!H372 -> 0 | I50: ='SA3'!I372 -> 0 | J50: ='SA3'!J372 -> 0 | K50: ='SA3'!K372 -> 0 | L50: ='SA3'!L372 -> 0
A51: TOTAL COMMUNITY WEALTH/EQUITY | B51: 32 | C51: =SUM(C48:C50) -> 1412918277 | D51: =SUM(D48:D50) -> 1567589831 | E51: 1867329924 | F51: 1563431358 | G51: 1499638110 | H51: 1499638110 | I51: 155816939.8 | J51: 1210673664 | K51: 1255477171 | L51: 1263732745
A52: =head27a -> References
A53: 1. Detail breakdown in Table SA3.
A54: 2. Detail breakdown in Table SA3.
A55: 3. Detail breakdown in Table SA3 for Trade receivables from Exchange and Non-exchange transactions
A56: 4. Detail breakdown in Table SA3.
A57: 5. Include 'Construction-work-in-progress' (disclosed separately in annual financial statements) detail in SA3
A58: 6. Detail breakdown in Table SA3.
A59: 7. Detail breakdown in Table SA3.
A60: 8 Detail breakdown in Table SA3.
A61: 9. Detail breakdown in Table SA3.
A62: 10. Include 'Construction-work-in-progress' (disclosed separately in annual financial statements) detail in SA3
A63: 11. Detail breakdown in Table SA3.
A64: 12. Detail breakdown in Table SA3.
A65: 13. Detail breakdown in Table SA3.
A66: 14. Detail breakdown in Table SA3.
A67: 15. Detail breakdown in Table SA3 for Non- Current Trade receivables from Exchange and Non-exchange transactions
A68: 16. Detail breakdown in Table SA3.
A69: 17. Detail breakdown in Table SA3.
A70: 18. Detail breakdown in Table SA3.
A71: 19. Detail breakdown in Table SA3.
A72: 20. Detail breakdown in Table SA3.
A73: 21. Detail breakdown in Table SA3.
A74: 22. Detail breakdown in Table SA3.
A75: 23. Detail breakdown in Table SA3.
A76: 24. Detail breakdown in Table SA3.
A77: 25. Detail breakdown in Table SA3.
A78: 26. Detail breakdown in Table SA3.
A79: 27. Detail breakdown in Table SA3.
A80: 28. Detail breakdown in Table SA3.
A81: 29. Detail breakdown in Table SA3.
A82: 30. Detail breakdown in Table SA3. Includes reserves to be funded by statute.
A83: 31. Detail breakdown in Table SA3.
A84: 32. Net assets must balance with Total Community Wealth/Equity

Sheet A6 Inventory
A2: Store Type | B2: Classification | C2: =head1b -> 2022/23 | D2: =head1A -> 2023/24 | E2: =Head1 -> 2024/25 | F2: =Head2 -> Current Year 2025/26 | J2: =Head3 -> 2026/27 Medium Term Revenue & Expenditure Framework
A3: R thousands | C3: =Head5 -> Audited Outcome | D3: =Head5 -> Audited Outcome | E3: =Head5 -> Audited Outcome | F3: =Head6 -> Original Budget | G3: =Head7 -> Adjusted Budget | H3: =Head8 -> Full Year Forecast | I3: =Head5b -> Pre-audit outcome | J3: =Head9 -> Budget Year 2026/27 | K3: =Head10 -> Budget Year +1 2027/28 | L3: =Head11 -> Budget Year +2 2028/29
A4: Agricultural | B4: Opening balance - Agricultural
B5: Acquisitions - Agricultural
B6: Adjustments - Agricultural
B7: Issues - Agricultural
B8: Write Off - Agricultural
B9: Correction of Prior period errors - Agricultural
A10: Agricultural Total | C10: =SUM(C4:C9) -> 0 | D10: =SUM(D4:D9) -> 0 | E10: 0 | F10: 0 | G10: 0 | H10: 0 | I10: 0 | J10: =SUM(J4:J9) -> 0 | K10: 0 | L10: 0
A11: Consumables Standard Rated | B11: Opening balance - Consumables Standard Rated
B12: Acquisitions - Consumables Standard Rated
B13: Adjustments - Consumables Standard Rated
B14: Issues - Consumables Standard Rated
B15: Write Off - Consumables Standard Rated
B16: Correction of Prior period errors - Consumables Standard Rated
A17: Consumables Standard Rated Total | C17: =SUM(C11:C16) -> 0 | D17: =SUM(D11:D16) -> 0 | E17: 0 | F17: 0 | G17: 0 | H17: 0 | I17: 0 | J17: 0 | K17: 0 | L17: 0
A18: Consumables Zero Rated | B18: Opening balance - Consumables Zero Rated
B19: Acquisitions - Consumables Zero Rated
B20: Adjustments - Consumables Zero Rated
B21: Issues - Consumables Zero Rated
B22: Write Off - Consumables Zero Rated
B23: Correction of Prior period errors - Consumables Zero Rated
A24: Consumables Zero Rated Total | C24: =SUM(C18:C23) -> 0 | D24: =SUM(D18:D23) -> 0 | E24: 0 | F24: 0 | G24: 0 | H24: 0 | I24: 0 | J24: 0 | K24: 0 | L24: 0
A25: Finished Goods | B25: Opening balance - Finished Goods
B26: Acquisitions - Finished Goods
B27: Adjustments - Finished Goods
B28: Issues -Finished Goods
B29: Write Off - Finished Goods
B30: Correction of Prior period errors - Finished Goods
A31: Finished Goods Total | C31: =SUM(C25:C30) -> 0 | D31: =SUM(D25:D30) -> 0 | E31: 0 | F31: 0 | G31: 0 | H31: 0 | I31: 0 | J31: 0 | K31: 0 | L31: 0
A32: Housing Stock | B32: Opening balance - Housing Stock
B33: Acquisitions - Housing Stock
B34: Sales - Housing Stock
B35: Transfer - Housing stock
B36: Correction of Prior period errors - Housing stock
A37: Housing Stock Total | C37: =SUM(C32:C36) -> 0 | D37: =SUM(D32:D36) -> 0 | E37: 0 | F37: 0 | G37: 0 | H37: 0 | I37: 0 | J37: 0 | K37: 0 | L37: 0
A38: Land | B38: Opening balance - Land
B39: Acquisitions - Land
B40: Sales - land
B41: Adjustments - Land
B42: Correction of Prior period errors - Land
B43: Transfers - Land
A44: Land Total | C44: =SUM(C38:C43) -> 0 | D44: =SUM(D38:D43) -> 0 | E44: 0 | F44: 0 | G44: 0 | H44: 0 | I44: 0 | J44: 0 | K44: 0 | L44: 0
A45: Materials and Supplies | B45: Opening balance - Materials and Supplies
B46: Acquisitions - Materials and Supplies
B47: Adjustments - Materials and Supplies
B48: Issues - Materials and Supplies
B49: Write Off - Materials and Supplies
B50: Correction of Prior period errors - Materials and Supplies
A51: Materials and Supplies Total | C51: =SUM(C45:C50) -> 0 | D51: =SUM(D45:D50) -> 0 | E51: 0 | F51: 0 | G51: 0 | H51: 0 | I51: 0 | J51: 0 | K51: 0 | L51: 0
A52: Water | B52: Opening balance - Water
B53: Acquisitions - Water bulk purchases
B54: Acquisitions - Water natural sources
B55: Acquisitions - Water treatment works
B56: Billed Authorised Consumption:Billed Metered Consumption:Free Basic Water
B57: Billed Authorised Consumption:Billed Metered Consumption:Revenue Water
B58: Billed Authorised Consumption:Billed Metered Consumption:Subsidised Water
B59: Billed Authorised Consumption:Billed Unmetered Consumption:Free Basic Water
B60: Billed Authorised Consumption:Billed Unmetered Consumption:Revenue Water
B61: Billed Authorised Consumption:Billed Unmetered Consumption:Subsidised Water
B62: Data Transfer and Management Errors
B63: Non-revenue Water
B64: Unavoidable Annual Real Losses
B65: Unbilled Authorised Consumption:Unbilled Metered Consumption
B66: Unbilled Authorised Consumption:Unbilled Unmetered Consumption
B67: Water Losses:Apparent Losses:Customer Meter Inaccuracies
B68: Water Losses:Apparent Losses:Unauthorised Consumption
B69: Water Losses:Real Losses:Leakage and Overflows at Storage Tanks/Reservoirs
B70: Water Losses:Real Losses:Leakage on Service Connections up to the point of Customer Meter
B71: Water Losses:Real Losses:Leakage on Transmission and Distribution Mains
B72: Correction of Prior period errors - Water
A73: Water Total | C73: =SUM(C52:C72) -> 0 | D73: =SUM(D52:D72) -> 0 | E73: 0 | F73: 0 | G73: 0 | H73: 0 | I73: 0 | J73: 0 | K73: 0 | L73: 0
A74: Work-in-progress | B74: Opening balance - WIP
B75: Materials - WIP
B76: Transfer - WIP
A77: Work-in-progress Total | C77: =SUM(C74:C76) -> 0 | D77: =SUM(D74:D76) -> 0 | E77: 0 | F77: 0 | G77: 0 | H77: 0 | I77: 0 | J77: 0 | K77: 0 | L77: =SUM(L74:L76) -> 0
A78: Grand Total | C78: =+C73+C51+C44+C37+C31+C24+C17+C10 -> 0 | D78: =+D73+D51+D44+D37+D31+D24+D17+D10 -> 0 | E78: 0 | F78: 0 | G78: 0 | H78: 0 | I78: 0 | J78: 0 | K78: 0 | L78: 0

Sheet A7-CFlow
A1: =muni&" - "&Approve7 -> LIM355 Lepelle-Nkumpi - Table A7 Budgeted Cash Flows
A2: =desc -> Description | B2: =head27 -> Ref | C2: =head1b -> 2022/23 | D2: =head1A -> 2023/24 | E2: =Head1 -> 2024/25 | F2: =Head2 -> Current Year 2025/26 | J2: =Head3 -> 2026/27 Medium Term Revenue & Expenditure Framework
A3: R thousand | C3: =Head5 -> Audited Outcome | D3: =Head5 -> Audited Outcome | E3: =Head5 -> Audited Outcome | F3: =Head6 -> Original Budget | G3: =Head7 -> Adjusted Budget | H3: =Head8 -> Full Year Forecast | I3: =Head5b -> Pre-audit outcome | J3: =Head9 -> Budget Year 2026/27 | K3: =Head10 -> Budget Year +1 2027/28 | L3: =Head11 -> Budget Year +2 2028/29
A4: CASH FLOW FROM OPERATING ACTIVITIES
A5: Receipts
A6: Property rates | C6: 9574653.92 | D6: 14452644.89 | E6: 13335882.74 | F6: 21567345 | G6: 21567345 | H6: 21567345 | I6: 11523489.1 | J6: ='SA30'!N5 -> 11426968 | K6: ='SA30'!O5 -> 11804058 | L6: ='SA30'!P5 -> 12181787
A7: Service charges | C7: 3064293.7 | D7: 2675969.42 | E7: 795300.66 | F7: 26833620 | G7: 26833620 | H7: 26833620 | I7: 31426668.86 | J7: ='SA30'!N6+'SA30'!N7+'SA30'!N8+'SA30'!N9 -> 41504365 | K7: ='SA30'!O6+'SA30'!O7+'SA30'!O8+'SA30'!O9 -> 42874011 | L7: ='SA30'!P6+'SA30'!P7+'SA30'!P8+'SA30'!P9 -> 44245979
A8: Other revenue | C8: 39120982.08 | D8: 347911101.8 | E8: 73676741.28 | F8: 412046389 | G8: 412046389 | H8: 412046389 | I8: 364755994.6 | J8: ='SA30'!N11+'SA30'!N15+'SA30'!N16+'SA30'!N17+'SA30'!N19+'SA30'!N29 -> 97293462 | K8: ='SA30'!O11+'SA30'!O15+'SA30'!O16+'SA30'!O17+'SA30'!O19+'SA30'!O29 -> 100504142 | L8: ='SA30'!P11+'SA30'!P15+'SA30'!P16+'SA30'!P17+'SA30'!P19+'SA30'!P29 -> 103720275
A9: Transfers and Subsidies - Operational | B9: 1 | C9: 308618198.8 | D9: 322849000 | E9: 340276303 | F9: 348623198 | G9: 348623198 | H9: 348623198 | I9: 326423000 | J9: ='SA30'!N18 -> 338403998 | K9: ='SA30'!O18 -> 336254700 | L9: ='SA30'!P18 -> 361144500
A10: Transfers and Subsidies - Capital | B10: 1 | C10: 70235000 | D10: 77969000 | E10: 41988521.74 | F10: 57082700 | G10: 57082700 | H10: 57082700 | I10: 84752000 | J10: ='SA30'!N23+'SA30'!N24 -> 64202900 | K10: ='SA30'!O23+'SA30'!O24 -> 71244300 | L10: ='SA30'!P23+'SA30'!P24 -> 73577500
A11: Interest | C11: 25809993.18 | D11: 44419366.17 | E11: 58789990.54 | F11: 47346055 | G11: 47346055 | H11: 47346055 | I11: 4286182.13 | J11: ='SA30'!N12+'SA30'!N13 -> 60188585 | K11: ='SA30'!O12+'SA30'!O13 -> 62174810 | L11: ='SA30'!P12+'SA30'!P13 -> 64164404
A12: Dividends | J12: ='SA30'!N14 -> 0 | K12: ='SA30'!O14 -> 0 | L12: ='SA30'!P14 -> 0
A13: Payments
A14: Suppliers and employees | C14: -105631513.1 | D14: -340764510.4 | E14: -380020692 | F14: -782111907 | G14: -782111907 | H14: -782111907 | I14: -347640940.3 | J14: =-('SA30'!N37+'SA30'!N38+'SA30'!N40+'SA30'!N41+'SA30'!N42+'SA30'!N43+'SA30'!N46+'SA30'!N53) -> -464624672 | K14: =-('SA30'!O37+'SA30'!O38+'SA30'!O40+'SA30'!O41+'SA30'!O42+'SA30'!O43+'SA30'!O46+'SA30'!O53) -> -477380594 | L14: =-('SA30'!P37+'SA30'!P38+'SA30'!P40+'SA30'!P41+'SA30'!P42+'SA30'!P43+'SA30'!P46+'SA30'!P53) -> -486182945
A15: Finance charges | J15: =-('SA30'!N39) -> 0 | K15: =-('SA30'!O39) -> 0 | L15: =-('SA30'!P39) -> 0
A16: Transfers and Subsidies | B16: 1 | J16: =-('SA30'!N44+'SA30'!N45) -> 0 | K16: =-('SA30'!O44+'SA30'!O45) -> 0 | L16: =-('SA30'!P44+'SA30'!P45) -> 0
A17: NET CASH FROM/(USED) OPERATING ACTIVITIES | C17: =SUM(C6:C12)+SUM(C14:C16) -> 350791608.6 | D17: =SUM(D6:D12)+SUM(D14:D16) -> 469512571.8 | E17: 148842048 | F17: =SUM(F6:F12)+SUM(F14:F16) -> 131387400 | G17: 131387400 | H17: 131387400 | I17: =SUM(I6:I12)+SUM(I14:I16) -> 475526394.4 | J17: 148395606 | K17: 147475427 | L17: 172851500
A19: CASH FLOWS FROM INVESTING ACTIVITIES
A20: Receipts
A21: Proceeds on disposal of PPE | C21: 0 | D21: 4607958.36 | E21: 3606444.69 | F21: 24000000 | G21: 24000000 | H21: 24000000 | I21: 235613.92 | J21: ='SA30'!N25 -> 2000000 | K21: ='SA30'!O25 -> 0 | L21: ='SA30'!P25 -> 0
A23: Decrease (increase) in non-current receivables | C23: 0 | D23: 0 | E23: 0 | F23: 0 | G23: 0 | H23: 0 | I23: 0 | J23: ='SA30'!N30 -> 0 | K23: ='SA30'!O30 -> 0 | L23: ='SA30'!P30 -> 0
A24: Decrease (increase) in non-current investments | C24: 0 | D24: 0 | E24: 27900000 | F24: 0 | G24: 0 | H24: 0 | I24: 0 | J24: ='SA30'!N31 -> 0 | K24: ='SA30'!O31 -> 0 | L24: ='SA30'!P31 -> 0
A25: Insurance Refund - Capital | C25: 0 | D25: 0 | E25: 0 | F25: 0 | G25: 0 | H25: 0 | I25: 0 | J25: ='SA30'!N32 -> 352952 | K25: ='SA30'!O32 -> 364600 | L25: ='SA30'!P32 -> 376267
A26: Interest on Short Term Investment (Greater then 90 days) and Long Term Investments | J26: ='SA30'!N33 -> 0 | K26: ='SA30'!O33 -> 0 | L26: ='SA30'!P33 -> 0
A27: Payments
A28: Capital assets | C28: -276.9 | D28: -1195556.09 | E28: -400308 | F28: -283895552 | G28: -283895552 | H28: -283895552 | I28: -178690554.2 | J28: =-('SA30'!N50) -> -271394133 | K28: =-('SA30'!O50) -> -219260885 | L28: =-('SA30'!P50) -> -233240819
A29: Retention (Capital) | J29: =-('SA30'!N51) -> 0 | K29: =-('SA30'!O51) -> 0 | L29: =-('SA30'!P51) -> 0
A30: NET CASH FROM/(USED) INVESTING ACTIVITIES | C30: =+C21+C23+C24+C25+C26+C28+C29 -> -276.9 | D30: =+D21+D23+D24+D25+D26+D28+D29 -> 3412402.27 | E30: 31106136.69 | F30: -259895552 | G30: -259895552 | H30: -259895552 | I30: -178454940.2 | J30: =+J21+J23+J24+J25+J26+J28+J29 -> -269041181 | K30: -218896285 | L30: -232864552
A32: CASH FLOWS FROM FINANCING ACTIVITIES
A33: Receipts
A34: Short term loans | J34: ='SA30'!N26 -> 0 | K34: ='SA30'!O26 -> 0 | L34: ='SA30'!P26 -> 0
A35: Borrowing long term/refinancing | J35: ='SA30'!N27 -> 0 | K35: ='SA30'!O27 -> 0 | L35: ='SA30'!P27 -> 0
A36: Increase (decrease) in consumer deposits | C36: 0 | D36: -44400 | E36: -22000 | F36: 64826 | G36: 64826 | H36: 64826 | I36: 28850 | J36: ='SA30'!N28 -> 50175 | K36: ='SA30'!O28 -> 51831 | L36: ='SA30'!P28 -> 53489
A37: Payments
A38: Repayment of borrowing | C38: 0 | D38: 0 | E38: 0 | F38: 0 | G38: 0 | H38: 0 | I38: 0 | J38: =-('SA30'!N52) -> 0 | K38: =-('SA30'!O52) -> 0 | L38: =-('SA30'!P52) -> 0
A39: NET CASH FROM/(USED) FINANCING ACTIVITIES | C39: =SUM(C34:C36)+C38 -> 0 | D39: =SUM(D34:D36)+D38 -> -44400 | E39: -22000 | F39: 64826 | G39: 64826 | H39: 64826 | I39: 28850 | J39: 50175 | K39: 51831 | L39: 53489
A41: NET INCREASE/ (DECREASE) IN CASH HELD | C41: =C17+C30+C39 -> 350791331.7 | D41: 472880574.1 | E41: 179926184.7 | F41: -128443326 | G41: -128443326 | H41: -128443326 | I41: 297100304.1 | J41: =J17+J30+J39 -> -120595400 | K41: -71369027 | L41: -59959563
A42: Cash/cash equivalents at the year begin: | B42: 2 | C42: 404422641.7 | D42: 546742276.8 | E42: 726961593.1 | F42: 568683885 | G42: 568683885 | H42: 568683885 | I42: -5565892.37 | J42: ='SA30'!N57 -> 819176828 | K42: =J43 -> 698581428 | L42: =K43 -> 627212401
A43: Cash/cash equivalents at the year end: | B43: 2 | C43: =C41+C42 -> 755213973.4 | D43: =D41+D42 -> 1019622851 | E43: =E41+E42 -> 906887777.8 | F43: =F41+F42 -> 440240559 | G43: 440240559 | H43: 440240559 | I43: 291534411.8 | J43: 698581428 | K43: 627212401 | L43: 567252838
A44: =head27a -> References
A45: 1. Local/District municipalities to include transfers from/to District/Local Municipalities
A46: 2. Cash equivalents includes investments with maturities of 3 months or less
A47: 3. The MTREF is populated directly from SA30.
A48: Total receipts | C48: =SUM(C6:C12)+SUM(C21:C26) -> 456423121.7 | D48: =SUM(D6:D12)+SUM(D21:D26) -> 814885040.6 | E48: 560369184.7 | F48: 937499307 | G48: 937499307 | H48: 937499307 | I48: 823402948.6 | J48: 615373230 | K48: 625220621 | L48: 659410712
A49: Total payments | C49: =SUM(C14:C16)+SUM(C28:C29) -> -105631790 | D49: =SUM(D14:D16)+SUM(D28:D29) -> -341960066.5 | E49: -380421000 | F49: -1066007459 | G49: -1066007459 | H49: -1066007459 | I49: -526331494.5 | J49: -736018805 | K49: -696641479 | L49: -719423764
C50: =C48+C49 -> 350791331.7 | D50: =D48+D49 -> 472924974.1 | E50: 179948184.7 | F50: -128508152 | G50: -128508152 | H50: -128508152 | I50: 297071454.1 | J50: -120645575 | K50: -71420858 | L50: -60013052
A51: Borrowings & investments & c.deposits | C51: =C24+C35+C36 -> 0 | D51: =D24+D35+D36 -> -44400 | E51: 27878000 | F51: 64826 | G51: 64826 | H51: 64826 | I51: 28850 | J51: 50175 | K51: 51831 | L51: 53489
A52: =A38 -> Repayment of borrowing | C52: =C38 -> 0 | D52: =D38 -> 0 | E52: 0 | F52: 0 | G52: 0 | H52: 0 | I52: =I38 -> 0 | J52: 0 | K52: 0 | L52: 0
C53: =C50+C51+C52 -> 350791331.7 | D53: =D50+D51+D52 -> 472880574.1 | E53: 207826184.7 | F53: -128443326 | G53: -128443326 | H53: -128443326 | I53: 297100304.1 | J53: -120595400 | K53: -71369027 | L53: -59959563
C54: =C41-C53 -> 0 | D54: =D41-D53 -> 0 | E54: -27900000 | F54: 0 | G54: 0 | H54: 0 | I54: 0 | J54: 0 | K54: 0 | L54: 0

Sheet A8-ResRecon
A1: =muni&" - "&Approve8 -> LIM355 Lepelle-Nkumpi - Table A8 Cash backed reserves/accumulated surplus reconciliation
A2: =desc -> Description | B2: =head27 -> Ref | C2: =head1b -> 2022/23 | D2: =head1A -> 2023/24 | E2: =Head1 -> 2024/25 | F2: =Head2 -> Current Year 2025/26 | J2: =Head3 -> 2026/27 Medium Term Revenue & Expenditure Framework
A3: R thousand | C3: =Head5 -> Audited Outcome | D3: =Head5 -> Audited Outcome | E3: =Head5 -> Audited Outcome | F3: =Head6 -> Original Budget | G3: =Head7 -> Adjusted Budget | H3: =Head8 -> Full Year Forecast | I3: =Head5b -> Pre-audit outcome | J3: =Head9 -> Budget Year 2026/27 | K3: =Head10 -> Budget Year +1 2027/28 | L3: =Head11 -> Budget Year +2 2028/29
A4: Cash and investments available
A5: =LEFT('A7-CFlow'!A43,37) -> Cash/cash equivalents at the year end | B5: 1 | C5: ='A7-CFlow'!C43 -> 755213973.4 | D5: ='A7-CFlow'!D43 -> 1019622851 | E5: ='A7-CFlow'!E43 -> 906887777.8 | F5: ='A7-CFlow'!F43 -> 440240559 | G5: ='A7-CFlow'!G43 -> 440240559 | H5: ='A7-CFlow'!H43 -> 440240559 | I5: ='A7-CFlow'!I43 -> 291534411.8 | J5: ='A7-CFlow'!J43 -> 698581428 | K5: ='A7-CFlow'!K43 -> 627212401 | L5: ='A7-CFlow'!L43 -> 567252838
A6: Other current investments > 90 days | C6: ='A6-FinPos'!C7 -> 0 | D6: ='A6-FinPos'!D7 -> 0 | E6: ='A6-FinPos'!E7 -> 0 | F6: ='A6-FinPos'!F7 -> 0 | G6: ='A6-FinPos'!G7 -> 0 | H6: ='A6-FinPos'!H7 -> 0 | I6: ='A6-FinPos'!I7 -> 0 | J6: ='A6-FinPos'!J7 -> 0 | K6: ='A6-FinPos'!K7 -> 0 | L6: ='A6-FinPos'!L7 -> 0
A7: Non current Investments | B7: 1 | C7: ='A6-FinPos'!C16 -> 139500000 | D7: ='A6-FinPos'!D16 -> 139500000 | E7: ='A6-FinPos'!E16 -> 111600000 | F7: ='A6-FinPos'!F16 -> 0 | G7: ='A6-FinPos'!G16 -> 0 | H7: ='A6-FinPos'!H16 -> 0 | I7: ='A6-FinPos'!I16 -> 0 | J7: ='A6-FinPos'!J16 -> 11600000 | K7: ='A6-FinPos'!K16 -> 11982800 | L7: ='A6-FinPos'!L16 -> 12366250
A8: Cash and investments available: | C8: =SUM(C5:C7) -> 894713973.4 | D8: =SUM(D5:D7) -> 1159122851 | E8: 1018487778 | F8: 440240559 | G8: 440240559 | H8: 440240559 | I8: 291534411.8 | J8: 710181428 | K8: 639195201 | L8: 579619088
A10: Application of cash and investments
A11: Unspent conditional transfers | C11: ='SA3'!C258 -> 32191494.42 | D11: ='SA3'!D258 -> 68623368.02 | E11: ='SA3'!E258 -> 13332648.09 | F11: ='SA3'!F258 -> 0 | G11: ='SA3'!G258 -> 0 | H11: ='SA3'!H258 -> 0 | I11: ='SA3'!I258 -> 33116147.68 | J11: ='SA3'!J258 -> 0 | K11: ='SA3'!K258 -> 0 | L11: ='SA3'!L258 -> 0
A12: Unspent borrowing
A13: Statutory requirements | B13: 2 | C13: 0 | D13: 0 | E13: 0 | F13: 0 | G13: 0 | H13: 0 | I13: 0 | J13: 0 | K13: 0 | L13: 0
A14: Other working capital requirements | B14: 3 | C14: =-C34 -> 232957080.6 | D14: =-D34 -> 190736256.8 | E14: 214057739.8 | F14: =-F34 -> 60563023 | G14: 61056748 | H14: 61056748 | I14: -71393259.29 | J14: 28403552 | K14: -44942579 | L14: -36734063
A15: Other provisions | C15: 12186582.89 | D15: 13306377.96 | E15: 11412473.78 | F15: 14966026 | G15: 14966026 | H15: 14966026 | I15: 11412473.78 | J15: 11400000 | K15: 12875044 | L15: 13010574
A16: Long term investments committed | B16: 4 | C16: =C44 -> 0 | D16: =D44 -> 0 | E16: 0 | F16: 0 | G16: 0 | H16: 0 | I16: 0 | J16: 0 | K16: 0 | L16: 0
A17: Reserves to be backed by cash/investments | B17: 5
A18: Total Application of cash and investments: | C18: =SUM(C11:C17) -> 277335157.9 | D18: =SUM(D11:D17) -> 272666002.8 | E18: 238802861.7 | F18: 75529049 | G18: 76022774 | H18: 76022774 | I18: -26864637.83 | J18: 39803552 | K18: -32067535 | L18: -23723489
A19: Surplus(shortfall) - Excluding Non-Current Creditors Trf to Debt Relief Benefits | C19: =C8-C18 -> 617378815.5 | D19: =D8-D18 -> 886456848.1 | E19: 779684916 | F19: 364711510 | G19: 364217785 | H19: 364217785 | I19: 318399049.6 | J19: 670377876 | K19: 671262736 | L19: 603342577
A20: Creditors transferred to Debt Relief - Non-Current portion | C20: ='SA3'!C324 -> 0 | D20: ='SA3'!D324 -> 0 | E20: ='SA3'!E324 -> 0 | F20: ='SA3'!F324 -> 0 | G20: ='SA3'!G324 -> 0 | H20: ='SA3'!H324 -> 0 | I20: ='SA3'!I324 -> 0 | J20: ='SA3'!J324 -> 0 | K20: ='SA3'!K324 -> 0 | L20: ='SA3'!L324 -> 0
A21: Surplus(shortfall) - Including Non-Current Creditors Trf to Debt Relief Benefits | C21: =SUM(C19:C20) -> 617378815.5 | D21: =SUM(D19:D20) -> 886456848.1 | E21: 779684916 | F21: 364711510 | G21: 364217785 | H21: 364217785 | I21: 318399049.6 | J21: 670377876 | K21: 671262736 | L21: 603342577
A22: =head27a -> References
A23: 1. Must reconcile with Budgeted Cash Flows
A24: 2. For example: VAT, taxation
A25: 3. Council approval for policy required - include sufficient working capital (e.g. allowing for a % of current debtors > 90 days as uncollectable)
A26: 4. For example: sinking fund requirements for borrowing
A27: 5. Council approval required for each reserve created and basis of cash backing of reserves - Total Reserves to be backed by cash/investments excl Valuation reserve
A30: Other working capital requirements
A31: Debtors | C31: =IF(ISERROR(ROUND(C37*C38,-3)),0,(ROUND(C37*C38,-3))) -> 4617000 | D31: =IF(ISERROR(ROUND(D37*D38,-3)),0,(ROUND(D37*D38,-3))) -> 20990000 | E31: 8342000 | F31: 220179000 | G31: 214919000 | H31: 214919000 | I31: 32652000 | J31: 565169000 | K31: 598505000 | L31: 617658000
A33: Creditors due | C33: ='SA3'!C249 -> 237574080.6 | D33: ='SA3'!D249 -> 211726256.8 | E33: ='SA3'!E249 -> 222399739.8 | F33: ='SA3'!F249 -> 280742023 | G33: ='SA3'!G249 -> 275975748 | H33: ='SA3'!H249 -> 275975748 | I33: ='SA3'!I249 -> -38741259.29 | J33: ='SA3'!J249 -> 593572552 | K33: ='SA3'!K249 -> 553562421 | L33: ='SA3'!L249 -> 580923937
A34: Total | C34: =C31-C33 -> -232957080.6 | D34: =D31-D33 -> -190736256.8 | E34: -214057739.8 | F34: -60563023 | G34: -61056748 | H34: -61056748 | I34: 71393259.29 | J34: -28403552 | K34: 44942579 | L34: 36734063
A36: Debtors collection assumptions
A37: Balance outstanding - debtors | C37: ='A6-FinPos'!C8+'A6-FinPos'!C9+'A6-FinPos'!C10+'A6-FinPos'!C23+'A6-FinPos'!C24 -> 27044070.15 | D37: ='A6-FinPos'!D8+'A6-FinPos'!D9+'A6-FinPos'!D10+'A6-FinPos'!D23+'A6-FinPos'!D24 -> 18275164.27 | E37: ='A6-FinPos'!E8+'A6-FinPos'!E9+'A6-FinPos'!E10+'A6-FinPos'!E23+'A6-FinPos'!E24 -> 47429460.64 | F37: ='A6-FinPos'!F8+'A6-FinPos'!F9+'A6-FinPos'!F10+'A6-FinPos'!F23+'A6-FinPos'!F24 -> 359634148 | G37: ='A6-FinPos'!G8+'A6-FinPos'!G9+'A6-FinPos'!G10+'A6-FinPos'!G23+'A6-FinPos'!G24 -> 359634148 | H37: ='A6-FinPos'!H8+'A6-FinPos'!H9+'A6-FinPos'!H10+'A6-FinPos'!H23+'A6-FinPos'!H24 -> 359634148 | I37: ='A6-FinPos'!I8+'A6-FinPos'!I9+'A6-FinPos'!I10+'A6-FinPos'!I23+'A6-FinPos'!I24 -> 23712373.02 | J37: ='A6-FinPos'!J8+'A6-FinPos'!J9+'A6-FinPos'!J10+'A6-FinPos'!J23+'A6-FinPos'!J24 -> 306640637 | K37: ='A6-FinPos'!K8+'A6-FinPos'!K9+'A6-FinPos'!K10+'A6-FinPos'!K23+'A6-FinPos'!K24 -> 316759775 | L37: ='A6-FinPos'!L8+'A6-FinPos'!L9+'A6-FinPos'!L10+'A6-FinPos'!L23+'A6-FinPos'!L24 -> 326896089
A38: Estimate of debtors collection rate | C38: =IF(ISERROR('SA10'!D10),0,('SA10'!D10)) -> 0.1707264362 | D38: =IF(ISERROR('SA10'!E10),0,('SA10'!E10)) -> 1.148571167 | E38: =IF(ISERROR('SA10'!F10),0,('SA10'!F10)) -> 0.1758899644 | F38: =IF(ISERROR('SA10'!G10),0,('SA10'!G10)) -> 0.6122305366 | G38: =IF(ISERROR('SA10'!H10),0,('SA10'!H10)) -> 0.5976045611 | H38: =IF(ISERROR('SA10'!I10),0,('SA10'!I10)) -> 0.5976045611 | I38: =IF(ISERROR('SA10'!J10),0,('SA10'!J10)) -> 1.376986304 | J38: =IF(ISERROR('SA10'!K10),0,('SA10'!K10)) -> 1.843098314 | K38: =IF(ISERROR('SA10'!L10),0,('SA10'!L10)) -> 1.889461675 | L38: =IF(ISERROR('SA10'!M10),0,('SA10'!M10)) -> 1.889461649
K41: `
A42: =A16 -> Long term investments committed
A43: Balance (Insert description; eg sinking fund)
C44: =SUM(C43:C43) -> 0 | D44: 0 | E44: 0 | F44: 0 | G44: 0 | H44: 0 | I44: 0 | J44: 0 | K44: 0 | L44: 0
A45: =A17 -> Reserves to be backed by cash/investments
A46: Housing Development Fund | C46: ='SA3'!C353 -> 0 | D46: ='SA3'!D353 -> 0 | E46: ='SA3'!E353 -> 0 | F46: ='SA3'!F353 -> 0 | G46: ='SA3'!G353 -> 0 | H46: ='SA3'!H353 -> 0 | I46: ='SA3'!I353 -> 0 | J46: ='SA3'!J353 -> 0 | K46: ='SA3'!K353 -> 0 | L46: ='SA3'!L353 -> 0
A47: Capital replacement | C47: ='SA3'!C349 -> 0 | D47: ='SA3'!D349 -> 0 | E47: ='SA3'!E349 -> 0 | F47: ='SA3'!F349 -> 0 | G47: ='SA3'!G349 -> 0 | H47: ='SA3'!H349 -> 0 | I47: ='SA3'!I349 -> 0 | J47: ='SA3'!J349 -> 350000000 | K47: ='SA3'!K349 -> 361550000 | L47: ='SA3'!L349 -> 373119600
A48: Self-insurance | C48: ='SA3'!C357 -> 0 | D48: ='SA3'!D357 -> 0 | E48: ='SA3'!E357 -> 0 | F48: ='SA3'!F357 -> 0 | G48: ='SA3'!G357 -> 0 | H48: ='SA3'!H357 -> 0 | I48: ='SA3'!I357 -> 0 | J48: ='SA3'!J357 -> 0 | K48: ='SA3'!K357 -> 0 | L48: ='SA3'!L357 -> 0
A49: Compensation for Occupational Injuries and Diseases | E49: ='SA3'!C351 -> 0 | F49: ='SA3'!D351 -> 0 | G49: ='SA3'!E351 -> 0 | H49: ='SA3'!F351 -> 0 | I49: ='SA3'!G351 -> 0 | J49: ='SA3'!H351 -> 0 | K49: ='SA3'!I351 -> 0 | L49: ='SA3'!J351 -> 0
A50: Employee Benefit reserve | E50: ='SA3'!C352 -> 0 | F50: ='SA3'!D352 -> 0 | G50: ='SA3'!E352 -> 0 | H50: ='SA3'!F352 -> 0 | I50: ='SA3'!G352 -> 0 | J50: ='SA3'!H352 -> 0 | K50: ='SA3'!I352 -> 0 | L50: ='SA3'!J352 -> 0
A51: Non-current Provisions reserve | E51: ='SA3'!C355 -> 0 | F51: ='SA3'!D355 -> 0 | G51: ='SA3'!E355 -> 0 | H51: ='SA3'!F355 -> 0 | I51: ='SA3'!G355 -> 0 | J51: ='SA3'!H355 -> 0 | K51: ='SA3'!I355 -> 0 | L51: ='SA3'!J355 -> 0
A52: Valuation reserve | E52: ='SA3'!C358 -> 0 | F52: ='SA3'!D358 -> 0 | G52: ='SA3'!E358 -> 0 | H52: ='SA3'!F358 -> 0 | I52: ='SA3'!G358 -> 0 | J52: ='SA3'!H358 -> 0 | K52: ='SA3'!I358 -> 0 | L52: ='SA3'!J358 -> 0
A53: Investment in associate account | E53: ='SA3'!C354 -> 0 | F53: ='SA3'!D354 -> 0 | G53: ='SA3'!E354 -> 0 | H53: ='SA3'!F354 -> 0 | I53: ='SA3'!G354 -> 0 | J53: ='SA3'!H354 -> 0 | K53: ='SA3'!I354 -> 0 | L53: ='SA3'!J354 -> 0
A54: Capitalisation | E54: ='SA3'!C350 -> 0 | F54: ='SA3'!D350 -> 0 | G54: ='SA3'!E350 -> 0 | H54: ='SA3'!F350 -> 0 | I54: ='SA3'!G350 -> 0 | J54: ='SA3'!H350 -> 0 | K54: ='SA3'!I350 -> 0 | L54: ='SA3'!J350 -> 0
B55: 6 | C55: =SUM(C46:C54) -> 0 | D55: =SUM(D46:D54) -> 0 | E55: 0 | F55: 0 | G55: 0 | H55: 0 | I55: 0 | J55: 350000000 | K55: 361550000 | L55: 373119600
A56: Note:
A57: 6. Above reserves do not include Revaluation reserve. Revaluation reserve not required to be cash backed

Sheet A9-Asset
A1: =muni&" - "&Approve9 -> LIM355 Lepelle-Nkumpi - Table A9 Asset Management
A2: =desc -> Description | B2: =head27 -> Ref | C2: =head1b -> 2022/23 | D2: =head1A -> 2023/24 | E2: =Head1 -> 2024/25 | F2: =Head2 -> Current Year 2025/26 | I2: =Head3 -> 2026/27 Medium Term Revenue & Expenditure Framework
A3: R thousand | C3: =Head5 -> Audited Outcome | D3: =Head5 -> Audited Outcome | E3: =Head5 -> Audited Outcome | F3: =Head6 -> Original Budget | G3: =Head7 -> Adjusted Budget | H3: =Head8 -> Full Year Forecast | I3: =Head9 -> Budget Year 2026/27 | J3: =Head10 -> Budget Year +1 2027/28 | K3: =Head11 -> Budget Year +2 2028/29
A4: CAPITAL EXPENDITURE
A5: Total New Assets | B5: 1 | C5: =C15+C18+C19+C22+C25+C26+SUM(C29:C35)+C38 -> 276.9 | D5: =D15+D18+D19+D22+D25+D26+SUM(D29:D35)+D38 -> 1195556.09 | E5: 400308 | F5: 172619716 | G5: 208640477 | H5: 208640477 | I5: 159079976 | J5: 71317340 | K5: 59318104
A6: Roads Infrastructure | C6: =SA34a!C7 -> 0 | D6: =SA34a!D7 -> -0.01 | E6: =SA34a!E7 -> 0 | F6: =SA34a!F7 -> 52621258 | G6: =SA34a!G7 -> 68274258 | H6: =SA34a!H7 -> 68274258 | I6: =SA34a!I7 -> 32100000 | J6: =SA34a!J7 -> 30900000 | K6: =SA34a!K7 -> 20946000
A7: Storm water Infrastructure | C7: =SA34a!C12 -> 0 | D7: =SA34a!D12 -> 0 | E7: =SA34a!E12 -> 0 | F7: =SA34a!F12 -> 28507863 | G7: =SA34a!G12 -> 34024363 | H7: =SA34a!H12 -> 34024363 | I7: =SA34a!I12 -> 2000000 | J7: =SA34a!J12 -> 5000000 | K7: =SA34a!K12 -> 5000000
A8: Electrical Infrastructure | C8: =SA34a!C16 -> 0 | D8: =SA34a!D16 -> 0 | E8: =SA34a!E16 -> 0 | F8: =SA34a!F16 -> 28940000 | G8: =SA34a!G16 -> 39360000 | H8: =SA34a!H16 -> 39360000 | I8: =SA34a!I16 -> 29700000 | J8: =SA34a!J16 -> 16800000 | K8: =SA34a!K16 -> 8950000
A9: Water Supply Infrastructure | C9: =SA34a!C26 -> 0 | D9: =SA34a!D26 -> 0 | E9: =SA34a!E26 -> 0 | F9: =SA34a!F26 -> 0 | G9: =SA34a!G26 -> 0 | H9: =SA34a!H26 -> 0 | I9: =SA34a!I26 -> 0 | J9: =SA34a!J26 -> 0 | K9: =SA34a!K26 -> 0
A10: Sanitation Infrastructure | C10: =SA34a!C37 -> 0 | D10: =SA34a!D37 -> 0 | E10: =SA34a!E37 -> 0 | F10: =SA34a!F37 -> 0 | G10: =SA34a!G37 -> 0 | H10: =SA34a!H37 -> 0 | I10: =SA34a!I37 -> 0 | J10: =SA34a!J37 -> 0 | K10: =SA34a!K37 -> 0
A11: Solid Waste Infrastructure | C11: =SA34a!C44 -> 0 | D11: =SA34a!D44 -> 0 | E11: =SA34a!E44 -> 0 | F11: =SA34a!F44 -> 0 | G11: =SA34a!G44 -> 0 | H11: =SA34a!H44 -> 0 | I11: =SA34a!I44 -> 1000000 | J11: =SA34a!J44 -> 0 | K11: =SA34a!K44 -> 0
A12: Rail Infrastructure | C12: =SA34a!C52 -> 0 | D12: =SA34a!D52 -> 0 | E12: =SA34a!E52 -> 0 | F12: =SA34a!F52 -> 0 | G12: =SA34a!G52 -> 0 | H12: =SA34a!H52 -> 0 | I12: =SA34a!I52 -> 0 | J12: =SA34a!J52 -> 0 | K12: =SA34a!K52 -> 0
A13: Coastal Infrastructure | C13: =SA34a!C62 -> 0 | D13: =SA34a!D62 -> 0 | E13: =SA34a!E62 -> 0 | F13: =SA34a!F62 -> 0 | G13: =SA34a!G62 -> 0 | H13: =SA34a!H62 -> 0 | I13: =SA34a!I62 -> 0 | J13: =SA34a!J62 -> 0 | K13: =SA34a!K62 -> 0
A14: Information and Communication Infrastructure | C14: =SA34a!C68 -> 0 | D14: =SA34a!D68 -> 0 | E14: =SA34a!E68 -> 0 | F14: =SA34a!F68 -> 0 | G14: =SA34a!G68 -> 0 | H14: =SA34a!H68 -> 0 | I14: =SA34a!I68 -> 0 | J14: =SA34a!J68 -> 0 | K14: =SA34a!K68 -> 0
A15: Infrastructure | C15: =SUM(C6:C14) -> 0 | D15: =SUM(D6:D14) -> -0.01 | E15: 0 | F15: 110069121 | G15: 141658621 | H15: 141658621 | I15: 64800000 | J15: 52700000 | K15: 34896000
A16: Community Facilities | C16: =SA34a!C75 -> 0 | D16: =SA34a!D75 -> 0 | E16: =SA34a!E75 -> 0 | F16: =SA34a!F75 -> 13400000 | G16: =SA34a!G75 -> 18500000 | H16: =SA34a!H75 -> 18500000 | I16: =SA34a!I75 -> 4200000 | J16: =SA34a!J75 -> 1000000 | K16: =SA34a!K75 -> 1000000
A17: Sport and Recreation Facilities | C17: =SA34a!C98 -> 0 | D17: =SA34a!D98 -> 0 | E17: =SA34a!E98 -> 0 | F17: =SA34a!F98 -> 8000000 | G17: =SA34a!G98 -> 9000000 | H17: =SA34a!H98 -> 9000000 | I17: =SA34a!I98 -> 19632381 | J17: =SA34a!J98 -> 0 | K17: =SA34a!K98 -> 0
A18: Community Assets | C18: =SUM(C16:C17) -> 0 | D18: =SUM(D16:D17) -> 0 | E18: 0 | F18: 21400000 | G18: 27500000 | H18: 27500000 | I18: 23832381 | J18: 1000000 | K18: 1000000
A19: Heritage Assets | C19: =SA34a!C103 -> 0 | D19: =SA34a!D103 -> 0 | E19: =SA34a!E103 -> 0 | F19: =SA34a!F103 -> 0 | G19: =SA34a!G103 -> 0 | H19: =SA34a!H103 -> 0 | I19: =SA34a!I103 -> 0 | J19: =SA34a!J103 -> 0 | K19: =SA34a!K103 -> 0
A20: Revenue Generating | C20: =SA34a!C111 -> 0 | D20: =SA34a!D111 -> 0 | E20: =SA34a!E111 -> 0 | F20: =SA34a!F111 -> 0 | G20: =SA34a!G111 -> 0 | H20: =SA34a!H111 -> 0 | I20: =SA34a!I111 -> 0 | J20: =SA34a!J111 -> 0 | K20: =SA34a!K111 -> 0
A21: Non-revenue Generating | C21: =SA34a!C114 -> 0 | D21: =SA34a!D114 -> 0 | E21: =SA34a!E114 -> 0 | F21: =SA34a!F114 -> 32000000 | G21: =SA34a!G114 -> 29000000 | H21: =SA34a!H114 -> 29000000 | I21: =SA34a!I114 -> 38817000 | J21: =SA34a!J114 -> 10000000 | K21: =SA34a!K114 -> 10000000
A22: Investment properties | C22: =SUM(C20:C21) -> 0 | D22: =SUM(D20:D21) -> 0 | E22: 0 | F22: 32000000 | G22: 29000000 | H22: 29000000 | I22: 38817000 | J22: 10000000 | K22: 10000000
A23: Operational Buildings | C23: =SA34a!C119 -> 276.9 | D23: =SA34a!D119 -> 0 | E23: =SA34a!E119 -> 0 | F23: =SA34a!F119 -> 2070000 | G23: =SA34a!G119 -> 2070000 | H23: =SA34a!H119 -> 2070000 | I23: =SA34a!I119 -> 3250000 | J23: =SA34a!J119 -> 0 | K23: =SA34a!K119 -> 0
A24: Housing | C24: =SA34a!C131 -> 0 | D24: =SA34a!D131 -> 0 | E24: =SA34a!E131 -> 0 | F24: =SA34a!F131 -> 0 | G24: =SA34a!G131 -> 0 | H24: =SA34a!H131 -> 0 | I24: =SA34a!I131 -> 0 | J24: =SA34a!J131 -> 0 | K24: =SA34a!K131 -> 0
A25: Other Assets | C25: =SUM(C23:C24) -> 276.9 | D25: =SUM(D23:D24) -> 0 | E25: 0 | F25: 2070000 | G25: 2070000 | H25: 2070000 | I25: 3250000 | J25: 0 | K25: 0
A26: Biological or Cultivated Assets | C26: =SA34a!C136 -> 0 | D26: =SA34a!D136 -> 0 | E26: =SA34a!E136 -> 0 | F26: =SA34a!F136 -> 0 | G26: =SA34a!G136 -> 0 | H26: =SA34a!H136 -> 0 | I26: =SA34a!I136 -> 0 | J26: =SA34a!J136 -> 0 | K26: =SA34a!K136 -> 0
A27: Servitudes | C27: =SA34a!C140 -> 0 | D27: =SA34a!D140 -> 0 | E27: =SA34a!E140 -> 0 | F27: =SA34a!F140 -> 0 | G27: =SA34a!G140 -> 0 | H27: =SA34a!H140 -> 0 | I27: =SA34a!I140 -> 0 | J27: =SA34a!J140 -> 0 | K27: =SA34a!K140 -> 0
A28: Licences and Rights | C28: =SA34a!C141 -> 0 | D28: =SA34a!D141 -> 0 | E28: =SA34a!E141 -> 0 | F28: =SA34a!F141 -> 0 | G28: =SA34a!G141 -> 0 | H28: =SA34a!H141 -> 0 | I28: =SA34a!I141 -> 0 | J28: =SA34a!J141 -> 0 | K28: =SA34a!K141 -> 0
A29: Intangible Assets | C29: =SUM(C27:C28) -> 0 | D29: =SUM(D27:D28) -> 0 | E29: 0 | F29: 0 | G29: 0 | H29: 0 | I29: 0 | J29: 0 | K29: 0
A30: Computer Equipment | C30: =SA34a!C149 -> 0 | D30: =SA34a!D149 -> 0 | E30: =SA34a!E149 -> 0 | F30: =SA34a!F149 -> 1650000 | G30: =SA34a!G149 -> 2715631 | H30: =SA34a!H149 -> 2715631 | I30: =SA34a!I149 -> 7200000 | J30: =SA34a!J149 -> 1700000 | K30: =SA34a!K149 -> 1500000
A31: Furniture and Office Equipment | C31: =SA34a!C152 -> 0 | D31: =SA34a!D152 -> 48354 | E31: =SA34a!E152 -> 400308 | F31: =SA34a!F152 -> 1000000 | G31: =SA34a!G152 -> 1265630 | H31: =SA34a!H152 -> 1265630 | I31: =SA34a!I152 -> 1450000 | J31: =SA34a!J152 -> 417340 | K31: =SA34a!K152 -> 422104
A32: Machinery and Equipment | C32: =SA34a!C155 -> 0 | D32: =SA34a!D155 -> 79000 | E32: =SA34a!E155 -> 0 | F32: =SA34a!F155 -> 0 | G32: =SA34a!G155 -> 0 | H32: =SA34a!H155 -> 0 | I32: =SA34a!I155 -> 12300000 | J32: =SA34a!J155 -> 0 | K32: =SA34a!K155 -> 0
A33: Transport Assets | C33: =SA34a!C158 -> 0 | D33: =SA34a!D158 -> 1068202.1 | E33: =SA34a!E158 -> 0 | F33: =SA34a!F158 -> 4430595 | G33: =SA34a!G158 -> 4430595 | H33: =SA34a!H158 -> 4430595 | I33: =SA34a!I158 -> 7430595 | J33: =SA34a!J158 -> 5500000 | K33: =SA34a!K158 -> 11500000
A34: Land | C34: =SA34a!C161 -> 0 | D34: =SA34a!D161 -> 0 | E34: =SA34a!E161 -> 0 | F34: =SA34a!F161 -> 0 | G34: =SA34a!G161 -> 0 | H34: =SA34a!H161 -> 0 | I34: =SA34a!I161 -> 0 | J34: =SA34a!J161 -> 0 | K34: =SA34a!K161 -> 0
A35: Zoo's, Marine and Non-biological Animals | C35: =SA34a!C164 -> 0 | D35: =SA34a!D164 -> 0 | E35: =SA34a!E164 -> 0 | F35: =SA34a!F164 -> 0 | G35: =SA34a!G164 -> 0 | H35: =SA34a!H164 -> 0 | I35: =SA34a!I164 -> 0 | J35: =SA34a!J164 -> 0 | K35: =SA34a!K164 -> 0
A36: Mature | C36: =SA34a!C168 -> 0 | D36: =SA34a!D168 -> 0 | E36: =SA34a!E168 -> 0 | F36: =SA34a!F168 -> 0 | G36: =SA34a!G168 -> 0 | H36: =SA34a!H168 -> 0 | I36: =SA34a!I168 -> 0 | J36: =SA34a!J168 -> 0 | K36: =SA34a!K168 -> 0
A37: Immature | C37: =SA34a!C171 -> 0 | D37: =SA34a!D171 -> 0 | E37: =SA34a!E171 -> 0 | F37: =SA34a!F171 -> 0 | G37: =SA34a!G171 -> 0 | H37: =SA34a!H171 -> 0 | I37: =SA34a!I171 -> 0 | J37: =SA34a!J171 -> 0 | K37: =SA34a!K171 -> 0
A38: Living Resources | C38: =SUM(C36:C37) -> 0 | D38: =SUM(D36:D37) -> 0 | E38: 0 | F38: 0 | G38: 0 | H38: 0 | I38: 0 | J38: 0 | K38: 0
A40: Total Renewal of Existing Assets | B40: 2 | C40: =C50+C53+C54+C57+C60+C61+SUM(C64:C70)+C73 -> 0 | D40: =D50+D53+D54+D57+D60+D61+SUM(D64:D70)+D73 -> 0 | E40: 0 | F40: 12050000 | G40: 21050000 | H40: 21050000 | I40: 8675000 | J40: 18000000 | K40: 19000000
A41: Roads Infrastructure | C41: =SA34b!C7 -> 0 | D41: =SA34b!D7 -> 0 | E41: =SA34b!E7 -> 0 | F41: =SA34b!F7 -> 12000000 | G41: =SA34b!G7 -> 14000000 | H41: =SA34b!H7 -> 14000000 | I41: =SA34b!I7 -> 1050000 | J41: =SA34b!J7 -> 10000000 | K41: =SA34b!K7 -> 11000000
A42: Storm water Infrastructure | C42: =SA34b!C12 -> 0 | D42: =SA34b!D12 -> 0 | E42: =SA34b!E12 -> 0 | F42: =SA34b!F12 -> 0 | G42: =SA34b!G12 -> 7000000 | H42: =SA34b!H12 -> 7000000 | I42: =SA34b!I12 -> 0 | J42: =SA34b!J12 -> 0 | K42: =SA34b!K12 -> 0
A43: Electrical Infrastructure | C43: =SA34b!C16 -> 0 | D43: =SA34b!D16 -> 0 | E43: =SA34b!E16 -> 0 | F43: =SA34b!F16 -> 0 | G43: =SA34b!G16 -> 0 | H43: =SA34b!H16 -> 0 | I43: =SA34b!I16 -> 0 | J43: =SA34b!J16 -> 0 | K43: =SA34b!K16 -> 0
A44: Water Supply Infrastructure | C44: =SA34b!C26 -> 0 | D44: =SA34b!D26 -> 0 | E44: =SA34b!E26 -> 0 | F44: =SA34b!F26 -> 0 | G44: =SA34b!G26 -> 0 | H44: =SA34b!H26 -> 0 | I44: =SA34b!I26 -> 0 | J44: =SA34b!J26 -> 0 | K44: =SA34b!K26 -> 0
A45: Sanitation Infrastructure | C45: =SA34b!C37 -> 0 | D45: =SA34b!D37 -> 0 | E45: =SA34b!E37 -> 0 | F45: =SA34b!F37 -> 0 | G45: =SA34b!G37 -> 0 | H45: =SA34b!H37 -> 0 | I45: =SA34b!I37 -> 0 | J45: =SA34b!J37 -> 0 | K45: =SA34b!K37 -> 0
A46: Solid Waste Infrastructure | C46: =SA34b!C44 -> 0 | D46: =SA34b!D44 -> 0 | E46: =SA34b!E44 -> 0 | F46: =SA34b!F44 -> 0 | G46: =SA34b!G44 -> 0 | H46: =SA34b!H44 -> 0 | I46: =SA34b!I44 -> 0 | J46: =SA34b!J44 -> 0 | K46: =SA34b!K44 -> 0
A47: Rail Infrastructure | C47: =SA34b!C52 -> 0 | D47: =SA34b!D52 -> 0 | E47: =SA34b!E52 -> 0 | F47: =SA34b!F52 -> 0 | G47: =SA34b!G52 -> 0 | H47: =SA34b!H52 -> 0 | I47: =SA34b!I52 -> 0 | J47: =SA34b!J52 -> 0 | K47: =SA34b!K52 -> 0
A48: Coastal Infrastructure | C48: =SA34b!C62 -> 0 | D48: =SA34b!D62 -> 0 | E48: =SA34b!E62 -> 0 | F48: =SA34b!F62 -> 0 | G48: =SA34b!G62 -> 0 | H48: =SA34b!H62 -> 0 | I48: =SA34b!I62 -> 0 | J48: =SA34b!J62 -> 0 | K48: =SA34b!K62 -> 0
A49: Information and Communication Infrastructure | C49: =SA34b!C68 -> 0 | D49: =SA34b!D68 -> 0 | E49: =SA34b!E68 -> 0 | F49: =SA34b!F68 -> 0 | G49: =SA34b!G68 -> 0 | H49: =SA34b!H68 -> 0 | I49: =SA34b!I68 -> 0 | J49: =SA34b!J68 -> 0 | K49: =SA34b!K68 -> 0
A50: Infrastructure | C50: =SUM(C41:C49) -> 0 | D50: =SUM(D41:D49) -> 0 | E50: 0 | F50: 12000000 | G50: 21000000 | H50: 21000000 | I50: 1050000 | J50: 10000000 | K50: 11000000
A51: Community Facilities | C51: =SA34b!C75 -> 0 | D51: =SA34b!D75 -> 0 | E51: =SA34b!E75 -> 0 | F51: =SA34b!F75 -> 0 | G51: =SA34b!G75 -> 0 | H51: =SA34b!H75 -> 0 | I51: =SA34b!I75 -> 0 | J51: =SA34b!J75 -> 0 | K51: =SA34b!K75 -> 0
A52: Sport and Recreation Facilities | C52: =SA34b!C98 -> 0 | D52: =SA34b!D98 -> 0 | E52: =SA34b!E98 -> 0 | F52: =SA34b!F98 -> 0 | G52: =SA34b!G98 -> 0 | H52: =SA34b!H98 -> 0 | I52: =SA34b!I98 -> 7475000 | J52: =SA34b!J98 -> 8000000 | K52: =SA34b!K98 -> 8000000
A53: Community Assets | C53: =SUM(C51:C52) -> 0 | D53: =SUM(D51:D52) -> 0 | E53: 0 | F53: 0 | G53: 0 | H53: 0 | I53: 7475000 | J53: 8000000 | K53: 8000000
A54: Heritage Assets | C54: =SA34b!C103 -> 0 | D54: =SA34b!D103 -> 0 | E54: =SA34b!E103 -> 0 | F54: =SA34b!F103 -> 0 | G54: =SA34b!G103 -> 0 | H54: =SA34b!H103 -> 0 | I54: =SA34b!I103 -> 0 | J54: =SA34b!J103 -> 0 | K54: =SA34b!K103 -> 0
A55: Revenue Generating | C55: =SA34b!C111 -> 0 | D55: =SA34b!D111 -> 0 | E55: =SA34b!E111 -> 0 | F55: =SA34b!F111 -> 0 | G55: =SA34b!G111 -> 0 | H55: =SA34b!H111 -> 0 | I55: =SA34b!I111 -> 0 | J55: =SA34b!J111 -> 0 | K55: =SA34b!K111 -> 0
A56: Non-revenue Generating | C56: =SA34b!C114 -> 0 | D56: =SA34b!D114 -> 0 | E56: =SA34b!E114 -> 0 | F56: =SA34b!F114 -> 0 | G56: =SA34b!G114 -> 0 | H56: =SA34b!H114 -> 0 | I56: =SA34b!I114 -> 0 | J56: =SA34b!J114 -> 0 | K56: =SA34b!K114 -> 0
A57: Investment properties | C57: =SUM(C55:C56) -> 0 | D57: =SUM(D55:D56) -> 0 | E57: 0 | F57: 0 | G57: 0 | H57: 0 | I57: 0 | J57: 0 | K57: 0
A58: Operational Buildings | C58: =SA34b!C119 -> 0 | D58: =SA34b!D119 -> 0 | E58: =SA34b!E119 -> 0 | F58: =SA34b!F119 -> 0 | G58: =SA34b!G119 -> 0 | H58: =SA34b!H119 -> 0 | I58: =SA34b!I119 -> 0 | J58: =SA34b!J119 -> 0 | K58: =SA34b!K119 -> 0
A59: Housing | C59: =SA34b!C131 -> 0 | D59: =SA34b!D131 -> 0 | E59: =SA34b!E131 -> 0 | F59: =SA34b!F131 -> 0 | G59: =SA34b!G131 -> 0 | H59: =SA34b!H131 -> 0 | I59: =SA34b!I131 -> 0 | J59: =SA34b!J131 -> 0 | K59: =SA34b!K131 -> 0
A60: Other Assets | C60: =SUM(C58:C59) -> 0 | D60: =SUM(D58:D59) -> 0 | E60: 0 | F60: 0 | G60: 0 | H60: 0 | I60: 0 | J60: 0 | K60: 0
A61: Biological or Cultivated Assets | C61: =SA34b!C136 -> 0 | D61: =SA34b!D136 -> 0 | E61: =SA34b!E136 -> 0 | F61: =SA34b!F136 -> 0 | G61: =SA34b!G136 -> 0 | H61: =SA34b!H136 -> 0 | I61: =SA34b!I136 -> 0 | J61: =SA34b!J136 -> 0 | K61: =SA34b!K136 -> 0
A62: Servitudes | C62: =SA34b!C140 -> 0 | D62: =SA34b!D140 -> 0 | E62: =SA34b!E140 -> 0 | F62: =SA34b!F140 -> 0 | G62: =SA34b!G140 -> 0 | H62: =SA34b!H140 -> 0 | I62: =SA34b!I140 -> 0 | J62: =SA34b!J140 -> 0 | K62: =SA34b!K140 -> 0
A63: Licences and Rights | C63: =SA34b!C141 -> 0 | D63: =SA34b!D141 -> 0 | E63: =SA34b!E141 -> 0 | F63: =SA34b!F141 -> 0 | G63: =SA34b!G141 -> 0 | H63: =SA34b!H141 -> 0 | I63: =SA34b!I141 -> 0 | J63: =SA34b!J141 -> 0 | K63: =SA34b!K141 -> 0
A64: Intangible Assets | C64: =SUM(C62:C63) -> 0 | D64: =SUM(D62:D63) -> 0 | E64: 0 | F64: 0 | G64: 0 | H64: 0 | I64: 0 | J64: 0 | K64: 0
A65: Computer Equipment | C65: =SA34b!C149 -> 0 | D65: =SA34b!D149 -> 0 | E65: =SA34b!E149 -> 0 | F65: =SA34b!F149 -> 0 | G65: =SA34b!G149 -> 0 | H65: =SA34b!H149 -> 0 | I65: =SA34b!I149 -> 0 | J65: =SA34b!J149 -> 0 | K65: =SA34b!K149 -> 0
A66: Furniture and Office Equipment | C66: =SA34b!C152 -> 0 | D66: =SA34b!D152 -> 0 | E66: =SA34b!E152 -> 0 | F66: =SA34b!F152 -> 0 | G66: =SA34b!G152 -> 0 | H66: =SA34b!H152 -> 0 | I66: =SA34b!I152 -> 150000 | J66: =SA34b!J152 -> 0 | K66: =SA34b!K152 -> 0
A67: Machinery and Equipment | C67: =SA34b!C155 -> 0 | D67: =SA34b!D155 -> 0 | E67: =SA34b!E155 -> 0 | F67: =SA34b!F155 -> 50000 | G67: =SA34b!G155 -> 50000 | H67: =SA34b!H155 -> 50000 | I67: =SA34b!I155 -> 0 | J67: =SA34b!J155 -> 0 | K67: =SA34b!K155 -> 0
A68: Transport Assets | C68: =SA34b!C158 -> 0 | D68: =SA34b!D158 -> 0 | E68: =SA34b!E158 -> 0 | F68: =SA34b!F158 -> 0 | G68: =SA34b!G158 -> 0 | H68: =SA34b!H158 -> 0 | I68: =SA34b!I158 -> 0 | J68: =SA34b!J158 -> 0 | K68: =SA34b!K158 -> 0
A69: Land | C69: =SA34b!C161 -> 0 | D69: =SA34b!D161 -> 0 | E69: =SA34b!E161 -> 0 | F69: =SA34b!F161 -> 0 | G69: =SA34b!G161 -> 0 | H69: =SA34b!H161 -> 0 | I69: =SA34b!I161 -> 0 | J69: =SA34b!J161 -> 0 | K69: =SA34b!K161 -> 0
A70: Zoo's, Marine and Non-biological Animals | C70: =SA34b!C164 -> 0 | D70: =SA34b!D164 -> 0 | E70: =SA34b!E164 -> 0 | F70: =SA34b!F164 -> 0 | G70: =SA34b!G164 -> 0 | H70: =SA34b!H164 -> 0 | I70: =SA34b!I164 -> 0 | J70: =SA34b!J164 -> 0 | K70: =SA34b!K164 -> 0
A71: Mature | C71: =SA34b!C168 -> 0 | D71: =SA34b!D168 -> 0 | E71: =SA34b!E168 -> 0 | F71: =SA34b!F168 -> 0 | G71: =SA34b!G168 -> 0 | H71: =SA34b!H168 -> 0 | I71: =SA34b!I168 -> 0 | J71: =SA34b!J168 -> 0 | K71: =SA34b!K168 -> 0
A72: Immature | C72: =SA34b!C171 -> 0 | D72: =SA34b!D171 -> 0 | E72: =SA34b!E171 -> 0 | F72: =SA34b!F171 -> 0 | G72: =SA34b!G171 -> 0 | H72: =SA34b!H171 -> 0 | I72: =SA34b!I171 -> 0 | J72: =SA34b!J171 -> 0 | K72: =SA34b!K171 -> 0
A73: Living Resources | C73: =SUM(C71:C72) -> 0 | D73: 0 | E73: 0 | F73: 0 | G73: 0 | H73: 0 | I73: 0 | J73: 0 | K73: 0
A75: Total Upgrading of Existing Assets | B75: 6 | C75: =C85+C88+C89+C92+C95+C96+SUM(C99:C105)+C108 -> 0 | D75: =D85+D88+D89+D92+D95+D96+SUM(D99:D105)+D108 -> 0 | E75: 0 | F75: 62195983 | G75: 62917683 | H75: 62917683 | I75: 68239924 | J75: 101344300 | K75: 124500000
A76: Roads Infrastructure | C76: =SA34e!C7 -> 0 | D76: =SA34e!D7 -> 0 | E76: =SA34e!E7 -> 0 | F76: =SA34e!F7 -> 47695983 | G76: =SA34e!G7 -> 40417683 | H76: =SA34e!H7 -> 40417683 | I76: =SA34e!I7 -> 56239924 | J76: =SA34e!J7 -> 97344300 | K76: =SA34e!K7 -> 119500000
A77: Storm water Infrastructure | C77: =SA34e!C12 -> 0 | D77: =SA34e!D12 -> 0 | E77: =SA34e!E12 -> 0 | F77: =SA34e!F12 -> 1500000 | G77: =SA34e!G12 -> 9500000 | H77: =SA34e!H12 -> 9500000 | I77: =SA34e!I12 -> 1600000 | J77: =SA34e!J12 -> 1000000 | K77: =SA34e!K12 -> 0
A78: Electrical Infrastructure | C78: =SA34e!C16 -> 0 | D78: =SA34e!D16 -> 0 | E78: =SA34e!E16 -> 0 | F78: =SA34e!F16 -> 0 | G78: =SA34e!G16 -> 0 | H78: =SA34e!H16 -> 0 | I78: =SA34e!I16 -> 0 | J78: =SA34e!J16 -> 0 | K78: =SA34e!K16 -> 0
A79: Water Supply Infrastructure | C79: =SA34e!C26 -> 0 | D79: =SA34e!D26 -> 0 | E79: =SA34e!E26 -> 0 | F79: =SA34e!F26 -> 0 | G79: =SA34e!G26 -> 0 | H79: =SA34e!H26 -> 0 | I79: =SA34e!I26 -> 0 | J79: =SA34e!J26 -> 0 | K79: =SA34e!K26 -> 0
A80: Sanitation Infrastructure | C80: =SA34e!C37 -> 0 | D80: =SA34e!D37 -> 0 | E80: =SA34e!E37 -> 0 | F80: =SA34e!F37 -> 0 | G80: =SA34e!G37 -> 0 | H80: =SA34e!H37 -> 0 | I80: =SA34e!I37 -> 0 | J80: =SA34e!J37 -> 0 | K80: =SA34e!K37 -> 0
A81: Solid Waste Infrastructure | C81: =SA34e!C44 -> 0 | D81: =SA34e!D44 -> 0 | E81: =SA34e!E44 -> 0 | F81: =SA34e!F44 -> 0 | G81: =SA34e!G44 -> 0 | H81: =SA34e!H44 -> 0 | I81: =SA34e!I44 -> 0 | J81: =SA34e!J44 -> 0 | K81: =SA34e!K44 -> 0
A82: Rail Infrastructure | C82: =SA34e!C52 -> 0 | D82: =SA34e!D52 -> 0 | E82: =SA34e!E52 -> 0 | F82: =SA34e!F52 -> 0 | G82: =SA34e!G52 -> 0 | H82: =SA34e!H52 -> 0 | I82: =SA34e!I52 -> 0 | J82: =SA34e!J52 -> 0 | K82: =SA34e!K52 -> 0
A83: Coastal Infrastructure | C83: =SA34e!C62 -> 0 | D83: =SA34e!D62 -> 0 | E83: =SA34e!E62 -> 0 | F83: =SA34e!F62 -> 0 | G83: =SA34e!G62 -> 0 | H83: =SA34e!H62 -> 0 | I83: =SA34e!I62 -> 0 | J83: =SA34e!J62 -> 0 | K83: =SA34e!K62 -> 0
A84: Information and Communication Infrastructure | C84: =SA34e!C68 -> 0 | D84: =SA34e!D68 -> 0 | E84: =SA34e!E68 -> 0 | F84: =SA34e!F68 -> 0 | G84: =SA34e!G68 -> 0 | H84: =SA34e!H68 -> 0 | I84: =SA34e!I68 -> 0 | J84: =SA34e!J68 -> 0 | K84: =SA34e!K68 -> 0
A85: Infrastructure | C85: =SUM(C76:C84) -> 0 | D85: 0 | E85: 0 | F85: 49195983 | G85: 49917683 | H85: 49917683 | I85: 57839924 | J85: 98344300 | K85: 119500000
A86: Community Facilities | C86: =SA34e!C75 -> 0 | D86: =SA34e!D75 -> 0 | E86: =SA34e!E75 -> 0 | F86: =SA34e!F75 -> 0 | G86: =SA34e!G75 -> 0 | H86: =SA34e!H75 -> 0 | I86: =SA34e!I75 -> 4400000 | J86: =SA34e!J75 -> 2000000 | K86: =SA34e!K75 -> 5000000
A87: Sport and Recreation Facilities | C87: =SA34e!C98 -> 0 | D87: =SA34e!D98 -> 0 | E87: =SA34e!E98 -> 0 | F87: =SA34e!F98 -> 3000000 | G87: =SA34e!G98 -> 3000000 | H87: =SA34e!H98 -> 3000000 | I87: =SA34e!I98 -> 1000000 | J87: =SA34e!J98 -> 500000 | K87: =SA34e!K98 -> 0
A88: Community Assets | C88: =SUM(C86:C87) -> 0 | D88: 0 | E88: 0 | F88: 3000000 | G88: 3000000 | H88: 3000000 | I88: 5400000 | J88: 2500000 | K88: 5000000
A89: Heritage Assets | C89: =SA34e!C103 -> 0 | D89: =SA34e!D103 -> 0 | E89: =SA34e!E103 -> 0 | F89: =SA34e!F103 -> 0 | G89: =SA34e!G103 -> 0 | H89: =SA34e!H103 -> 0 | I89: =SA34e!I103 -> 0 | J89: =SA34e!J103 -> 0 | K89: =SA34e!K103 -> 0
A90: Revenue Generating | C90: =SA34e!C111 -> 0 | D90: =SA34e!D111 -> 0 | E90: =SA34e!E111 -> 0 | F90: =SA34e!F111 -> 0 | G90: =SA34e!G111 -> 0 | H90: =SA34e!H111 -> 0 | I90: =SA34e!I111 -> 0 | J90: =SA34e!J111 -> 0 | K90: =SA34e!K111 -> 0
A91: Non-revenue Generating | C91: =SA34e!C114 -> 0 | D91: =SA34e!D114 -> 0 | E91: =SA34e!E114 -> 0 | F91: =SA34e!F114 -> 0 | G91: =SA34e!G114 -> 0 | H91: =SA34e!H114 -> 0 | I91: =SA34e!I114 -> 0 | J91: =SA34e!J114 -> 0 | K91: =SA34e!K114 -> 0
A92: Investment properties | C92: =SUM(C90:C91) -> 0 | D92: 0 | E92: 0 | F92: 0 | G92: 0 | H92: 0 | I92: 0 | J92: 0 | K92: 0
A93: Operational Buildings | C93: =SA34e!C119 -> 0 | D93: =SA34e!D119 -> 0 | E93: =SA34e!E119 -> 0 | F93: =SA34e!F119 -> 10000000 | G93: =SA34e!G119 -> 10000000 | H93: =SA34e!H119 -> 10000000 | I93: =SA34e!I119 -> 5000000 | J93: =SA34e!J119 -> 500000 | K93: =SA34e!K119 -> 0
A94: Housing | C94: =SA34e!C131 -> 0 | D94: =SA34e!D131 -> 0 | E94: =SA34e!E131 -> 0 | F94: =SA34e!F131 -> 0 | G94: =SA34e!G131 -> 0 | H94: =SA34e!H131 -> 0 | I94: =SA34e!I131 -> 0 | J94: =SA34e!J131 -> 0 | K94: =SA34e!K131 -> 0
A95: Other Assets | C95: =SUM(C93:C94) -> 0 | D95: 0 | E95: 0 | F95: 10000000 | G95: 10000000 | H95: 10000000 | I95: 5000000 | J95: 500000 | K95: 0
A96: Biological or Cultivated Assets | C96: =SA34e!C136 -> 0 | D96: =SA34e!D136 -> 0 | E96: =SA34e!E136 -> 0 | F96: =SA34e!F136 -> 0 | G96: =SA34e!G136 -> 0 | H96: =SA34e!H136 -> 0 | I96: =SA34e!I136 -> 0 | J96: =SA34e!J136 -> 0 | K96: =SA34e!K136 -> 0
A97: Servitudes | C97: =SA34e!C140 -> 0 | D97: =SA34e!D140 -> 0 | E97: =SA34e!E140 -> 0 | F97: =SA34e!F140 -> 0 | G97: =SA34e!G140 -> 0 | H97: =SA34e!H140 -> 0 | I97: =SA34e!I140 -> 0 | J97: =SA34e!J140 -> 0 | K97: =SA34e!K140 -> 0
A98: Licences and Rights | C98: =SA34e!C141 -> 0 | D98: =SA34e!D141 -> 0 | E98: =SA34e!E141 -> 0 | F98: =SA34e!F141 -> 0 | G98: =SA34e!G141 -> 0 | H98: =SA34e!H141 -> 0 | I98: =SA34e!I141 -> 0 | J98: =SA34e!J141 -> 0 | K98: =SA34e!K141 -> 0
A99: Intangible Assets | C99: =SUM(C97:C98) -> 0 | D99: 0 | E99: 0 | F99: 0 | G99: 0 | H99: 0 | I99: 0 | J99: 0 | K99: 0
A100: Computer Equipment | C100: =SA34e!C149 -> 0 | D100: =SA34e!D149 -> 0 | E100: =SA34e!E149 -> 0 | F100: =SA34e!F149 -> 0 | G100: =SA34e!G149 -> 0 | H100: =SA34e!H149 -> 0 | I100: =SA34e!I149 -> 0 | J100: =SA34e!J149 -> 0 | K100: =SA34e!K149 -> 0
A101: Furniture and Office Equipment | C101: =SA34e!C152 -> 0 | D101: =SA34e!D152 -> 0 | E101: =SA34e!E152 -> 0 | F101: =SA34e!F152 -> 0 | G101: =SA34e!G152 -> 0 | H101: =SA34e!H152 -> 0 | I101: =SA34e!I152 -> 0 | J101: =SA34e!J152 -> 0 | K101: =SA34e!K152 -> 0
A102: Machinery and Equipment | C102: =SA34e!C155 -> 0 | D102: =SA34e!D155 -> 0 | E102: =SA34e!E155 -> 0 | F102: =SA34e!F155 -> 0 | G102: =SA34e!G155 -> 0 | H102: =SA34e!H155 -> 0 | I102: =SA34e!I155 -> 0 | J102: =SA34e!J155 -> 0 | K102: =SA34e!K155 -> 0
A103: Transport Assets | C103: =SA34e!C158 -> 0 | D103: =SA34e!D158 -> 0 | E103: =SA34e!E158 -> 0 | F103: =SA34e!F158 -> 0 | G103: =SA34e!G158 -> 0 | H103: =SA34e!H158 -> 0 | I103: =SA34e!I158 -> 0 | J103: =SA34e!J158 -> 0 | K103: =SA34e!K158 -> 0
A104: Land | C104: =SA34e!C161 -> 0 | D104: =SA34e!D161 -> 0 | E104: =SA34e!E161 -> 0 | F104: =SA34e!F161 -> 0 | G104: =SA34e!G161 -> 0 | H104: =SA34e!H161 -> 0 | I104: =SA34e!I161 -> 0 | J104: =SA34e!J161 -> 0 | K104: =SA34e!K161 -> 0
A105: Zoo's, Marine and Non-biological Animals | C105: =SA34e!C164 -> 0 | D105: =SA34e!D164 -> 0 | E105: =SA34e!E164 -> 0 | F105: =SA34e!F164 -> 0 | G105: =SA34e!G164 -> 0 | H105: =SA34e!H164 -> 0 | I105: =SA34e!I164 -> 0 | J105: =SA34e!J164 -> 0 | K105: =SA34e!K164 -> 0
A106: Mature | C106: =SA34e!C168 -> 0 | D106: =SA34e!D168 -> 0 | E106: =SA34e!E168 -> 0 | F106: =SA34e!F168 -> 0 | G106: =SA34e!G168 -> 0 | H106: =SA34e!H168 -> 0 | I106: =SA34e!I168 -> 0 | J106: =SA34e!J168 -> 0 | K106: =SA34e!K168 -> 0
A107: Immature | C107: =SA34b!C171 -> 0 | D107: =SA34b!D171 -> 0 | E107: =SA34b!E171 -> 0 | F107: =SA34b!F171 -> 0 | G107: =SA34b!G171 -> 0 | H107: =SA34b!H171 -> 0 | I107: =SA34b!I171 -> 0 | J107: =SA34b!J171 -> 0 | K107: =SA34b!K171 -> 0
A108: Living Resources | C108: =SUM(C106:C107) -> 0 | D108: =SUM(D106:D107) -> 0 | E108: 0 | F108: 0 | G108: 0 | H108: 0 | I108: 0 | J108: 0 | K108: 0
A110: Total Capital Expenditure | B110: 4 | C110: =+C5+C40+C75 -> 276.9 | D110: =+D5+D40+D75 -> 1195556.09 | E110: 400308 | F110: 246865699 | G110: 292608160 | H110: 292608160 | I110: 235994900 | J110: 190661640 | K110: 202818104
A111: Roads Infrastructure | C111: =+C6+C41+C76 -> 0 | D111: -0.01 | E111: 0 | F111: 112317241 | G111: 122691941 | H111: 122691941 | I111: 89389924 | J111: 138244300 | K111: 151446000
A112: Storm water Infrastructure | C112: =+C7+C42+C77 -> 0 | D112: 0 | E112: 0 | F112: 30007863 | G112: 50524363 | H112: 50524363 | I112: 3600000 | J112: 6000000 | K112: 5000000
A113: Electrical Infrastructure | C113: =+C8+C43+C78 -> 0 | D113: 0 | E113: 0 | F113: 28940000 | G113: 39360000 | H113: 39360000 | I113: 29700000 | J113: 16800000 | K113: 8950000
A114: Water Supply Infrastructure | C114: =+C9+C44+C79 -> 0 | D114: 0 | E114: 0 | F114: 0 | G114: 0 | H114: 0 | I114: 0 | J114: 0 | K114: 0
A115: Sanitation Infrastructure | C115: =+C10+C45+C80 -> 0 | D115: 0 | E115: 0 | F115: 0 | G115: 0 | H115: 0 | I115: 0 | J115: 0 | K115: 0
A116: Solid Waste Infrastructure | C116: =+C11+C46+C81 -> 0 | D116: 0 | E116: 0 | F116: 0 | G116: 0 | H116: 0 | I116: 1000000 | J116: 0 | K116: 0
A117: Rail Infrastructure | C117: =+C12+C47+C82 -> 0 | D117: 0 | E117: 0 | F117: 0 | G117: 0 | H117: 0 | I117: 0 | J117: 0 | K117: 0
A118: Coastal Infrastructure | C118: =+C13+C48+C83 -> 0 | D118: 0 | E118: 0 | F118: 0 | G118: 0 | H118: 0 | I118: 0 | J118: 0 | K118: 0
A119: Information and Communication Infrastructure | C119: =+C14+C49+C84 -> 0 | D119: 0 | E119: 0 | F119: 0 | G119: 0 | H119: 0 | I119: 0 | J119: 0 | K119: 0
A120: Infrastructure | C120: =SUM(C111:C119) -> 0 | D120: =SUM(D111:D119) -> -0.01 | E120: 0 | F120: 171265104 | G120: 212576304 | H120: 212576304 | I120: 123689924 | J120: 161044300 | K120: 165396000
A121: Community Facilities | C121: =+C16+C51+C86 -> 0 | D121: 0 | E121: 0 | F121: 13400000 | G121: 18500000 | H121: 18500000 | I121: 8600000 | J121: 3000000 | K121: 6000000
A122: Sport and Recreation Facilities | C122: =+C17+C52+C87 -> 0 | D122: 0 | E122: 0 | F122: 11000000 | G122: 12000000 | H122: 12000000 | I122: 28107381 | J122: 8500000 | K122: 8000000
A123: Community Assets | C123: =SUM(C121:C122) -> 0 | D123: =SUM(D121:D122) -> 0 | E123: 0 | F123: 24400000 | G123: 30500000 | H123: 30500000 | I123: 36707381 | J123: 11500000 | K123: 14000000
A124: Heritage Assets | C124: =+C19+C54+C89 -> 0 | D124: 0 | E124: 0 | F124: 0 | G124: 0 | H124: 0 | I124: 0 | J124: 0 | K124: 0
A125: Revenue Generating | C125: =+C20+C55+C90 -> 0 | D125: 0 | E125: 0 | F125: 0 | G125: 0 | H125: 0 | I125: 0 | J125: 0 | K125: 0
A126: Non-revenue Generating | C126: =+C21+C56+C91 -> 0 | D126: 0 | E126: 0 | F126: 32000000 | G126: 29000000 | H126: 29000000 | I126: 38817000 | J126: 10000000 | K126: 10000000
A127: Investment properties | C127: =SUM(C125:C126) -> 0 | D127: =SUM(D125:D126) -> 0 | E127: 0 | F127: 32000000 | G127: 29000000 | H127: 29000000 | I127: 38817000 | J127: 10000000 | K127: 10000000
A128: Operational Buildings | C128: =+C23+C58+C93 -> 276.9 | D128: 0 | E128: 0 | F128: 12070000 | G128: 12070000 | H128: 12070000 | I128: 8250000 | J128: 500000 | K128: 0
A129: Housing | C129: =+C24+C59+C94 -> 0 | D129: 0 | E129: 0 | F129: 0 | G129: 0 | H129: 0 | I129: 0 | J129: 0 | K129: 0
A130: Other Assets | C130: =SUM(C128:C129) -> 276.9 | D130: 0 | E130: 0 | F130: 12070000 | G130: 12070000 | H130: 12070000 | I130: 8250000 | J130: 500000 | K130: 0
A131: Biological or Cultivated Assets | C131: =+C26+C61+C96 -> 0 | D131: 0 | E131: 0 | F131: 0 | G131: 0 | H131: 0 | I131: 0 | J131: 0 | K131: 0
A132: Servitudes | C132: =+C27+C62+C97 -> 0 | D132: 0 | E132: 0 | F132: 0 | G132: 0 | H132: 0 | I132: 0 | J132: 0 | K132: 0
A133: Licences and Rights | C133: =+C28+C63+C98 -> 0 | D133: 0 | E133: 0 | F133: 0 | G133: 0 | H133: 0 | I133: 0 | J133: 0 | K133: 0
A134: Intangible Assets | C134: =SUM(C132:C133) -> 0 | D134: =SUM(D132:D133) -> 0 | E134: 0 | F134: 0 | G134: 0 | H134: 0 | I134: 0 | J134: 0 | K134: 0
A135: Computer Equipment | C135: =+C30+C65+C100 -> 0 | D135: 0 | E135: 0 | F135: 1650000 | G135: 2715631 | H135: 2715631 | I135: 7200000 | J135: 1700000 | K135: 1500000
A136: Furniture and Office Equipment | C136: =+C31+C66+C101 -> 0 | D136: 48354 | E136: 400308 | F136: 1000000 | G136: 1265630 | H136: 1265630 | I136: 1600000 | J136: 417340 | K136: 422104
A137: Machinery and Equipment | C137: =+C32+C67+C102 -> 0 | D137: 79000 | E137: 0 | F137: 50000 | G137: 50000 | H137: 50000 | I137: 12300000 | J137: 0 | K137: 0
A138: Transport Assets | C138: =+C33+C68+C103 -> 0 | D138: 1068202.1 | E138: 0 | F138: 4430595 | G138: 4430595 | H138: 4430595 | I138: 7430595 | J138: 5500000 | K138: 11500000
